{"text_format":"1","workbook":"xlsx","n_sheets":29,"sheets":["ACCUEIL","bon de réception","Lettre de voiture Retour","Bon de retour","Étiquette colis Retour","Courrier litige Transporteur","Bon de commande","BL fournisseur","Lettre Voiture livraison fourn","Transporteurs","Étiquette colis fournisseur","Filtrage","Facture fournisseur","Filtre","BL fournisseur 6","Ancien Fichier stock","ClientsFournisseurs","Stock","Étiquettes","Cde client","Traitement Cde","bon de préparation","Bon de livraison","Étiquette colis EXPÉ","Lettre de voiture expé","Facture client","fiche d'inventaire","Gestion identité","Rapport sur la compatibilité"],"not_rendered":{"charts":0,"images":47,"macros":1,"external_links":1,"defined_names":41,"comments":0,"pivot_tables":0},"unopened":[],"bounds":{"document_bytes":16777216,"sheet_cells":100000,"rows_first":2000,"rows_last":500,"rows_between":2000,"halvings":0,"cell_chars":16384,"cell_head_chars":4096},"cells_cut":0,"cells_raw":0,"read":"whole","date_system":"1900"}

{"sheet":"ACCUEIL","index":0,"n_rows":21,"n_cols":31,"rows_kept":21,"cut":false,"hidden":false,"merged":[[6,2,6,6],[0,0,0,33],[8,26,9,26],[8,2,9,2],[10,14,11,14],[8,18,9,18],[8,22,9,22],[17,2,17,6],[14,2,15,2],[14,6,15,6],[14,10,15,10],[12,2,12,6],[20,10,20,14],[8,30,9,30],[20,26,20,30],[13,26,13,30],[18,10,18,14],[17,18,17,22],[17,26,17,30]]}
["B.S.L ÉLEC"]
[]
[]
[]
[]
[]
[null,null,"COMMANDE FOURNISSEUR",null,null,null,null,null,null,null,"ARTICLES",null,null,null,null,null,null,null,"PRÉPARATION DE COMMANDES",null,null,null,null,null,null,null,"FOURNISSEURS"]
[]
[null,null,"Commande fournisseur",null,null,null,null,null,null,null,null,null,null,null,"\n\n\n\n\n",null,null,null,"Commande client",null,null,null,"Traitement de la commande",null,null,null,"Recherche \nd'un fournisseur",null,null,null,"Recherche par son numéro"]
[null,null,null,null,null,null,"Bon de livraison\nfournisseur",null,null,null,"Recherche d'un article",null,null,null,"Étiquette article"]
[]
[]
[null,null,"RÉCEPTION",null,null,null,null,null,null,null,null,null,null,null,null,null,null,null,null,null,null,null,null,null,null,null,"\n"]
[null,null,null,null,null,null,null,null,null,null,"\n",null,null,null,null,null,null,null,"Dossiers Commandes clients",null,null,null,"Bon de préparation",null,null,null,"Enregistrement d'un  fournisseur"]
[null,null,"Dossiers Commande Fournisseurs",null,null,null,"Bon de réception",null,null,null,"Enregistrer un  nouveau produit",null,null,null,"Fichier article\n"]
[]
[]
[null,null,"RETOUR",null,null,null,null,null,null,null,"INVENTAIRE",null,null,null,null,null,null,null,"CLIENTS",null,null,null,null,null,null,null,"TRANSPORTEURS"]
[null,null,null,null,null,null,"\n"]
[null,null,null,null,null,null,null,null,null,null,null,null,null,null,null,null,null,null,"Rechercher un client",null,null,null,"Recherche client par son numéro",null,null,null,"Recherche d'un transporteur",null,null,null,"Recherche par son numéro"]
[null,null,"Litige transporteur",null,null,null,"Saisie du Bon de retour",null,null,null,"Renseigner la fiche d'inventaire",null,null,null,null,null,null,null,"Enregistrer un client",null,null,null,null,null,null,null,"Enregistrement d'un nouveau transporteur"]

{"sheet":"bon de réception","index":1,"n_rows":35,"n_cols":9,"rows_kept":35,"cut":false,"hidden":false,"merged":[[36,2,39,5],[29,3,29,5],[30,3,30,5],[25,3,25,5],[26,3,26,5],[27,3,27,5],[28,3,28,5],[6,6,6,8],[7,6,7,8],[8,6,8,8],[9,6,9,8],[35,6,36,8],[12,4,12,6],[20,3,20,5],[15,3,15,5],[16,3,16,5],[17,3,17,5],[18,3,18,5],[19,3,19,5],[21,3,21,5],[22,3,22,5],[23,3,23,5],[24,3,24,5]]}
[]
[null,null,null,null,null,null,"BON DE RECEPTION"]
[null,null,{"$f":"'Gestion identité'!C5","v":"B.S.L ÉLEC"}]
[null,null,{"$f":"'Gestion identité'!C6","v":"5, rue Ste Anne"},null,null,null,"N°"]
[null,null,{"$f":"'Gestion identité'!C7","v":"54340 Pompey"}]
[null,null,null,null,null,null,"Fournisseur :"]
[null,null,"Notre commande N° :",null,null,null,{"$f":"IF($I$14=\"\",\"\",VLOOKUP($I$14,carnetadresse,2,FALSE))","v":""}]
[null,null,"Du:",null,null,null,{"$f":"IF($I$14=\"\",\"\",VLOOKUP($I$14,carnetadresse,3,FALSE))","v":""}]
[null,null,null,null,null,null,{"$f":"IF($I$14=\"\",\"\",VLOOKUP($I$14,carnetadresse,4,FALSE))","v":""}]
[null,null,"Date de réception :",null,null,null,{"$f":"IF($I$14=\"\",\"\",VLOOKUP($I$14,carnetadresse,5,FALSE))","v":""}]
[]
[null,null,"Transporteur :",{"$f":"IF(I12=\"\",\"\",VLOOKUP($I$12,listetransporteur,2,FALSE))","v":""}]
[null,null,null,{"$f":"IF(I12=\"\",\"\",VLOOKUP($I$12,listetransporteur,4,FALSE))","v":""},{"$f":"IF(I12=\"\",\"\",VLOOKUP($I$12,listetransporteur,5,FALSE))","v":""}]
[]
[null,null,"Référence","Désignation ",null,null,"Qté Cdée","Qté livrée","Qté acceptée"]
[null,null,null,{"$f":"IF(C16=\"\",\"\",VLOOKUP(C16,stock,2,FALSE))","v":""}]
[null,null,null,""]
[null,null,null,""]
[null,null,null,""]
[null,null,null,""]
[null,null,null,""]
[null,null,null,""]
[null,null,null,""]
[null,null,null,""]
[null,null,null,""]
[null,null,null,""]
[null,null,null,""]
[null,null,null,""]
[null,null,null,""]
[null,null,null,""]
[null,null,null,""]
[]
[null,null,"Nombre de colis :",null,"Poids en kg :"]
[null,null,null,null,null,null,"Nom du réceptionnaire"]
[null,null,"Observations :"]

{"sheet":"Lettre de voiture Retour","index":2,"n_rows":22,"n_cols":14,"rows_kept":22,"cut":false,"hidden":false,"merged":[[20,2,20,5],[21,2,21,5],[17,10,17,13],[19,2,19,5],[13,10,15,13],[13,4,14,4],[13,5,15,6],[13,7,15,7],[18,2,18,5],[6,4,6,6],[6,8,6,9],[6,11,6,13],[8,5,8,6],[8,8,8,9],[8,10,8,11],[8,12,8,13],[9,8,11,11],[9,12,10,13],[7,4,7,6],[13,8,15,9],[10,2,12,2],[9,4,11,7],[10,3,12,3]]}
[]
[]
[null,null,null,null,"Lettre de voiture retour colis"]
[]
[]
[null,null,"EXPEDITEUR",null,"DESTINATAIRE",null,null,"Nbre colis","Port Payé H.T",null,"T.V.A 20 %","Contre Remoursement"]
[null,null,{"$f":"'Gestion identité'!C5","v":"B.S.L ÉLEC"},null,{"$f":"IF('Bon de retour'!$K$1=\"\",\"\",'Bon de retour'!H11)","v":""},null,null,{"$f":"IF('Bon de retour'!$K$1=\"\",\"\",'Bon de retour'!E34)","v":""}]
[null,null,{"$f":"'Gestion identité'!C6","v":"5, rue Ste Anne"},null,{"$f":"IF('Bon de retour'!$K$1=\"\",\"\",'Bon de retour'!H12)","v":""},null,null,"Poids en Kg","Port dû \nH.T",null,"Débours Assignés",null,"Total à Encaisser"]
[null,null,{"$f":"'Gestion identité'!C7","v":"54340 Pompey"},null,{"$f":"IF('Bon de retour'!$K$1=\"\",\"\",'Bon de retour'!H13)","v":""},{"$f":"IF('Bon de retour'!$K$1=\"\",\"\",'Bon de retour'!I13)","v":""},null,{"$f":"IF('Bon de retour'!$K$1=\"\",\"\",'Bon de retour'!G34)","v":""}]
[null,null,"Date d'exp",{"$f":"IF('Bon de retour'!$K$1=\"\",\"\",'Bon de retour'!I6)","v":""},"Produits électriques",null,null,null,null,null,null,null,"L'expédition contient des matières\ndangereuses selon\nRTMD/RD/ADR DECLARATION OBLIGATOIRE"]
[null,null,"Lettre de voiture N°","W25127"]
[null,null,null,null,null,null,null,null,null,null,null,null,"oui","non"]
[null,null,null,null,"DESIGNATION - NATURE - MARQUES ET NUMEROS",null,null,null,"OBSERVATIONS DE LIVRAISON",null,null,null,"MATIERES DANGEREUSES"]
[null,null,"Rayer la mention\ninutile",null,"Valeur à \nassurée","Nos opérations sont soumises aux Conditions générales de transport de détail approuvées par décisions Ministérielles \n(J.O du 21.01.1971 et du 27.07.1985).",null,"VOIR AU VERSO EXTRAIT DE\nCES CONDITIONS GENERALES","Les réserves pour être valables doivent. Etre indiquées de façon précise ci-contre Et confirmées dans les trois jours, par Lettre recommandée au livreur (article L 133-3 du code de commerce)."]
[]
[null,null,"Port\nPayé","Port dû"]
[null,null,"TRANSPORTEUR",null,null,null,"Conditions générales",null,null,null,"GENCOD"]
[null,null,null,null,null,null,"Marchandise expédiée le :",null,{"$f":"IF(D10=\"\",\"\",D10)","v":""},null,"Marchandise reçue le :"]
[null,null,{"$f":"IF('Bon de retour'!$K$2=\"\",\"\",'Bon de retour'!E16)","v":""},null,null,null,"RESERVES :",null,null,null,"RESERVES :"]
[null,null,{"$f":"IF('Bon de retour'!$K$2=\"\",\"\",'Bon de retour'!G16)","v":""},null,null,null,"(Cachet ou Nom et signature du destinataire)",null,null,null,"(Cachet ou Nom et signature de l'expéditeur)"]
[null,null,{"$f":"IF('Bon de retour'!$K$2=\"\",\"\",'Bon de retour'!H16)","v":""}]
[null,null,null,null,null,null,"Expéditeur",null,null,null,"Destinataire"]

{"sheet":"Bon de retour","index":3,"n_rows":36,"n_cols":10,"rows_kept":36,"cut":false,"hidden":false,"merged":[[37,3,41,8],[15,4,15,5],[15,2,15,3],[7,2,7,3],[9,2,9,3],[10,2,10,3],[12,2,12,3],[13,2,13,3]]}
[]
[null,null,null,null,null,null,null,null,"BON DE RETOUR"]
[]
[null,null,{"$f":"'Gestion identité'!C5","v":"B.S.L ÉLEC"},null,null,null,null,"N° :"]
[null,null,{"$f":"'Gestion identité'!C6","v":"5, rue Ste Anne"}]
[null,null,{"$f":"'Gestion identité'!C7","v":"54340 Pompey"},null,null,null,null,"Du :"]
[]
[null,null,{"$f":"'Gestion identité'!C8","v":"03.83.49.11.94"},null,null,null,null,"FOURNISSEUR"]
[]
[null,null,"Numéro de commande :"]
[null,null,"du :",null,null,null,null,{"$f":"IF($K$1=\"\",\"\",VLOOKUP($K$1,carnetadresse,2,FALSE))","v":""}]
[null,null,null,null,null,null,null,{"$f":"IF($K$1=\"\",\"\",VLOOKUP($K$1,carnetadresse,3,FALSE))","v":""}]
[null,null,"Date de réception :",null,null,null,null,{"$f":"IF($K$1=\"\",\"\",VLOOKUP($K$1,carnetadresse,4,FALSE))","v":""},{"$f":"IF($K$1=\"\",\"\",VLOOKUP($K$1,carnetadresse,5,FALSE))","v":""}]
[null,null,"N° du bon de réception :"]
[]
[null,null,"Transport :",null,{"$f":"IF($K$2=\"\",\"\",VLOOKUP($K$2,listetransporteur,2,FALSE))","v":""},null,{"$f":"IF($K$2=\"\",\"\",VLOOKUP($K$2,listetransporteur,4,FALSE))","v":""},{"$f":"IF($K$2=\"\",\"\",VLOOKUP($K$2,listetransporteur,5,FALSE))","v":""}]
[]
[null,null,"Référence","Désignation ",null,null,null,null,"Qté\ncommandée","Qté\nretournée"]
[null,null,null,{"$f":"IF(C19=\"\",\"\",VLOOKUP(C19,stock,2,FALSE))","v":""}]
[null,null,null,""]
[null,null,null,""]
[null,null,null,""]
[null,null,null,""]
[null,null,null,""]
[null,null,null,""]
[null,null,null,""]
[null,null,null,""]
[null,null,null,""]
[null,null,null,""]
[null,null,null,""]
[null,null,null,""]
[null,null,null,null,null,"Nombre total d'articles :",null,null,{"$f":"IF(I19=\"\",\"\",SUM(I19:I31))","v":""},{"$f":"IF(J19=\"\",\"\",SUM(J19:J31))","v":""}]
[]
[null,null,null,"Nombre de colis  :",null,"Poids en kg : "]
[]
[null,null,"Observations :"]

{"sheet":"Étiquette colis Retour","index":4,"n_rows":51,"n_cols":7,"rows_kept":51,"cut":false,"hidden":false,"merged":[[31,1,31,5],[32,6,34,6],[32,1,32,5],[33,1,33,5],[34,1,34,5],[37,1,41,1],[37,2,38,4],[37,5,38,5],[37,6,38,6],[40,2,41,4],[39,6,41,6],[39,5,41,5],[47,1,47,5],[48,1,48,5],[48,6,50,6],[49,1,49,5],[50,1,50,5],[42,1,46,1],[42,2,42,5],[43,2,43,5],[43,6,46,6],[44,2,44,5],[45,2,45,5],[46,2,46,5],[28,2,28,5],[29,2,29,5],[30,2,30,5],[27,6,30,6],[21,1,25,1],[21,5,22,5],[26,1,30,1],[26,2,26,5],[27,2,27,5],[5,1,9,1],[12,2,12,5],[13,2,13,5],[11,6,14,6],[5,5,6,5],[5,6,6,6],[10,1,14,1],[14,2,14,5],[10,2,10,5],[11,2,11,5],[7,5,9,5],[7,6,9,6],[15,1,15,5],[16,6,18,6],[21,6,22,6],[21,2,22,4],[24,2,25,4],[23,6,25,6],[23,5,25,5]]}
[]
[]
[]
[]
[]
[null,"Expéditeur",null,null,null,"Date d’expédition :",{"$f":"IF('Bon de retour'!I6=\"\",\"\",'Bon de retour'!I6)","v":""}]
[null,null,{"$f":"'Gestion identité'!C5","v":"B.S.L ÉLEC"}]
[null,null,{"$f":"'Gestion identité'!C6","v":"5, rue Ste Anne"},null,null,"N° de Bon du Retour :",{"$f":"IF('Bon de retour'!$K$1=\"\",\"\",'Bon de retour'!I4)","v":""}]
[null,null,{"$f":"'Gestion identité'!C7","v":"54340 Pompey"}]
[]
[null,"Destinataire",null,null,null,null,"Département"]
[null,null,{"$f":"IF('Bon de retour'!$K$1=\"\",\"\",'Bon de retour'!H11)","v":""},null,null,null,{"$f":"LEFT(C14,2)","v":""}]
[null,null,{"$f":"IF('Bon de retour'!$K$1=\"\",\"\",'Bon de retour'!H12)","v":""}]
[null,null,{"$f":"IF('Bon de retour'!$K$1=\"\",\"\",'Bon de retour'!H13)","v":""}]
[null,null,{"$f":"IF('Bon de retour'!$K$1=\"\",\"\",'Bon de retour'!I13)","v":""}]
[null,"Transporteur :",null,null,null,null,"Colis N°"]
[null,{"$f":"IF('Bon de retour'!K2=\"\",\"\",'Bon de retour'!E16)","v":""},null,null,null,null,{"$f":"IF('Bon de retour'!$E$34>=1,1,\"\")","v":""}]
[null,{"$f":"IF('Bon de retour'!K2=\"\",\"\",'Bon de retour'!G16)","v":""}]
[null,{"$f":"IF('Bon de retour'!K2=\"\",\"\",'Bon de retour'!H16)","v":""}]
[]
[]
[null,{"$f":"IF('Bon de retour'!$E$34>1,$B$6,\"\")","v":""},{"$f":"IF('Bon de retour'!$E$34>1,$C$7,\"\")","v":""},null,null,{"$f":"IF('Bon de retour'!$E$34>1,$F$6,\"\")","v":""},{"$f":"IF('Bon de retour'!$E$34>1,$G$6,\"\")","v":""}]
[]
[null,null,{"$f":"IF('Bon de retour'!$E$34>1,$C$8,\"\")","v":""},null,null,{"$f":"IF('Bon de retour'!$E$34>1,$F$8,\"\")","v":""},{"$f":"IF('Bon de retour'!$E$34>1,$G$8,\"\")","v":""}]
[null,null,{"$f":"IF('Bon de retour'!$E$34>1,$C$9,\"\")","v":""}]
[]
[null,{"$f":"IF('Bon de retour'!$E$34>1,$B$11,\"\")","v":""},null,null,null,null,{"$f":"IF('Bon de retour'!$E$34>1,$G$11,\"\")","v":""}]
[null,null,{"$f":"IF('Bon de retour'!$E$34>1,$C$12,\"\")","v":""},null,null,null,{"$f":"LEFT(C30,2)","v":""}]
[null,null,{"$f":"IF('Bon de retour'!$E$34>1,$C$13,\"\")","v":""}]
[null,null,{"$f":"IF('Bon de retour'!$E$34>1,$C$14,\"\")","v":""}]
[null,null,{"$f":"IF('Bon de retour'!$E$34>1,$C$15,\"\")","v":""}]
[null,{"$f":"IF('Bon de retour'!$E$34>1,$B$16,\"\")","v":""},null,null,null,null,{"$f":"IF('Bon de retour'!$E$34>1,$G$16,\"\")","v":""}]
[null,{"$f":"IF('Bon de retour'!$E$34>1,$B$17,\"\")","v":""},null,null,null,null,{"$f":"IF('Bon de retour'!$E$34>1,$G$17+1,\"\")","v":""}]
[null,{"$f":"IF('Bon de retour'!$E$34>1,$B$18,\"\")","v":""}]
[null,{"$f":"IF('Bon de retour'!$E$34>1,$B$19,\"\")","v":""}]
[]
[]
[null,{"$f":"IF('Bon de retour'!$E$34>2,$B$6,\"\")","v":""},{"$f":"IF('Bon de retour'!$E$34>2,$C$7,\"\")","v":""},null,null,{"$f":"IF('Bon de retour'!$E$34>2,$F$6,\"\")","v":""},{"$f":"IF('Bon de retour'!$E$34>2,$G$6,\"\")","v":""}]
[]
[null,null,{"$f":"IF('Bon de retour'!$E$34>2,$C$8,\"\")","v":""},null,null,{"$f":"IF('Bon de retour'!$E$34>2,$F$8,\"\")","v":""},{"$f":"IF('Bon de retour'!$E$34>2,$G$8,\"\")","v":""}]
[null,null,{"$f":"IF('Bon de retour'!$E$34>2,$C$9,\"\")","v":""}]
[]
[null,{"$f":"IF('Bon de retour'!$E$34>2,$B$11,\"\")","v":""},null,null,null,null,{"$f":"IF('Bon de retour'!$E$34>2,$G$11,\"\")","v":""}]
[null,null,{"$f":"IF('Bon de retour'!$E$34>2,$C$12,\"\")","v":""},null,null,null,{"$f":"LEFT(C46,2)","v":""}]
[null,null,{"$f":"IF('Bon de retour'!$E$34>2,$C$13,\"\")","v":""}]
[null,null,{"$f":"IF('Bon de retour'!$E$34>2,$C$14,\"\")","v":""}]
[null,null,{"$f":"IF('Bon de retour'!$E$34>2,$C$15,\"\")","v":""}]
[null,{"$f":"IF('Bon de retour'!$E$34>2,$B$16,\"\")","v":""},null,null,null,null,{"$f":"IF('Bon de retour'!$E$34>2,$G$16,\"\")","v":""}]
[null,{"$f":"IF('Bon de retour'!$E$34>2,$B$17,\"\")","v":""},null,null,null,null,{"$f":"IF('Bon de retour'!$E$34>2,$G$17+2,\"\")","v":""}]
[null,{"$f":"IF('Bon de retour'!$E$34>2,$B$18,\"\")","v":""}]
[null,{"$f":"IF('Bon de retour'!$E$34>2,$B$19,\"\")","v":""}]

{"sheet":"Courrier litige Transporteur","index":5,"n_rows":57,"n_cols":12,"rows_kept":57,"cut":false,"hidden":false,"merged":[[36,2,38,6],[47,2,49,6],[43,2,43,7],[39,4,39,7]]}
[null,null,null,null,null,null,null,null,null,null,null,"transporteur"]
[null,null,null,null,null,null,null,null,null,null,null,"fournisseur"]
[]
[null,{"$f":"'Gestion identité'!C5","v":"B.S.L ÉLEC"}]
[null,{"$f":"'Gestion identité'!C6","v":"5, rue Ste Anne"}]
[null,{"$f":"'Gestion identité'!C7","v":"54340 Pompey"},null,null,null,"Transporteur"]
[]
[null,{"$f":"'Gestion identité'!C8","v":"03.83.49.11.94"},null,null,null,{"$f":"IF($K$1=\"\",\"\",VLOOKUP($K$1,listetransporteur,2,FALSE))","v":""}]
[null,{"$f":"'Gestion identité'!C9","v":"B.S.L Élec@orange.fr"},null,null,null,{"$f":"IF($K$1=\"\",\"\",VLOOKUP($K$1,listetransporteur,3,FALSE))","v":""}]
[null,null,null,null,null,{"$f":"IF($K$1=\"\",\"\",VLOOKUP($K$1,listetransporteur,4,FALSE))","v":""},{"$f":"IF($K$1=\"\",\"\",VLOOKUP($K$1,listetransporteur,5,FALSE))","v":""}]
[]
[null,null,null,{"$f":"'Gestion identité'!C10","v":"Pompey"},"le,"]
[]
[]
[null,"Lettre recommandée avec accusé de réception."]
[null,"Objet : Avis de litige."]
[]
[null,"Référence :"]
[null," Lettre de voiture N ° :"]
[]
[null,"Notre commande du :"]
[null,"N° :"]
[]
[null,"Madame, Monsieur,"]
[]
[null,"Nous vous déclarons, en application de l'article 133-3 du code de commerce, les réserves suivantes :"]
[]
[null,"Réception du :"]
[]
[null,"Expéditeur :",{"$f":"IF($K$2=\"\",\"\",VLOOKUP($K$2,carnetadresse,2,FALSE))","v":""}]
[null,null,{"$f":"IF($K$2=\"\",\"\",VLOOKUP($K$2,carnetadresse,3,FALSE))","v":""}]
[null,null,{"$f":"IF($K$2=\"\",\"\",VLOOKUP($K$2,carnetadresse,4,FALSE))","v":""},{"$f":"IF($K$2=\"\",\"\",VLOOKUP($K$2,carnetadresse,5,FALSE))","v":""}]
[]
[null,"Nous avons constatés :"]
[]
[null,"Avarie :"]
[null,"Nature de l'avarie :"]
[]
[]
[null,"Cette avarie a-t-elle été précisée sur la lettre de voiture :"]
[null,"A-t-elle provoqué le refus de la marchandise :"]
[]
[null,"Manquant :"]
[null,"N° de Colis ou de Palette :"]
[null,"Ce manquant est-il mentioné sur la lettre de voiture :"]
[]
[null,"Refus de réception : "]
[null,"Motif :"]
[]
[]
[]
[]
[null,"Nous faisons parvenir une copie de ce courrier à notre fournisseur."]
[]
[null,"Nous vous prions de croire, Madame, Monsieur, à nos cordiales salutations."]
[]
[null,null,null,null,null,"Le réceptionnaire"]

{"sheet":"Bon de commande","index":6,"n_rows":39,"n_cols":9,"rows_kept":39,"cut":false,"hidden":false,"merged":[[8,2,8,3],[9,6,9,7]]}
[]
[]
[]
[]
[null,null,{"$f":"'Gestion identité'!C5","v":"B.S.L ÉLEC"},null,null,null,"BON DE COMMANDE"]
[null,null,{"$f":"'Gestion identité'!C6","v":"5, rue Ste Anne"}]
[null,null,{"$f":"'Gestion identité'!C7","v":"54340 Pompey"},null,null,null,"N° :"]
[null,null,null,null,null,null,"Du :"]
[null,null,{"$f":"'Gestion identité'!C8","v":"03.83.49.11.94"}]
[null,null,{"$f":"'Gestion identité'!C9","v":"B.S.L Élec@orange.fr"},null,null,null,"Fournisseur n°"]
[]
[null,null,null,null,null,null,{"$f":"IF($I$10=\"\",\"\",VLOOKUP($I$10,carnetadresse,2,FALSE))","v":""}]
[null,null,null,null,null,null,{"$f":"IF($I$10=\"\",\"\",VLOOKUP($I$10,carnetadresse,3,FALSE))","v":""}]
[null,null,null,null,null,null,{"$f":"IF($I$10=\"\",\"\",VLOOKUP($I$10,carnetadresse,4,FALSE))","v":""}]
[null,null,"Date de livraison le : ",null,null,null,{"$f":"IF($I$10=\"\",\"\",VLOOKUP($I$10,carnetadresse,5,FALSE))","v":""}]
[]
[null,null,"Mode d'expédition : ",null,"Route"]
[]
[null,null,"Référence","Désignation",null,null,"Qté","Prix unitaire h.t","Total h.t"]
[null,null,null,{"$f":"IF(C20=\"\",\"\",VLOOKUP(C20,stock,2,FALSE))","v":""},null,null,null,{"$f":"IF(C20=\"\",\"\",VLOOKUP(C20,stock,7,FALSE))","v":""},{"$f":"IF(G20=\"\",\"\",G20*H20)","v":""}]
[null,null,null,"",null,null,null,"",{"$f":"IF(G21=\"\",\"\",G21*H21)","v":""}]
[null,null,null,"",null,null,null,"",""]
[null,null,null,"",null,null,null,"",""]
[null,null,null,"",null,null,null,"",""]
[null,null,null,"",null,null,null,"",""]
[null,null,null,"",null,null,null,"",""]
[null,null,null,"",null,null,null,"",""]
[null,null,null,"",null,null,null,"",""]
[null,null,null,"",null,null,null,"",""]
[null,null,null,"",null,null,null,"",""]
[null,null,null,"",null,null,null,"",""]
[null,null,null,"",null,null,null,"",""]
[null,null,null,"",null,null,null,"",""]
[null,null,null,"",null,null,null,"",""]
[null,null,null,"",null,"Total",{"$f":"IF(G20=\"\",\"\",SUM(G20:G34))","v":""}]
[]
[null,null,null,null,null,null,null,"Total H.T",{"$f":"IF(I20=\"\",\"\",SUM(I20:I34))","v":""}]
[null,null,null,null,null,null,null,"T.V.A 20 %",{"$f":"IF(I37=\"\",\"\",I37*0.2)","v":""}]
[null,null,null,null,null,null,null,"Total T.T.C",{"$f":"IF(I37=\"\",\"\",I37+I38)","v":""}]

{"sheet":"BL fournisseur","index":7,"n_rows":37,"n_cols":7,"rows_kept":37,"cut":false,"hidden":false,"merged":[[38,2,39,6],[4,2,4,3],[5,2,5,3],[8,4,8,6],[9,4,9,6],[10,4,10,6],[7,4,7,6],[15,5,15,6]]}
[]
[]
[]
[]
[null,null,{"$f":"IF($G$14=\"\",\"\",VLOOKUP($G$14,carnetadresse,2,FALSE))","v":""},null,null,"BON DE LIVRAISON"]
[null,null,{"$f":"IF($G$14=\"\",\"\",VLOOKUP($G$14,carnetadresse,3,FALSE))","v":""},null,"N° :"]
[null,null,{"$f":"IF($G$14=\"\",\"\",VLOOKUP($G$14,carnetadresse,4,FALSE))","v":""},{"$f":"IF($G$14=\"\",\"\",VLOOKUP($G$14,carnetadresse,5,FALSE))","v":""},"Date  :"]
[null,null,"Tél :",{"$f":"IF($G$14=\"\",\"\",VLOOKUP($G$14,carnetadresse,6,FALSE))","v":""},"Destinataire"]
[null,null,null,null,{"$f":"'Gestion identité'!C5","v":"B.S.L ÉLEC"}]
[null,"Votre commande du :",null,null,{"$f":"'Gestion identité'!C6","v":"5, rue Ste Anne"}]
[null,null,"N°",null,{"$f":"'Gestion identité'!C7","v":"54340 Pompey"}]
[null,null,null,"Transporteur : "]
[null,null,null,{"$f":"IF($C$13=\"\",\"\",VLOOKUP($C$13,listetransporteur,2,FALSE))","v":""},"Date de livraison"]
[null,null,{"$f":"IF($C$13=\"\",\"\",VLOOKUP($C$13,listetransporteur,4,FALSE))","v":""},{"$f":"IF($C$13=\"\",\"\",VLOOKUP($C$13,listetransporteur,5,FALSE))","v":""}]
[null,null,null,null,null,null,10]
[null,null,null,null,null,"Quantité"]
[null,null,"Référence","Désignation","Unité de vente","Qté cdée","Qté livrée"]
[null,null,null,{"$f":"IF(C18=\"\",\"\",VLOOKUP(C18,stock,2,FALSE))","v":""},{"$f":"IF(C18=\"\",\"\",VLOOKUP(C18,stock,5,FALSE))","v":""}]
[null,null,null,"",""]
[null,null,null,"",""]
[null,null,null,"",""]
[null,null,null,"",""]
[null,null,null,"",""]
[null,null,null,"",""]
[null,null,null,"",""]
[null,null,null,"",""]
[null,null,null,"",""]
[null,null,null,"",""]
[null,null,null,"",""]
[null,null,null,"",""]
[null,null,null,"",""]
[null,null,null,"",""]
[]
[null,null,"Nombre de colis :",null,"TOTAL",{"$f":"IF(F18=\"\",\"\",SUM(F18:F32))","v":""},{"$f":"IF(G18=\"\",\"\",SUM(G18:G32))","v":""}]
[null,null,"Poids en kg :"]
[]
[null,null,"Observations :"]

{"sheet":"Lettre Voiture livraison fourn","index":8,"n_rows":22,"n_cols":14,"rows_kept":22,"cut":false,"hidden":false,"merged":[[17,10,17,13],[18,2,18,5],[19,2,19,5],[20,2,20,5],[21,2,21,5],[9,4,11,7],[9,8,11,11],[9,12,10,13],[10,2,12,2],[10,3,12,3],[13,4,14,4],[13,5,15,6],[13,7,15,7],[13,8,15,9],[13,10,15,13],[6,8,6,9],[6,11,6,13],[8,8,8,9],[8,10,8,11],[8,12,8,13]]}
[]
[]
[null,null,null,null,"Lettre de voiture livraison fournisseur"]
[]
[]
[null,null,"EXPEDITEUR",null,"DESTINATAIRE",null,null,"Nbre colis","Port Payé H.T",null,"T.V.A 20 %","Contre Remoursement"]
[null,null,{"$f":"IF('BL fournisseur'!$C$5=\"\",\"\",'BL fournisseur'!$C$5)","v":""},null,{"$f":"'Gestion identité'!C5","v":"B.S.L ÉLEC"},null,null,{"$f":"IF('BL fournisseur'!$D$34=\"\",\"\",'BL fournisseur'!D34)","v":""}]
[null,null,{"$f":"IF('BL fournisseur'!$C$6=\"\",\"\",'BL fournisseur'!$C$6)","v":""},null,{"$f":"'Gestion identité'!C6","v":"5, rue Ste Anne"},null,null,"Poids en Kg","Port dû \nH.T",null,"Débours Assignés",null,"Total à Encaisser"]
[null,null,{"$f":"IF('BL fournisseur'!$C$7=\"\",\"\",'BL fournisseur'!C7)","v":""},{"$f":"IF('BL fournisseur'!$C$7=\"\",\"\",'BL fournisseur'!D7)","v":""},{"$f":"'Gestion identité'!C7","v":"54340 Pompey"},null,null,{"$f":"IF('BL fournisseur'!$D$35=\"\",\"\",'BL fournisseur'!$D$35)","v":""}]
[null,null,"Date d'exp",{"$f":"IF('BL fournisseur'!$F$7=\"\",\"\",'BL fournisseur'!F7)","v":""},"Produits électriques",null,null,null,null,null,null,null,"L'expédition contient des matières\ndangereuses selon\nRTMD/RD/ADR DECLARATION OBLIGATOIRE"]
[null,null,"Lettre de voiture N°","W25127"]
[null,null,null,null,null,null,null,null,null,null,null,null,"oui","non"]
[null,null,null,null,"DESIGNATION - NATURE - MARQUES ET NUMEROS",null,null,null,"OBSERVATIONS DE LIVRAISON",null,null,null,"MATIERES DANGEREUSES"]
[null,null,"Rayer la mention\ninutile",null,"Valeur à \nassurée","Nos opérations sont soumises aux Conditions générales de transport de détail approuvées par décisions Ministérielles \n(J.O du 21.01.1971 et du 27.07.1985).",null,"VOIR AU VERSO EXTRAIT DE\nCES CONDITIONS GENERALES","Les réserves pour être valables doivent. Etre indiquées de façon précise ci-contre Et confirmées dans les trois jours, par Lettre recommandée au livreur (article L 133-3 du code de commerce)."]
[]
[null,null,"Port\nPayé","Port dû"]
[null,null,"TRANSPORTEUR",null,null,null,"Conditions générales",null,null,null,"GENCOD"]
[null,null,null,null,null,null,"Marchandise expédiée le :",null,{"$f":"IF('BL fournisseur'!$F$7=\"\",\"\",'BL fournisseur'!$F$7)","v":""},null,"Marchandise reçue le :"]
[null,null,{"$f":"IF('BL fournisseur'!D13=\"\",\"\",'BL fournisseur'!D13)","v":""},null,null,null,"RESERVES :",null,null,null,"RESERVES :"]
[null,null,{"$f":"IF('BL fournisseur'!C14=\"\",\"\",'BL fournisseur'!C14)","v":""},null,null,null,"(Cachet ou Nom et signature du destinataire)",null,null,null,"(Cachet ou Nom et signature de l'expéditeur)"]
[null,null,{"$f":"IF('BL fournisseur'!D14=\"\",\"\",'BL fournisseur'!D14)","v":""}]
[null,null,null,null,null,null,"Expéditeur",null,null,null,"Destinataire"]

{"sheet":"Transporteurs","index":9,"n_rows":1560,"n_cols":7,"rows_kept":1560,"cut":false,"hidden":false,"merged":[]}
["N°","Nom","Adresse","Code postal","Ville","Téléphone","Émail"]
[1,"BERTRAND","ZI Sud",54000,"Nancy","03.83.24.58.66",{"$f":"IF(B2=\"\",\"\",(LOWER(B2&\".\"&E2&\"@\"&B2&\".com\")))","v":"bertrand.nancy@bertrand.com"}]
[{"$f":"A2+1","v":2},"DUPUISLOG","ZAC Nord",57000,"Metz","03.87.54.85.96","dupuislog.metz@dupuislog.com"]
[3,"LACOSTRANSPORT","14,rue de Lorient","56000","Vannes","05.56.65.65.85","lacostransport.vannes@lacostransport.com"]
[4,"ANDRÉ","87, avenue Clément Ader","45000","Orléans","06.54.21.02.32","andré.orléans@andré.com"]
[5,"GILBERT","ZAC de Fermeille","85600","La Roche sur Yon","02.33.36.69.36","gilbert.la roche sur yon@gilbert.com"]
[6,"MUSTAPHA","41, avenue Foch","68000","COLMAR","03.89.54.52.25","mustapha.colmar@mustapha.com"]
[7,"ESTEBAN","41 Rue des vignerons","16000","COGNAC","06.55.85.57.41",{"$f":"IF(B8=\"\",\"\",(LOWER(B8&\".\"&E8&\"@\"&B8&\".com\")))","v":"esteban.cognac@esteban.com"}]
[{"$f":"A8+1","v":8},"LEVASSEUR","17 Rue PAsteur","38000","Grenoble","04.76.33.59.58",{"$f":"IF(B9=\"\",\"\",(LOWER(B9&\".\"&E9&\"@\"&B9&\".com\")))","v":"levasseur.grenoble@levasseur.com"}]
[{"$f":"A9+1","v":9},"ÉCOTRENS","5, rue L.LAMBERT",10000,"TROYES","02.55.98.45.52",{"$f":"IF(B10=\"\",\"\",(LOWER(B10&\".\"&E10&\"@\"&B10&\".com\")))","v":"écotrens.troyes@écotrens.com"}]
[{"$f":"A10+1","v":10},"Fernalogistique","56, avenue M.CURIE","87000","Limoges","05.55.47.52.33",{"$f":"IF(B11=\"\",\"\",(LOWER(B11&\".\"&E11&\"@\"&B11&\".com\")))","v":"fernalogistique.limoges@fernalogistique.com"}]
[{"$f":"A11+1","v":11},"FCE 13","201 Avenue Aygalades La Lauzière","13014","MARSEILLE","04 91 60 20 15",{"$f":"IF(B12=\"\",\"\",(LOWER(B12&\".\"&E12&\"@\"&B12&\".com\")))","v":"fce 13.marseille@fce 13.com"}]
[{"$f":"A12+1","v":12},"EUROMAG","116 Rue République","13002","Marseille","04.91.91.19.96",{"$f":"IF(B13=\"\",\"\",(LOWER(B13&\".\"&E13&\"@\"&B13&\".com\")))","v":"euromag.marseille@euromag.com"}]
[13,"EUROFRET","151 Boulevard Danielle Casanova","13014","Marseille","04.88.66.15.01","eurofret.marseille@eurofret.com"]
[14,"PROTIS","140 avenue Kennedy","13007 ","Marseille","04.91.31.92.82","protis.marseille@protis.com"]
[15,"GEODIS","26 avenue Lascos - ZI Sud","13691 ","Martiques","04.91.25.25.98","geodis.martiques@geodis.com"]
[16,"TRANSPORTS PORTMANN","8 troisième rue ZI Estroublans","13127","VITROLLES","04.42.79.78.87","transports portmann.vitrolles@transports portmann.com"]
[17,"UPS 13 MARSEILLE","ZAC des Cadestaux","13002 ","MARSEILLE","04.26.31.75.24","ups 13 marseille.marseille@ups 13 marseille.com"]
[18,"TRANSCAUSSE ","521 chemin du litoral","13016 ","Marseille","04.91.56.26.31","transcausse .marseille@transcausse .com"]
[19,"SPTT","14 Rue Louis Astouin","13002 ","Marseille","04.91.91.92.73","sptt.marseille@sptt.com"]
[20,"CHALLENGE INTER","1 RUE ALBERT COHEN","13312 ","Marseille","04.91.14.03.55","challenge inter.marseille@challenge inter.com"]
[21,"Transport JOLIVET","20 rue des Tilleuls","17700 ","SAINT GERMAIN ","05.54.87.62.33","transport jolivet.saint germain @transport jolivet.com"]
[22,"RENAUD TRANSPORTS  ","3 Rue Industrie - Goutrolles"," 17800 ","PONS","05.46.94.09.47","renaud transports  .pons@renaud transports  .com"]
[23,"ROBIN  TRANSPORTS","31 Grande Rue","17220 "," MONTROY","05.46.55.06.70","robin  transports. montroy@robin  transports.com"]
[24,"Trans Tardet","35 Rue Robert Geffre","17000 ","LA ROCHELLE","05.46.56.71.03","trans tardet.la rochelle@trans tardet.com"]
[25,"ROYER PASCAL","7 Route Du Silo  ","17810 ","SAINT-GEORGES","05.46.32.21.75","royer pascal.saint-georges@royer pascal.com"]
[26,"S.T.M.","330 Route de Saintes","17400 ","SAINT JEAN D'ANGELY","05 46 32 57 50","s.t.m..saint jean d'angely@s.t.m..com"]
[27,"ROUSSEAU ET FILS","26 Avenue Maryse Bastié","17200 ","ROYAN","05.33.43.56.12","rousseau et fils.royan@rousseau et fils.com"]
[28,"RIDEAU PASCAL","Le Mottin Blanc ","17500","ALLAS CHAMAPGNE","05.46.32.43.54","rideau pascal.allas chamapgne@rideau pascal.com"]
[29,"REGNIER TRANSPORTS","Le Moulin Seguin","17290 ","BALLON","05 46 55 36 57","regnier transports.ballon@regnier transports.com"]
[30,"PRIET TRANSPORT","10 Rue de l'Espérance","17420 ","SAINT PALAIS ","05 46 23 43 80","priet transport.saint palais @priet transport.com"]
[31,"BARY ET FILS","83 Rue De Thurey ","10180","SAINT BENOIT SUR SEINE","08.90.21.51.59","bary et fils.saint benoit sur seine@bary et fils.com"]
[32,"BELLOT THIERRY","19 Bis Avenue Anatole France","10000","TROYES","08.90.21.51.32","bellot thierry.troyes@bellot thierry.com"]
[33,"CHAMPENOIS","Rd 56","10700","VINETS","08.90.21.51.71","champenois.vinets@champenois.com"]
[34,"BETON ","Route De Rumilly","10260","VAUDES","08.90.21.51.45","beton .vaudes@beton .com"]
[35,"BOURG","52 Avenue Maréchal Leclerc","10120","ST ANDRE LES VERGERS","08.90.21.51.76","bourg.st andre les vergers@bourg.com"]
[36,"BRUN TRASPORTS","1 Route Des Templiers","10260","MONTCEAUX LES VAUDES","08.90.21.51.64","brun trasports.montceaux les vaudes@brun trasports.com"]
[37,"CHAPLAIN ","Rue St Memmie","10700","VINETS","08.90.21.51.92","chaplain .vinets@chaplain .com"]
[38,"COFFINET","1Route Des Templiers","10260","MONTCEAUX LES VAUDES","08.90.21.51.76","coffinet.montceaux les vaudes@coffinet.com"]
[39,"DLS EXPRESS","14 Rue De La Paix","10320","BOUILLY","08.90.21.51.48","dls express.bouilly@dls express.com"]
[40,"DUBOE TRANSPORTS","Avenue Du 4 Juillet 1776","19100","BRIVES","08.90.21.51.92","duboe transports.brives@duboe transports.com"]
[41,"GRANGER ","Le Soulet ","19130","AYEN","08.90.21.51.23","granger .ayen@granger .com"]
[42,"GROSBOIS & Fils","Le Feyt","19170","BUGEAT","08.90.21.51.20","grosbois & fils.bugeat@grosbois & fils.com"]
[43,"TRANSPORTS LASTERNAS","22 Avenue Henri De Jouvenel","19130","OBJAT","08.90.21.51.25","transports lasternas.objat@transports lasternas.com"]
[{"$f":"A44+1","v":44},"MANAUX","3 Avenue Pierre Et Marie Curie","19400","ARGENTAT","08.90.21.51.41",{"$f":"IF(B45=\"\",\"\",(LOWER(B45&\".\"&E45&\"@\"&B45&\".com\")))","v":"manaux.argentat@manaux.com"}]
[45,"LOUIS SA","Hameau Favières","04420","Prads Haute Bleon","08.90.88.76.55","louis sa.prads haute bleon@louis sa.com"]
[46,"Transvet","TIRASSE","04200","MISON","04.92.61.38.05","transvet.mison@transvet.com"]
[47,"NOVA","PLACE COUVERT","04360","MOUSTIERS STE MARIE ","04.92.74.61.11","nova.moustiers ste marie @nova.com"]
[48,"TRANSPORTS ALPINS ","1Rue De Lavandes","04100","MANOSQUE ","08.65.73.85.09","transports alpins .manosque @transports alpins .com"]
[49,"GALLETI FRERE ","ROUTE DE GAP","04200","SISTERON","08.74.94.74.28","galleti frere .sisteron@galleti frere .com"]
[50,"CHARBONNIER FRERES ","Zi Saint Joseph","04100","MANOSQUE ","08.84.38.65.75","charbonnier freres .manosque @charbonnier freres .com"]
[51,"CHAPUS FRERE","564 Avenue Pierre Sémard","04220","STE TULLE ","04.92.79.73.00","chapus frere.ste tulle @chapus frere.com"]
[52,"BONNEFOY ROBERT","Zi-FERME LA COLOMBETTE ","04200","LES OMERGUES","03.89.75.92.02","bonnefoy robert.les omergues@bonnefoy robert.com"]
[53,"TRANSPORTS ALPES ","Plan","04320","ENTREVAUX","03.80.14.93.04","transports alpes .entrevaux@transports alpes .com"]
[54,"AURILLAC LIVRAISONS","17 Rue Prince ","15000","AURILLAC","04.71.43.26.31","aurillac livraisons.aurillac@aurillac livraisons.com"]
[55,"VISY","25 Avenue République ","15100","SAINT FLOUR ","04.71.64.26.45","visy.saint flour @visy.com"]
[56,"VIALA PRAT ","Crozatier ","15100","ST GEORGES ","04.71.60.21.94","viala prat .st georges @viala prat .com"]
[57,"TRANS SERVICES ","Les Clages ","15300","MURAT ","04.71.20.51.64","trans services .murat @trans services .com"]
[58,"TRANSORT TOUYRE ","Le Bourg","15120","LABRESSERETTE ","04.71.49.27.28","transort touyre .labresserette @transort touyre .com"]
[59,"SOUQ GERARD ","Labouygues ","15220","VITRAC","04.89.17.39.20","souq gerard .vitrac@souq gerard .com"]
[60,"CLAUDE","7 Rue Félix Ramond ","15130","ARPAJON SUR Cère ","08.64.30.28.65","claude.arpajon sur cère @claude.com"]
[61,"SARDENNE ","4 Rue Emile Duclaux ","15400","RION ES MONTAGNES","04.71.78.01.26","sardenne .rion es montagnes@sardenne .com"]
[62,"SALESSE MARC","Jaulhac","15590","LASCELLE ","04.38.29.67.05","salesse marc.lascelle @salesse marc.com"]
[63,"VERDIER S.E.A.M","Zi De Sedour ","15400","RIOM ES MONTAGNES ","04.71.78.35.22","verdier s.e.a.m.riom es montagnes @verdier s.e.a.m.com"]
[64,"ALET Michel","37 bld des Balquières ","12850","ONET-LE-CHATEAU","05.65.78.47.73","alet michel.onet-le-chateau@alet michel.com"]
[65,"BARDY Francis","Vialaneuve ","12380","LAVAL ROQUECEZIERE","08.90.21.51.91","bardy francis.laval roqueceziere@bardy francis.com"]
[66,"BEAUD BOIS","2160 rue des Aumières ","12100","MILLAU","08.90.21.51.36","beaud bois.millau@beaud bois.com"]
[67,"BELIERES","Za de Naujac - Rue du Commerce ","12450","LA PRIMAUBE","08.90.21.51.38 ","belieres.la primaube@belieres.com"]
[68,"BELUEL","La Souyrinié Saint Maymé ","12850","ONET-LE-CHATEAU","08.90.21.51.88","beluel.onet-le-chateau@beluel.com"]
[69,"BENEZECH ","Route de la Tiergues ","12400 ","ST AFFRIQUE","08.90.21.51.23","benezech .st affrique@benezech .com"]
[70,"BETEILLE","28 avenue de Toulouse","12450 ","LA PRIMAUBE","08.90.21.51.26","beteille.la primaube@beteille.com"]
[71,"BESSON et Fils","Le Bournhou ","12130","AURELLE VERLAC","08.90.21.51.22","besson et fils.aurelle verlac@besson et fils.com"]
[72,"BOIX et Cie","3 rue du Toural ","12210","LAGUIOLE","08.90.21.51.82 ","boix et cie.laguiole@boix et cie.com"]
[73,"TRANSPORTS BONNEVIALLE","ZI La Prade ","12850 "," ONET-LE-CHATEAU","08.90.21.51.89","transports bonnevialle. onet-le-chateau@transports bonnevialle.com"]
[74,"VIGNAUD","Les Chaumes du Plessis ","16440","ROULLET ST ESTEPHE","08.90.21.51.32","vignaud.roullet st estephe@vignaud.com"]
[75,"VERDAUD MARCEL TMV","100 Rue Pons ","16100"," COGNAC","08.90.21.51.29 ","verdaud marcel tmv. cognac@verdaud marcel tmv.com"]
[{"$f":"A76+1","v":76},"VALLADE","Zone Emploi la Jartre ","16390","SAINT SEVERIN","08.90.21.51.41",{"$f":"IF(B77=\"\",\"\",(LOWER(B77&\".\"&E77&\"@\"&B77&\".com\")))","v":"vallade.saint severin@vallade.com"}]
[77,"TURLAIS RICHARD","le Bourg ","16200","MERIGNAC","08.90.21.51.59","turlais richard.merignac@turlais richard.com"]
[78,"TRATFROM","La Gare","16330","VARS","08.90.21.51.58","tratfrom.vars@tratfrom.com"]
[79,"TRANSROUTE","La Brande ","16100 ","LOUZAC SAINT ANDRE","08.90.21.51.75","transroute.louzac saint andre@transroute.com"]
[80,"TRANSMANICO","Bellevue ","16410 ","BOUEX","08.90.21.51.60","transmanico.bouex@transmanico.com"]
[81,"TRANSGREG","Le Mas des Mottes ","16720","SAINT MEME LES CARRIERES","08.90.21.51.41","transgreg.saint meme les carrieres@transgreg.com"]
[82,"TRANS-HIP","Rue Rampeaux ","16330","XAMBES","08.90.21.51.54","trans-hip.xambes@trans-hip.com"]
[83,"TG EXPRESS","14 Allée Corderie ","16100","COGNAC","08.90.21.51.57 ","tg express.cognac@tg express.com"]
[84,"S.A.B.","9 Impasse de Reggio ","21000","DIJON","08.90.21.51.41","s.a.b..dijon@s.a.b..com"]
[85,"T.R.P.S.","30 Chemin Clos Hameau Domois ","21600","FENAY","08.90.21.51.22","t.r.p.s..fenay@t.r.p.s..com"]
[86,"CHRONO FRET","2 rue de l'yser ","21850 ","St APOLLINAIRE","08.90.21.51.25","chrono fret.st apollinaire@chrono fret.com"]
[87,"A.S. TRANSPORT","11 rue Faubourg Saint Jean ","21200 ","BEAUNE","08.90.21.51.42","a.s. transport.beaune@a.s. transport.com"]
[88,"LAMBERT ET VALETTE","Za Maison Dieu ","21220","FIXIN","08.90.21.51.29","lambert et valette.fixin@lambert et valette.com"]
[89,"ALLOIN 21","rue Gaston Chevrolet ","21200","VIGNOLES","08.90.21.51.55","alloin 21.vignoles@alloin 21.com"]
[90,"BAT TRANS","16 rue Turgot ","21000"," DIJON","08.90.21.51.49","bat trans. dijon@bat trans.com"]
[91,"BIO A.A.C.T","9 rue Edmond Voisenet ","21000 ","DIJON","08.90.21.51.23","bio a.a.c.t.dijon@bio a.a.c.t.com"]
[92,"BORNIER Gérald","22 rue des Remparts ","21250","SEURRE","08.90.21.51.26","bornier gérald.seurre@bornier gérald.com"]
[93,"BORSATO","20 rue de la Sucharde ","21800","CHEVIGNY SAINT SAUVEUR","08.90.21.51.29","borsato.chevigny saint sauveur@borsato.com"]
[94,"Transports Feuillet","773 Rue De La Plaine","01120","Dagneux","08.90.21.51.20","transports feuillet.dagneux@transports feuillet.com"]
[95,"Sotradel Fret","45 Chemin Des Plagnes","01600","Saint Euphemie","08.90.21.51.91","sotradel fret.saint euphemie@sotradel fret.com"]
[96,"THEVENARD ","120 Rue Lye","01750","REPLONGES","08.90.21.51.21","thevenard .replonges@thevenard .com"]
[97,"VAILLEND EXPRESS","146 Allées Des Platières ","01310 ","POLLIAT","08.90.21.51.25","vaillend express.polliat@vaillend express.com"]
[98,"COURSES TPS WARNING","2 Rue Savoie","01150","ST VULBAS","08.90.21.51.44 ","courses tps warning.st vulbas@courses tps warning.com"]
[99,"TPC FRET EXPRESS","Montaplan","01370 ","ST ETIENNE DU BOIS","08.90.21.51.72","tpc fret express.st etienne du bois@tpc fret express.com"]
[100,"GONDRAND","Le Tonkin - Douane St Genis","01210","MONTREAL LA CLUSE","08.90.21.51.82","gondrand.montreal la cluse@gondrand.com"]
[101,"TRANSPORTS MERCIER","Plastic Avenue","01460","MONTREAL LA CLUSE","08.90.21.51.57","transports mercier.montreal la cluse@transports mercier.com"]
[102,"TRM","449 Chemin Fontaines","01090","GUEREINS","08.90.21.51.24","trm.guereins@trm.com"]
[103,"STOCKLIN MICHEL","Lieu-dit Bruyères","01120","MONTLUEL","08.90.21.51.25","stocklin michel.montluel@stocklin michel.com"]
[104,"CAPELLI P","1 Rue Chatemerle","01000","BOURG EN BRESSE","08.90.21.51.90","capelli p.bourg en bresse@capelli p.com"]
[105,"ANDANCE TRANSPORT","La Croisette","07340","ANDANCE","08.90.21.51.43","andance transport.andance@andance transport.com"]
[106,"ANNONAY TRANS","Près Du Roi","07100"," SAINT MARCEL LES ANNONAY","08.90.21.51.66","annonay trans. saint marcel les annonay@annonay trans.com"]
[107,"SAT","Zi NORD","07250","LE POUZIN","08.90.21.51.24","sat.le pouzin@sat.com"]
[{"$f":"A108+1","v":108},"ARSAC MICHEL","LA CHAPELLE SOUS AUBENAS","07200","Le Village","08.90.21.51.74",{"$f":"IF(B109=\"\",\"\",(LOWER(B109&\".\"&E109&\"@\"&B109&\".com\")))","v":"arsac michel.le village@arsac michel.com"}]
[109,"BERNARD","16 Rue Des Martyrs","07250 ","LE POUZIN","04.75.85.94.91","bernard.le pouzin@bernard.com"]
[110,"BERT","431 Avenue Helvétia ","07340","SERRIERES","04.75.84.34.41","bert.serrieres@bert.com"]
[111,"BESSEAS","Les Limes","07610"," SECHERAS","08.90.21.51.49","besseas. secheras@besseas.com"]
[112,"BLACHERE PERE ET FILS","Signerose","07160","LE CHEYLARD","08.90.21.51.56","blachere pere et fils.le cheylard@blachere pere et fils.com"]
[113,"BLANC MAURICE","La Jaujon","07230 "," LABLACHERE","08.90.21.51.20","blanc maurice. lablachere@blanc maurice.com"]
[114,"BOISSY BERNARD ","La Teyre ","07310 ","ST MARTIN DE VALAMAS","08.90.21.51.25","boissy bernard .st martin de valamas@boissy bernard .com"]
[115,"TRANSPORTS MATHIEU","DREUILHE","09300","ZI DE RIBEROLLES","08.90.22.55.88","transports mathieu.zi de riberolles@transports mathieu.com"]
[116,"DELBOY","Rn 20 route d'Espagne","09000","FOIX","08.90.21.51.69","delboy.foix@delboy.com"]
[117,"DHERS ET FILS","rue Irénée-Cros","09400","TARASCON-SUR-ARIEGE","0890.215.154","dhers et fils.tarascon-sur-ariege@dhers et fils.com"]
[118,"GUICHOU TRANSPORTS","zone artisanale Joulieu","09000","ST JEAN DE VERGES","0890.215.153","guichou transports.st jean de verges@guichou transports.com"]
[119,"ICM","124 avenue Maréchal Foch","09200","SAINT-GIRONS","0890.215.152","icm.saint-girons@icm.com"]
[120,"TRANSPORTS INNOCENT","Avenue de l'Industrie","09190","LORP SENTARAILLE","0890.215.190","transports innocent.lorp sentaraille@transports innocent.com"]
[121,"MARC","route de Saint-André","09130","LE FOSSAT","0890.215.143","marc.le fossat@marc.com"]
[122,"MERIC","50 avenue du Général de Gaulle","09190","LORP SENTARAILLE","0890.215.119","meric.lorp sentaraille@meric.com"]
[123,"PAILHES","La Parre","09700","SAVERDUN","0890.215.174","pailhes.saverdun@pailhes.com"]
[124,"SETAM-MORENO","route de Pamiers","09270","MAZERES","0890.215.161","setam-moreno.mazeres@setam-moreno.com"]
[125,"BONNEFOY TRANSPORT","4, rue Galliéni","08140","BAZEILLES","02.24.45.65.55","bonnefoy transport.bazeilles@bonnefoy transport.com"]
[126,"BP Transport (NP)","26 rue des combattants en AFN","08300","RETHEL","03.24.38.80.90","bp transport (np).rethel@bp transport (np).com"]
[127,"Blin Albert (SA)","5 rue de la vallée 08120 ","08120","Bogni Meuse","08.24.52.65.49","blin albert (sa).bogni meuse@blin albert (sa).com"]
[128,"JP Traction (sas)","8 rue serge closson ","08140","Douzi","03.24.26.51.91","jp traction (sas).douzi@jp traction (sas).com"]
[129,"LBP Poli LUC  (NP)","8 Rue Paul","08200","Balan","03.29.29.41.44","lbp poli luc  (np).balan@lbp poli luc  (np).com"]
[130,"Malbec Distribution ","3 rue Place de la Gare ","08200","Sedan ","03.23.34.56.88","malbec distribution .sedan @malbec distribution .com"]
[131,"Marage Freres","23 rue route de Rocroi ","08260","Auvillers les forges","03.24.54.32.72","marage freres.auvillers les forges@marage freres.com"]
[132,"HOUTCH TRANSPORT ","ROUTE DE BRANCOURT","02230","FRESNOY DE GRAND","03 23 66 05 99","houtch transport .fresnoy de grand@houtch transport .com"]
[133,"STAS","Rue Jean Baptiste Godin"," 02200","VILLENEUVE SAINT GERMAIN","03 23 74 88 79","stas.villeneuve saint germain@stas.com"]
[134,"DELCELIER ET FILS","28 Rue Du Chateau","02370 ","OSTEL","03 23 74 88 79","delcelier et fils.ostel@delcelier et fils.com"]
[135,"AMICEL ","12 Rue St Martin","02320 ","FAUCOUCOURT","03 23 80 26 90","amicel .faucoucourt@amicel .com"]
[136,"BERNARDI LOGISTIQUE","Zi Le Haut De Varenne","02370","VAILLY SUR AISNE","03 23 74 60 05","bernardi logistique.vailly sur aisne@bernardi logistique.com"]
[137,"BOULAY ET GREHAN ","138 Rue Pasteur"," 02300 "," HIRSON","08.90.21.51.34","boulay et grehan . hirson@boulay et grehan .com"]
[138,"CLOSSET RICHARD","29 Rue Henri Langlois","02120","TUPIGNY","03 23 60 84 15","closset richard.tupigny@closset richard.com"]
[139,"PALLISSERO ","2 Avenue Jean Monnet","02000"," LAON","03 23 20 73 37","pallissero . laon@pallissero .com"]
[140,"SCHER ","23 Rue Pree"," 02370"," VAILLY SUR AISNE","03 23 54 79 84","scher . vailly sur aisne@scher .com"]
[141,"DEVISSCHER JEAN ","12 Route Faverolles"," 02600","DAMPLEUX","08.90.21.51.69","devisscher jean .dampleux@devisscher jean .com"]
[142,"T.M.C EXPRESS ","2 Residence Grande Motte"," 02870"," VIVAISE","03.23.15.12.70","t.m.c express . vivaise@t.m.c express .com"]
[143,"DUSSART STEPHANE ","186 Rue Cambresis","02110","BECQUIGNY","03.23.55.87.54","dussart stephane .becquigny@dussart stephane .com"]
[{"$f":"A144+1","v":144},"TAVEL S.A","22 Avenue G.Eiffel","74000","Annecy","04.85.65.87.54",{"$f":"IF(B145=\"\",\"\",(LOWER(B145&\".\"&E145&\"@\"&B145&\".com\")))","v":"tavel s.a.annecy@tavel s.a.com"}]
[145,"Mercier S.A","14 rue Malraux","31000","Toulouse","05.61.35.87.33","mercier s.a.toulouse@mercier s.a.com"]
[146,"LDISTRI","114, Avenue KLEBER","49000","ANGERS","07.33.65.58.77","ldistri.angers@ldistri.com"]
[147,"LLD LOGISTIC","6, Avenue M.Pagnol","55200","Commercy","07.54.68.77.40","lld logistic.commercy@lld logistic.com"]
[148,"Laurent S.A","Z.A.C Nord","88000","Épinal","03.29.55.65.21","laurent s.a.épinal@laurent s.a.com"]
[149,"Monkey trans","8, rue de Joinville","52100","Saint-Dizier","07.55.22.35.87","monkey trans.saint-dizier@monkey trans.com"]
[{"$f":"A150+1","v":150},"Orgatrans","122, Avenue G.Eiffel","11000","Narbonne","07.41.42.58.32",{"$f":"IF(B151=\"\",\"\",(LOWER(B151&\".\"&E151&\"@\"&B151&\".com\")))","v":"orgatrans.narbonne@orgatrans.com"}]
[{"$f":"A151+1","v":151},"Nordexpress","ZI Klerber","67000","Strasbourg","07.32.33.36.35",{"$f":"IF(B152=\"\",\"\",(LOWER(B152&\".\"&E152&\"@\"&B152&\".com\")))","v":"nordexpress.strasbourg@nordexpress.com"}]
[{"$f":"IF(B153=\"\",\"\",A152+1)","v":152},"Colibray","ZI Sud, route de Melun","77480","Bray","07.88.24.14.68",{"$f":"IF(B153=\"\",\"\",(LOWER(B153&\".\"&E153&\"@\"&B153&\".com\")))","v":"colibray.bray@colibray.com"}]
[153,"TransMartin","44, rue Pasteur","56850","Caudan","02.97.22.54.54",{"$f":"IF(B154=\"\",\"\",(LOWER(B154&\".\"&E154&\"@\"&B154&\".com\")))","v":"transmartin.caudan@transmartin.com"}]
["",null,null,null,null,null,""]
["",null,null,null,null,null,""]
["",null,null,null,null,null,""]
["",null,null,null,null,null,""]
["",null,null,null,null,null,""]
["",null,null,null,null,null,""]
["",null,null,null,null,null,""]
["",null,null,null,null,null,""]
["",null,null,null,null,null,""]
["",null,null,null,null,null,""]
["",null,null,null,null,null,""]
["",null,null,null,null,null,""]
["",null,null,null,null,null,""]
["",null,null,null,null,null,""]
["",null,null,null,null,null,""]
["",null,null,null,null,null,""]
["",null,null,null,null,null,""]
["",null,null,null,null,null,""]
["",null,null,null,null,null,""]
["",null,null,null,null,null,""]
["",null,null,null,null,null,""]
["",null,null,null,null,null,""]
["",null,null,null,null,null,""]
["",null,null,null,null,null,""]
["",null,null,null,null,null,""]
["",null,null,null,null,null,""]
["",null,null,null,null,null,""]
["",null,null,null,null,null,""]
["",null,null,null,null,null,""]
["",null,null,null,null,null,""]
["",null,null,null,null,null,""]
["",null,null,null,null,null,""]
["",null,null,null,null,null,""]
["",null,null,null,null,null,""]
["",null,null,null,null,null,""]
["",null,null,null,null,null,""]
["",null,null,null,null,null,""]
["",null,null,null,null,null,""]
["",null,null,null,null,null,""]
["",null,null,null,null,null,""]
["",null,null,null,null,null,""]
["",null,null,null,null,null,""]
["",null,null,null,null,null,""]
["",null,null,null,null,null,""]
["",null,null,null,null,null,""]
["",null,null,null,null,null,""]
["",null,null,null,null,null,""]
["",null,null,null,null,null,""]
["",null,null,null,null,null,""]
["",null,null,null,null,null,""]
["",null,null,null,null,null,""]
["",null,null,null,null,null,""]
["",null,null,null,null,null,""]
["",null,null,null,null,null,""]
["",null,null,null,null,null,""]
["",null,null,null,null,null,""]
["",null,null,null,null,null,""]
["",null,null,null,null,null,""]
["",null,null,null,null,null,""]
["",null,null,null,null,null,""]
["",null,null,null,null,null,""]
["",null,null,null,null,null,""]
[{"$f":"IF(B217=\"\",\"\",A216+1)","v":""},null,null,null,null,null,""]
["",null,null,null,null,null,{"$f":"IF(B218=\"\",\"\",(LOWER(B218&\".\"&E218&\"@\"&B218&\".com\")))","v":""}]
["",null,null,null,null,null,""]
["",null,null,null,null,null,""]
["",null,null,null,null,null,""]
["",null,null,null,null,null,""]
["",null,null,null,null,null,""]
["",null,null,null,null,null,""]
["",null,null,null,null,null,""]
["",null,null,null,null,null,""]
["",null,null,null,null,null,""]
["",null,null,null,null,null,""]
["",null,null,null,null,null,""]
["",null,null,null,null,null,""]
["",null,null,null,null,null,""]
["",null,null,null,null,null,""]
["",null,null,null,null,null,""]
["",null,null,null,null,null,""]
["",null,null,null,null,null,""]
["",null,null,null,null,null,""]
["",null,null,null,null,null,""]
["",null,null,null,null,null,""]
["",null,null,null,null,null,""]
["",null,null,null,null,null,""]
["",null,null,null,null,null,""]
["",null,null,null,null,null,""]
["",null,null,null,null,null,""]
["",null,null,null,null,null,""]
["",null,null,null,null,null,""]
["",null,null,null,null,null,""]
["",null,null,null,null,null,""]
["",null,null,null,null,null,""]
["",null,null,null,null,null,""]
["",null,null,null,null,null,""]
["",null,null,null,null,null,""]
["",null,null,null,null,null,""]
["",null,null,null,null,null,""]
["",null,null,null,null,null,""]
["",null,null,null,null,null,""]
["",null,null,null,null,null,""]
["",null,null,null,null,null,""]
["",null,null,null,null,null,""]
["",null,null,null,null,null,""]
["",null,null,null,null,null,""]
["",null,null,null,null,null,""]
["",null,null,null,null,null,""]
["",null,null,null,null,null,""]
["",null,null,null,null,null,""]
["",null,null,null,null,null,""]
["",null,null,null,null,null,""]
["",null,null,null,null,null,""]
["",null,null,null,null,null,""]
["",null,null,null,null,null,""]
["",null,null,null,null,null,""]
["",null,null,null,null,null,""]
["",null,null,null,null,null,""]
["",null,null,null,null,null,""]
["",null,null,null,null,null,""]
["",null,null,null,null,null,""]
["",null,null,null,null,null,""]
["",null,null,null,null,null,""]
["",null,null,null,null,null,""]
["",null,null,null,null,null,""]
["",null,null,null,null,null,""]
[{"$f":"IF(B281=\"\",\"\",A280+1)","v":""},null,null,null,null,null,""]
["",null,null,null,null,null,{"$f":"IF(B282=\"\",\"\",(LOWER(B282&\".\"&E282&\"@\"&B282&\".com\")))","v":""}]
["",null,null,null,null,null,""]
["",null,null,null,null,null,""]
["",null,null,null,null,null,""]
["",null,null,null,null,null,""]
["",null,null,null,null,null,""]
["",null,null,null,null,null,""]
["",null,null,null,null,null,""]
["",null,null,null,null,null,""]
["",null,null,null,null,null,""]
["",null,null,null,null,null,""]
["",null,null,null,null,null,""]
["",null,null,null,null,null,""]
["",null,null,null,null,null,""]
["",null,null,null,null,null,""]
["",null,null,null,null,null,""]
["",null,null,null,null,null,""]
["",null,null,null,null,null,""]
["",null,null,null,null,null,""]
["",null,null,null,null,null,""]
["",null,null,null,null,null,""]
["",null,null,null,null,null,""]
["",null,null,null,null,null,""]
["",null,null,null,null,null,""]
["",null,null,null,null,null,""]
["",null,null,null,null,null,""]
["",null,null,null,null,null,""]
["",null,null,null,null,null,""]
["",null,null,null,null,null,""]
["",null,null,null,null,null,""]
["",null,null,null,null,null,""]
["",null,null,null,null,null,""]
["",null,null,null,null,null,""]
["",null,null,null,null,null,""]
["",null,null,null,null,null,""]
["",null,null,null,null,null,""]
["",null,null,null,null,null,""]
["",null,null,null,null,null,""]
["",null,null,null,null,null,""]
["",null,null,null,null,null,""]
["",null,null,null,null,null,""]
["",null,null,null,null,null,""]
["",null,null,null,null,null,""]
["",null,null,null,null,null,""]
["",null,null,null,null,null,""]
["",null,null,null,null,null,""]
["",null,null,null,null,null,""]
["",null,null,null,null,null,""]
["",null,null,null,null,null,""]
["",null,null,null,null,null,""]
["",null,null,null,null,null,""]
["",null,null,null,null,null,""]
["",null,null,null,null,null,""]
["",null,null,null,null,null,""]
["",null,null,null,null,null,""]
["",null,null,null,null,null,""]
["",null,null,null,null,null,""]
["",null,null,null,null,null,""]
["",null,null,null,null,null,""]
["",null,null,null,null,null,""]
["",null,null,null,null,null,""]
["",null,null,null,null,null,""]
["",null,null,null,null,null,""]
[{"$f":"IF(B345=\"\",\"\",A344+1)","v":""},null,null,null,null,null,""]
["",null,null,null,null,null,{"$f":"IF(B346=\"\",\"\",(LOWER(B346&\".\"&E346&\"@\"&B346&\".com\")))","v":""}]
["",null,null,null,null,null,""]
["",null,null,null,null,null,""]
["",null,null,null,null,null,""]
["",null,null,null,null,null,""]
["",null,null,null,null,null,""]
["",null,null,null,null,null,""]
["",null,null,null,null,null,""]
["",null,null,null,null,null,""]
["",null,null,null,null,null,""]
["",null,null,null,null,null,""]
["",null,null,null,null,null,""]
["",null,null,null,null,null,""]
["",null,null,null,null,null,""]
["",null,null,null,null,null,""]
["",null,null,null,null,null,""]
["",null,null,null,null,null,""]
["",null,null,null,null,null,""]
["",null,null,null,null,null,""]
["",null,null,null,null,null,""]
["",null,null,null,null,null,""]
["",null,null,null,null,null,""]
["",null,null,null,null,null,""]
["",null,null,null,null,null,""]
["",null,null,null,null,null,""]
["",null,null,null,null,null,""]
["",null,null,null,null,null,""]
["",null,null,null,null,null,""]
["",null,null,null,null,null,""]
["",null,null,null,null,null,""]
["",null,null,null,null,null,""]
["",null,null,null,null,null,""]
["",null,null,null,null,null,""]
["",null,null,null,null,null,""]
["",null,null,null,null,null,""]
["",null,null,null,null,null,""]
["",null,null,null,null,null,""]
["",null,null,null,null,null,""]
["",null,null,null,null,null,""]
["",null,null,null,null,null,""]
["",null,null,null,null,null,""]
["",null,null,null,null,null,""]
["",null,null,null,null,null,""]
["",null,null,null,null,null,""]
["",null,null,null,null,null,""]
["",null,null,null,null,null,""]
["",null,null,null,null,null,""]
["",null,null,null,null,null,""]
["",null,null,null,null,null,""]
["",null,null,null,null,null,""]
["",null,null,null,null,null,""]
["",null,null,null,null,null,""]
["",null,null,null,null,null,""]
["",null,null,null,null,null,""]
["",null,null,null,null,null,""]
["",null,null,null,null,null,""]
["",null,null,null,null,null,""]
["",null,null,null,null,null,""]
["",null,null,null,null,null,""]
["",null,null,null,null,null,""]
["",null,null,null,null,null,""]
["",null,null,null,null,null,""]
["",null,null,null,null,null,""]
[{"$f":"IF(B409=\"\",\"\",A408+1)","v":""},null,null,null,null,null,""]
["",null,null,null,null,null,{"$f":"IF(B410=\"\",\"\",(LOWER(B410&\".\"&E410&\"@\"&B410&\".com\")))","v":""}]
["",null,null,null,null,null,""]
["",null,null,null,null,null,""]
["",null,null,null,null,null,""]
["",null,null,null,null,null,""]
["",null,null,null,null,null,""]
["",null,null,null,null,null,""]
["",null,null,null,null,null,""]
["",null,null,null,null,null,""]
["",null,null,null,null,null,""]
["",null,null,null,null,null,""]
["",null,null,null,null,null,""]
["",null,null,null,null,null,""]
["",null,null,null,null,null,""]
["",null,null,null,null,null,""]
["",null,null,null,null,null,""]
["",null,null,null,null,null,""]
["",null,null,null,null,null,""]
["",null,null,null,null,null,""]
["",null,null,null,null,null,""]
["",null,null,null,null,null,""]
["",null,null,null,null,null,""]
["",null,null,null,null,null,""]
["",null,null,null,null,null,""]
["",null,null,null,null,null,""]
["",null,null,null,null,null,""]
["",null,null,null,null,null,""]
["",null,null,null,null,null,""]
["",null,null,null,null,null,""]
["",null,null,null,null,null,""]
["",null,null,null,null,null,""]
["",null,null,null,null,null,""]
["",null,null,null,null,null,""]
["",null,null,null,null,null,""]
["",null,null,null,null,null,""]
["",null,null,null,null,null,""]
["",null,null,null,null,null,""]
["",null,null,null,null,null,""]
["",null,null,null,null,null,""]
["",null,null,null,null,null,""]
["",null,null,null,null,null,""]
["",null,null,null,null,null,""]
["",null,null,null,null,null,""]
["",null,null,null,null,null,""]
["",null,null,null,null,null,""]
["",null,null,null,null,null,""]
["",null,null,null,null,null,""]
["",null,null,null,null,null,""]
["",null,null,null,null,null,""]
["",null,null,null,null,null,""]
["",null,null,null,null,null,""]
["",null,null,null,null,null,""]
["",null,null,null,null,null,""]
["",null,null,null,null,null,""]
["",null,null,null,null,null,""]
["",null,null,null,null,null,""]
["",null,null,null,null,null,""]
["",null,null,null,null,null,""]
["",null,null,null,null,null,""]
["",null,null,null,null,null,""]
["",null,null,null,null,null,""]
["",null,null,null,null,null,""]
["",null,null,null,null,null,""]
[{"$f":"IF(B473=\"\",\"\",A472+1)","v":""},null,null,null,null,null,""]
["",null,null,null,null,null,{"$f":"IF(B474=\"\",\"\",(LOWER(B474&\".\"&E474&\"@\"&B474&\".com\")))","v":""}]
["",null,null,null,null,null,""]
["",null,null,null,null,null,""]
["",null,null,null,null,null,""]
["",null,null,null,null,null,""]
["",null,null,null,null,null,""]
["",null,null,null,null,null,""]
["",null,null,null,null,null,""]
["",null,null,null,null,null,""]
["",null,null,null,null,null,""]
["",null,null,null,null,null,""]
["",null,null,null,null,null,""]
["",null,null,null,null,null,""]
["",null,null,null,null,null,""]
["",null,null,null,null,null,""]
["",null,null,null,null,null,""]
["",null,null,null,null,null,""]
["",null,null,null,null,null,""]
["",null,null,null,null,null,""]
["",null,null,null,null,null,""]
["",null,null,null,null,null,""]
["",null,null,null,null,null,""]
["",null,null,null,null,null,""]
["",null,null,null,null,null,""]
["",null,null,null,null,null,""]
["",null,null,null,null,null,""]
["",null,null,null,null,null,""]
["",null,null,null,null,null,""]
["",null,null,null,null,null,""]
["",null,null,null,null,null,""]
["",null,null,null,null,null,""]
["",null,null,null,null,null,""]
["",null,null,null,null,null,""]
["",null,null,null,null,null,""]
["",null,null,null,null,null,""]
["",null,null,null,null,null,""]
["",null,null,null,null,null,""]
["",null,null,null,null,null,""]
["",null,null,null,null,null,""]
["",null,null,null,null,null,""]
["",null,null,null,null,null,""]
["",null,null,null,null,null,""]
["",null,null,null,null,null,""]
["",null,null,null,null,null,""]
["",null,null,null,null,null,""]
["",null,null,null,null,null,""]
["",null,null,null,null,null,""]
["",null,null,null,null,null,""]
["",null,null,null,null,null,""]
["",null,null,null,null,null,""]
["",null,null,null,null,null,""]
["",null,null,null,null,null,""]
["",null,null,null,null,null,""]
["",null,null,null,null,null,""]
["",null,null,null,null,null,""]
["",null,null,null,null,null,""]
["",null,null,null,null,null,""]
["",null,null,null,null,null,""]
["",null,null,null,null,null,""]
["",null,null,null,null,null,""]
["",null,null,null,null,null,""]
["",null,null,null,null,null,""]
["",null,null,null,null,null,""]
[{"$f":"IF(B537=\"\",\"\",A536+1)","v":""},null,null,null,null,null,""]
["",null,null,null,null,null,{"$f":"IF(B538=\"\",\"\",(LOWER(B538&\".\"&E538&\"@\"&B538&\".com\")))","v":""}]
["",null,null,null,null,null,""]
["",null,null,null,null,null,""]
["",null,null,null,null,null,""]
["",null,null,null,null,null,""]
["",null,null,null,null,null,""]
["",null,null,null,null,null,""]
["",null,null,null,null,null,""]
["",null,null,null,null,null,""]
["",null,null,null,null,null,""]
["",null,null,null,null,null,""]
["",null,null,null,null,null,""]
["",null,null,null,null,null,""]
["",null,null,null,null,null,""]
["",null,null,null,null,null,""]
["",null,null,null,null,null,""]
["",null,null,null,null,null,""]
["",null,null,null,null,null,""]
["",null,null,null,null,null,""]
["",null,null,null,null,null,""]
["",null,null,null,null,null,""]
["",null,null,null,null,null,""]
["",null,null,null,null,null,""]
["",null,null,null,null,null,""]
["",null,null,null,null,null,""]
["",null,null,null,null,null,""]
["",null,null,null,null,null,""]
["",null,null,null,null,null,""]
["",null,null,null,null,null,""]
["",null,null,null,null,null,""]
["",null,null,null,null,null,""]
["",null,null,null,null,null,""]
["",null,null,null,null,null,""]
["",null,null,null,null,null,""]
["",null,null,null,null,null,""]
["",null,null,null,null,null,""]
["",null,null,null,null,null,""]
["",null,null,null,null,null,""]
["",null,null,null,null,null,""]
["",null,null,null,null,null,""]
["",null,null,null,null,null,""]
["",null,null,null,null,null,""]
["",null,null,null,null,null,""]
["",null,null,null,null,null,""]
["",null,null,null,null,null,""]
["",null,null,null,null,null,""]
["",null,null,null,null,null,""]
["",null,null,null,null,null,""]
["",null,null,null,null,null,""]
["",null,null,null,null,null,""]
["",null,null,null,null,null,""]
["",null,null,null,null,null,""]
["",null,null,null,null,null,""]
["",null,null,null,null,null,""]
["",null,null,null,null,null,""]
["",null,null,null,null,null,""]
["",null,null,null,null,null,""]
["",null,null,null,null,null,""]
["",null,null,null,null,null,""]
["",null,null,null,null,null,""]
["",null,null,null,null,null,""]
["",null,null,null,null,null,""]
["",null,null,null,null,null,""]
[{"$f":"IF(B601=\"\",\"\",A600+1)","v":""},null,null,null,null,null,""]
["",null,null,null,null,null,{"$f":"IF(B602=\"\",\"\",(LOWER(B602&\".\"&E602&\"@\"&B602&\".com\")))","v":""}]
["",null,null,null,null,null,""]
["",null,null,null,null,null,""]
["",null,null,null,null,null,""]
["",null,null,null,null,null,""]
["",null,null,null,null,null,""]
["",null,null,null,null,null,""]
["",null,null,null,null,null,""]
["",null,null,null,null,null,""]
["",null,null,null,null,null,""]
["",null,null,null,null,null,""]
["",null,null,null,null,null,""]
["",null,null,null,null,null,""]
["",null,null,null,null,null,""]
["",null,null,null,null,null,""]
["",null,null,null,null,null,""]
["",null,null,null,null,null,""]
["",null,null,null,null,null,""]
["",null,null,null,null,null,""]
["",null,null,null,null,null,""]
["",null,null,null,null,null,""]
["",null,null,null,null,null,""]
["",null,null,null,null,null,""]
["",null,null,null,null,null,""]
["",null,null,null,null,null,""]
["",null,null,null,null,null,""]
["",null,null,null,null,null,""]
["",null,null,null,null,null,""]
["",null,null,null,null,null,""]
["",null,null,null,null,null,""]
["",null,null,null,null,null,""]
["",null,null,null,null,null,""]
["",null,null,null,null,null,""]
["",null,null,null,null,null,""]
["",null,null,null,null,null,""]
["",null,null,null,null,null,""]
["",null,null,null,null,null,""]
["",null,null,null,null,null,""]
["",null,null,null,null,null,""]
["",null,null,null,null,null,""]
["",null,null,null,null,null,""]
["",null,null,null,null,null,""]
["",null,null,null,null,null,""]
["",null,null,null,null,null,""]
["",null,null,null,null,null,""]
["",null,null,null,null,null,""]
["",null,null,null,null,null,""]
["",null,null,null,null,null,""]
["",null,null,null,null,null,""]
["",null,null,null,null,null,""]
["",null,null,null,null,null,""]
["",null,null,null,null,null,""]
["",null,null,null,null,null,""]
["",null,null,null,null,null,""]
["",null,null,null,null,null,""]
["",null,null,null,null,null,""]
["",null,null,null,null,null,""]
["",null,null,null,null,null,""]
["",null,null,null,null,null,""]
["",null,null,null,null,null,""]
["",null,null,null,null,null,""]
["",null,null,null,null,null,""]
["",null,null,null,null,null,""]
[{"$f":"IF(B665=\"\",\"\",A664+1)","v":""},null,null,null,null,null,""]
["",null,null,null,null,null,{"$f":"IF(B666=\"\",\"\",(LOWER(B666&\".\"&E666&\"@\"&B666&\".com\")))","v":""}]
["",null,null,null,null,null,""]
["",null,null,null,null,null,""]
["",null,null,null,null,null,""]
["",null,null,null,null,null,""]
["",null,null,null,null,null,""]
["",null,null,null,null,null,""]
["",null,null,null,null,null,""]
["",null,null,null,null,null,""]
["",null,null,null,null,null,""]
["",null,null,null,null,null,""]
["",null,null,null,null,null,""]
["",null,null,null,null,null,""]
["",null,null,null,null,null,""]
["",null,null,null,null,null,""]
["",null,null,null,null,null,""]
["",null,null,null,null,null,""]
["",null,null,null,null,null,""]
["",null,null,null,null,null,""]
["",null,null,null,null,null,""]
["",null,null,null,null,null,""]
["",null,null,null,null,null,""]
["",null,null,null,null,null,""]
["",null,null,null,null,null,""]
["",null,null,null,null,null,""]
["",null,null,null,null,null,""]
["",null,null,null,null,null,""]
["",null,null,null,null,null,""]
["",null,null,null,null,null,""]
["",null,null,null,null,null,""]
["",null,null,null,null,null,""]
["",null,null,null,null,null,""]
["",null,null,null,null,null,""]
["",null,null,null,null,null,""]
["",null,null,null,null,null,""]
["",null,null,null,null,null,""]
["",null,null,null,null,null,""]
["",null,null,null,null,null,""]
["",null,null,null,null,null,""]
["",null,null,null,null,null,""]
["",null,null,null,null,null,""]
["",null,null,null,null,null,""]
["",null,null,null,null,null,""]
["",null,null,null,null,null,""]
["",null,null,null,null,null,""]
["",null,null,null,null,null,""]
["",null,null,null,null,null,""]
["",null,null,null,null,null,""]
["",null,null,null,null,null,""]
["",null,null,null,null,null,""]
["",null,null,null,null,null,""]
["",null,null,null,null,null,""]
["",null,null,null,null,null,""]
["",null,null,null,null,null,""]
["",null,null,null,null,null,""]
["",null,null,null,null,null,""]
["",null,null,null,null,null,""]
["",null,null,null,null,null,""]
["",null,null,null,null,null,""]
["",null,null,null,null,null,""]
["",null,null,null,null,null,""]
["",null,null,null,null,null,""]
["",null,null,null,null,null,""]
[{"$f":"IF(B729=\"\",\"\",A728+1)","v":""},null,null,null,null,null,""]
["",null,null,null,null,null,{"$f":"IF(B730=\"\",\"\",(LOWER(B730&\".\"&E730&\"@\"&B730&\".com\")))","v":""}]
["",null,null,null,null,null,""]
["",null,null,null,null,null,""]
["",null,null,null,null,null,""]
["",null,null,null,null,null,""]
["",null,null,null,null,null,""]
["",null,null,null,null,null,""]
["",null,null,null,null,null,""]
["",null,null,null,null,null,""]
["",null,null,null,null,null,""]
["",null,null,null,null,null,""]
["",null,null,null,null,null,""]
["",null,null,null,null,null,""]
["",null,null,null,null,null,""]
["",null,null,null,null,null,""]
["",null,null,null,null,null,""]
["",null,null,null,null,null,""]
["",null,null,null,null,null,""]
["",null,null,null,null,null,""]
["",null,null,null,null,null,""]
["",null,null,null,null,null,""]
["",null,null,null,null,null,""]
["",null,null,null,null,null,""]
["",null,null,null,null,null,""]
["",null,null,null,null,null,""]
["",null,null,null,null,null,""]
["",null,null,null,null,null,""]
["",null,null,null,null,null,""]
["",null,null,null,null,null,""]
["",null,null,null,null,null,""]
["",null,null,null,null,null,""]
["",null,null,null,null,null,""]
["",null,null,null,null,null,""]
["",null,null,null,null,null,""]
["",null,null,null,null,null,""]
["",null,null,null,null,null,""]
["",null,null,null,null,null,""]
["",null,null,null,null,null,""]
["",null,null,null,null,null,""]
["",null,null,null,null,null,""]
["",null,null,null,null,null,""]
["",null,null,null,null,null,""]
["",null,null,null,null,null,""]
["",null,null,null,null,null,""]
["",null,null,null,null,null,""]
["",null,null,null,null,null,""]
["",null,null,null,null,null,""]
["",null,null,null,null,null,""]
["",null,null,null,null,null,""]
["",null,null,null,null,null,""]
["",null,null,null,null,null,""]
["",null,null,null,null,null,""]
["",null,null,null,null,null,""]
["",null,null,null,null,null,""]
["",null,null,null,null,null,""]
["",null,null,null,null,null,""]
["",null,null,null,null,null,""]
["",null,null,null,null,null,""]
["",null,null,null,null,null,""]
["",null,null,null,null,null,""]
["",null,null,null,null,null,""]
["",null,null,null,null,null,""]
["",null,null,null,null,null,""]
[{"$f":"IF(B793=\"\",\"\",A792+1)","v":""},null,null,null,null,null,""]
["",null,null,null,null,null,{"$f":"IF(B794=\"\",\"\",(LOWER(B794&\".\"&E794&\"@\"&B794&\".com\")))","v":""}]
["",null,null,null,null,null,""]
["",null,null,null,null,null,""]
["",null,null,null,null,null,""]
["",null,null,null,null,null,""]
["",null,null,null,null,null,""]
["",null,null,null,null,null,""]
["",null,null,null,null,null,""]
["",null,null,null,null,null,""]
["",null,null,null,null,null,""]
["",null,null,null,null,null,""]
["",null,null,null,null,null,""]
["",null,null,null,null,null,""]
["",null,null,null,null,null,""]
["",null,null,null,null,null,""]
["",null,null,null,null,null,""]
["",null,null,null,null,null,""]
["",null,null,null,null,null,""]
["",null,null,null,null,null,""]
["",null,null,null,null,null,""]
["",null,null,null,null,null,""]
["",null,null,null,null,null,""]
["",null,null,null,null,null,""]
["",null,null,null,null,null,""]
["",null,null,null,null,null,""]
["",null,null,null,null,null,""]
["",null,null,null,null,null,""]
["",null,null,null,null,null,""]
["",null,null,null,null,null,""]
["",null,null,null,null,null,""]
["",null,null,null,null,null,""]
["",null,null,null,null,null,""]
["",null,null,null,null,null,""]
["",null,null,null,null,null,""]
["",null,null,null,null,null,""]
["",null,null,null,null,null,""]
["",null,null,null,null,null,""]
["",null,null,null,null,null,""]
["",null,null,null,null,null,""]
["",null,null,null,null,null,""]
["",null,null,null,null,null,""]
["",null,null,null,null,null,""]
["",null,null,null,null,null,""]
["",null,null,null,null,null,""]
["",null,null,null,null,null,""]
["",null,null,null,null,null,""]
["",null,null,null,null,null,""]
["",null,null,null,null,null,""]
["",null,null,null,null,null,""]
["",null,null,null,null,null,""]
["",null,null,null,null,null,""]
["",null,null,null,null,null,""]
["",null,null,null,null,null,""]
["",null,null,null,null,null,""]
["",null,null,null,null,null,""]
["",null,null,null,null,null,""]
["",null,null,null,null,null,""]
["",null,null,null,null,null,""]
["",null,null,null,null,null,""]
["",null,null,null,null,null,""]
["",null,null,null,null,null,""]
["",null,null,null,null,null,""]
["",null,null,null,null,null,""]
[{"$f":"IF(B857=\"\",\"\",A856+1)","v":""},null,null,null,null,null,""]
["",null,null,null,null,null,{"$f":"IF(B858=\"\",\"\",(LOWER(B858&\".\"&E858&\"@\"&B858&\".com\")))","v":""}]
["",null,null,null,null,null,""]
["",null,null,null,null,null,""]
["",null,null,null,null,null,""]
["",null,null,null,null,null,""]
["",null,null,null,null,null,""]
["",null,null,null,null,null,""]
["",null,null,null,null,null,""]
["",null,null,null,null,null,""]
["",null,null,null,null,null,""]
["",null,null,null,null,null,""]
["",null,null,null,null,null,""]
["",null,null,null,null,null,""]
["",null,null,null,null,null,""]
["",null,null,null,null,null,""]
["",null,null,null,null,null,""]
["",null,null,null,null,null,""]
["",null,null,null,null,null,""]
["",null,null,null,null,null,""]
["",null,null,null,null,null,""]
["",null,null,null,null,null,""]
["",null,null,null,null,null,""]
["",null,null,null,null,null,""]
["",null,null,null,null,null,""]
["",null,null,null,null,null,""]
["",null,null,null,null,null,""]
["",null,null,null,null,null,""]
["",null,null,null,null,null,""]
["",null,null,null,null,null,""]
["",null,null,null,null,null,""]
["",null,null,null,null,null,""]
["",null,null,null,null,null,""]
["",null,null,null,null,null,""]
["",null,null,null,null,null,""]
["",null,null,null,null,null,""]
["",null,null,null,null,null,""]
["",null,null,null,null,null,""]
["",null,null,null,null,null,""]
["",null,null,null,null,null,""]
["",null,null,null,null,null,""]
["",null,null,null,null,null,""]
["",null,null,null,null,null,""]
["",null,null,null,null,null,""]
["",null,null,null,null,null,""]
["",null,null,null,null,null,""]
["",null,null,null,null,null,""]
["",null,null,null,null,null,""]
["",null,null,null,null,null,""]
["",null,null,null,null,null,""]
["",null,null,null,null,null,""]
["",null,null,null,null,null,""]
["",null,null,null,null,null,""]
["",null,null,null,null,null,""]
["",null,null,null,null,null,""]
["",null,null,null,null,null,""]
["",null,null,null,null,null,""]
["",null,null,null,null,null,""]
["",null,null,null,null,null,""]
["",null,null,null,null,null,""]
["",null,null,null,null,null,""]
["",null,null,null,null,null,""]
["",null,null,null,null,null,""]
["",null,null,null,null,null,""]
[{"$f":"IF(B921=\"\",\"\",A920+1)","v":""},null,null,null,null,null,""]
["",null,null,null,null,null,{"$f":"IF(B922=\"\",\"\",(LOWER(B922&\".\"&E922&\"@\"&B922&\".com\")))","v":""}]
["",null,null,null,null,null,""]
["",null,null,null,null,null,""]
["",null,null,null,null,null,""]
["",null,null,null,null,null,""]
["",null,null,null,null,null,""]
["",null,null,null,null,null,""]
["",null,null,null,null,null,""]
["",null,null,null,null,null,""]
["",null,null,null,null,null,""]
["",null,null,null,null,null,""]
["",null,null,null,null,null,""]
["",null,null,null,null,null,""]
["",null,null,null,null,null,""]
["",null,null,null,null,null,""]
["",null,null,null,null,null,""]
["",null,null,null,null,null,""]
["",null,null,null,null,null,""]
["",null,null,null,null,null,""]
["",null,null,null,null,null,""]
["",null,null,null,null,null,""]
["",null,null,null,null,null,""]
["",null,null,null,null,null,""]
["",null,null,null,null,null,""]
["",null,null,null,null,null,""]
["",null,null,null,null,null,""]
["",null,null,null,null,null,""]
["",null,null,null,null,null,""]
["",null,null,null,null,null,""]
["",null,null,null,null,null,""]
["",null,null,null,null,null,""]
["",null,null,null,null,null,""]
["",null,null,null,null,null,""]
["",null,null,null,null,null,""]
["",null,null,null,null,null,""]
["",null,null,null,null,null,""]
["",null,null,null,null,null,""]
["",null,null,null,null,null,""]
["",null,null,null,null,null,""]
["",null,null,null,null,null,""]
["",null,null,null,null,null,""]
["",null,null,null,null,null,""]
["",null,null,null,null,null,""]
["",null,null,null,null,null,""]
["",null,null,null,null,null,""]
["",null,null,null,null,null,""]
["",null,null,null,null,null,""]
["",null,null,null,null,null,""]
["",null,null,null,null,null,""]
["",null,null,null,null,null,""]
["",null,null,null,null,null,""]
["",null,null,null,null,null,""]
["",null,null,null,null,null,""]
["",null,null,null,null,null,""]
["",null,null,null,null,null,""]
["",null,null,null,null,null,""]
["",null,null,null,null,null,""]
["",null,null,null,null,null,""]
["",null,null,null,null,null,""]
["",null,null,null,null,null,""]
["",null,null,null,null,null,""]
["",null,null,null,null,null,""]
["",null,null,null,null,null,""]
[{"$f":"IF(B985=\"\",\"\",A984+1)","v":""},null,null,null,null,null,""]
["",null,null,null,null,null,{"$f":"IF(B986=\"\",\"\",(LOWER(B986&\".\"&E986&\"@\"&B986&\".com\")))","v":""}]
["",null,null,null,null,null,""]
["",null,null,null,null,null,""]
["",null,null,null,null,null,""]
["",null,null,null,null,null,""]
["",null,null,null,null,null,""]
["",null,null,null,null,null,""]
["",null,null,null,null,null,""]
["",null,null,null,null,null,""]
["",null,null,null,null,null,""]
["",null,null,null,null,null,""]
["",null,null,null,null,null,""]
["",null,null,null,null,null,""]
["",null,null,null,null,null,""]
["",null,null,null,null,null,""]
["",null,null,null,null,null,""]
["",null,null,null,null,null,""]
["",null,null,null,null,null,""]
["",null,null,null,null,null,""]
["",null,null,null,null,null,""]
["",null,null,null,null,null,""]
["",null,null,null,null,null,""]
["",null,null,null,null,null,""]
["",null,null,null,null,null,""]
["",null,null,null,null,null,""]
["",null,null,null,null,null,""]
["",null,null,null,null,null,""]
["",null,null,null,null,null,""]
["",null,null,null,null,null,""]
["",null,null,null,null,null,""]
["",null,null,null,null,null,""]
["",null,null,null,null,null,""]
["",null,null,null,null,null,""]
["",null,null,null,null,null,""]
["",null,null,null,null,null,""]
["",null,null,null,null,null,""]
["",null,null,null,null,null,""]
["",null,null,null,null,null,""]
["",null,null,null,null,null,""]
["",null,null,null,null,null,""]
["",null,null,null,null,null,""]
["",null,null,null,null,null,""]
["",null,null,null,null,null,""]
["",null,null,null,null,null,""]
["",null,null,null,null,null,""]
["",null,null,null,null,null,""]
["",null,null,null,null,null,""]
["",null,null,null,null,null,""]
["",null,null,null,null,null,""]
["",null,null,null,null,null,""]
["",null,null,null,null,null,""]
["",null,null,null,null,null,""]
["",null,null,null,null,null,""]
["",null,null,null,null,null,""]
["",null,null,null,null,null,""]
["",null,null,null,null,null,""]
["",null,null,null,null,null,""]
["",null,null,null,null,null,""]
["",null,null,null,null,null,""]
["",null,null,null,null,null,""]
["",null,null,null,null,null,""]
["",null,null,null,null,null,""]
["",null,null,null,null,null,""]
[{"$f":"IF(B1049=\"\",\"\",A1048+1)","v":""},null,null,null,null,null,""]
["",null,null,null,null,null,{"$f":"IF(B1050=\"\",\"\",(LOWER(B1050&\".\"&E1050&\"@\"&B1050&\".com\")))","v":""}]
["",null,null,null,null,null,""]
["",null,null,null,null,null,""]
["",null,null,null,null,null,""]
["",null,null,null,null,null,""]
["",null,null,null,null,null,""]
["",null,null,null,null,null,""]
["",null,null,null,null,null,""]
["",null,null,null,null,null,""]
["",null,null,null,null,null,""]
["",null,null,null,null,null,""]
["",null,null,null,null,null,""]
["",null,null,null,null,null,""]
["",null,null,null,null,null,""]
["",null,null,null,null,null,""]
["",null,null,null,null,null,""]
["",null,null,null,null,null,""]
["",null,null,null,null,null,""]
["",null,null,null,null,null,""]
["",null,null,null,null,null,""]
["",null,null,null,null,null,""]
["",null,null,null,null,null,""]
["",null,null,null,null,null,""]
["",null,null,null,null,null,""]
["",null,null,null,null,null,""]
["",null,null,null,null,null,""]
["",null,null,null,null,null,""]
["",null,null,null,null,null,""]
["",null,null,null,null,null,""]
["",null,null,null,null,null,""]
["",null,null,null,null,null,""]
["",null,null,null,null,null,""]
["",null,null,null,null,null,""]
["",null,null,null,null,null,""]
["",null,null,null,null,null,""]
["",null,null,null,null,null,""]
["",null,null,null,null,null,""]
["",null,null,null,null,null,""]
["",null,null,null,null,null,""]
["",null,null,null,null,null,""]
["",null,null,null,null,null,""]
["",null,null,null,null,null,""]
["",null,null,null,null,null,""]
["",null,null,null,null,null,""]
["",null,null,null,null,null,""]
["",null,null,null,null,null,""]
["",null,null,null,null,null,""]
["",null,null,null,null,null,""]
["",null,null,null,null,null,""]
["",null,null,null,null,null,""]
["",null,null,null,null,null,""]
["",null,null,null,null,null,""]
["",null,null,null,null,null,""]
["",null,null,null,null,null,""]
["",null,null,null,null,null,""]
["",null,null,null,null,null,""]
["",null,null,null,null,null,""]
["",null,null,null,null,null,""]
["",null,null,null,null,null,""]
["",null,null,null,null,null,""]
["",null,null,null,null,null,""]
["",null,null,null,null,null,""]
["",null,null,null,null,null,""]
[{"$f":"IF(B1113=\"\",\"\",A1112+1)","v":""},null,null,null,null,null,""]
["",null,null,null,null,null,{"$f":"IF(B1114=\"\",\"\",(LOWER(B1114&\".\"&E1114&\"@\"&B1114&\".com\")))","v":""}]
["",null,null,null,null,null,""]
["",null,null,null,null,null,""]
["",null,null,null,null,null,""]
["",null,null,null,null,null,""]
["",null,null,null,null,null,""]
["",null,null,null,null,null,""]
["",null,null,null,null,null,""]
["",null,null,null,null,null,""]
["",null,null,null,null,null,""]
["",null,null,null,null,null,""]
["",null,null,null,null,null,""]
["",null,null,null,null,null,""]
["",null,null,null,null,null,""]
["",null,null,null,null,null,""]
["",null,null,null,null,null,""]
["",null,null,null,null,null,""]
["",null,null,null,null,null,""]
["",null,null,null,null,null,""]
["",null,null,null,null,null,""]
["",null,null,null,null,null,""]
["",null,null,null,null,null,""]
["",null,null,null,null,null,""]
["",null,null,null,null,null,""]
["",null,null,null,null,null,""]
["",null,null,null,null,null,""]
["",null,null,null,null,null,""]
["",null,null,null,null,null,""]
["",null,null,null,null,null,""]
["",null,null,null,null,null,""]
["",null,null,null,null,null,""]
["",null,null,null,null,null,""]
["",null,null,null,null,null,""]
["",null,null,null,null,null,""]
["",null,null,null,null,null,""]
["",null,null,null,null,null,""]
["",null,null,null,null,null,""]
["",null,null,null,null,null,""]
["",null,null,null,null,null,""]
["",null,null,null,null,null,""]
["",null,null,null,null,null,""]
["",null,null,null,null,null,""]
["",null,null,null,null,null,""]
["",null,null,null,null,null,""]
["",null,null,null,null,null,""]
["",null,null,null,null,null,""]
["",null,null,null,null,null,""]
["",null,null,null,null,null,""]
["",null,null,null,null,null,""]
["",null,null,null,null,null,""]
["",null,null,null,null,null,""]
["",null,null,null,null,null,""]
["",null,null,null,null,null,""]
["",null,null,null,null,null,""]
["",null,null,null,null,null,""]
["",null,null,null,null,null,""]
["",null,null,null,null,null,""]
["",null,null,null,null,null,""]
["",null,null,null,null,null,""]
["",null,null,null,null,null,""]
["",null,null,null,null,null,""]
["",null,null,null,null,null,""]
["",null,null,null,null,null,""]
[{"$f":"IF(B1177=\"\",\"\",A1176+1)","v":""},null,null,null,null,null,""]
["",null,null,null,null,null,{"$f":"IF(B1178=\"\",\"\",(LOWER(B1178&\".\"&E1178&\"@\"&B1178&\".com\")))","v":""}]
["",null,null,null,null,null,""]
["",null,null,null,null,null,""]
["",null,null,null,null,null,""]
["",null,null,null,null,null,""]
["",null,null,null,null,null,""]
["",null,null,null,null,null,""]
["",null,null,null,null,null,""]
["",null,null,null,null,null,""]
["",null,null,null,null,null,""]
["",null,null,null,null,null,""]
["",null,null,null,null,null,""]
["",null,null,null,null,null,""]
["",null,null,null,null,null,""]
["",null,null,null,null,null,""]
["",null,null,null,null,null,""]
["",null,null,null,null,null,""]
["",null,null,null,null,null,""]
["",null,null,null,null,null,""]
["",null,null,null,null,null,""]
["",null,null,null,null,null,""]
["",null,null,null,null,null,""]
["",null,null,null,null,null,""]
["",null,null,null,null,null,""]
["",null,null,null,null,null,""]
["",null,null,null,null,null,""]
["",null,null,null,null,null,""]
["",null,null,null,null,null,""]
["",null,null,null,null,null,""]
["",null,null,null,null,null,""]
["",null,null,null,null,null,""]
["",null,null,null,null,null,""]
["",null,null,null,null,null,""]
["",null,null,null,null,null,""]
["",null,null,null,null,null,""]
["",null,null,null,null,null,""]
["",null,null,null,null,null,""]
["",null,null,null,null,null,""]
["",null,null,null,null,null,""]
["",null,null,null,null,null,""]
["",null,null,null,null,null,""]
["",null,null,null,null,null,""]
["",null,null,null,null,null,""]
["",null,null,null,null,null,""]
["",null,null,null,null,null,""]
["",null,null,null,null,null,""]
["",null,null,null,null,null,""]
["",null,null,null,null,null,""]
["",null,null,null,null,null,""]
["",null,null,null,null,null,""]
["",null,null,null,null,null,""]
["",null,null,null,null,null,""]
["",null,null,null,null,null,""]
["",null,null,null,null,null,""]
["",null,null,null,null,null,""]
["",null,null,null,null,null,""]
["",null,null,null,null,null,""]
["",null,null,null,null,null,""]
["",null,null,null,null,null,""]
["",null,null,null,null,null,""]
["",null,null,null,null,null,""]
["",null,null,null,null,null,""]
["",null,null,null,null,null,""]
[{"$f":"IF(B1241=\"\",\"\",A1240+1)","v":""},null,null,null,null,null,""]
["",null,null,null,null,null,{"$f":"IF(B1242=\"\",\"\",(LOWER(B1242&\".\"&E1242&\"@\"&B1242&\".com\")))","v":""}]
["",null,null,null,null,null,""]
["",null,null,null,null,null,""]
["",null,null,null,null,null,""]
["",null,null,null,null,null,""]
["",null,null,null,null,null,""]
["",null,null,null,null,null,""]
["",null,null,null,null,null,""]
["",null,null,null,null,null,""]
["",null,null,null,null,null,""]
["",null,null,null,null,null,""]
["",null,null,null,null,null,""]
["",null,null,null,null,null,""]
["",null,null,null,null,null,""]
["",null,null,null,null,null,""]
["",null,null,null,null,null,""]
["",null,null,null,null,null,""]
["",null,null,null,null,null,""]
["",null,null,null,null,null,""]
["",null,null,null,null,null,""]
["",null,null,null,null,null,""]
["",null,null,null,null,null,""]
["",null,null,null,null,null,""]
["",null,null,null,null,null,""]
["",null,null,null,null,null,""]
["",null,null,null,null,null,""]
["",null,null,null,null,null,""]
["",null,null,null,null,null,""]
["",null,null,null,null,null,""]
["",null,null,null,null,null,""]
["",null,null,null,null,null,""]
["",null,null,null,null,null,""]
["",null,null,null,null,null,""]
["",null,null,null,null,null,""]
["",null,null,null,null,null,""]
["",null,null,null,null,null,""]
["",null,null,null,null,null,""]
["",null,null,null,null,null,""]
["",null,null,null,null,null,""]
["",null,null,null,null,null,""]
["",null,null,null,null,null,""]
["",null,null,null,null,null,""]
["",null,null,null,null,null,""]
["",null,null,null,null,null,""]
["",null,null,null,null,null,""]
["",null,null,null,null,null,""]
["",null,null,null,null,null,""]
["",null,null,null,null,null,""]
["",null,null,null,null,null,""]
["",null,null,null,null,null,""]
["",null,null,null,null,null,""]
["",null,null,null,null,null,""]
["",null,null,null,null,null,""]
["",null,null,null,null,null,""]
["",null,null,null,null,null,""]
["",null,null,null,null,null,""]
["",null,null,null,null,null,""]
["",null,null,null,null,null,""]
["",null,null,null,null,null,""]
["",null,null,null,null,null,""]
["",null,null,null,null,null,""]
["",null,null,null,null,null,""]
["",null,null,null,null,null,""]
[{"$f":"IF(B1305=\"\",\"\",A1304+1)","v":""},null,null,null,null,null,""]
["",null,null,null,null,null,{"$f":"IF(B1306=\"\",\"\",(LOWER(B1306&\".\"&E1306&\"@\"&B1306&\".com\")))","v":""}]
["",null,null,null,null,null,""]
["",null,null,null,null,null,""]
["",null,null,null,null,null,""]
["",null,null,null,null,null,""]
["",null,null,null,null,null,""]
["",null,null,null,null,null,""]
["",null,null,null,null,null,""]
["",null,null,null,null,null,""]
["",null,null,null,null,null,""]
["",null,null,null,null,null,""]
["",null,null,null,null,null,""]
["",null,null,null,null,null,""]
["",null,null,null,null,null,""]
["",null,null,null,null,null,""]
["",null,null,null,null,null,""]
["",null,null,null,null,null,""]
["",null,null,null,null,null,""]
["",null,null,null,null,null,""]
["",null,null,null,null,null,""]
["",null,null,null,null,null,""]
["",null,null,null,null,null,""]
["",null,null,null,null,null,""]
["",null,null,null,null,null,""]
["",null,null,null,null,null,""]
["",null,null,null,null,null,""]
["",null,null,null,null,null,""]
["",null,null,null,null,null,""]
["",null,null,null,null,null,""]
["",null,null,null,null,null,""]
["",null,null,null,null,null,""]
["",null,null,null,null,null,""]
["",null,null,null,null,null,""]
["",null,null,null,null,null,""]
["",null,null,null,null,null,""]
["",null,null,null,null,null,""]
["",null,null,null,null,null,""]
["",null,null,null,null,null,""]
["",null,null,null,null,null,""]
["",null,null,null,null,null,""]
["",null,null,null,null,null,""]
["",null,null,null,null,null,""]
["",null,null,null,null,null,""]
["",null,null,null,null,null,""]
["",null,null,null,null,null,""]
["",null,null,null,null,null,""]
["",null,null,null,null,null,""]
["",null,null,null,null,null,""]
["",null,null,null,null,null,""]
["",null,null,null,null,null,""]
["",null,null,null,null,null,""]
["",null,null,null,null,null,""]
["",null,null,null,null,null,""]
["",null,null,null,null,null,""]
["",null,null,null,null,null,""]
["",null,null,null,null,null,""]
["",null,null,null,null,null,""]
["",null,null,null,null,null,""]
["",null,null,null,null,null,""]
["",null,null,null,null,null,""]
["",null,null,null,null,null,""]
["",null,null,null,null,null,""]
["",null,null,null,null,null,""]
[{"$f":"IF(B1369=\"\",\"\",A1368+1)","v":""},null,null,null,null,null,""]
["",null,null,null,null,null,{"$f":"IF(B1370=\"\",\"\",(LOWER(B1370&\".\"&E1370&\"@\"&B1370&\".com\")))","v":""}]
["",null,null,null,null,null,""]
["",null,null,null,null,null,""]
["",null,null,null,null,null,""]
["",null,null,null,null,null,""]
["",null,null,null,null,null,""]
["",null,null,null,null,null,""]
["",null,null,null,null,null,""]
["",null,null,null,null,null,""]
["",null,null,null,null,null,""]
["",null,null,null,null,null,""]
["",null,null,null,null,null,""]
["",null,null,null,null,null,""]
["",null,null,null,null,null,""]
["",null,null,null,null,null,""]
["",null,null,null,null,null,""]
["",null,null,null,null,null,""]
["",null,null,null,null,null,""]
["",null,null,null,null,null,""]
["",null,null,null,null,null,""]
["",null,null,null,null,null,""]
["",null,null,null,null,null,""]
["",null,null,null,null,null,""]
["",null,null,null,null,null,""]
["",null,null,null,null,null,""]
["",null,null,null,null,null,""]
["",null,null,null,null,null,""]
["",null,null,null,null,null,""]
["",null,null,null,null,null,""]
["",null,null,null,null,null,""]
["",null,null,null,null,null,""]
["",null,null,null,null,null,""]
["",null,null,null,null,null,""]
["",null,null,null,null,null,""]
["",null,null,null,null,null,""]
["",null,null,null,null,null,""]
["",null,null,null,null,null,""]
["",null,null,null,null,null,""]
["",null,null,null,null,null,""]
["",null,null,null,null,null,""]
["",null,null,null,null,null,""]
["",null,null,null,null,null,""]
["",null,null,null,null,null,""]
["",null,null,null,null,null,""]
["",null,null,null,null,null,""]
["",null,null,null,null,null,""]
["",null,null,null,null,null,""]
["",null,null,null,null,null,""]
["",null,null,null,null,null,""]
["",null,null,null,null,null,""]
["",null,null,null,null,null,""]
["",null,null,null,null,null,""]
["",null,null,null,null,null,""]
["",null,null,null,null,null,""]
["",null,null,null,null,null,""]
["",null,null,null,null,null,""]
["",null,null,null,null,null,""]
["",null,null,null,null,null,""]
["",null,null,null,null,null,""]
["",null,null,null,null,null,""]
["",null,null,null,null,null,""]
["",null,null,null,null,null,""]
["",null,null,null,null,null,""]
[{"$f":"IF(B1433=\"\",\"\",A1432+1)","v":""},null,null,null,null,null,""]
["",null,null,null,null,null,{"$f":"IF(B1434=\"\",\"\",(LOWER(B1434&\".\"&E1434&\"@\"&B1434&\".com\")))","v":""}]
["",null,null,null,null,null,""]
["",null,null,null,null,null,""]
["",null,null,null,null,null,""]
["",null,null,null,null,null,""]
["",null,null,null,null,null,""]
["",null,null,null,null,null,""]
["",null,null,null,null,null,""]
["",null,null,null,null,null,""]
["",null,null,null,null,null,""]
["",null,null,null,null,null,""]
["",null,null,null,null,null,""]
["",null,null,null,null,null,""]
["",null,null,null,null,null,""]
["",null,null,null,null,null,""]
["",null,null,null,null,null,""]
["",null,null,null,null,null,""]
["",null,null,null,null,null,""]
["",null,null,null,null,null,""]
["",null,null,null,null,null,""]
["",null,null,null,null,null,""]
["",null,null,null,null,null,""]
["",null,null,null,null,null,""]
["",null,null,null,null,null,""]
["",null,null,null,null,null,""]
["",null,null,null,null,null,""]
["",null,null,null,null,null,""]
["",null,null,null,null,null,""]
["",null,null,null,null,null,""]
["",null,null,null,null,null,""]
["",null,null,null,null,null,""]
["",null,null,null,null,null,""]
["",null,null,null,null,null,""]
["",null,null,null,null,null,""]
["",null,null,null,null,null,""]
["",null,null,null,null,null,""]
["",null,null,null,null,null,""]
["",null,null,null,null,null,""]
["",null,null,null,null,null,""]
["",null,null,null,null,null,""]
["",null,null,null,null,null,""]
["",null,null,null,null,null,""]
["",null,null,null,null,null,""]
["",null,null,null,null,null,""]
["",null,null,null,null,null,""]
["",null,null,null,null,null,""]
["",null,null,null,null,null,""]
["",null,null,null,null,null,""]
["",null,null,null,null,null,""]
["",null,null,null,null,null,""]
["",null,null,null,null,null,""]
["",null,null,null,null,null,""]
["",null,null,null,null,null,""]
["",null,null,null,null,null,""]
["",null,null,null,null,null,""]
["",null,null,null,null,null,""]
["",null,null,null,null,null,""]
["",null,null,null,null,null,""]
["",null,null,null,null,null,""]
["",null,null,null,null,null,""]
["",null,null,null,null,null,""]
["",null,null,null,null,null,""]
["",null,null,null,null,null,""]
[{"$f":"IF(B1497=\"\",\"\",A1496+1)","v":""},null,null,null,null,null,""]
["",null,null,null,null,null,{"$f":"IF(B1498=\"\",\"\",(LOWER(B1498&\".\"&E1498&\"@\"&B1498&\".com\")))","v":""}]
["",null,null,null,null,null,""]
["",null,null,null,null,null,""]
["",null,null,null,null,null,""]
["",null,null,null,null,null,""]
["",null,null,null,null,null,""]
["",null,null,null,null,null,""]
["",null,null,null,null,null,""]
["",null,null,null,null,null,""]
["",null,null,null,null,null,""]
["",null,null,null,null,null,""]
["",null,null,null,null,null,""]
["",null,null,null,null,null,""]
["",null,null,null,null,null,""]
["",null,null,null,null,null,""]
["",null,null,null,null,null,""]
["",null,null,null,null,null,""]
["",null,null,null,null,null,""]
["",null,null,null,null,null,""]
["",null,null,null,null,null,""]
["",null,null,null,null,null,""]
["",null,null,null,null,null,""]
["",null,null,null,null,null,""]
["",null,null,null,null,null,""]
["",null,null,null,null,null,""]
["",null,null,null,null,null,""]
["",null,null,null,null,null,""]
["",null,null,null,null,null,""]
["",null,null,null,null,null,""]
["",null,null,null,null,null,""]
["",null,null,null,null,null,""]
["",null,null,null,null,null,""]
["",null,null,null,null,null,""]
["",null,null,null,null,null,""]
["",null,null,null,null,null,""]
["",null,null,null,null,null,""]
["",null,null,null,null,null,""]
["",null,null,null,null,null,""]
["",null,null,null,null,null,""]
["",null,null,null,null,null,""]
["",null,null,null,null,null,""]
["",null,null,null,null,null,""]
["",null,null,null,null,null,""]
["",null,null,null,null,null,""]
["",null,null,null,null,null,""]
["",null,null,null,null,null,""]
["",null,null,null,null,null,""]
["",null,null,null,null,null,""]
["",null,null,null,null,null,""]
["",null,null,null,null,null,""]
["",null,null,null,null,null,""]
["",null,null,null,null,null,""]
["",null,null,null,null,null,""]
["",null,null,null,null,null,""]
["",null,null,null,null,null,""]
["",null,null,null,null,null,""]
["",null,null,null,null,null,""]
["",null,null,null,null,null,""]
["",null,null,null,null,null,""]
["",null,null,null,null,null,""]
["",null,null,null,null,null,""]
["",null,null,null,null,null,""]
[""]

{"sheet":"Étiquette colis fournisseur","index":10,"n_rows":50,"n_cols":6,"rows_kept":50,"cut":false,"hidden":false,"merged":[[46,1,46,4],[47,1,47,4],[47,5,49,5],[48,1,48,4],[49,1,49,4],[36,1,40,1],[36,4,37,4],[36,5,37,5],[38,4,40,4],[38,5,40,5],[41,1,45,1],[41,2,41,4],[42,2,42,4],[42,5,45,5],[43,2,43,4],[45,2,45,4],[30,1,30,4],[31,1,31,4],[31,5,33,5],[32,1,32,4],[33,1,33,4],[25,1,29,1],[25,2,25,4],[26,2,26,4],[26,5,29,5],[27,2,27,4],[29,2,29,4],[14,1,14,4],[15,5,17,5],[20,1,24,1],[20,4,21,4],[20,5,21,5],[22,4,24,4],[22,5,24,5],[6,10,12,15],[9,1,13,1],[9,2,9,4],[10,5,13,5],[4,1,8,1],[4,4,5,4],[4,5,5,5],[13,2,13,4],[6,4,8,4],[6,5,8,5]]}
[]
[]
[]
[]
[null,"Expéditeur",null,null,"Date d’expédition :",{"$f":"IF('BL fournisseur'!$F$7=\"\",\"\",'BL fournisseur'!$F$7)","v":""}]
[null,null,{"$f":"IF('BL fournisseur'!$C$5=\"\",\"\",'BL fournisseur'!C5)","v":""}]
[null,null,{"$f":"IF('BL fournisseur'!$C$5=\"\",\"\",'BL fournisseur'!C6)","v":""},null,"N° de Bon de livraison :",{"$f":"IF('BL fournisseur'!F6=\"\",\"\",'BL fournisseur'!F6)","v":""}]
[null,null,{"$f":"IF('BL fournisseur'!$C$5=\"\",\"\",'BL fournisseur'!C7)","v":""},{"$f":"IF('BL fournisseur'!$C$5=\"\",\"\",'BL fournisseur'!D7)","v":""}]
[]
[null,"Destinataire",null,null,null,"Département"]
[null,null,{"$f":"'Gestion identité'!C5","v":"B.S.L ÉLEC"},null,null,{"$f":"LEFT(C13,2)","v":"54"}]
[null,null,{"$f":"'Gestion identité'!C6","v":"5, rue Ste Anne"}]
[null,null,{"$f":"'Gestion identité'!C7","v":"54340 Pompey"}]
[null,null,{"$f":"IF('Bon de retour'!$K$1=\"\",\"\",'Bon de retour'!J12)","v":""}]
[null,"Transporteur :",null,null,null,"Colis N°"]
[null,{"$f":"IF('BL fournisseur'!D13=\"\",\"\",'BL fournisseur'!D13)","v":""},null,null,null,{"$f":"IF('BL fournisseur'!$D$34>=1,1,\"\")","v":""}]
[null,{"$f":"IF('BL fournisseur'!C14=\"\",\"\",'BL fournisseur'!C14)","v":""}]
[null,{"$f":"IF('BL fournisseur'!D14=\"\",\"\",'BL fournisseur'!D14)","v":""}]
[]
[]
[null,{"$f":"IF('BL fournisseur'!$D$34>1,$B$5,\"\")","v":""},{"$f":"IF('Bon de retour'!$E$34>1,$C$7,\"\")","v":""},null,{"$f":"IF('BL fournisseur'!D$34>1,$E$5,\"\")","v":""},{"$f":"IF('BL fournisseur'!$D$34>1,$F$5,\"\")","v":""}]
[null,null,{"$f":"IF('BL fournisseur'!$D$34>1,$C$6,\"\")","v":""}]
[null,null,{"$f":"IF('BL fournisseur'!$D$34>1,$C$7,\"\")","v":""},null,{"$f":"IF('BL fournisseur'!$D$34>1,$E$7,\"\")","v":""},{"$f":"IF('BL fournisseur'!$D$34>1,$F$7,\"\")","v":""}]
[null,null,{"$f":"IF('BL fournisseur'!$D$34>1,$C$8,\"\")","v":""},{"$f":"IF('BL fournisseur'!$D$34>1,$D$8,\"\")","v":""}]
[]
[null,{"$f":"IF('BL fournisseur'!$D$34>1,$B$5,\"\")","v":""},null,null,null,{"$f":"IF('BL fournisseur'!$D$34>1,F10,\"\")","v":""}]
[null,null,{"$f":"IF('BL fournisseur'!$D$34>1,$C$11,\"\")","v":""},null,null,{"$f":"LEFT(C29,2)","v":""}]
[null,null,{"$f":"IF('BL fournisseur'!$D$34>1,$C$12,\"\")","v":""}]
[null,null,{"$f":"IF('BL fournisseur'!$D$34>1,$C$13,\"\")","v":""}]
[]
[null,{"$f":"IF('BL fournisseur'!$D$34>1,$B$15,\"\")","v":""},null,null,null,{"$f":"IF('BL fournisseur'!$D$34>1,$F$15,\"\")","v":""}]
[null,{"$f":"IF('BL fournisseur'!$D$34>1,$B$16,\"\")","v":""},null,null,null,{"$f":"IF('BL fournisseur'!$D$34>=2,2,\"\")","v":""}]
[null,{"$f":"IF('BL fournisseur'!$D$34>1,$B$17,\"\")","v":""}]
[null,{"$f":"IF('BL fournisseur'!$D$34>1,$B$18,\"\")","v":""}]
[]
[]
[null,{"$f":"IF('BL fournisseur'!$D$34>2,$B$5,\"\")","v":""},{"$f":"IF('Bon de retour'!$E$34>1,$C$7,\"\")","v":""},null,{"$f":"IF('BL fournisseur'!D$34>2,$E$5,\"\")","v":""},{"$f":"IF('BL fournisseur'!$D$34>2,$F$5,\"\")","v":""}]
[null,null,{"$f":"IF('BL fournisseur'!$D$34>2,$C$6,\"\")","v":""}]
[null,null,{"$f":"IF('BL fournisseur'!$D$34>2,$C$7,\"\")","v":""},null,{"$f":"IF('BL fournisseur'!$D$34>2,$E$7,\"\")","v":""},{"$f":"IF('BL fournisseur'!$D$34>2,$F$7,\"\")","v":""}]
[null,null,{"$f":"IF('BL fournisseur'!$D$34>2,$C$8,\"\")","v":""},{"$f":"IF('BL fournisseur'!$D$34>2,$D$8,\"\")","v":""}]
[]
[null,{"$f":"IF('BL fournisseur'!$D$34>2,$B$5,\"\")","v":""},null,null,null,{"$f":"IF('BL fournisseur'!$D$34>2,F26,\"\")","v":""}]
[null,null,{"$f":"IF('BL fournisseur'!$D$34>2,$C$11,\"\")","v":""},null,null,{"$f":"LEFT(C45,2)","v":""}]
[null,null,{"$f":"IF('BL fournisseur'!$D$34>2,$C$12,\"\")","v":""}]
[null,null,{"$f":"IF('BL fournisseur'!$D$34>2,$C$13,\"\")","v":""}]
[]
[null,{"$f":"IF('BL fournisseur'!$D$34>2,$B$15,\"\")","v":""},null,null,null,{"$f":"IF('BL fournisseur'!$D$34>2,$F$15,\"\")","v":""}]
[null,{"$f":"IF('BL fournisseur'!$D$34>2,$B$16,\"\")","v":""},null,null,null,{"$f":"IF('BL fournisseur'!$D$34>2,3,\"\")","v":""}]
[null,{"$f":"IF('BL fournisseur'!$D$34>2,$B$17,\"\")","v":""}]
[null,{"$f":"IF('BL fournisseur'!$D$34>2,$B$18,\"\")","v":""}]

{"sheet":"Filtrage","index":11,"n_rows":7,"n_cols":11,"rows_kept":7,"cut":false,"hidden":true,"merged":[]}
["N°","Nom","Adresse","Code postal","Ville","Téléphone","Émail",null,null,null,"Ville"]
[6,"MUSTAPHA","41, avenue Foch","68000","COLMAR","03.89.54.52.25","mustapha.colmar@mustapha.com",null,null,null,"c*"]
[7,"ESTEBAN","41 Rue des vignerons","16000","COGNAC","06.55.85.57.41","esteban.cognac@esteban.com"]
[83,"TG EXPRESS","14 Allée Corderie ","16100","COGNAC","08.90.21.51.57 ","tg express.cognac@tg express.com"]
[93,"BORSATO","20 rue de la Sucharde ","21800","CHEVIGNY SAINT SAUVEUR","08.90.21.51.29","borsato.chevigny saint sauveur@borsato.com"]
[147,"LLD LOGISTIC","6, Avenue M.Pagnol","55200","Commercy","07.54.68.77.40","lld logistic.commercy@lld logistic.com"]
[153,"TransMartin","44, rue Pasteur","56850","Caudan","02.97.22.54.54","transmartin.caudan@transmartin.com"]

{"sheet":"Facture fournisseur","index":12,"n_rows":35,"n_cols":6,"rows_kept":35,"cut":false,"hidden":false,"merged":[[31,3,31,4],[33,3,33,4],[34,3,34,4]]}
[]
[null,{"$f":"IF('BL fournisseur'!C5=\"\",\"\",'BL fournisseur'!C5)","v":""},null,null,"Facture"]
[]
[null,{"$f":"IF('BL fournisseur'!C6=\"\",\"\",'BL fournisseur'!C6)","v":""},null,null,"N° de client :","54-P6"]
[null,{"$f":"IF('BL fournisseur'!C7=\"\",\"\",'BL fournisseur'!C7)","v":""},{"$f":"IF('BL fournisseur'!D7=\"\",\"\",'BL fournisseur'!D7)","v":""}]
[null,null,null,null,"N° de facture :",{"$f":"F8","v":""}]
[null,"Email",{"$f":"IF('BL fournisseur'!G14=\"\",\"\",VLOOKUP('BL fournisseur'!G14,Client,7,FALSE))","v":""}]
[null,"Téléphone",{"$f":"IF('BL fournisseur'!D8=\"\",\"\",'BL fournisseur'!D8)","v":""},null,"Date de facture :",{"$f":"IF('BL fournisseur'!E14=\"\",\"\",1+'BL fournisseur'!E14)","v":""}]
[]
[null,"Facturer à : ",{"$f":"'Gestion identité'!C5","v":"B.S.L ÉLEC"},null,"Date de livraison :",{"$f":"IF('BL fournisseur'!E14=\"\",\"\",'BL fournisseur'!E14)","v":""}]
[null,"Adresse :",{"$f":"'Gestion identité'!C6","v":"5, rue Ste Anne"}]
[null,null,{"$f":"'Gestion identité'!C7","v":"54340 Pompey"}]
[null,null,{"$f":"'Gestion identité'!C8","v":"03.83.49.11.94"}]
[null,null,{"$f":"'Gestion identité'!C9","v":"B.S.L Élec@orange.fr"}]
[]
[null,"Référence","Description","Quantité","Prix unitaire HT","Prix total HT"]
[null,{"$f":"IF('BL fournisseur'!C18=\"\",\"\",'BL fournisseur'!C18)","v":""},{"$f":"IF('BL fournisseur'!D18=\"\",\"\",'BL fournisseur'!D18)","v":""},{"$f":"IF('BL fournisseur'!G18=\"\",\"\",'BL fournisseur'!G18)","v":""},{"$f":"IF(B17=\"\",\"\",VLOOKUP(B17,stock,7,FALSE))","v":""},{"$f":"IF(B17=\"\",\"\",D17*E17)","v":""}]
[null,{"$f":"IF('BL fournisseur'!C19=\"\",\"\",'BL fournisseur'!C19)","v":""},{"$f":"IF('BL fournisseur'!D19=\"\",\"\",'BL fournisseur'!D19)","v":""},{"$f":"IF('BL fournisseur'!G19=\"\",\"\",'BL fournisseur'!G19)","v":""},"",{"$f":"IF(B18=\"\",\"\",D18*E18)","v":""}]
[null,{"$f":"IF('BL fournisseur'!C20=\"\",\"\",'BL fournisseur'!C20)","v":""},{"$f":"IF('BL fournisseur'!D20=\"\",\"\",'BL fournisseur'!D20)","v":""},{"$f":"IF('BL fournisseur'!G20=\"\",\"\",'BL fournisseur'!G20)","v":""},"",""]
[null,{"$f":"IF('BL fournisseur'!C21=\"\",\"\",'BL fournisseur'!C21)","v":""},{"$f":"IF('BL fournisseur'!D21=\"\",\"\",'BL fournisseur'!D21)","v":""},{"$f":"IF('BL fournisseur'!G21=\"\",\"\",'BL fournisseur'!G21)","v":""},"",""]
[null,{"$f":"IF('BL fournisseur'!C22=\"\",\"\",'BL fournisseur'!C22)","v":""},{"$f":"IF('BL fournisseur'!D22=\"\",\"\",'BL fournisseur'!D22)","v":""},{"$f":"IF('BL fournisseur'!G22=\"\",\"\",'BL fournisseur'!G22)","v":""},"",""]
[null,{"$f":"IF('BL fournisseur'!C23=\"\",\"\",'BL fournisseur'!C23)","v":""},{"$f":"IF('BL fournisseur'!D23=\"\",\"\",'BL fournisseur'!D23)","v":""},{"$f":"IF('BL fournisseur'!G23=\"\",\"\",'BL fournisseur'!G23)","v":""},"",""]
[null,{"$f":"IF('BL fournisseur'!C24=\"\",\"\",'BL fournisseur'!C24)","v":""},{"$f":"IF('BL fournisseur'!D24=\"\",\"\",'BL fournisseur'!D24)","v":""},{"$f":"IF('BL fournisseur'!G24=\"\",\"\",'BL fournisseur'!G24)","v":""},"",""]
[null,{"$f":"IF('BL fournisseur'!C25=\"\",\"\",'BL fournisseur'!C25)","v":""},{"$f":"IF('BL fournisseur'!D25=\"\",\"\",'BL fournisseur'!D25)","v":""},{"$f":"IF('BL fournisseur'!G25=\"\",\"\",'BL fournisseur'!G25)","v":""},"",""]
[null,{"$f":"IF('BL fournisseur'!C26=\"\",\"\",'BL fournisseur'!C26)","v":""},{"$f":"IF('BL fournisseur'!D26=\"\",\"\",'BL fournisseur'!D26)","v":""},{"$f":"IF('BL fournisseur'!G26=\"\",\"\",'BL fournisseur'!G26)","v":""},"",""]
[null,{"$f":"IF('BL fournisseur'!C27=\"\",\"\",'BL fournisseur'!C27)","v":""},{"$f":"IF('BL fournisseur'!D27=\"\",\"\",'BL fournisseur'!D27)","v":""},{"$f":"IF('BL fournisseur'!G27=\"\",\"\",'BL fournisseur'!G27)","v":""},"",""]
[null,{"$f":"IF('BL fournisseur'!C28=\"\",\"\",'BL fournisseur'!C28)","v":""},{"$f":"IF('BL fournisseur'!D28=\"\",\"\",'BL fournisseur'!D28)","v":""},{"$f":"IF('BL fournisseur'!G28=\"\",\"\",'BL fournisseur'!G28)","v":""},"",""]
[null,{"$f":"IF('BL fournisseur'!C29=\"\",\"\",'BL fournisseur'!C29)","v":""},{"$f":"IF('BL fournisseur'!D29=\"\",\"\",'BL fournisseur'!D29)","v":""},{"$f":"IF('BL fournisseur'!G29=\"\",\"\",'BL fournisseur'!G29)","v":""},"",""]
[null,{"$f":"IF('BL fournisseur'!C30=\"\",\"\",'BL fournisseur'!C30)","v":""},{"$f":"IF('BL fournisseur'!D30=\"\",\"\",'BL fournisseur'!D30)","v":""},{"$f":"IF('BL fournisseur'!G30=\"\",\"\",'BL fournisseur'!G30)","v":""},"",""]
[null,{"$f":"IF('BL fournisseur'!C31=\"\",\"\",'BL fournisseur'!C31)","v":""},{"$f":"IF('BL fournisseur'!D31=\"\",\"\",'BL fournisseur'!D31)","v":""},{"$f":"IF('BL fournisseur'!G31=\"\",\"\",'BL fournisseur'!G31)","v":""},"",""]
[]
[null,"Remarques et instructions de paiement :",null,"SOUS-TOTAL H.T :",null,{"$f":"IF(F17=\"\",\"\",SUM(F17:F30))","v":""}]
[null,null,null,null,"TVA 20% :",{"$f":"IF(F17=\"\",\"\",F32*0.2)","v":""}]
[]
[null,null,null,"À PAYER TTC :",null,{"$f":"IF(F32=\"\",\"\",F32+F33)","v":""}]

{"sheet":"Filtre","index":13,"n_rows":0,"n_cols":0,"rows_kept":0,"cut":false,"hidden":true,"merged":[]}

{"sheet":"BL fournisseur 6","index":14,"n_rows":33,"n_cols":10,"rows_kept":33,"cut":false,"hidden":true,"merged":[[8,4,8,6],[9,4,9,6],[10,4,10,6],[14,2,14,3],[4,1,4,2],[4,4,4,6],[5,1,5,2],[5,3,6,3],[5,4,6,4],[5,5,6,5],[5,6,6,6]]}
[null,"Heure début :",null,null,"Candidat :"]
[null,"Heure fin :"]
[]
[null,null,null,null,null,null,null,null,null,"N° du Fournisseur"]
[null,{"$f":"IF($J$5=\"\",\"\",VLOOKUP($J$5,carnetadresse,2,FALSE))","v":"Kasy (SARL) "},null,null,"BON DE LIVRAISON",null,null,null,null,145]
[null,{"$f":"IF($J$5=\"\",\"\",VLOOKUP($J$5,carnetadresse,3,FALSE))","v":"Rn 91"},null,"Date: ",null,"N° "]
[null,{"$f":"IF($J$5=\"\",\"\",VLOOKUP($J$5,carnetadresse,4,FALSE))","v":"05320"},{"$f":"IF($J$5=\"\",\"\",VLOOKUP($J$5,carnetadresse,5,FALSE))","v":"La Grave"}]
[]
[null,{"$f":"IF($J$5=\"\",\"\",VLOOKUP($J$5,carnetadresse,6,FALSE))","v":"04.76.80.92.78"},{"$f":"IF($J$5=\"\",\"\",VLOOKUP($J$5,carnetadresse,7,FALSE))","v":"kasy (sarl) .la grave@kasy (sarl) .com"},null,"Ste L.GEISLER S.A."]
[null,null,null,null,"3, rue de la belle Orge"]
[null,"Votre commande du :",null,null,"88 110 RAON L’ETAPE"]
[null,"N° :"]
[null,"Date de livraison le :"]
[]
[null,"Référence","Désignation ",null,"Unité de vente","Quantité commandée","Quantité livrée"]
[null,1020101,{"$f":"IF(B16=\"\",\"\",VLOOKUP(B16,matrice,3,FALSE))","v":{"$error":"#NAME?"}},{"$f":"IF(B16=\"\",\"\",VLOOKUP(B16,matrice,4,FALSE))","v":{"$error":"#NAME?"}},{"$f":"IF(B16=0,\"\",VLOOKUP(B16,matrice,6))","v":{"$error":"#NAME?"}}]
[null,null,{"$f":"IF(B17=\"\",\"\",VLOOKUP(B17,matrice,3,FALSE))","v":""},"",""]
[null,null,"","",""]
[null,null,"","",""]
[null,null,"","",""]
[null,null,"","",""]
[null,null,"","",""]
[null,null,"","",""]
[null,null,{"$f":"IF(B24=\"\",\"\",VLOOKUP(B24,matrice,3,FALSE))","v":""},"",""]
[null,null,{"$f":"IF(B25=\"\",\"\",VLOOKUP(B25,matrice,3,FALSE))","v":""},"",""]
[null,null,{"$f":"IF(B26=\"\",\"\",VLOOKUP(B26,matrice,3,FALSE))","v":""},"",""]
[null,null,{"$f":"IF(B27=\"\",\"\",VLOOKUP(B27,matrice,3,FALSE))","v":""},"",""]
[]
[]
[null,null,null,null,null,"TOTAL",{"$f":"SUM(G16:G28)","v":0}]
[null,"Nombre de colis :",null,"Poids : "]
[]
[null,"Observations :"]

{"sheet":"Ancien Fichier stock","index":15,"n_rows":217,"n_cols":13,"rows_kept":217,"cut":false,"hidden":true,"merged":[]}
[]
[" ","E1/2"]
[1010102,"D3/2","voyant orange Legrand",".",1,5,3.57,{"$f":"G3*F3","v":17.849999999999998},null,{"$f":"IF(F3<I3,1,\"\")","v":""},null,1010102,2]
[1010104,"C3/3","stater Mazda","S2",1,28,2.41,67.48,null,"",null,1010104,3]
[1015101,"E2/2","Starter mazda S2",null,1,4,2.5099999999999998,10.039999999999999,null,"",null,1015101,4]
[1015102,"E2/2","Compteur 127V220V",null,1,1,49.5,49.5,null,"",null,1015102,5]
[1020101,"A4/4","clips de fixation","A10",1,14,1.5,21,null,"",null,1020101,6]
[1020102,"E3/3","clips de fixation","A20",1,77,1.5,115.5,null,"",null,1020102,7]
[1020103,"60-B-2","clips de fixation","A30",1,15,1.5,22.5,null,"",null,1020103,8]
[1020104,"C2/3","clips de fixation","A40",1,8,1.5,12,null,"",null,1020104,9]
[]
[1020109,"10-A-1","support de relais rouge",".",1,41,1.7,{"$f":"G12*F12","v":69.7},null,{"$f":"IF(F12<I12,1,\"\")","v":""},null,1020109,11]
[1030107,"D1/3","borne de terre Legrand","BC 947-7-3",1,3,3.67,11.01,null,"",null,1030107,12]
[1030109,"D1/3","capteur","XCK.M",1,7,37.54,262.77999999999997,null,"",null,1030109,13]
[1030113,"E2/2","Capteur",null,1,5,12,60,null,"",null,1030113,14]
[1030125,"D2/3","disjoncteur unelec","D32",1,4,28.74,114.96,null,"",null,1030125,15]
[1030128,"D2/3","porte fusible","DFG-AB10",1,21,11.5,241.5,null,"",null,1030128,16]
[1030129,"D3/3"]
[1030131,"C3/3","disjoncteur BBC","M 611",1,1,27.85,{"$f":"G19*F19","v":27.85},null,{"$f":"IF(F19<I19,1,\"\")","v":""},null,1030131,18]
[1030132,"A2/1","porte fusible 500V",0,1,18,45.5,{"$f":"G20*F20","v":819},null,{"$f":"IF(F20<I20,1,\"\")","v":""},null,1030132,19]
[1040101,"D1/3","temporisation travail bleu","LA2-D20-A65",1,8,15.5,{"$f":"G21*F21","v":124},null,{"$f":"IF(F21<I21,1,\"\")","v":""},null,1040101,20]
[1040104,"A2/1","temporisation travail bleu","LA2 D2 / LA3 D2",1,42,15.5,{"$f":"G22*F22","v":651},null,{"$f":"IF(F22<I22,1,\"\")","v":""},null,1040104,21]
[]
[1040110,"C2/1","temporisation travail noir","UTE-NFC- 45250",1,3,15.5,{"$f":"G24*F24","v":46.5},null,{"$f":"IF(F24<I24,1,\"\")","v":""},null,1040110,23]
[1050102,"D3/3","bloc de contact auxiliaire","LA1 D11 A65",1,5,29.75,148.75,null,"",null,1050102,24]
[1050103,"20-A-2","bloc de contact auxiliaire","LA1 D22",1,88,29.75,2618,null,"",null,1050103,25]
[1050106,"10-A-3","boîtier à bouton poussoir","2 noir – 1 rouge",1,7,15,105,null,"",null,1050106,26]
[1050107,"10-A-3","boîtier à bouton poussoir petercem","2 boutons jaune et rouge",1,16,15,240,null,"",null,1050107,27]
[1050108,"A2/4","boîtier à bouton poussoir télémécanique","2 boutons rouge et noir",1,5,15,75,null,"",null,1050108,28]
[1050109,"10-A-2","boîtier à bouton poussoir télémécanique","1 bouton noir",1,14,13,182,null,"",null,1050109,29]
[1050110,"50-B-1","boîtier à bouton poussoir télémécanique","2 boutons - 1 interrupteur",1,5,15,75,null,"",null,1050110,30]
[1050111,"D1/2","commutateur rotatif","BUL 802T",1,10,12.5,125,null,"",null,1050111,31]
[]
[1050116,"D3/1","contacteur","LC1 D123",1,5,17.5,{"$f":"G34*F34","v":87.5},null,{"$f":"IF(F34<I34,1,\"\")","v":""},null,1050116,33]
[]
[]
[1050119,"E2/2","Écrou",null,"1 sachet de 4",1,1.5,{"$f":"G37*F37","v":1.5},null,{"$f":"IF(F37<I37,1,\"\")","v":""},null,1050119,36]
[1050121,"C1/3","Bouton interruptreur",null,1,4,13.5,{"$f":"G38*F38","v":54},null,{"$f":"IF(F38<I38,1,\"\")","v":""},null,1050121,37]
[1050122,"E1/2","boîtier interrupteur rectangle",".",1,5,2.5,{"$f":"G39*F39","v":12.5},null,{"$f":"IF(F39<I39,1,\"\")","v":""},null,1050122,38]
[1050123,"D1/1","boîtier interrupteur carré",".",1,21,2.5,{"$f":"G40*F40","v":52.5},null,{"$f":"IF(F40<I40,1,\"\")","v":""},null,1050123,39]
[]
[1050125,"D3/3","relais dijoncteur CA2 DN 22",".",1,5,16.7,{"$f":"G42*F42","v":83.5},null,{"$f":"IF(F42<I42,1,\"\")","v":""},null,1050125,41]
[]
[1050132,"A3/4","Dijoncteur BBC A25,30",null,1,4,32.200000000000003,{"$f":"G44*F44","v":128.80000000000001},null,{"$f":"IF(F44<I44,1,\"\")","v":""},null,1050132,43]
[]
[1050135,"A3/4","relais dijoncteur BBC B25,30,10",".",1,5,17.5,{"$f":"G46*F46","v":87.5},null,{"$f":"IF(F46<I46,1,\"\")","v":""},null,1050135,45]
[]
[1050148,"10-B-3","dinjoncteur ALSTHOM UNELEC D 250","250 A",1,3,28.5,{"$f":"G48*F48","v":85.5},null,{"$f":"IF(F48<I48,1,\"\")","v":""},null,1050148,47]
[1050151,"C3/1","Bouton arrêt d'urgence",null,1,1,27.4,27.4,null,"",null,1050151,48]
[1050158,"E2/3","bornier de raccordement DB6 DD 102","750v",1,48,17.2,825.59999999999991,null,"",null,1050158,49]
[1050159,"C3/3","commutateur MTI 96-132 v",".",1,2,22.5,45,null,"",null,1050159,50]
[1050160,"D3/2","communtateur EP 371 125 V",".",1,18,22.5,405,null,"",null,1050160,164]
[1050161,"60-B-1","commutateur MTI 125v",".",1,2,22.5,45,null,"",null,1050161,165]
[1050162,"E1/3","commutateur MTI 110v",".",1,5,22.5,112.5,null,"",null,1050162,166]
[1050163,"A2/3","connectique 2042190",".","sachet de 1",2,29,58,null,"",null,1050163,167]
[1050166,"A4/2","Sect filerie D160/1250","BRA DB160/1250","sachet de 1",41,16,656,null,"",null,1050166,168]
[1050170,"C3/2","commutateur EP 371 120V",".",1,2,23,46,null,"",null,1050170,169]
[1050171,"D1/3","commutateur MTI 110-130v",".",1,9,23,207,null,"",null,1050171,170]
[1050177,"60-A-2","commutateur MTI EP371 48v",".",1,6,22,132,null,"",null,1050177,171]
[1050182,"C2/3","commutateur MTI ",null,1,22,21,462,null,"",null,1050182,172]
[1050183,"A2/3","contacteur 2087",null,1,27,2.35,63.45,null,"",null,1050183,173]
[1050184,"E1/1","contacteur SAK 2,5",null,1,50,2.35,117.5,null,"",null,1050184,174]
[1050185,"C3/2","commutateur MTI BA 72  220v",null,1,25,21,525,null,"",null,1050185,175]
[1050186,"E1/1","commutateur MTI BA 72  220v",0,1,24,21,504,null,"",null,1050186,176]
[1050188,"80-A-1","CONTACTEUR",0,1,16,3.35,53.6,null,"",null,1050188,177]
[1050189,"E1/1","connecteur femmelle",null,1,40,8.75,350,null,"",null,1050189,178]
[1050190,"C1/2","connecteur femmelle",0,1,10,8.75,87.5,null,"",null,1050190,179]
[1050191,"C1/3","contacteurs",230,1,10,11.25,112.5,null,"",null,1050191,180]
[1050194,"C1/3","cellule de liaison",null,1,11,8.9499999999999993,98.449999999999989,null,"",null,1050194,181]
[1055101,"E1/2","Voyant controleur",null,1,7,2.15,15.049999999999999,null,"",null,1055101,182]
[1055102,"C1/1","voyant rouge support métalique ",null,1,13,3.45,44.85,null,"",null,1055102,183]
[1055103,"C1/2","voyant rouge  support plastique ",0,1,5,3.65,18.25,null,"",null,1055103,184]
[1055105,"C3/1","cache lumiere verte",null,1,7,2.35,16.45,null,"",null,1055105,185]
[1055106,"C2/1","support lumineuse orange ",null,1,7,3.55,24.849999999999998,null,"",null,1055106,186]
[1055107,"C2/1"," support lumineuse orange métalique ",null,1,3,2.4500000000000002,7.3500000000000005,null,"",null,1055107,187]
[1055108,"C1/1","voyant stadbye ",null,1,4,3.45,13.8,null,"",null,1055108,188]
[1055112,"C1/1","bouton pousssoir ",null,1,3,2.35,7.0500000000000007,null,"",null,1055112,189]
[1055113,"C1/2","bouton poussoir rouge",null,1,2,2.35,4.7,null,"",null,1055113,190]
[]
[1055115,"C1/2","bouton poussoir rouge ZB2-R5",null,1,2,2.35,{"$f":"G80*F80","v":4.7},null,{"$f":"IF(F80<I80,1,\"\")","v":""},null,1055115,192]
[1055116,"C3/2","bouton poussoir noir PLAT",null,1,3,2.35,7.0500000000000007,null,"",null,1055116,193]
[1055117,"A3/3","bouton poussoir rouge",null,1,4,2.35,9.4,null,"",null,1055117,194]
[1055118,"60-A-2","bouton poussoir noir CROUZET",null,1,3,2.35,7.0500000000000007,null,"",null,1055118,195]
[1055119,"C3/1"," bouton poussoir noir 3331",null,1,2,2.35,4.7,null,"",null,1055119,196]
[1055120,"C2/1","bouton poussoir vert CROUZET",null,1,1,2.35,2.35,null,"",null,1055120,197]
[1055125,"C1/1","bouton pousssoir noire",null,1,2,2.35,4.7,null,"",null,1055125,198]
[]
[1055134,"C1/1","Interrupteur auxibloc Z2",null,1,2,8.9499999999999993,{"$f":"G88*F88","v":17.899999999999999},null,{"$f":"IF(F88<I88,1,\"\")","v":""},null,1055134,200]
[1055190,"C1/2","COMPOSANTS ",0,1,1,275.64999999999998,{"$f":"G89*F89","v":275.64999999999998},null,{"$f":"IF(F89<I89,1,\"\")","v":""},null,1055190,201]
[1060101,"C2/1","bloc relais thermique","LA7 D0954",1,7,15,{"$f":"G90*F90","v":105},null,{"$f":"IF(F90<I90,1,\"\")","v":""},null,1060101,202]
[1060102,"B3/3","relais","CA2 DN122",1,21,12.75,{"$f":"G91*F91","v":267.75},null,{"$f":"IF(F91<I91,1,\"\")","v":""},null,1060102,203]
[1060104,"D3/1","relais","CA2 DN131",1,9,12.75,{"$f":"G92*F92","v":114.75},null,{"$f":"IF(F92<I92,1,\"\")","v":""},null,1060104,204]
[]
[]
[1060108,"10-A-2","relais RH","RHN41",1,18,13.85,{"$f":"G95*F95","v":249.29999999999998},null,{"$f":"IF(F95<I95,1,\"\")","v":""},null,1060108,207]
[1060109,"C2/2","Relais RH",null,1,5,8.4499999999999993,42.25,null,"",null,1060109,208]
[1060112,"E1/1","relais RH","24v 50/60HZ",1,7,13.85,96.95,null,"",null,1060112,209]
[1060115,"30-A-1","relais thermique","14 LR D 09312",1,1,18.899999999999999,18.899999999999999,null,"",null,1060115,210]
[1060116,"10-A-2","relais thermique","BBC T25 DM",1,6,18.899999999999999,113.39999999999999,null,"",null,1060116,211]
[1060117,"10-A-1","relais thermique","10 LR1 09310",1,14,18.899999999999999,264.59999999999997,null,"",null,1060117,212]
[1060120,"D1/1","relais thermique",null,1,28,18.899999999999999,529.19999999999993,null,"",null,1060120,213]
[1060121,"10-A-2"]
[1060123,"E1/2","Relais thermique",null,1,1,0.85,{"$f":"G103*F103","v":0.85},null,{"$f":"IF(F103<I103,1,\"\")","v":""},null,1060123,215]
[]
[1060125,"C1/2","Relais thermique",null,1,5,18.899999999999999,{"$f":"G105*F105","v":94.5},null,{"$f":"IF(F105<I105,1,\"\")","v":""},null,1060125,133]
[1060126,"A2/3","Relais temporisateur BLR 220V",null,1,6,23.5,{"$f":"G106*F106","v":141},null,{"$f":"IF(F106<I106,1,\"\")","v":""},null,1060126,134]
[1060129,"E1/3","Relais temporisateur BDR 220V",0,1,3,24.7,{"$f":"G107*F107","v":74.099999999999994},null,{"$f":"IF(F107<I107,1,\"\")","v":""},null,1060129,135]
[]
[1070101,"10-B-2","boite de dérivation","4 trous",1,15,3.7,{"$f":"G109*F109","v":55.5},null,{"$f":"IF(F109<I109,1,\"\")","v":""},null,1070101,137]
[1070104,"A3/3","bornier de raccordement","600V 55A",1,22,5.74,126.28,null,"",null,1070104,138]
[1070107,"A3/4","bornier de raccordement","DB6 CB 105",1,23,5.74,132.02000000000001,null,"",null,1070107,139]
[1070108,"E1/3","bornier de raccordement","DB6 CC1",1,10,5.74,57.400000000000006,null,"",null,1070108,140]
[1070111,"E2/2","bornier de raccordement","CB102",1,10,5.74,57.400000000000006,null,"",null,1070111,141]
[1070112,"B2/1","bornier de raccordement","DB6 DC103",1,68,5.74,390.32,null,"",null,1070112,142]
[1070113,"A3/1","bornier de raccordement","DB6 CD102",1,45,5.68,255.6,null,"",null,1070113,143]
[1070114,"D3/2","Bonier de raccordement","DB6 LD 111",1,8,0.35,2.8,null,"",null,1070114,144]
[1070115,"D2/3","bornier de raccordement","DB6 LD 110",1,10,5.74,57.400000000000006,null,"",null,1070115,145]
[1070116,"C2/2","embout de bornier","équerre métallique",1,28,2.7,75.600000000000009,null,"",null,1070116,146]
[1070119,"E1/2","presse étoupe","petite taille",1,13,1.4,18.2,null,"",null,1070119,147]
[1070120,"E1/2","presse étoupe","grande taille",1,7,1.4,9.7999999999999989,null,"",null,1070120,148]
[1070126,"C1/1","écrou de fixation pour boite de dérivation","Kleimhuis 1420/29",1,19,0.35,6.6499999999999995,null,"",null,1070126,149]
[1070127,"10-A-1","écrou de fixation boite de dérivation","Kleimhuis 1234PO901",1,30,0.35,10.5,null,"",null,1070127,150]
[1070128,"D3/2","écrou de fixation pour boite de dérivation","Kleimhuis",1,17,0.35,5.9499999999999993,null,"",null,1070128,151]
[1070129,"10-A-1","écrou de fixation pour boite de dérivation","Kleimhuis 1420/36",1,15,0.35,5.25,null,"",null,1070129,152]
[1070130,"E1/3","écrou de fixation pour boite de dérivation","LEGRAND 98040",1,17,0.35,5.9499999999999993,null,"",null,1070130,106]
[1070132,"30-A-1","écrou de fixation pour boite de dérivation","Kleimhuis 1234P1301","Sachet de 20",3,0.35,1.0499999999999998,null,"",null,1070132,107]
[1070133,"A4/4","Borne AB1 VV1032",0,1,63,12.55,790.65000000000009,null,"",null,1070133,108]
[1080106,"C2/2","Séquenceur PSE A12",0,1,3,25.45,76.349999999999994,null,"",null,1080106,109]
[1080108,"C2/3","Séquenceur PSD A12",null,1,1,25.45,25.45,null,"",null,1080108,110]
[1080112,"C1/1","Séquenceur PSD D",null,1,1,25.45,25.45,null,"",null,1080112,111]
[1080115,"10-B-2","séquenceur a-10",null,1,95,33.24,3157.8,null,"",null,1080115,112]
[1080117,"C2/3","Séquenceur",null,1,5,18.25,91.25,null,"",null,1080117,113]
[]
[1080121,"C2/2"]
[1080122,"C2/2","séquenceur PXB-F1011",null,1,6,15.35,{"$f":"G135*F135","v":92.1},null,{"$f":"IF(F135<I135,1,\"\")","v":""},null,1080122,116]
[1080126,"E1/1","Seperateur electrique",null,1,6,22.35,134.10000000000002,null,"",null,1080126,117]
[1080128,"D1/1","Séquenceur 81522501",null,1,16,18,288,null,"",null,1080128,118]
[1085103,"D3/1","Porte ampoule ","Telemecanique",1,21,3.36,70.56,null,"",null,1085103,119]
[1085105,"C1/2","Porte ampoule ","Telemecanique",1,4,3.45,13.8,null,"",null,1085105,120]
[1085107,"A3/3","Porte ampoule ","Telemecanique",1,2,3.65,7.3,null,"",null,1085107,153]
[1085109,"70-B-3",null,null,1,5,null,0,null,"",null,1085109,154]
[1085117,"C3/2","Auxibloc",null,1,5,7.5,37.5,null,"",null,1085117,155]
[1085201,"A4/4","porte fusible",null,1,16,24.35,389.6,null,"",null,1085201,156]
[1085202,"D2/3","module flash",0,1,8,14.25,114,null,"",null,1085202,157]
[2010101,"10-B-1","écrou à encoche","KM 32",1,1,2.5,2.5,null,"",null,2010101,158]
[2010102,"D3/3","écrou à encoche","KM10",1,5,1.75,8.75,null,"",null,2010102,159]
[]
[2010107,"A4/2","Ecrou diamètre 30 mm",".",1,226,4.75,{"$f":"G148*F148","v":1073.5},null,{"$f":"IF(F148<I148,1,\"\")","v":""},null,2010107,161]
[2030101,"E1/2","vis à tête plate argent","argent 1 x 0,5",1,8,0.1,0.8,null,"",null,2030101,162]
[2030102,"C3/1","vis à tête plate bronze","bronze 2 x 0,5",1,2,0.1,0.2,null,"",null,2030102,163]
[2030103,"C2/3","vis à tête plate bronze","bronze 1 x 0,5",1,5,0.1,0.5,null,"",null,2030103,121]
[2030104,"C2/3","Vis Hexagonale zinc  8 x 70",".",1,6,0.1,0.60000000000000009,null,"",null,2030104,122]
[2030106,"20-B-1","Vis à tête cylindirque hexagonale creuse","5 x 30",1,24,0.2,4.8000000000000007,null,"",null,2030106,123]
[2040101,"A2/3","cheville spit roc ",5104,1,23,1.45,33.35,null,"",null,2040101,124]
[2040102,"20-B-2","cheville spit roc",5105,1,13,1.45,18.849999999999998,null,"",null,2040102,125]
[2040104,"20-B-2","cheville spit roc",5101,1,8,1.45,11.6,null,"",null,2040104,126]
[2040105,"20-B-2","Cheville spit roc 5106M9","6 x 100","sachet de 10",5,15,75,null,"",null,2040105,127]
[2040107,"C3/2","Vis Ecrou double filtage",null,"Sachet de 10",5,15,75,null,"",null,2040107,128]
[]
[4010101,"30-B-3","Roulement à aiguilles","GC16",1,1,15.6,{"$f":"G160*F160","v":15.6},null,{"$f":"IF(F160<I160,1,\"\")","v":""},null,4010101,130]
[4010103,"E3/3","Roulement à billes","301216 S2",1,2,16.75,33.5,null,"",null,4010103,131]
[4010104,"E3/3","Roulement à billes","22308 CKJ",1,2,16.600000000000001,33.200000000000003,null,"",null,4010104,105]
[4010105,"E3/3","Roulement à billes","22308 CCK",1,3,16.600000000000001,49.800000000000004,null,"",null,4010105,104]
[4010106,"E3/3","Roulement à billes","320008 x  90 KA1 33",1,4,17.8,71.2,null,"",null,4010106,103]
[4010107,"E3/3","Roulement à billes","32015 X 90 KA1 33",1,3,17.8,53.400000000000006,null,"",null,4010107,102]
[4010108,"E3/2","Roulement à billes","X01 1211K/C3",1,4,17.8,71.2,null,"",null,4010108,101]
[4020103,"10-B-3","courroie","T-FLEXSPB. 2430MC",".",1,2,56,null,null,null,4020103]
[5030101,"A4/3","vérin double effet","DSN25 40PA",1,4,154,{"$f":"G168*F168","v":616},null,{"$f":"IF(F168<I168,1,\"\")","v":""},null,5030101,100]
[]
[5040103,"D2/2","electro vanne ",null,1,6,45.55,{"$f":"G170*F170","v":273.29999999999995},null,{"$f":"IF(F170<I170,1,\"\")","v":""},null,5040103,98]
[5040104,"A4/2","Buze injection",null,1,7,45,315,null,"",null,5040104,97]
[5040108,"E2/3","contacteur à poussoir",null,1,6,3.45,20.700000000000003,null,"",null,5040108,96]
[5040113,"E2/3","Electro-vanne",0,1,8,98.65,789.2,null,"",null,5040113,95]
[6010101,"A3/2","gache anti-décrochement","E-17375-01","sachet de 4",22,27,594,null,"",null,6010101,94]
[6020101,"A4/1","bloc verrou","G-13796-00-R-3","sachet de 5",74,26,1924,null,"",null,6020101,93]
[]
[]
[6030104,"D1/2","Charnière invisible gauche",".",1,13,25,{"$f":"G178*F178","v":325},null,{"$f":"IF(F178<I178,1,\"\")","v":""},null,6030104,90]
[7010113,"A2/1","armature","7050 J",1,2,10.6,21.2,null,"",null,7010113,89]
[7020104,"C1/3","fixation à taquet d'arrêt",1245,1,2,24.7,49.4,null,"",null,7020104,88]
[7020105,"C2/2","fixation à taquet d'arrêt",8068,1,2,24.7,49.4,null,"",null,7020105,87]
[7020117,"C3/3","tige de fixation",305,1,2,17,34,null,"",null,7020117,86]
[7030101,"C1/3","équerre","6044 U",1,2,14,28,null,"",null,7030101,85]
[7030105,"C2/1","équerre de fixation",1115,1,4,19,76,null,"",null,7030105,84]
[8010101,"B2/2","Micro-controleur ",309368516,1,25,19.7,492.5,null,"",null,8010101,83]
[8010102,"B1/3","Micro-controleur ","R220FO144",1,10,4.7,47,null,"",null,8010102,82]
[8010103,"B1/1","Tranfo ","BYT 13-800 C801",1,16,4.7,75.2,null,"",null,8010103,81]
[8010104,"B3/1","Transfo 256807",".",1,6,4.7,28.200000000000003,null,"",null,8010104,80]
[8010105,"B1/1","tiroir casette",".",1,6,4.7,28.200000000000003,null,"",null,8010105,79]
[8010106,"B2/3","relais gris","R75 MKP",1,9,14.7,132.29999999999998,null,"",null,8010106,78]
[8010107,"B3/3","Résistance",".",1,50,14.7,735,null,"",null,8010107,77]
[8010108,"B1/3","capuchon de façade",".",1,38,14.7,558.6,null,"",null,8010108,76]
[8010109,"A1/2","pont de diodes ",".","sachet de 50",13,14.7,191.1,null,"",null,8010109,75]
[8010110,"B1/2","façade DVD Magnétoscope Thomson ",".",1,7,15.4,107.8,null,"",null,8010110,74]
[8010111,"20-B-2","façade Lecteur DVD","DTH6300E",1,5,15.4,{"$f":"G195*F195","v":77},null,{"$f":"IF(F195<I195,1,\"\")","v":""},null,8010111,73]
[8010112,"B1/2","Façade DVD enregistreur ",".",1,6,15.4,92.4,null,"",null,8010112,72]
[8010113,"B2/1","Façade magnétoscope",".",1,8,15.4,123.2,null,"",null,8010113,71]
[8010114,"B3/2","Pont de diodes",20191620,"sachet de 5",36,15.4,554.4,null,"",null,8010114,70]
[8010115,"B2/2","Clips de fixation plastique",".",1,23,15.4,354.2,null,"",null,8010115,69]
[8010117,"10-B-2","Barette bouton Magnétoscope",".",1,183,15.4,2818.2000000000003,null,"",null,8010117,68]
[8010118,"B3/1","Micro-contrôleur ",".",1,16,15.4,246.4,null,"",null,8010118,67]
[8010119,"80-D-3","Micro-contrôleur ","MKP 1841-1 3,5%",1,32,15.4,492.8,null,"",null,8010119,66]
[8010120,"B3/1","Barre de fixation plastique",".",1,19,15.4,292.60000000000002,null,"",null,8010120,65]
[8010121,"B2/2","micro-contrôleur","ST6395BI/XZJ ICC8-B33",1,42,15.4,646.80000000000007,null,"",null,8010121,64]
[8010122,"B2/2","puce électronique 35592430","en boitier","sachet de 1",16,36.4,582.4,null,"",null,8010122,63]
[8010123,"B1/3","Quartz KONY",".",1,36,36.4,1310.3999999999999,null,"",null,8010123,62]
[8010124,"B1/1","Transfo 16v 105 degré 1020 UF",".",1,19,36.4,691.6,null,"",null,8010124,61]
[8010125,"B2/1","Mini micro-contrôleur",".",1,10,36.4,364,null,"",null,8010125,60]
[8010126,"B1/3","Pont de diodes",16000440,1,240,36.4,8736,null,"",null,8010126,59]
[8010127,"B3/2","Puce électronique 35668550","en boitier",1,45,36.4,1638,null,"",null,8010127,58]
[8010128,"B3/3","Micro-contrôleur",".",1,16,36.4,582.4,null,"",null,8010128,57]
[8010129,"B2/1","Micro-contrôleur",".",1,32,26.45,846.4,null,"",null,8010129,56]
[8010130,"B2/3","Transfo ","rx 105° L345(M)","sachet de 1",439,26.45,11611.55,null,"",null,8010130,55]
[8010131,"20-B-3","Micro-contrôleur","R22EF9828",1,14,26.45,370.3,null,"",null,8010131,54]
[8010132,"B2/2","Micro-contrôleur","MKP 1841-1 3,5% 0310",1,20,26.45,529,null,"",null,8010132,53]
[8010133,"A3/2","Résistances ",".",1,17,26.45,449.65,null,"",null,8010133,52]
[8010134,"A1/1","Mini micro-contrôleur",".",1,1,26.45,26.45,null,"",null,8010134,51]

{"sheet":"ClientsFournisseurs","index":16,"n_rows":1729,"n_cols":8,"rows_kept":1729,"cut":false,"hidden":false,"merged":[]}
["N° ","Nom","Adresse","code postal","Ville","Téléphone","Email","Dép"]
[1,"Vulin","25 rue charles robin","01000","Bourg-en-bresse","04.69.36.36.35",{"$f":"IF(B2=\"\",\"\",(LOWER(B2&\".\"&E2&\"@\"&B2&\".com\")))","v":"vulin.bourg-en-bresse@vulin.com"},{"$f":"LEFT(D2, 2)","v":"01"}]
[{"$f":"A2+1","v":2},"Trans'faire ","4 rue docteur nodet","01000","Bourg-en-bresse","04.69.20.25.24","trans'faire .bourg-en-bresse@trans'faire .com","01"]
[3,"Les Pins","Avenue amedee mercier","01000","Bourg-en-bresse","04.69.87.52.52","les pins.bourg-en-bresse@les pins.com","01"]
[4,"CALGARY ","Rue francois rochaix","01100","Arbent","04.69.21.21.24","calgary .arbent@calgary .com","01"]
[5,"2LC1 ","3 route de groissiat","01100","Bellignat","04.68.02.02.25","2lc1 .bellignat@2lc1 .com","01"]
[6,"HARMEL ","10 rue de l orme","01100","Oyonnax","04.69.35.24.17","harmel .oyonnax@harmel .com","01"]
[7,"Euromotor ","30 rue de la roche samuel","01110","Brénod","04.69.36.36.98","euromotor .brénod@euromotor .com","01"]
[8,"JPBM","Treve giroux","01140","St-didier-sur-chalaronne","04.68.65.65.64","jpbm.st-didier-sur-chalaronne@jpbm.com","01"]
[9,"Sarl De La Tour ","162 route de chazey","01150","Blyes","04.67.58.52.52","sarl de la tour .blyes@sarl de la tour .com","01"]
[10,"JNGA ","45 chemin du clodet","01150","Leyment","04.67.58.52.53","jnga .leyment@jnga .com","01"]
[11,"L'AURORE","3 rue bernard gangloff","01160","Pont-d'ain","04.67.58.52.54","l'aurore.pont-d'ain@l'aurore.com","01"]
[12,"Design ","1 espace rene dinnat","01200","Bellegarde-sur-valserine","04.67.58.52.55","design .bellegarde-sur-valserine@design .com","01"]
[13,"C Distribution ","350 av mal de lattre de tassigny","01200","Bellegarde","04.67.58.52.56","c distribution .bellegarde@c distribution .com","01"]
[14,"123 Deco ","201 perruet maconnex","01210","Ornex","04.67.58.52.57","123 deco .ornex@123 deco .com","01"]
[15,"A Mely ","262 grande rue","01220","Divonne-les-bains","04.67.58.52.58","a mely .divonne-les-bains@a mely .com","01"]
[16,"SARL DUGOZ ","Auberge a la vieille","01230","Arandas","04.67.58.52.59","sarl dugoz .arandas@sarl dugoz .com","01"]
[17,"RODRIGUEZ ","8 rue de change pont","01230","Tenay","04.67.58.52.60","rodriguez .tenay@rodriguez .com","01"]
[18,"FRAUTOS ","ZI NORD","01260","Belmont-luthézieu","04.67.58.52.61","frautos .belmont-luthézieu@frautos .com","01"]
[19,"BILLOTTE NICOLAS ","78 rue du lavoir","01300","Arbignieu","04.67.58.52.62","billotte nicolas .arbignieu@billotte nicolas .com","01"]
[20,"Tonnies ","ZI Sud","01400","Châtillon-sur-chalaronne","04.67.58.52.63","tonnies .châtillon-sur-chalaronne@tonnies .com","01"]
[21,"3ET ","Route de gignez","01420","Corbonod","04.67.58.52.64","3et .corbonod@3et .com","01"]
[22,"Mental Express ","Zac poutier","01470","Serrières-de-briord","04.67.58.52.65","mental express .serrières-de-briord@mental express .com","01"]
[23,"PMS TECHNIC ","Zone artisanale la graviere","01480","Fareins","04.67.58.52.66","pms technic .fareins@pms technic .com","01"]
[24,"FRAY ","Chemin du pardy","01480","Frans","04.67.58.52.67","fray .frans@fray .com","01"]
[25,"VV (SARL) ","304 rue du beaujolais","01480","Jassans-riottier","04.67.58.52.68","vv (sarl) .jassans-riottier@vv (sarl) .com","01"]
[26,"Merepi ","80 rue jules ferry","01480","Jassans-riottier","04.67.58.52.69","merepi .jassans-riottier@merepi .com","01"]
[27,"Gauthier ","15 rue alexandre berard","01500","Ambérieu-en-bugey","04.67.58.52.70","gauthier .ambérieu-en-bugey@gauthier .com","01"]
[28,"C Dévellopement","Place du champ de mars","01500","Ambérieu-en-bugey","04.67.58.52.71","c dévellopement.ambérieu-en-bugey@c dévellopement.com","01"]
[29,"GENC ","Place du monument","01510","Virieu-le-grand","04.67.58.52.72","genc .virieu-le-grand@genc .com","01"]
[30,"Papelo ","2 place lieutenant giraud","01800","Meximieux","09.61.69.83.71","papelo .meximieux@papelo .com","01"]
[31,"CE MS COMPOSITES ","13 rue de la croix","02000","Chavignon","09.61.69.83.72","ce ms composites .chavignon@ce ms composites .com","02"]
[32,"MOC MBS Composites  ","13 rue de la croix","02000","Chavignon","03.23.21.86.00","moc mbs composites  .chavignon@moc mbs composites  .com","02"]
[33,"Care ","Route de molinchart","02000","Laniscourt","03.23.24.84.88","care .laniscourt@care .com","02"]
[34,"PEAL ","14 rue romanette","02000","Laon","09.66.96.14.72","peal .laon@peal .com","02"]
[35,"Exventys ","Avenue archimede","02100","Saint-quentin","03.23.08.36.53","exventys .saint-quentin@exventys .com","02"]
[36,"Starcar ","43 boulevard richelieu","02100","Saint-quentin","03.23.64.35.54","starcar .saint-quentin@starcar .com","02"]
[37,"Revaltia ","6 avenue Archimede","02100","Saint-quentin","03.23.09.98.53","revaltia .saint-quentin@revaltia .com","02"]
[38,"Gobert SA","210 rue A.Daltrif","02100","Harly","03.23.62.36.99","gobert sa.harly@gobert sa.com","02"]
[39,"Electrotech ","17 rue francis de pressense","02110","Bohain-en-vermandois","09.71.39.84.71","electrotech .bohain-en-vermandois@electrotech .com","02"]
[40,"Earl Degardez ","26 rue des 2 drucbert","02110","La Vallée-mulâtre","09.64.26.94.64","earl degardez .la vallée-mulâtre@earl degardez .com","02"]
[41,"Lasserez Alain ","34 lieu dit la petite rue","02170","Esquéhéries","03.23.98.96.92","lasserez alain .esquéhéries@lasserez alain .com","02"]
[42,"SPS ","3 rue de villers cotterets","02200","Soissons","09.62.27.71.42","sps .soissons@sps .com","02"]
[43,"PICAR RENOV ","7 rue du college","02200","Soissons","09.06.55.50.66","picar renov .soissons@picar renov .com","02"]
[44,"PLASTIQUE DE L'AISNE ","Rue des industries","02220","Braine","09.60.14.27.94","plastique de l'aisne .braine@plastique de l'aisne .com","02"]
[45,"API (SARL) ","1 rue de valnois","02220","Brenelle","03.23.74.09.26","api (sarl) .brenelle@api (sarl) .com","02"]
[46,"Philimmo (SARL) ","1 rue du chauffour","02250","Berlancourt","03.23.79.73.89","philimmo (sarl) .berlancourt@philimmo (sarl) .com","02"]
[47,"Rebour ","4 rue principale","02250","La Neuville-housset","09.61.57.03.29","rebour .la neuville-housset@rebour .com","02"]
[48,"2 L ","1 avenue carnot","02250","Marle","03.23.80.11.80","2 l .marle@2 l .com","02"]
[49,"Richet Fils ","4 grande rue","02250","Tavaux-et-pontséricourt","09.62.26.13.94","richet fils .tavaux-et-pontséricourt@richet fils .com","02"]
[50,"GONEZ ","62 rue du general de gaulle","02270","Crécy-sur-serre","09.61.22.93.72","gonez .crécy-sur-serre@gonez .com","02"]
[51,"Formaflex (SARL) ","Rue du moulin","02310","Romeny-sur-marne","03.23.70.99.81","formaflex (sarl) .romeny-sur-marne@formaflex (sarl) .com","02"]
[52,"Rene Sarl ","Le mont de leuilly","02380","Leuilly-sous-coucy","09.64.00.88.39","rene sarl .leuilly-sous-coucy@rene sarl .com","02"]
[53,"Agence FG ","5 chemin du charme","02400","Château-thierry","03.23.69.26.66","agence fg .château-thierry@agence fg .com","02"]
[54,"ENT DPS ","16 les coupettes","02400","Verdilly","09.27.87.19.26","ent dps .verdilly@ent dps .com","02"]
[55,"IPP (SARL) ","Rue du baty","02500","Neuve-maison","03.23.58.48.13","ipp (sarl) .neuve-maison@ipp (sarl) .com","02"]
[56,"A F I P ","14 rue du grand montoir","02600","Villers-cotterêts","09.67.11.13.48","a f i p .villers-cotterêts@a f i p .com","02"]
[57,"SCEA de l'Epine ","3 hameau de l epine","02600","Vivières","03.23.96.07.22","scea de l'epine .vivières@scea de l'epine .com","02"]
[58,"PCF ","21 rue vaucanson","02700","Tergnier","03.23.52.64.67","pcf .tergnier@pcf .com","02"]
[59,"Uzin France ","4 rue du president coty","02880","Crouy","03.23.76.37.40","uzin france .crouy@uzin france .com","02"]
[60,"Pihet ","13 rue du belvedere","02880","Cuffies","09.63.62.02.98","pihet .cuffies@pihet .com","02"]
[61,"SRVS ","3 chemin du pierrelet","02880","Vregny","03.23.72.83.61","srvs .vregny@srvs .com","02"]
[62,"SAPE ","122 route de paris","03000","Avermes","04.70.45.50.71","sape .avermes@sape .com","03"]
[63,"Bussy (SARL) ","6 chemin de longve","03000","Bressolles","04.70.20.50.70","bussy (sarl) .bressolles@bussy (sarl) .com","03"]
[64,"BEAUPERE ","42 avenue marx dormoy","03100","Montluçon","09.77.80.73.57","beaupere .montluçon@beaupere .com","03"]
[65,"ELECTRO LEASE ","10 rue de valmy","03100","Montluçon","04.43.01.00.11",{"$f":"IF(B66=\"\",\"\",(LOWER(B66&\".\"&E66&\"@\"&B66&\".com\")))","v":"electro lease .montluçon@electro lease .com"},{"$f":"LEFT(D66, 2)","v":"03"}]
[{"$f":"A66+1","v":66},"Ste New Tuyauterie","26 rue benoist d azy","03100","Montluçon","04.70.09.92.12","ste new tuyauterie.montluçon@ste new tuyauterie.com","03"]
[67,"BRONGNIARD ","Lieu dit l etang neuf","03130","Le Bouchaud"," 09.60.50.75.47","brongniard .le bouchaud@brongniard .com","03"]
[68,"Brooks Instrument ","7 rue de la tour","03200","Abrest","04.70.59.81.81","brooks instrument .abrest@brooks instrument .com","03"]
[69,"AGN et Diagnostics ","9 rue grenet","03200","Vichy","04.70.32.03.19","agn et diagnostics .vichy@agn et diagnostics .com","03"]
[70,"Empial Eurl ","33 place jean epinat","03200","Vichy","04.70.97.42.43","empial eurl .vichy@empial eurl .com","03"]
[71,"Energhouse ","26 rue d alsace","03200","Vichy","04.70.31.29.63","energhouse .vichy@energhouse .com","03"]
[72,"Bernon ","32 place yves deret","03290","Dompierre-sur-besbre","04.70.34.50.28","bernon .dompierre-sur-besbre@bernon .com","03"]
[73,"Sermeto ","Rue de rebrillon","03300","Creuzier-le-neuf","04.70.58.47.40","sermeto .creuzier-le-neuf@sermeto .com","03"]
[74,"ADRM ","5 rue georges ferrier","03300","Cusset","04.70.55.71.08","adrm .cusset@adrm .com","03"]
[75,"EFCA ","55 rue de l industrie","03300","Cusset","04.70.96.24.46","efca .cusset@efca .com","03"]
[76,"BAUD ","3 rue lavoisier","03300","Cusset"," 09.75.82.60.94","baud .cusset@baud .com","03"]
[77,"Ets Roche et Fils ","20 rue ampere","03300","Cusset","04.70.98.17.69","ets roche et fils .cusset@ets roche et fils .com","03"]
[78,"SDEB ","Les grivats","03300","Cusset","04.70.97.05.06","sdeb .cusset@sdeb .com","03"]
[79,"Jys Chrome ","1 rue d algerie","03340","Montbeugny","04.70.46.68.09","jys chrome .montbeugny@jys chrome .com","03"]
[80,"Dechet (EARL) ","Lieu dit berteau","03380","Archignat","09.61.47.66.50","dechet (earl) .archignat@dechet (earl) .com","03"]
[81,"CAPM ","Parc de la mothe","03400","Yzeure","09.77.38.69.51","capm .yzeure@capm .com","03"]
[82,"Cablotec ","36 rue eugene leroy","03410","Domérat","04.70.29.32.64","cablotec .domérat@cablotec .com","03"]
[83,"Métal 3D ","Zone artisanale le pont vert","03410","Prémilhat","04.70.64.74.02","métal 3d .prémilhat@métal 3d .com","03"]
[84,"Euroméca II ","Parc mecatronic","03410","Saint-victor","04.70.06.21.20","euroméca ii .saint-victor@euroméca ii .com","03"]
[85,"CANTON (SARL) ","3 rue des chaumes","03420","Marcillat-en-combraille","09.62.20.89.53","canton (sarl) .marcillat-en-combraille@canton (sarl) .com","03"]
[86,"SE ME CO ","Lieu dit la bussiere","03420","Terjat","04.70.29.60.87","se me co .terjat@se me co .com","03"]
[87,"Chauderie K","Route du donjon","03470","Saligny-sur-roudon","04.70.42.21.59","chauderie k.saligny-sur-roudon@chauderie k.com","03"]
[88,"DOSS (SARL) ","Chemin de menilchamp","03500","Verneuil-en-bourbonnais","04.70.45.15.10","doss (sarl) .verneuil-en-bourbonnais@doss (sarl) .com","03"]
[89,"Caldeira ","59 rue jean alexis bayet","03600","Commentry","09.65.20.22.47","caldeira .commentry@caldeira .com","03"]
[90,"2 CT ","45 rue alexis Mayer","03600","Commentry","04.70.09.22.34","2 ct .commentry@2 ct .com","03"]
[91,"BBP (SARL) ","2 rue des silos","03800","Gannat","09.66.82.33.17","bbp (sarl) .gannat@bbp (sarl) .com","03"]
[92,"Mizony Jean Claude ","Zi st christophe","04000","Digne-les-bains","09.61.32.82.19","mizony jean claude .digne-les-bains@mizony jean claude .com","04"]
[93,"CG Com ","Rue ferdinand de lesseps","04000","Digne-les-bains","09.71.50.12.99","cg com .digne-les-bains@cg com .com","04"]
[94,"Gesmont ","7 avenue joseph reinach","04000","Digne-les-bains","04.92.34.36.71","gesmont .digne-les-bains@gesmont .com","04"]
[95,"Sud Matières Plastiques ","Zone industrielle saint maurice","04100","Manosque","04.92.72.09.64","sud matières plastiques .manosque@sud matières plastiques .com","04"]
[96,"All Running ","91 rue berthelot","04100","Manosque","04.92.77.23.98","all running .manosque@all running .com","04"]
[97,"ASTIER ","2 place marcel sauvaire","04120","Castellane","09.60.41.26.59","astier .castellane@astier .com","04"]
[98,"Les Alisiers ","Col saint jean","04140","Montclar","04.92.35.02.72","les alisiers .montclar@les alisiers .com","04"]
[99,"L'Ardoise ","Rue de la bourgade","04150","Banon","04.92.73.30.64","l'ardoise .banon@l'ardoise .com","04"]
[100,"Eiffel Industrie ","Avenue de blaches gombert","04160","Château-arnoux-saint-auban","04.92.36.34.90","eiffel industrie .château-arnoux-saint-auban@eiffel industrie .com","04"]
[101,"Albatros ","Chemin du lac","04160","Château-arnoux-saint-auban","04.92.64.56.48","albatros .château-arnoux-saint-auban@albatros .com","04"]
[102,"Les Ormes ","Route de nice","04170","Saint-andré-les-alpes","09.66.98.98.96","les ormes .saint-andré-les-alpes@les ormes .com","04"]
[103,"SICMA 04 (SARL) ","Les plaines","04180","Villeneuve","09.77.75.25.17","sicma 04 (sarl) .villeneuve@sicma 04 (sarl) .com","04"]
[104,"PRAT SA","Rue des pres d astruc","04190","Les Mées","04.92.35.17.68","prat sa.les mées@prat sa.com","04"]
[105,"Afairefer ","Chemin de champarlau","04200","Peipin","09.64.19.67.23","afairefer .peipin@afairefer .com","04"]
[106,"MS Auto ","7 rue des lilas","04200","Peipin","09.47.02.08.69","ms auto .peipin@ms auto .com","04"]
[107,"PAYAN ","21 allee des romarins","04200","Sisteron","09.79.18.88.79","payan .sisteron@payan .com","04"]
[108,"Tolerie Fine J2M ","1 rue des artisans","04220","Corbières","04.92.76.50.71","tolerie fine j2m .corbières@tolerie fine j2m .com","04"]
[109,"Certam ","Beaumont de pertuis","04220","Corbières","09.62.19.25.70","certam .corbières@certam .com","04"]
[110,"Réaplastic ","Za les bastides blanches","04220","Sainte-tulle","04.92.70.17.70","réaplastic .sainte-tulle@réaplastic .com","04"]
[111,"ALPE ","8 za de pitaugier","04300","Mane","09.65.31.69.39","alpe .mane@alpe .com","04"]
[112,"Legrand ","Rue principale","04330","Barrême","09.65.38.20.57","legrand .barrême@legrand .com","04"]
[113,"SYSTEMS MPS ","Rue du portail du col","04380","Thoard","09.92.61.31.83","systems mps .thoard@systems mps .com","04"]
[114,"Alixa","Le pont long","04400","Barcelonnette","04.92.81.03.62","alixa.barcelonnette@alixa.com","04"]
[115,"Chauvac ","28 rue manuel","04400","Barcelonnette","09.79.56.97.98","chauvac .barcelonnette@chauvac .com","04"]
[116,"Ginouves SA","La sapinière","04400","Uvernet-fours","04.92.84.06.46","ginouves sa.uvernet-fours@ginouves sa.com","04"]
[117,"JPS ","Le fournas","04600","Château-arnoux-saint-auban","04.92.62.81.96","jps .château-arnoux-saint-auban@jps .com","04"]
[118,"MBM Energipole ","Avenue du jas","04600","Saint-auban","04.92.62.16.19","mbm energipole .saint-auban@mbm energipole .com","04"]
[119,"KELLOOK ","Le gryselis","04800","Gréoux-les-bains","04.92.73.76.58","kellook .gréoux-les-bains@kellook .com","04"]
[120,"NUGGETA ","12 grand rue","04800","Saint-martin-de-brômes","04.92.78.72.02","nuggeta .saint-martin-de-brômes@nuggeta .com","04"]
[121,"L'Ere H ","Rampe des ginestes","04860","Pierrevert","04.92.72.89.83","l'ere h .pierrevert@l'ere h .com","04"]
[122,"MSR","Za Plaine lachaup","05000","Châteauvieux","09.67.03.41.88","msr.châteauvieux@msr.com","05"]
[123,"AS Diffusion ","1 bd general charles de gaulle","05000","Gap","04.92.52.46.70","as diffusion .gap@as diffusion .com","05"]
[124,"Adegoria ","27 rue M.Pagnol","05000","Gap","04.27.19.41.80","adegoria .gap@adegoria .com","05"]
[125,"HECAM ","68 avenue emile didier","05000","Gap","09.33.86.86.39","hecam .gap@hecam .com","05"]
[126,"Meynaud (SARL) ","Quartier la condamine","05000","Pelleautier","09.08.42.99.27","meynaud (sarl) .pelleautier@meynaud (sarl) .com","05"]
[127,"JPG ","3 place des 4 vents","05100","Briançon","09.31.65.06.60","jpg .briançon@jpg .com","05"]
[128,"3 A (SARL) ","Lieu dit le chateau","05100","Cervières","04.92.20.58.44","3 a (sarl) .cervières@3 a (sarl) .com","05"]
[129,"Plissoff eurl","Rue de sablon","05100","Montgenèvre","04.92.21.91.93",{"$f":"IF(B130=\"\",\"\",(LOWER(B130&\".\"&E130&\"@\"&B130&\".com\")))","v":"plissoff eurl.montgenèvre@plissoff eurl.com"},{"$f":"LEFT(D130, 2)","v":"05"}]
[{"$f":"A130+1","v":130},"DURANCE DECAPAGE","Les prés","05110","Vitrolles","04.88.03.63.32","durance decapage.vitrolles@durance decapage.com","05"]
[131,"Pailheiret SA","Rue des collets","05120","L'argentière-la-bessée","04.92.23.05.27","pailheiret sa.l'argentière-la-bessée@pailheiret sa.com","05"]
[132,"Agriver","Lieu dit les guerins","05130","Sigoyer","04.92.57.87.43","agriver.sigoyer@agriver.com","05"]
[133,"Ludy (SARL) ","Le moulin","05130","Tallard","04.92.24.05.63","ludy (sarl) .tallard@ludy (sarl) .com","05"]
[134,"Patrick Chagnard BTP ","Quartier devant viere","05140","Aspremont","09.60.19.35.48","patrick chagnard btp .aspremont@patrick chagnard btp .com","05"]
[135,"Phil Import ","Le village","05190","Rochebrune","04.92.54.45.85","phil import .rochebrune@phil import .com","05"]
[136,"Erevan SA","1 rue clovis hugues","05200","Embrun","04.92.43.07.93","erevan sa.embrun@erevan sa.com","05"]
[137,"Hipos 1 ","Rue de la liberte","05200","Embrun","04.92.43.45.43","hipos 1 .embrun@hipos 1 .com","05"]
[138,"Navarro Frères (SARL) ","Quartier pre de la gare","05230","Chorges","04.92.50.24.66","navarro frères (sarl) .chorges@navarro frères (sarl) .com","05"]
[139,"PEYRE SARL","Rue des salados","05230","Chorges","09.11.01.76.05","peyre sarl.chorges@peyre sarl.com","05"]
[140,"PR Invest ","Lieu dit les beaujours","05230","Chorges","04.92.50.90.74","pr invest .chorges@pr invest .com","05"]
[141,"L'Aravet ","Clot de laravet","05240","La Salle Les Alpes","09.67.08.97.67","l'aravet .la salle les alpes@l'aravet .com","05"]
[142,"Ets Gayral (SARL) ","Village de pont du fosse","05260","Saint-jean-saint-nicolas","04.92.55.93.56","ets gayral (sarl) .saint-jean-saint-nicolas@ets gayral (sarl) .com","05"]
[143,"L'Ecrin ","Rte d'orcières","05260","Saint-jean-saint-nicolas","04.92.55.98.36","l'ecrin .saint-jean-saint-nicolas@l'ecrin .com","05"]
[144,"GGK ","Quartier du plan","05300","Laragne-montéglin","09.66.91.25.23","ggk .laragne-montéglin@ggk .com","05"]
[145,"Kasy (SARL) ","Rn 91","05320","La Grave","04.76.80.92.78","kasy (sarl) .la grave@kasy (sarl) .com","05"]
[146,"RD Technologies ","7 allee jean jacques rousseau","05400","Veynes","04.92.58.33.33","rd technologies .veynes@rd technologies .com","05"]
[147,"I D E M M ","Quartier les barraques","05500","La Fare-en-champsaur","04.92.23.13.44","i d e m m .la fare-en-champsaur@i d e m m .com","05"]
[148,"Sarl Ferrero ","Lieu dit bonnette","05500","La Fare-en-champsaur","09.50.68.29.41","sarl ferrero .la fare-en-champsaur@sarl ferrero .com","05"]
[149,"Menuiserie Benoit ","Route de sainte catherine","05560","Vars","04.92.46.52.57","menuiserie benoit .vars@menuiserie benoit .com","05"]
[150,"Manzon (SARL) ","Chemin de l eperviere","05600","Guillestre","09.66.93.75.34","manzon (sarl) .guillestre@manzon (sarl) .com","05"]
[151,"AJL","Les chauvets","05600","Risoul","04.92.45.32.59","ajl.risoul@ajl.com","05"]
[152,"ALTER ENERGIES ","74 chemin du genie","06000","Nice","09.46.47.26.07","alter energies .nice@alter energies .com","06"]
[153,"Bleekin Sarl ","5 avenue clement ader","06100","Nice","09.73.34.13.05","bleekin sarl .nice@bleekin sarl .com","06"]
[154,"BARQUIN ","229 route de cannes","06130","Grasse","09.60.35.09.79","barquin .grasse@barquin .com","06"]
[155,"TIP ","8 avenue louison bobet","06130","Grasse","04.93.40.44.66","tip .grasse@tip .com","06"]
[156,"Norwest ","1645 chemin saint arnoux","06140","Tourrettes-sur-loup","04.93.24.70.35","norwest .tourrettes-sur-loup@norwest .com","06"]
[157,"ASCT ","239 avenue michel jourdan","06150","Cannes","04.93.47.98.21","asct .cannes@asct .com","06"]
[158,"Cogenim ","Allee georges guynemer","06210","Mandelieu-la-napoule","04.93.48.32.02","cogenim .mandelieu-la-napoule@cogenim .com","06"]
[159,"DEME ","Zi les tourrades bât e","06210","Mandelieu-la-napoule","04.93.48.22.60","deme .mandelieu-la-napoule@deme .com","06"]
[160,"3CG SARL ","155 chemin saint bernard","06220","Vallauris","09.46.74.22.37","3cg sarl .vallauris@3cg sarl .com","06"]
[161,"GARNERO ","Impasse du plan bermond","06340","La Trinité","09.79.32.42.62","garnero .la trinité@garnero .com","06"]
[162,"ADC ","1 rue du chateau","06370","Mouans-sartoux","04.92.99.04.91","adc .mouans-sartoux@adc .com","06"]
[163,"Biomax ","210 avenue de saint philippe","06410","Biot","04.93.58.57.44","biomax .biot@biomax .com","06"]
[164,"BPMD ","69 rue yves klein","06480","La Colle-sur-loup","09.66.95.49.99","bpmd .la colle-sur-loup@bpmd .com","06"]
[165,"Bichon ","28 avenue carnot","06500","Menton","09.62.62.96.63","bichon .menton@bichon .com","06"]
[166,"Reeb Roger ","507 route des pommiers","06510","Bouyon","09.64.42.48.29","reeb roger .bouyon@reeb roger .com","06"]
[167,"Alain Hauser (SARL) ","18 rue HENRY","06510","Carros","09.75.50.09.54","alain hauser (sarl) .carros@alain hauser (sarl) .com","06"]
[168,"Feralco ","1274 chemin du claret","06510","Carros","09.64.10.98.89","feralco .carros@feralco .com","06"]
[169,"Cepim (SARL) ","2041 route de la baronne","06510","Gattières","04.93.29.18.75","cepim (sarl) .gattières@cepim (sarl) .com","06"]
[170,"Andhuiz (SCI) ","6 rue de la maionnette","06510","Le Broc","09.66.84.92.55","andhuiz (sci) .le broc@andhuiz (sci) .com","06"]
[171,"Alcali ","101 chemin des traillieres","06530","Saint-cézaire-sur-siagne","09.60.54.08.05","alcali .saint-cézaire-sur-siagne@alcali .com","06"]
[172,"Hallais Patrick ","252 chemin des blaquieres","06570","Saint-paul","04.92.02.10.45","hallais patrick .saint-paul@hallais patrick .com","06"]
[173,"Cuny Aviation (SARL) ","1066 départemental 309","06580","Pégomas","04.93.40.78.78","cuny aviation (sarl) .pégomas@cuny aviation (sarl) .com","06"]
[174,"2 May ","1 place du safranier","06600","Antibes","04.97.23.36.47","2 may .antibes@2 may .com","06"]
[175,"Boximedia (SARL) ","83 chemin rene pouchol","06670","Levens","09.66.95.24.26","boximedia (sarl) .levens@boximedia (sarl) .com","06"]
[176,"Buro Metod ","687 ancien chemin de nice","06670","Saint-martin-du-var","09.77.63.41.09","buro metod .saint-martin-du-var@buro metod .com","06"]
[177,"Staat Industrie ","594 avenue du canton de levens","06690","Tourrette-levens","04.93.91.67.57","staat industrie .tourrette-levens@staat industrie .com","06"]
[178,"Biostore ","8 allee des imprimeurs","06700","Saint-laurent-du-var","09.67.09.52.81","biostore .saint-laurent-du-var@biostore .com","06"]
[179,"Copasud ","33 rue claude bernard","06700","Saint-laurent-du-var","04.92.12.83.25","copasud .saint-laurent-du-var@copasud .com","06"]
[180,"Alfadis ","24 avenue bischoffsheim","06710","Villars-sur-var","09.67.15.62.08","alfadis .villars-sur-var@alfadis .com","06"]
[181,"Crystal (SARL) ","60 avenue de verdun","06800","Cagnes-sur-mer","04.93.86.45.55","crystal (sarl) .cagnes-sur-mer@crystal (sarl) .com","06"]
[182,"L'Art d'Eco Batir ","Quartier treguel","07000","Flaviac","04.75.64.58.24","l'art d'eco batir .flaviac@l'art d'eco batir .com","07"]
[183,"S Pace ","Zi les lacs","07000","Privas","04.75.64.15.96","s pace .privas@s pace .com","07"]
[184,"Solika (SARL) ","Quartier de la rouviere","07000","Saint-priest","04.75.66.23.78","solika (sarl) .saint-priest@solika (sarl) .com","07"]
[185,"RIMAUD (SARL) ","10 rue auguste bravais","07100","Annonay","09.71.37.95.18","rimaud (sarl) .annonay@rimaud (sarl) .com","07"]
[186,"Bio Bat ","Chemin du rivet","07100","Boulieu-lès-annonay","04.75.32.59.30","bio bat .boulieu-lès-annonay@bio bat .com","07"]
[187,"ROCHETTE (SARL) ","Le chaumel","07100","Roiffieux","09.64.45.28.32","rochette (sarl) .roiffieux@rochette (sarl) .com","07"]
[188,"Papeterie Dumas ","130 rue nationale","07120","Ruoms","04.75.93.90.67","papeterie dumas .ruoms@papeterie dumas .com","07"]
[189,"DAIRE ","Quartier le chene","07130","Saint-péray","09.62.14.85.93","daire .saint-péray@daire .com","07"]
[190,"INCENDIE ARDROM ","Zone industrielle pole 2000","07130","Saint-péray","04.75.81.80.82","incendie ardrom .saint-péray@incendie ardrom .com","07"]
[191,"LUITEN ","9 rue louis de villeneuve","07130","Saint-péray","09.79.16.51.31","luiten .saint-péray@luiten .com","07"]
[192,"E C T Industries ","Zone artisanale","07130","Soyons","04.75.40.84.00","e c t industries .soyons@e c t industries .com","07"]
[193,"Cayreyre (Ets) ","Chemin de ripotier haut","07200","Aubenas","04.75.89.14.21",{"$f":"IF(B194=\"\",\"\",(LOWER(B194&\".\"&E194&\"@\"&B194&\".com\")))","v":"cayreyre (ets) .aubenas@cayreyre (ets) .com"},{"$f":"LEFT(D194, 2)","v":"07"}]
[{"$f":"A194+1","v":194},"Auto Industrie ","Boulevard marechal leclerc","07200","Aubenas","04.75.93.57.14","auto industrie .aubenas@auto industrie .com","07"]
[195,"Cayreyre (Ets) ","Chemin de ripotier haut","07200","Aubenas","04.75.89.14.21","cayreyre (ets) .aubenas@cayreyre (ets) .com","07"]
[196,"Agri Drôme ","Rue henri roche","07270","Lamastre","04.75.06.49.55","agri drôme .lamastre@agri drôme .com","07"]
[197,"DAMON ","1391 combalat","07340","Félines","09.64.23.01.43","damon .félines@damon .com","07"]
[198,"Euro Cloison System ","1391 route de combalat","07340","Félines","04.75.33.81.44","euro cloison system .félines@euro cloison system .com","07"]
[199,"Sadela Industrie ","Le flacher","07340","Félines","04.75.34.86.31","sadela industrie .félines@sadela industrie .com","07"]
[200,"Tricolor Industries ","Quartier aubignas","07380","Chirols","04.75.94.58.51","tricolor industries .chirols@tricolor industries .com","07"]
[201,"PPI ","2 rue victor hugo","07400","Le Teil","04.75.49.10.27","ppi .le teil@ppi .com","07"]
[202,"Tech'Industrie L ","79 rue victor hugo","07400","Le Teil","04.75.49.02.52","tech'industrie l .le teil@tech'industrie l .com","07"]
[203,"GAGNERE ","Rue de l eterpas le bas","07430","Saint-cyr","09.79.03.10.41","gagnere .saint-cyr@gagnere .com","07"]
[204,"JB2C ","Le village","07440","Boffres","04.75.58.22.04","jb2c .boffres@jb2c .com","07"]
[205,"LATTE F ","41 route d antraigues","07600","Vals-les-bains","04.75.37.45.37","latte f .vals-les-bains@latte f .com","07"]
[206,"CHEREL ","Montbrun","07690","Villevocance","09.79.28.37.89","cherel .villevocance@cherel .com","07"]
[207,"SOCIETE COOL ","Quai jean jaures","07800","La Voulte-sur-rhône","04.75.85.32.75","societe cool .la voulte-sur-rhône@societe cool .com","07"]
[208,"Vargas SA","54 rue de la blache","07800","La Voulte-sur-rhône","04.75.62.04.25","vargas sa.la voulte-sur-rhône@vargas sa.com","07"]
[209,"Stravel ","Quartier barlet","07800","Saint-laurent-du-pape","04.75.85.32.71","stravel .saint-laurent-du-pape@stravel .com","07"]
[210,"Techma Be (SARL) ","32 avenue du marechal leclerc","08000","Charleville-mézières","03.24.59.17.55","techma be (sarl) .charleville-mézières@techma be (sarl) .com","08"]
[211,"New water treatment ","Zac du grand ban","08000","La Francheville","03.24.32.25.24","new water treatment .la francheville@new water treatment .com","08"]
[212,"Schneider Thierry ","Zac du grand ban","08000","La Francheville","09.77.72.75.61","schneider thierry .la francheville@schneider thierry .com","08"]
[213,"Vestaf ","13 route de warnecourt","08000","Prix-lès-mézières","03.24.41.11.28","vestaf .prix-lès-mézières@vestaf .com","08"]
[214,"Bearing Express ","Rue francois urano","08000","Warcq","03.24.27.05.93","bearing express .warcq@bearing express .com","08"]
[215,"Fonderie Diffusion ","1 rue de la mairie","08090","Arreux","03.24.55.72.63","fonderie diffusion .arreux@fonderie diffusion .com","08"]
[216,"BJ Industrie ","Rue maurice perin","08090","Tournes","03.24.52.90.10","bj industrie .tournes@bj industrie .com","08"]
[217,"CEDIA Industrie ","Rue d arreux","08090","Tournes","03.24.55.60.05","cedia industrie .tournes@cedia industrie .com","08"]
[218,"Fe-Be ","2 grande rue","08110","Matton-et-clémency","03.24.52.86.43","fe-be .matton-et-clémency@fe-be .com","08"]
[219,"Nota Concept ","53 rue potier","08140","Francheval","03.24.29.52.48","nota concept .francheval@nota concept .com","08"]
[220,"Omni Projets ","17 rue du culot","08150","Sormonne","03.24.32.54.46","omni projets .sormonne@omni projets .com","08"]
[221,"Godert Industrie ","96 rue de la paix","08170","Fumay","03.24.57.27.45","godert industrie .fumay@godert industrie .com","08"]
[222,"Brode SARL","3 rue de l eglise","08190","Houdilcourt","03.24.38.39.09","brode sarl.houdilcourt@brode sarl.com","08"]
[223,"Aero Hardware Equipement ","4 rue poupart de neuflize","08200","Balan","03.24.37.68.73","aero hardware equipement .balan@aero hardware equipement .com","08"]
[224,"Cougnet SA","6 rue du chevrefeuille","08200","Sedan","03.24.29.89.62","cougnet sa.sedan@cougnet sa.com","08"]
[225,"DRE ","2 rue de la garenne","08200","Sedan","03.24.53.31.47","dre .sedan@dre .com","08"]
[226,"Rousseau Georges (Ets) ","25 rue jean jaures","08200","Sedan","03.24.27.13.82","rousseau georges (ets) .sedan@rousseau georges (ets) .com","08"]
[227,"FMI ","Des forges","08320","Hierges","03.24.41.76.67","fmi .hierges@fmi .com","08"]
[228,"Musu Jean-Luc ","106 avenue roger posty","08320","Vireux-molhain","03.24.40.18.32","musu jean-luc .vireux-molhain@musu jean-luc .com","08"]
[229,"Estelec ","43 rue pasteur","08320","Vireux-molhain","03.24.42.67.78","estelec .vireux-molhain@estelec .com","08"]
[230,"PMG ","Rue des cubilots","08330","Vrigne-aux-bois","03.24.59.97.10","pmg .vrigne-aux-bois@pmg .com","08"]
[231,"Techno Plan ","Zone industrielle","08350","Donchery","03.24.52.23.20","techno plan .donchery@techno plan .com","08"]
[232,"Espace Ligne (SAS) ","Route d any","08380","La Neuville-aux-joûtes","03.24.53.53.50","espace ligne (sas) .la neuville-aux-joûtes@espace ligne (sas) .com","08"]
[233,"PF MATERIEL ","57 rue desire guelliot","08400","Vouziers","03.24.30.19.38","pf materiel .vouziers@pf materiel .com","08"]
[234,"Fége SA","Rue albert caquot","08400","Vouziers","03.24.71.65.50","fége sa.vouziers@fége sa.com","08"]
[235,"Evolution (SAS) ","31 grande rue","08440","Lumes","03.24.40.14.33","evolution (sas) .lumes@evolution (sas) .com","08"]
[236,"F3C ","31 grande rue","08440","Lumes","03.24.53.33.33","f3c .lumes@f3c .com","08"]
[237,"Outilac France ","29 bis route de revin","08500","Les Mazures","03.24.41.12.11","outilac france .les mazures@outilac france .com","08"]
[238,"Controlfeu (SARL) ","Centrale nucleaire","08600","Chooz","03.24.40.23.37","controlfeu (sarl) .chooz@controlfeu (sarl) .com","08"]
[239,"Saint Roch Couvin ","10 chemin noir","08700","Joigny-sur-meuse","03.24.41.88.46","saint roch couvin .joigny-sur-meuse@saint roch couvin .com","08"]
[240,"Cepece ","Lieu dit montaut et ballou","09000","Bénac","05.61.02.63.12","cepece .bénac@cepece .com","09"]
[241,"Delort-Loubet ","8 rue de la vigne","09000","Foix"," 05.61.65.03.11","delort-loubet .foix@delort-loubet .com","09"]
[242,"Alard Danielle ","22 lieu dit saint antoine","09000","Saint-paul-de-jarrat","09.78.97.86.18","alard danielle .saint-paul-de-jarrat@alard danielle .com","09"]
[243,"Sodica ","71 avenue de la rijole","09100","Pamiers","05.61.69.05.52","sodica .pamiers@sodica .com","09"]
[244,"Ariège Froid Industries ","17 avenue du capitaine tournissa","09100","Pamiers","05.61.69.67.73","ariège froid industries .pamiers@ariège froid industries .com","09"]
[245,"AGENCE 163 ","66 boulevard alsace lorraine","09100","Pamiers","05.34.01.00.24","agence 163 .pamiers@agence 163 .com","09"]
[246,"Ariege Cycles ","Route de toulouse","09100","Pamiers","05.61.67.38.44","ariege cycles .pamiers@ariege cycles .com","09"]
[247,"CERNY SA","ZA De Pic","09100","Pamiers","05.61.62.32.35","cerny sa.pamiers@cerny sa.com","09"]
[248,"Michel Andrieux (SARL) ","5 chemin des acacias","09120","Crampagna","09.75.97.16.24","michel andrieux (sarl) .crampagna@michel andrieux (sarl) .com","09"]
[249,"Action Pub ","24 a avenue louis siret","09120","Varilhes","05.61.69.69.49","action pub .varilhes@action pub .com","09"]
[250,"Merlin ","Hameau du pigailh","09130","Carla-bayle","05.61.69.38.87","merlin .carla-bayle@merlin .com","09"]
[251,"hydrelec-jti","Hameau d estours","09140","Seix","09.67.20.55.09","hydrelec-jti.seix@hydrelec-jti.com","09"]
[252,"Cazalé (Ets) ","Route de toulouse","09190","Lorp-sentaraille","05.61.66.26.87","cazalé (ets) .lorp-sentaraille@cazalé (ets) .com","09"]
[253,"Desman (SARL) ","20 route de sentaraille","09190","Lorp-sentaraille","05.61.66.10.14","desman (sarl) .lorp-sentaraille@desman (sarl) .com","09"]
[254,"Genibio Industrie ","Route de toulouse","09190","Lorp-sentaraille","05.61.04.81.42","genibio industrie .lorp-sentaraille@genibio industrie .com","09"]
[255,"Saint Girons Industrie ","Lotissement les acacias","09200","Eycheil","05.61.66.68.40","saint girons industrie .eycheil@saint girons industrie .com","09"]
[256,"L-M (EURL) ","3 rue A.Bader","09200","Moulis","05.61.65.12.46","l-m (eurl) .moulis@l-m (eurl) .com","09"]
[257,"Imprimerie Fabbro ","16 rue des jacobins","09200","Saint-girons","05.61.66.06.11",{"$f":"IF(B258=\"\",\"\",(LOWER(B258&\".\"&E258&\"@\"&B258&\".com\")))","v":"imprimerie fabbro .saint-girons@imprimerie fabbro .com"},{"$f":"LEFT(D258, 2)","v":"09"}]
[{"$f":"A258+1","v":258},"Hydrowatt ","Lieu dit mandete","09200","Saint-girons","05.34.14.32.14","hydrowatt .saint-girons@hydrowatt .com","09"]
[259,"CPFB","Lieu dit icart","09240","Montels","05.61.01.93.24","cpfb.montels@cpfb.com","09"]
[260,"Klemenc Daniel ","Route de belpech","09270","Mazères","09.65.23.21.71","klemenc daniel .mazères@klemenc daniel .com","09"]
[261,"Maz'Air ","Route de belpech","09270","Mazères","05.61.68.74.79","maz'air .mazères@maz'air .com","09"]
[262,"Mazères Aviation ","Zone industrielle","09270","Mazères","05.61.69.39.52","mazères aviation .mazères@mazères aviation .com","09"]
[263,"Amisac (SARL) ","Route de molandier","09270","Mazères","09.61.04.77.88","amisac (sarl) .mazères@amisac (sarl) .com","09"]
[264,"Michau Industrie ","49 avenue de lavelanet","09300","Bélesta","05.61.02.83.83","michau industrie .bélesta@michau industrie .com","09"]
[265,"Recaero ","Parc delta sud","09340","Verniolle","05.61.67.89.48","recaero .verniolle@recaero .com","09"]
[266,"AEB Technologie ","Zone artisanale fournie","09400","Tarascon-sur-ariège","05.61.05.15.33","aeb technologie .tarascon-sur-ariège@aeb technologie .com","09"]
[267,"ECOTIME ","1 route de lagarde","09500","La Bastide-de-bousignac","05.13.95.81.86","ecotime .la bastide-de-bousignac@ecotime .com","09"]
[268,"Enno ","1 cours du docteur chabaud","09500","Mirepoix","05.61.67.13.94","enno .mirepoix@enno .com","09"]
[269,"Cazals et Fils ","Lieu dit fourcade","09700","Montaut","05.61.60.74.95","cazals et fils .montaut@cazals et fils .com","09"]
[270,"E 2 C M ","Quartier de l arlenque","09700","Saverdun","09.03.59.75.50","e 2 c m .saverdun@e 2 c m .com","09"]
[271,"2TE ","2 rue pierre amandry","10000","Troyes","03.24.29.60.02","2te .troyes@2te .com","10"]
[272,"ACC Dem ","42 boulevard victor hugo","10000","Troyes","09.64.22.43.63","acc dem .troyes@acc dem .com","10"]
[273,"Agence DBE ","46 rue courtalon","10000","Troyes","03.25.45.94.04","agence dbe .troyes@agence dbe .com","10"]
[274,"EARL DU BOIS CHAVIS ","Ferme du bois chavis","10110","Vitry-le-croisé","03.25.38.74.26","earl du bois chavis .vitry-le-croisé@earl du bois chavis .com","10"]
[275,"Champ Brunat (EARL) ","3 route de vanlay","10130","Avreuil","03.25.96.36.65","champ brunat (earl) .avreuil@champ brunat (earl) .com","10"]
[276,"7 CAMICIE ","26 rue marc verdier","10150","Pont-sainte-marie","03.25.81.69.01","7 camicie .pont-sainte-marie@7 camicie .com","10"]
[277,"BM Charmilles ","6 rue roger salengro","10150","Pont-sainte-marie","03.25.80.49.80","bm charmilles .pont-sainte-marie@bm charmilles .com","10"]
[278,"Gaullet (SARL) ","11 rue gaston checq","10200","Meurville","03.25.27.73.85","gaullet (sarl) .meurville@gaullet (sarl) .com","10"]
[279,"EARL GERDY ","Rue des cannes","10210","Cussangy","03.20.83.21.18","earl gerdy .cussangy@earl gerdy .com","10"]
[280,"EARL de l'Eronce ","Rue haute","10220","Onjon","03.25.46.42.47","earl de l'eronce .onjon@earl de l'eronce .com","10"]
[281,"3 Airsoft ","16 avenue du general gallieni","10300","Sainte-savine","03.25.49.86.42","3 airsoft .sainte-savine@3 airsoft .com","10"]
[282,"IMHP","6 rue jean monnet","10300","Sainte-savine","03.25.45.26.53","imhp.sainte-savine@imhp.com","10"]
[283,"Cortes Benjamin ","7 rue qui boue","10330","Bailly-le-franc","03.25.27.52.43","cortes benjamin .bailly-le-franc@cortes benjamin .com","10"]
[284,"GC Distribution ","21 pont haute rive","10340","Les Riceys","03.25.29.39.75","gc distribution .les riceys@gc distribution .com","10"]
[285,"Translive Europe ","42 rue saint martin","10350","Échemines","09.71.30.80.07","translive europe .échemines@translive europe .com","10"]
[286,"Fadin (SARL) ","11 rue denis papin","10370","Villenauxe-la-grande","03.25.79.12.55","fadin (sarl) .villenauxe-la-grande@fadin (sarl) .com","10"]
[287,"Cercle Aviron","Rue de villiers aux choux","10400","Nogent-sur-seine","03.25.21.42.93","cercle aviron.nogent-sur-seine@cercle aviron.com","10"]
[288,"Gaupin (EARL) ","Les courtivignons","10400","Plessis-barbuise","09.71.44.46.51","gaupin (earl) .plessis-barbuise@gaupin (earl) .com","10"]
[289,"Corvest Claude ","10 impasse du moulin","10410","Ruvigny","03.25.80.45.03","corvest claude .ruvigny@corvest claude .com","10"]
[290,"Abscisse (SARL) ","Rue gustave eiffel","10430","Rosières-près-troyes","03.25.80.77.20","abscisse (sarl) .rosières-près-troyes@abscisse (sarl) .com","10"]
[291,"Litt Diffusion ","2 rue rene laennec","10430","Rosières-près-troyes","03.25.45.24.50","litt diffusion .rosières-près-troyes@litt diffusion .com","10"]
[292,"3 M Agencement ","12 bis grande rue","10440","Torvilliers","03.25.82.46.94","3 m agencement .torvilliers@3 m agencement .com","10"]
[293,"Veber (SARL) ","6 rue alexandre yersin","10450","Bréviandes","03.25.72.93.15","veber (sarl) .bréviandes@veber (sarl) .com","10"]
[294,"ETS J SOUFFLET ","2 rue du moulin","10500","Dienville","03.25.92.20.08","ets j soufflet .dienville@ets j soufflet .com","10"]
[295,"F2G ","30 rue des pres de lyon","10600","La Chapelle-saint-luc","03.25.79.10.07","f2g .la chapelle-saint-luc@f2g .com","10"]
[296,"Tem Technologies ","28 rue des pres de lyon","10600","La Chapelle-saint-luc","03.25.71.57.20","tem technologies .la chapelle-saint-luc@tem technologies .com","10"]
[297,"Du Paradis (EARL) ","150 rue du general de gaulle","10600","Mergey","09.66.97.74.43","du paradis (earl) .mergey@du paradis (earl) .com","10"]
[298,"CDM (SA) ","39 avenue des martyrs du 24 aout","10800","Buchères","03.25.71.20.71","cdm (sa) .buchères@cdm (sa) .com","10"]
[299,"Continental (SARL) Impex ","9 route de chaource","10800","Isle-aumont","09.62.62.90.32","continental (sarl) impex .isle-aumont@continental (sarl) impex .com","10"]
[300,"Gaz Services (SA) ","7 moutot","10800","Saint-julien-les-villas","03.25.75.43.43","gaz services (sa) .saint-julien-les-villas@gaz services (sa) .com","10"]
[301,"ArtT Deco ","Zi la bouriette","11000","Carcassonne","04.68.72.01.87","artt deco .carcassonne@artt deco .com","11"]
[302,"Cekip ","31 bis avenue bunau varilla","11000","Carcassonne","09.65.20.34.44","cekip .carcassonne@cekip .com","11"]
[303,"Charlade (SARL) ","42 boulevard denis papin","11000","Carcassonne","09.61.01.49.42","charlade (sarl) .carcassonne@charlade (sarl) .com","11"]
[304,"Mistral Graphic ","1374 bd francois xavier faffeur","11000","Carcassonne","04.68.47.54.66","mistral graphic .carcassonne@mistral graphic .com","11"]
[305,"Richard Christian ","Route de montreal","11000","Carcassonne","04.68.26.60.64","richard christian .carcassonne@richard christian .com","11"]
[306,"M Matériaux ","Avenue de louate","11100","Montredon-des-corbières","04.68.70.12.40","m matériaux .montredon-des-corbières@m matériaux .com","11"]
[307,"ALSINA ","43 avenue du champ de mars","11100","Narbonne","09.64.09.30.32","alsina .narbonne@alsina .com","11"]
[308,"Comurhex (SA) ","Route de moussan","11100","Narbonne","04.68.42.55.00","comurhex (sa) .narbonne@comurhex (sa) .com","11"]
[309,"Industrie Service ","27 rue beaumarchais","11100","Narbonne","04.68.65.56.67","industrie service .narbonne@industrie service .com","11"]
[310,"Scierie du Pays de Sault ","25 route d ax les thermes","11140","Belfort-sur-rebenty","04.68.20.39.04","scierie du pays de sault .belfort-sur-rebenty@scierie du pays de sault .com","11"]
[311,"Aménagement Sistemas","22 bis avenue saint marc","11200","Fabrezan","04.68.65.20.58","aménagement sistemas.fabrezan@aménagement sistemas.com","11"]
[312,"M AEROMAINTENANCE ","Rue des romains","11200","Lézignan-corbières","04.68.27.03.92","m aeromaintenance .lézignan-corbières@m aeromaintenance .com","11"]
[313,"NAGI NEGOZ INDUSTRIE ","8 rue emile pouytes","11220","Ribaute","09.62.26.55.14","nagi negoz industrie .ribaute@nagi negoz industrie .com","11"]
[314,"Roto Sieve France ","1 bis avenue du razes","11290","Lavalette","04.68.26.38.84","roto sieve france .lavalette@roto sieve france .com","11"]
[315,"SARL AUDE PLASTIQUE ","27 rue du mauzac","11300","Cépie","04.73.86.20.67","sarl aude plastique .cépie@sarl aude plastique .com","11"]
[316,"Alliance Auto Industrie ","Avenue du languedoc","11300","Limoux","04.68.49.93.36","alliance auto industrie .limoux@alliance auto industrie .com","11"]
[317,"Chasseloup Denis ","8 chemin de catalone","11300","Malviès","04.68.31.47.82","chasseloup denis .malviès@chasseloup denis .com","11"]
[318,"TRANSBAT INDUSTRIE ","Zone artisanale batipole","11300","Saint-martin-de-villereglan","04.28.83.78.32","transbat industrie .saint-martin-de-villereglan@transbat industrie .com","11"]
[319,"Poni ","1 lieu dit falgous","11310","Saissac","04.68.24.73.98","poni .saissac@poni .com","11"]
[320,"Compagnie Lauragaise ","Route de castelnaudary","11320","Soupex","04.68.94.22.34","compagnie lauragaise .soupex@compagnie lauragaise .com","11"]
[321,"GR Etudes 3C ","25 avenue de la plage","11370","Leucate","04.68.93.57.70",{"$f":"IF(B322=\"\",\"\",(LOWER(B322&\".\"&E322&\"@\"&B322&\".com\")))","v":"gr etudes 3c .leucate@gr etudes 3c .com"},{"$f":"LEFT(D322, 2)","v":"11"}]
[{"$f":"A322+1","v":322},"ENAC  ","Route du mas saintes puelles","11400","Castelnaudary","04.68.94.45.00","enac  .castelnaudary@enac  .com","11"]
[323,"Réseau Pro ","Avenue jean fourastie","11400","Castelnaudary","04.68.60.58.80","réseau pro .castelnaudary@réseau pro .com","11"]
[324,"Bernad Désenfumage ","Le ferrals","11400","Saint-papoul","04.68.94.31.89","bernad désenfumage .saint-papoul@bernad désenfumage .com","11"]
[325,"Euro Services Courtage ","Quai du ponant","11430","Gruissan","04.68.32.57.41","euro services courtage .gruissan@euro services courtage .com","11"]
[326,"CRM Industrie ","Residence les amarines","11430","Gruissan","04.68.31.50.40","crm industrie .gruissan@crm industrie .com","11"]
[327,"Industrie Service ","3 avenue barbes","11600","Villalier","04.68.47.27.66","industrie service .villalier@industrie service .com","11"]
[328,"Usine de malvesi","33 avenue barbes","11600","Villalier","04.68.47.27.66","usine de malvesi.villalier@usine de malvesi.com","11"]
[329,"BARRAUDON ","54, rue P Curie","11750","Mares","04.68.79.66.41","barraudon .mares@barraudon .com","11"]
[330,"Cosylva Sylviculteur ","Zone industrielle de sautes","11800","Trèbes","04.68.79.86.80","cosylva sylviculteur .trèbes@cosylva sylviculteur .com","11"]
[331,"Carlev ","1 rue des vanniers",12000,"Rodez ","05.65.87.22.13","carlev .rodez @carlev .com","12"]
[332,"DE SMECHT ","Avenue de la gineste",12000,"Rodez ","09.61.29.44.65","de smecht .rodez @de smecht .com","12"]
[333,"ALGIBES","Parc d'activités","12100","Milau","05.65.59.59.66","algibes.milau@algibes.com","12"]
[334,"Bro Méridionale","Route des pompes",12150,"Sévérac-le-château ","05.65.78.64.28","bro méridionale.sévérac-le-château @bro méridionale.com","12"]
[335,"Centre Bern","Lieu dit bernussou",12200,"Villefranche-de-rouergue ","05.65.45.27.74","centre bern.villefranche-de-rouergue @centre bern.com","12"]
[336,"Duboscq et Fils ","Avenue des gravasses",12200,"Villefranche-de-rouergue ","09.65.45.61.24","duboscq et fils .villefranche-de-rouergue @duboscq et fils .com","12"]
[337,"Passion SARL","21 rue Fabre","12200","Villefranche de Rouergue","05.65.04.45.01","passion sarl.villefranche de rouergue@passion sarl.com","12"]
[338,"Ets Derives ","Le pont","12300","Livinhac-le-haut ","09.71.21.82.64","ets derives .livinhac-le-haut @ets derives .com","12"]
[339,"BEIT ","10 avenue du 10 aout",12300,"Decazeville ","05.65.63.38.25","beit .decazeville @beit .com","12"]
[340,"Latieule Frères","Lieu dit Gillorgues","12340","Bouzouls","05.65.44.93.01","latieule frères.bouzouls@latieule frères.com","12"]
[341,"Lacan SA","4 rue de l'Egalité","12470","Réquista","05.66.74.01.01","lacan sa.réquista@lacan sa.com","12"]
[342,"AMSA","Zi","12490","St Rome de Tarn","05.65.62.53.23","amsa.st rome de tarn@amsa.com","12"]
[343,"De A à Zèbre","30 chem des Platières",12500,"Ceyzériat","05.58.07.09.96","de a à zèbre.ceyzériat@de a à zèbre.com","12"]
[344,"Lieu dit les capelles","Barrié Jacques ","12580","Campuac ","05.65.44.60.33","lieu dit les capelles.campuac @lieu dit les capelles.com","12"]
[345,"IEC","Gages le haut","12630","Montrozier","05.05.06.66.68","iec.montrozier@iec.com","12"]
[346,"Derriere Le Hublot ","72 avenue albert thomas",12700,"Capdenac-gare ","05.65.64.70.07","derriere le hublot .capdenac-gare @derriere le hublot .com","12"]
[347,"Portmann","25 avenue P.BERT","13000","Marseille","06.09.06.30.31","portmann.marseille@portmann.com","13"]
[348,"Sudembal","1 avenue Bauxite","13000","Marseille","04.91.98.22.22","sudembal.marseille@sudembal.com","13"]
[349,"OPYCRO","3 boulevard Grawitz","13000","Marseille","04.91.50.27.27","opycro.marseille@opycro.com","13"]
[350,"JX Nippon","4 avenue J Giono","13090 ","Aix en provence","04.42.27.25.26","jx nippon.aix en provence@jx nippon.com","13"]
[351,"Pyxidis","126 avenue Fontenaille","13100","Aix en provence","04.42.21.33.21","pyxidis.aix en provence@pyxidis.com","13"]
[352,"Spiroflux","877 zi Puis Gérard","13105","Minet","04.42.51.52.52","spiroflux.minet@spiroflux.com","13"]
[353,"Chabaud","Route de Ponteau","13117","Lavera","04.42.42.36.35","chabaud.lavera@chabaud.com","13"]
[354,"S.D.S","3 rue Valdonne","13124","Peypin","04.42.32.27.41","s.d.s.peypin@s.d.s.com","13"]
[355,"Richarson","Quai Agneau","13127","Vitrolles","04.42.77.78.78","richarson.vitrolles@richarson.com","13"]
[356,"Microrubbler","66 chemin Calameau","13140","Miramas","04.90.42.50.52","microrubbler.miramas@microrubbler.com","13"]
[357,"Métauplast","Bd E Genevet","13160","Chateaurenard","04.90.90.03.02","métauplast.chateaurenard@métauplast.com","13"]
[358,"Tec Industries","Zi Massame","13210","Saint Rémy de Provence","04.90.92.74.70","tec industries.saint rémy de provence@tec industries.com","13"]
[359,"PROVETIQ","Parc d'activités sud","13420","Géménos","04.42.32.26.26","provetiq.géménos@provetiq.com","13"]
[360,"SDMP","12 rue Vaucanson","13500","Martigues","04.42.81.55.20","sdmp.martigues@sdmp.com","13"]
[361,"UNIVOR","213 rue Deurrieu","13690","Graveson","04.90.95.11.78","univor.graveson@univor.com","13"]
[362,"NMA","avenue Vergers","13750","Plan d'orgon","04.90.74.52.36","nma.plan d'orgon@nma.com","13"]
[363,"Technic France","Chemin vert","13790","Peynier","04.42.90.90.66","technic france.peynier@technic france.com","13"]
[364,"Lefranc SA","route de Cormeilles","14100","Lisieux","02.31.31.22.13","lefranc sa.lisieux@lefranc sa.com","14"]
[365,"Sehyma","12 rue Abo","14120","Mondeville","02.31.84.87.60","sehyma.mondeville@sehyma.com","14"]
[366,"GLC","17 quai Lefévre","14120","Mondeville","02.31.83.63.69","glc.mondeville@glc.com","14"]
[367,"Borochem","10 rue Zarifian","14200","Hérouville st clair","02.31.94.50.73","borochem.hérouville st clair@borochem.com","14"]
[368,"Londe Cie","65 rue de la République","14220","Boulon","02.31.79.33.36","londe cie.boulon@londe cie.com","14"]
[369,"Euro plastique","3 rue Carreaux","14330","Molay littry","02.31.22.94.50","euro plastique.molay littry@euro plastique.com","14"]
[370,"Mécacorp","2 rue de l'industrie","14500","vire","02.31.66.13.20","mécacorp.vire@mécacorp.com","14"]
[371,"CECA sa","21 avenue Duchesne","14500","Honfleur","02.31.89.36.36","ceca sa.honfleur@ceca sa.com","14"]
[372,"Plastiform","4 rue Paul Cauche","14500","Vire","02.31.31.25.25","plastiform.vire@plastiform.com","14"]
[373,"Hamelin","4 rue des frères Chappe","14540","Grentheville","02.31.82.70.62","hamelin.grentheville@hamelin.com","14"]
[374,"DBR Composit","chemin Fosserie","14600","Honfleur","02.31.98.32.32","dbr composit.honfleur@dbr composit.com","14"]
[375,"Actiplast","2 rue du miroir","14630","Eméville","02.31.85.60.52","actiplast.eméville@actiplast.com","14"]
[376,"S3P Composites","ZA Varendes","14680","Bretteville Sur Laize","02.31.79.80.82","s3p composites.bretteville sur laize@s3p composites.com","14"]
[377,"Quargnul","14 rue Lavoisier","14700","Falaise","02.31.20.06.06","quargnul.falaise@quargnul.com","14"]
[378,"Plas Eco","13 rue Bel air","14790","Verson","02.31.26.30.30","plas eco.verson@plas eco.com","14"]
[379,"Pante","14 rue du Val","14860","Bavent","02.31.78.08.08","pante.bavent@pante.com","14"]
[380,"Debert sa","32 avenue Lioran","15000","Aurillac","04.71.52.87.87","debert sa.aurillac@debert sa.com","15"]
[381,"Forage aquatherm","4 zac Florizane","15100","Saint Flour","04.71.25.36.69","forage aquatherm.saint flour@forage aquatherm.com","15"]
[382,"ACC","route Aurillac","15130","Sansac de marmiesse","04.71.62.81.00","acc.sansac de marmiesse@acc.com","15"]
[383,"Potel Serge","Les Crozes","15130","Arpajon sur Cère","04.71.43.11.02","potel serge.arpajon sur cère@potel serge.com","15"]
[384,"Solaires alter","le bourg","15130","Prunet","04.71.25.63.36","solaires alter.prunet@solaires alter.com","15"]
[385,"Protec Sa","3 rue Le bois corail",15130,"Arpajon sur Cère","04.71.64.65.85",{"$f":"IF(B386=\"\",\"\",(LOWER(B386&\".\"&E386&\"@\"&B386&\".com\")))","v":"protec sa.arpajon sur cère@protec sa.com"},{"$f":"LEFT(D386, 2)","v":"15"}]
[{"$f":"A386+1","v":386},"TRACAL","23 rue Bessanes",15130,"Ytrac","04.71.47.75.75","tracal.ytrac@tracal.com","15"]
[387,"Raure Sa","La gare",15170,"Ferrières St Mary","04.71.20.61.61","raure sa.ferrières st mary@raure sa.com","15"]
[388,"Product air","27 rue Ribeyre","15500","Massiac","04.71.52.36.52","product air.massiac@product air.com","15"]
[389,"Lape SARL","Bl Lafont",15600,"Quézac","04.71.46.79.96","lape sarl.quézac@lape sarl.com","15"]
[390,"GIFA Eurl","147 rue de Limoges","16000","Angoulème","05.45.54.54.32","gifa eurl.angoulème@gifa eurl.com","16"]
[391,"Sodilège","575 avenue Gineux","16100","Merpins","05.45.22.82.26","sodilège.merpins@sodilège.com","16"]
[392,"Cognac Laserr","ZI Les Rennes","16100","Châteaubernard","05.45.21.21.20","cognac laserr.châteaubernard@cognac laserr.com","16"]
[393,"Hubert et Frères","ZAE Pnt Neuf","16130","Salles d'Angles","05.45.21.58.58","hubert et frères.salles d'angles@hubert et frères.com","16"]
[394,"Décap Pro","4 rue St jacques","16130","Gineux","05.45.21.87.22","décap pro.gineux@décap pro.com","16"]
[395,"Actunet","ZI 3 Centre","16160","Gond Pontouvre","05.45.21.28.87","actunet.gond pontouvre@actunet.com","16"]
[396,"Marchesson sa","ZA Le Bois Nord","16290","Asnières sur nouère","05.45.87.85.24","marchesson sa.asnières sur nouère@marchesson sa.com","16"]
[397,"Systems A","ZA Corlut","16320","Ronsenac","05045.14.41.41","systems a.ronsenac@systems a.com","16"]
[398,"SPMC","63 avenue Bastié","16340","ISLE d'Espagnac","05.45.98.98.63","spmc.isle d'espagnac@spmc.com","16"]
[399,"H.I.S","518 rue Merisiers","16430","Champniers","05.45.45.63.63","h.i.s.champniers@h.i.s.com","16"]
[400,"Amco","route de Fougerous","16430","Balzac","05.45.69.36.32","amco.balzac@amco.com","16"]
[401,"Georges ML","70 rue Doucet","16470","Saint Michel","05.45.66.66.22","georges ml.saint michel@georges ml.com","16"]
[402,"Charente pliage","le Bourg","16620","Montboyer","05.45.98.98.60","charente pliage.montboyer@charente pliage.com","16"]
[403,"Trame","15 rue J.B Clément","17000","La Rochelle","05.46.92.92.96","trame.la rochelle@trame.com","17"]
[404,"Micusa","8 rue Trinquelle","17000","La Rochelle","05.46.44.32.30","micusa.la rochelle@micusa.com","17"]
[405,"Baron S.A","20 rue Billardeaux","17100","Les Gonds","05046.93.93.00","baron s.a.les gonds@baron s.a.com","17"]
[406,"Mécanique d'Aunis","3 route Montvallon","17100","Fontcouverte","05.46.71.74.74","mécanique d'aunis.fontcouverte@mécanique d'aunis.com","17"]
[407,"PS Evements","30 cours P.Doumer","17100","Saintes","05.46.25.25.26","ps evements.saintes@ps evements.com","17"]
[408,"Kerson S.A","17 rue Chalbert","17120","Meursac","05.46.35.35.00","kerson s.a.meursac@kerson s.a.com","17"]
[409,"Composites S.A.R.L","6 rue A. Ampère","17180","Périgny","05.46.90.24.25","composites s.a.r.l.périgny@composites s.a.r.l.com","17"]
[410,"Tout confort","20 rue de la Forêt","17250","Plassay","05.46.88.70.21","tout confort.plassay@tout confort.com","17"]
[411,"E.M.C environnement","10 rue Paimpol","17310","Rochefort","05.46.99.09.00","e.m.c environnement.rochefort@e.m.c environnement.com","17"]
[412,"Bossuet Tonnellerie","11 rue Hillairets",17500,"Saint Simon de bordes","05.46.52.58.87","bossuet tonnellerie.saint simon de bordes@bossuet tonnellerie.com","17"]
[413,"Montel SARL","7 rue des vignes","17800","Pons","05.46.65.58.12","montel sarl.pons@montel sarl.com","17"]
[414,"STUV ACD distribution","21 route de l'Espic","17920","Breuillet","05.46.39.19.21","stuv acd distribution.breuillet@stuv acd distribution.com","17"]
[415,"Pesage Bilanciai","5 rue A.Einstein","18000","Bourges","02.48.23.11.11","pesage bilanciai.bourges@pesage bilanciai.com","18"]
[416,"Trodeux SA","10 avenue d'Orléans","18000","Bourges","02.48.24.56.56","trodeux sa.bourges@trodeux sa.com","18"]
[417,"Goblert SARL","2 rue Pierre Serpaud","18100","Vierzon","02.48.75.09.09","goblert sarl.vierzon@goblert sarl.com","18"]
[418,"Berteau SA","15 rue M.Perrin","18100","Vierzon","02.48.53.53.59","berteau sa.vierzon@berteau sa.com","18"]
[419,"Bernardy","12 route de Tours","18100","Thenioux","02.48.53.03.03","bernardy.thenioux@bernardy.com","18"]
[420,"Bondon SA","12 rue Chardons","18110","Fussy","02.48.69.90.32","bondon sa.fussy@bondon sa.com","18"]
[421,"Modelform","4 avenue Bisson","18120","Méreau","02.48.71.91.91","modelform.méreau@modelform.com","18"]
[422,"Sofoc","3 route lignière","18200","Nozières","02.48.61.54.54","sofoc.nozières@sofoc.com","18"]
[423,"Mecabess","Zac Du Val D'aujon","18340","Plaimpied","02.48.25.60.26","mecabess.plaimpied@mecabess.com","18"]
[424,"Esta Blanc","12 rue Diderot","18390","ST Germain du Puy","02.48.23.11.11","esta blanc.st germain du puy@esta blanc.com","18"]
[425,"Bedu SARL","4 rue de l'industrie","18400","ST Florent sur cher","02.48.55.47.47","bedu sarl.st florent sur cher@bedu sarl.com","18"]
[426,"Labonne Bertrand","ZAC Chagnières","18570","Le Subdray","02.48.23.45.45","labonne bertrand.le subdray@labonne bertrand.com","18"]
[427,"Romis S.A.S","4 rue Neuilly","18600","Sancoins","02.48.74.50.50","romis s.a.s.sancoins@romis s.a.s.com","18"]
[428,"EMCI","40 rue F.Delmas","19100","Brive la Gaillarde","05.55.23.04.02","emci.brive la gaillarde@emci.com","19"]
[429,"Pascal Boutot","5 rue G.ALVAREZ","19100","Brive la !gaillarde","05.55.24.43.00","pascal boutot.brive la !gaillarde@pascal boutot.com","19"]
[430,"S.O.B ","30 av Thiers",19100,"Brive la Gaillarde","05 55 24 24 63","s.o.b .brive la gaillarde@s.o.b .com","19"]
[431,"Mr Bricolage","817 av Ribeyrolles","19110","Bort les Orgues","05.55.96.84.84","mr bricolage.bort les orgues@mr bricolage.com","19"]
[432,"SUCLA SA","rue Bourgeois","19200","Ussel","05.55.74.66.99","sucla sa.ussel@sucla sa.com","19"]
[433,"Metallerie Beynet","3 rue du petit garavet","19240","Allassac","05.55.84.74.00","metallerie beynet.allassac@metallerie beynet.com","19"]
[434,"Trousse et fils","zac sud","19240","Saint Viance","05.55.86.83.83","trousse et fils.saint viance@trousse et fils.com","19"]
[435,"Temaco","zi nord","19270","Donzenac","05.44.85.77.77","temaco.donzenac@temaco.com","19"]
[436,"Boudie sarl","ZAC Aiguillon","19270","Ussac","05.55.87.88.88","boudie sarl.ussac@boudie sarl.com","19"]
[437,"C.S.T.I Sarl","17 Grand rue","19270","Ste Féréole","05.55.92.16.16","c.s.t.i sarl.ste féréole@c.s.t.i sarl.com","19"]
[438,"Camci Métal","19 avenue de l'industrie","19360","Malemort sur corrèze","05.55.66.55.88","camci métal.malemort sur corrèze@camci métal.com","19"]
[439,"Electro Zing","parc industriel","19520","Mansac","05.55.85.16.16","electro zing.mansac@electro zing.com","19"]
[440,"Hycamep","10 rue H.Bessemer","19700","Seilhac","05.55.74.55.36","hycamep.seilhac@hycamep.com","19"]
[441,"Process SA","2 rue Dolet","21000","Dijon","03.80.28.90.90","process sa.dijon@process sa.com","21"]
[442,"CSB","19 rue Plucharde","21110","Bretenière","03.80.63.92.32","csb.bretenière@csb.com","21"]
[443,"Simonet sarl","2 place Saffres","21120","Fonatiane les dijon","03.80.23.36.54","simonet sarl.fonatiane les dijon@simonet sarl.com","21"]
[444,"System GF","3 rue wilson","21120","Is sur Tille","03.80.95.61.61","system gf.is sur tille@system gf.com","21"]
[445,"Automat system","RN 5","21130","Villers les Pots","03.80.27.01.01","automat system.villers les pots@automat system.com","21"]
[446,"S.T.P.I","7 route de lamarche","21270","Vonges","03.80.47.23.23","s.t.p.i.vonges@s.t.p.i.com","21"]
[447,"Sermab","2 rue Jacques Daguerre","21300","Chenôve","03.80.59.61.61","sermab.chenôve@sermab.com","21"]
[448,"C.E.F","3 rue frères lumières","21300","Chenove","03.80.58.87.87","c.e.f.chenove@c.e.f.com","21"]
[449,"Ets Patissier","Zac Sud","21700","Nuits st Georges","03.80.61.23.23",{"$f":"IF(B450=\"\",\"\",(LOWER(B450&\".\"&E450&\"@\"&B450&\".com\")))","v":"ets patissier.nuits st georges@ets patissier.com"},{"$f":"LEFT(D450, 2)","v":"21"}]
[{"$f":"A450+1","v":450},"Besson SA","10 allée Plantes","21800","Chevigny saint sauveur","03.80.45.45.23","besson sa.chevigny saint sauveur@besson sa.com","21"]
[451,"Cegelec","9 rue Charpiau","21800","Quétigny","03.80.36.36.48","cegelec.quétigny@cegelec.com","21"]
[452,"C.E.R.P","9 rue Plucharde","21850","Saint Appolinaire","03.80.73.73.45","c.e.r.p.saint appolinaire@c.e.r.p.com","21"]
[453,"Amendis","64 r Notre Dame",22000,"Saint Brieuc"," 02 96 33 38 08","amendis.saint brieuc@amendis.com","22"]
[454,"Cousté Solutions","Rue de Penthièvre",22130,"Plancoët","02 52 88 07 84","cousté solutions.plancoët@cousté solutions.com","22"]
[455,"Huon  (SAS) ","Ar Coat Couls",22140,"Bégard"," 02 96 45 45 45","huon  (sas) .bégard@huon  (sas) .com","22"]
[456,"Atelier Des Landes ","lieu-dit Braguette",22170,"Plélo","02.25.45.45.78","atelier des landes .plélo@atelier des landes .com","22"]
[457,"Dep Montage  (Sarl)","Le Murio",22200,"Plouisy","02.96.44.36.67","dep montage  (sarl).plouisy@dep montage  (sarl).com","22"]
[458,"A.T.P.A","Zone Artisanale",22230,"Illifaut","02 96 56 60 96","a.t.p.a.illifaut@a.t.p.a.com","22"]
[459,"Carré Energie ","La Thibouvais",22250,"Plumaugat"," 02 96 83 13 97","carré energie .plumaugat@carré energie .com","22"]
[460,"La Fumaison Saucisses","za Beauséjour",22490,"Pleslin Trigavou"," 02 96 27 13 78","la fumaison saucisses.pleslin trigavou@la fumaison saucisses.com","22"]
[461,"Dep Service  (Sarl) ","za Maudez",22540,"Pédernec","02.96.45.35.53","dep service  (sarl) .pédernec@dep service  (sarl) .com","22"]
[462,"M.I.I.L.","za Larhon",22600,"Saint Barnabé","02 96 28 14 91","m.i.i.l..saint barnabé@m.i.i.l..com","22"]
[463,"Armorhyd","6 rue Charles Frecynet",22950,"Trégueux","02 96 76 50 43","armorhyd.trégueux@armorhyd.com","22"]
[464,"Zolpan ","22 r Stalingrad",23000,"GUERET"," 05 55 51 93 13","zolpan .gueret@zolpan .com","23"]
[465,"Villemeyre Guy ","La Grande Tornage",23110,"Evaux les Bains","05 55 65 54 77","villemeyre guy .evaux les bains@villemeyre guy .com","23"]
[466,"Vert Dure ","6 Goutte",23160,"SAINT SEBASTIEN"," 06 79 28 06 28","vert dure .saint sebastien@vert dure .com","23"]
[467,"Viollet Jean-Philippe ","1 Bazonnerie",23160,"AZERABLES"," 05 55 63 43 33","viollet jean-philippe .azerables@viollet jean-philippe .com","23"]
[468,"Walker Charles ","14 Parchimbaud",23160,"SAINT SEBASTIEN","05 55 63 78 31","walker charles .saint sebastien@walker charles .com","23"]
[469,"Pharmacie Laval ","11 r Vaveix",23200,"Aubusson","05 55 66 39 16","pharmacie laval .aubusson@pharmacie laval .com","23"]
[470,"Directe De La Ferme ","1 ld vergnes",23290,"SAINT ETIENNE DE FURSAC","05 55 63 36 18","directe de la ferme .saint etienne de fursac@directe de la ferme .com","23"]
[471,"Verladis ","1 rte Bois",23360,"LOURDOUEIX SAINT PIERRE","05 55 81 03 74","verladis .lourdoueix saint pierre@verladis .com","23"]
[472,"Aquaroche ","5 Pont",23380,"Glénic"," 05.55.52.69.06","aquaroche .glénic@aquaroche .com","23"]
[473,"Vaquier Louis ","Mourne",23400,"FAUX MAZURAS","05 55 64 18 88","vaquier louis .faux mazuras@vaquier louis .com","23"]
[474,"Vert Limousin ","Chantegris",23400,"MONTBOUCHER","05 55 64 61 10","vert limousin .montboucher@vert limousin .com","23"]
[475,"Vitanutrition ","13 r Sagne Jurade",23420,"MERINCHAL","05 55 67 20 36","vitanutrition .merinchal@vitanutrition .com","23"]
[476,"ArcelorMittal pergueux ","All port",24000,"pérpigueux ","03.02.88.89.98","arcelormittal pergueux .pérpigueux @arcelormittal pergueux .com","24"]
[477,"Chaudronnerie Calvet ","ZA Vallade Sud",24100,"Bergerac","03.14.47.25.36","chaudronnerie calvet .bergerac@chaudronnerie calvet .com","24"]
[478,"V.C.N ","Zae peyre ",24240,"Sigoulés ","03.78.12.11.15","v.c.n .sigoulés @v.c.n .com","24"]
[479,"3 E Services ","La tenancie",24380,"Eglise Neuve de Vergt ","03.45.96.36.46","3 e services .eglise neuve de vergt @3 e services .com","24"]
[480,"Trapy Pro (SAS)","av industrie ",24430,"Marsac sur l'lsle","03.45.96.36.45","trapy pro (sas).marsac sur l'lsle@trapy pro (sas).com","24"]
[481,"Pelliser Etablissement ","Chapelle ",24500,"Eymet ","03.25.47.58.69","pelliser etablissement .eymet @pelliser etablissement .com","24"]
[482,"Brusamilin et Fils","La Douelle Nord ",24540,"Monpazier ","03.59.65.14.68","brusamilin et fils.monpazier @brusamilin et fils.com","24"]
[483,"Sojac Industrie (SARL)","Lieu-dit cendronne ",24560,"Plaissance ","03.69.78.45.12","sojac industrie (sarl).plaissance @sojac industrie (sarl).com","24"]
[484,"AEB (SARL) ","37 r de la rivière Chancel ",24750,"Trélissac ","03.45.96.36.47","aeb (sarl) .trélissac @aeb (sarl) .com","24"]
[485,"Rapic (SAS)","ld Le jacoquier ZAE de Labaurie",24800,"Eyzarac ","03.14.56.78.94","rapic (sas).eyzarac @rapic (sas).com","24"]
[486,"Bailly Roland","5 r Bernard Palissy",25000,"Besançon  ","03,81,50,48,77","bailly roland.besançon  @bailly roland.com","25"]
[487,"Br Microtop","4 j chem Palente",25000,"Besançon","03,57,48,04,53","br microtop.besançon@br microtop.com","25"]
[488,"E2m Services","28 bis rue de Trey",25000,"Besançon","06,72,83,34,96","e2m services.besançon@e2m services.com","25"]
[489,"Electro service Gonckel","57 r Romain Roussel",25000,"Besançon","03,81,80,59,04","electro service gonckel.besançon@electro service gonckel.com","25"]
[490,"Vinci Facilities","3 r Bruyéres",25042,"Besançon cedex","03,81,401,401","vinci facilities.besançon cedex@vinci facilities.com","25"]
[491,"vautrin pére et fils","6 r Commerce",25190,"Villars sous Dampjoux","03,81,92,29,26","vautrin pére et fils.villars sous dampjoux@vautrin pére et fils.com","25"]
[492,"Ac Automation","6 rte Besançon",25210,"Bonnétage","03,81,43,81,31","ac automation.bonnétage@ac automation.com","25"]
[493,"Apv","30 r Docteur Jean Michel",25300,"Vuillecin","03,81,46,64,01","apv.vuillecin@apv.com","25"]
[494,"Ads","1 r Cardiers Z,I chemaudin",25320,"Chemaudin","03,81,58,47,44","ads.chemaudin@ads.com","25"]
[495,"Apm","21 bis r Quatre Vents",25620,"Marmirolle","03,81,55,91,74","apm.marmirolle@apm.com","25"]
[496,"Kluber Lubrication France","10 à 16 allée Ducrete",26000,"Valence","04.75.86.43.19","kluber lubrication france.valence@kluber lubrication france.com","26"]
[497,"Matériel Forestier Astic","75 chem bertrand rn 7",26000,"Valence","04.75.84.69.40","matériel forestier astic.valence@matériel forestier astic.com","26"]
[498,"N.P.P.M ","Les Mourières",26120,"Montélier","04.75.59.19.31","n.p.p.m .montélier@n.p.p.m .com","26"]
[499,"Hévéa","95 r simone beauvoir",26290,"Donzère","04.75.51.69.72","hévéa.donzère@hévéa.com","26"]
[500,"Baldacchino et Cie","Quart Carmats",26500,"Bourg les Valence","04.75.83.13.13","baldacchino et cie.bourg les valence@baldacchino et cie.com","26"]
[501,"valhona chocolaterie","Site DODET ZA Les Lots",26600,"Tain l'hermitage","04.75.07.90.90","valhona chocolaterie.tain l'hermitage@valhona chocolaterie.com","26"]
[502,"Nougat Diane de Poytiers","75 chem Bertrand RN 7",26600,"Pont de l'Isère"," 04.75.84.69.40","nougat diane de poytiers.pont de l'isère@nougat diane de poytiers.com","26"]
[503,"T.S.C.T.","21 r Paul Sabatier",26700,"Pierrelatte","04 75 96 34 13","t.s.c.t..pierrelatte@t.s.c.t..com","26"]
[504,"Reyes Constructions","570 av Pierre Brossolette",26800,"Portes lès Valence","04 75 82 23 40","reyes constructions.portes lès valence@reyes constructions.com","26"]
[505,"Valence Cedex 9","Parc du 45ème Parallèle ",26958,"Valence Cedex 9"," 04.75.48.33.33","valence cedex 9.valence cedex 9@valence cedex 9.com","26"]
[506,"E.N.R.I ","ZA de la Bellerie",27260,"Epaignes","02.32.57.87.89","e.n.r.i .epaignes@e.n.r.i .com","27"]
[507,"Heller  Alexander ","6 Les Noires Terres",27370,"Mandeville","02.32.09.00.02","heller  alexander .mandeville@heller  alexander .com","27"]
[508,"Louvel Pesage ","74 r Maquis Surcouf",27500,"Pont Audemer","02.32.41.04.79","louvel pesage .pont audemer@louvel pesage .com","27"]
[509,"SYNOVA","Espace Baron Lacour",27570,"Tillières sur Avre"," 02.32.60.44.44","synova.tillières sur avre@synova.com","27"]
[510,"A.M.B","20 r De L'Acre Fayel",27600,"Saint Julien de la Liègue","02.32.53.03.13","a.m.b.saint julien de la liègue@a.m.b.com","27"]
[511,"E.S.G","zone Artisanale 19 r Bergerie",27600,"Gaillon","02.32.77.34.00","e.s.g.gaillon@e.s.g.com","27"]
[512,"Martin Chanu","BP 5",27750,"Couture Boussey (La)","02.32.36.74.40","martin chanu.couture boussey (la)@martin chanu.com","27"]
[513,"UFS","za Coutumes",27930,"Guichainville","02.32.28.71.90",{"$f":"IF(B514=\"\",\"\",(LOWER(B514&\".\"&E514&\"@\"&B514&\".com\")))","v":"ufs.guichainville@ufs.com"},{"$f":"LEFT(D514, 2)","v":"27"}]
[{"$f":"A514+1","v":514},"XL-Sound ","15 r des Fileurs",28000,"Chartres","03.45.45.65.11","xl-sound .chartres@xl-sound .com","28"]
[515,"Vincent Assainissement ","20 r Granges",28100,"Dreux","03.69.44.82.21","vincent assainissement .dreux@vincent assainissement .com","28"]
[516,"Dreux Bobinage","1 r Henry Potez",28100,"Dreux","03.41.65.47.42","dreux bobinage.dreux@dreux bobinage.com","28"]
[517,"Sypac Laboratoire","59 r Mar Leclerc",28110,"Lucé","03.21.25.65.48","sypac laboratoire.lucé@sypac laboratoire.com","28"]
[518,"Diragri","r Illiers",28120,"Bailleau le Pin","03.45.55.47.42","diragri.bailleau le pin@diragri.com","28"]
[519,"Lhuillery et Beulet","6 r Treize Langues",28200,"Châteaud","03.95.74.62.51","lhuillery et beulet.châteaud@lhuillery et beulet.com","28"]
[520,"Hamon Thermal Europe","ZI",28290,"Arrou","03.21.05.65.48","hamon thermal europe.arrou@hamon thermal europe.com","28"]
[521,"Numeric Concept","39 av Gérard Philippe",28300,"Lèves","03.12.85.46.96","numeric concept.lèves@numeric concept.com","28"]
[522,"Marchais","1 pl Madeleine",28410,"Broué","03.54.95.34.41","marchais.broué@marchais.com","28"]
[523,"Leoni CIA Cable Systems","1 av Louis Pasteur",28630,"Gellainville","03.25.14.74.55","leoni cia cable systems.gellainville@leoni cia cable systems.com","28"]
[524,"Bretagne Hydraulique","Zac Troyalach 23 r André ",29170,"Saint Evarzec","02,98,94,68,18","bretagne hydraulique.saint evarzec@bretagne hydraulique.com","29"]
[525,"Ecotri D3E","za de park ar C'hastel",29170,"Fouesnant","02,98,56,70,28","ecotri d3e.fouesnant@ecotri d3e.com","29"]
[526,"Cadiou Industrie","rte Douarnenez BP16",29180,"Locronan","02,98,91,73,01","cadiou industrie.locronan@cadiou industrie.com","29"]
[527,"3A Industrie","2 r Pierre Martin",29200,"Brest","02,98,89,89,99","3a industrie.brest@3a industrie.com","29"]
[528,"Arema","zone kergonan 20 r Maupertuis",29200,"Brest","02,98,42,47,49","arema.brest@arema.com","29"]
[529,"Berra Marine Service","46 r Am Troude ",29200,"Brest","02,98,44,44,91","berra marine service.brest@berra marine service.com","29"]
[530,"Jabil circuit","8 r de kervézennec CS",29228,"Brest","02,98,14,20,00","jabil circuit.brest@jabil circuit.com","29"]
[531,"Rest construction","za kerhervé",29270,"Cléden Poher","02,98,93,42,54","rest construction.cléden poher@rest construction.com","29"]
[532,"GTID","2 r Charles Jourde BP 223",29804,"Brest","02,98,02,03,40","gtid.brest@gtid.com","29"]
[533,"Cornouille Laser","La boissiére",29900,"Concarneau","02,98,66,92,75","cornouille laser.concarneau@cornouille laser.com","29"]
[534,"(AGRI TP SERVICES) ","8 Arles",30127,"BELLEGARDE","09 51 90 81 47","(agri tp services) .bellegarde@(agri tp services) .com","30"]
[535,"Astier Olivier ","156 che Vaque Basse",30127,"BELLEGARDE","04 66 20 23 49","astier olivier .bellegarde@astier olivier .com","30"]
[536,"Vera Thierry","4 che Saint Esteve",30128,"GARONS"," 04 66 70 09 70","vera thierry.garons@vera thierry.com","30"]
[537,"Angles Rectification ","5 r Auberte",30133,"ANGLES (LES)","04 90 15 06 39","angles rectification .angles (les)@angles rectification .com","30"]
[538,"Aftech  (Sarl) ","7 r Barthélemy Contestin",30300,"FOURQUES","04 90 93 17 36","aftech  (sarl) .fourques@aftech  (sarl) .com","30"]
[539,"Atelier Mécanique  ","rte 936",30360,"VEZENOBRES"," 04 66 52 29 40","atelier mécanique  .vezenobres@atelier mécanique  .com","30"]
[540,"WILLIAM JONQUET ","108 imp Hirondelles",30380,"SAINT CHRISTOL LES ALES","04 66 60 70 04","william jonquet .saint christol les ales@william jonquet .com","30"]
[541,"A.M.G.C ","6497 che Bois",30500,"SAINT AMBROIX"," 04 66 24 20 87","a.m.g.c .saint ambroix@a.m.g.c .com","30"]
[542,"Atelier Usinage Beltritti ","mas Serre",30510,"GENERAC","04 66 58 41 77","atelier usinage beltritti .generac@atelier usinage beltritti .com","30"]
[543,"ADMS  (SARL) ","Coquelicots",30730,"SAINT MAMERT DU GARD","04 66 22 91 14","adms  (sarl) .saint mamert du gard@adms  (sarl) .com","30"]
[544,"ALmuneau","20 chemin Aigues",30740,"Le Cailar","06.03.31.91.20","almuneau.le cailar@almuneau.com","30"]
[545,"Apim Métal ","rte Fourques",30800,"SAINT GILLES","04 66 87 29 80","apim métal .saint gilles@apim métal .com","30"]
[546,"Adriano Soxad  ","1153 av Docteur Fleming",30900,"NIMES","04 66 64 60 37","adriano soxad  .nimes@adriano soxad  .com","30"]
[547,"AFS Sarl","3 Bd Castaing","31120","Roques sur Garonne","05.34.25.25.26","afs sarl.roques sur garonne@afs sarl.com","31"]
[548,"AFFUT D'Oc","2 rue Bénélux","31150","Lespinasse","05.34.37.03.10","affut d'oc.lespinasse@affut d'oc.com","31"]
[549,"A.T.E.","8 Ter rue de la viollette","31240","L'union","05.62.22.33.66","a.t.e..l'union@a.t.e..com","31"]
[550,"ALPYR2","zi Terroira","31400","Saint Alban","05.34.2703.03","alpyr2.saint alban@alpyr2.com","31"]
[551,"Carboland  (Ets) ","69 Crs Edouard Vaillan",33041,"Xaintrailles","05 53 65 55 44","carboland  (ets) .xaintrailles@carboland  (ets) .com","33"]
[552,"REP Industrie ","69 Crs Edouard Vaillant ",33041,"Bordeaux Cedex","05 57 100 900","rep industrie .bordeaux cedex@rep industrie .com","33"]
[553,"Lehoux Multi Diffusion ","54 qu Brazza",33100,"Bordeaux"," 05 56 86 01 00","lehoux multi diffusion .bordeaux@lehoux multi diffusion .com","33"]
[554,"Vidrala  (SA) ","1 quai Wilson",33130,"Bègles","05 56 20 59 89","vidrala  (sa) .bègles@vidrala  (sa) .com","33"]
[555,"Adefi ","av Gaston Cabannes",33270,"Floirac","05 56 32 62 85","adefi .floirac@adefi .com","33"]
[556,"Cabinet Etudes ","3 quai Numa Sensine",33310,"Lormont","05 56 32 77 94","cabinet etudes .lormont@cabinet etudes .com","33"]
[557,"Venier  ","53 av Haillan",33320,"Eysines","05 56 28 35 50","venier  .eysines@venier  .com","33"]
[558,"Worthington ","49-51 r du 19 Mars 1962 BP ",33326,"Eysines Cedex","05 56 29 17 43","worthington .eysines cedex@worthington .com","33"]
[559,"Laplagne Fluid'Industries","49-51 r du 19 Mars 1962 B",33326,"Eysines Cedex"," 05 56 29 17 43","laplagne fluid'industries.eysines cedex@laplagne fluid'industries.com","33"]
[560,"Vignobles Brunot ","1 Jean Melin",33330,"Saint Emilion"," 05 57 55 09 95","vignobles brunot .saint emilion@vignobles brunot .com","33"]
[561,"JG-PC ","20 r CONSTANTINE",33350,"Sainte Terre","06 80 01 83 86","jg-pc .sainte terre@jg-pc .com","33"]
[562,"Vieussan Jean ","ZA de Tresses 22 rue Newton",33370,"Tresses","05 57 97 94 70","vieussan jean .tresses@vieussan jean .com","33"]
[563,"Westfalen France","4 chem de l'Oubray",33610,"Cestas","05 56 68 84 00","westfalen france.cestas@westfalen france.com","33"]
[564,"Actemium Bordeaux ","31 av Neil Armstrong -",33702,"Mérignac Cedex","05 57 92 26 00","actemium bordeaux .mérignac cedex@actemium bordeaux .com","33"]
[565,"CADIEUX SA","1 rue Jasse de Maurin","34000","Montpellier","04.67.87.69.33","cadieux sa.montpellier@cadieux sa.com","34"]
[566,"Zeraia Nadim","4 r Faubourg St Jaumes",34000,"MONTPELLIER","04.67.54.72.05","zeraia nadim.montpellier@zeraia nadim.com","34"]
[567,"Aletheia Audiovisuel","42 r Adam de Craponne La Friche de Mimi",34000,"MONTPELLIER","06.11.09.14.92","aletheia audiovisuel.montpellier@aletheia audiovisuel.com","34"]
[568,"Application Vidéo ","1025 av Henri Becquerel",34000,"MONTPELLIER","04.67.82.25.32","application vidéo .montpellier@application vidéo .com","34"]
[569,"AMC","19 rue de la coline","34070","Montpellier","04.67.55.55.56","amc.montpellier@amc.com","34"]
[570,"AVR COM ","8 r Lavoirs",34130,"Mudaison","04.67.70.39.13","avr com .mudaison@avr com .com","34"]
[571,"XavierCailhol.com ","11 r Boulodrome",34160,"BEAULIEU","06.04.17.15.88","xaviercailhol.com .beaulieu@xaviercailhol.com .com","34"]
[572,"A.M.I.S","6 av Marx Dormoy",34200,"SETE","04.67.51.26.60","a.m.i.s.sete@a.m.i.s.com","34"]
[573,"Wendels Concepteur","63 all Plage 90 Village Soleil",34280,"GRANDE MOTTE (LA)","04.99.06.00.71","wendels concepteur.grande motte (la)@wendels concepteur.com","34"]
[574,"A.C.S.","17 lot Zone Artisanale",34320,"Roujan","04.67.24.84.82","a.c.s..roujan@a.c.s..com","34"]
[575,"Atreid","ZAC 145 imp John Locke",34470,"Pérols","04.67.15.61.77","atreid.pérols@atreid.com","34"]
[576,"2SI Prod ","635 av Robert Malthus",34470,"PEROLS"," 04.67.99.88.20","2si prod .perols@2si prod .com","34"]
[577,"BVL","34 avenue J Foucault",34500,"Béziers","04.67.30.93.09",{"$f":"IF(B578=\"\",\"\",(LOWER(B578&\".\"&E578&\"@\"&B578&\".com\")))","v":"bvl.béziers@bvl.com"},{"$f":"LEFT(D578, 2)","v":"34"}]
[{"$f":"A578+1","v":578},"A.E.R.V.I  ","2 imp Rocailles",34660,"COURNONTERRAL","04.67.85.44.09","a.e.r.v.i  .cournonterral@a.e.r.v.i  .com","34"]
[579,"Yale Production","1 r Théophile Gautier",34760,"BOUJAN SUR LIBRON","09.59.43.92.28","yale production.boujan sur libron@yale production.com","34"]
[580,"MARC SA","11 BD Muller","35000","Rernnes","02.25.25.23.36","marc sa.rernnes@marc sa.com","35"]
[581,"Paredes Rennes","14 r Jacqueline  Auriol",35091,"Rennes Cedex ","02,99,05,76,76","paredes rennes.rennes cedex @paredes rennes.com","35"]
[582,"Le tinier Morin","13 r des Maréchales",35132,"Vezin le coquet","02,99,00,12,13","le tinier morin.vezin le coquet@le tinier morin.com","35"]
[583,"Ateliers du Douet","3 all Douet",35133,"Saint Sauveur des Landes","02,99,98,81,82","ateliers du douet.saint sauveur des landes@ateliers du douet.com","35"]
[584,"Blovelec BMP","La janais",35136,"Saint Jacques de la Lande","02,99,30,19,79","blovelec bmp.saint jacques de la lande@blovelec bmp.com","35"]
[585,"Pateer France","r Gay Lussac",35170,"Bruz","02,99,05,95,95","pateer france.bruz@pateer france.com","35"]
[586,"GLT Méca","za Maupas",35290,"Saint Méen le grand","02,99,09,49,85","glt méca.saint méen le grand@glt méca.com","35"]
[587,"STMO","65 r Kléber",35301,"Fougéres","02,99,94,30,18","stmo.fougéres@stmo.com","35"]
[588,"Ocene","av Monthorin",35420,"Louvigné du Désert","02,99,98,00,58","ocene.louvigné du désert@ocene.com","35"]
[589,"Laiterie Triballat","2 r Julien Neveu B,P",35531,"Noyal sur Vilaine ","02,99,04,11,11","laiterie triballat.noyal sur vilaine @laiterie triballat.com","35"]
[590,"Chromatlantique","Za Rosais",35550,"Sixt sur Aff","02,99,70,00,91","chromatlantique.sixt sur aff@chromatlantique.com","35"]
[591,"Chaudronnerie Colin ","8 bis bd Anvaux",36000,"Châteauroux"," 02.54.22.06.76","chaudronnerie colin .châteauroux@chaudronnerie colin .com","36"]
[592,"Fortec","19 bd Croix Normand",36000,"Châteauroux","02.54.34.19.84","fortec.châteauroux@fortec.com","36"]
[593,"Laboratoires Fenioux","9 av Pierre de Coubertin",36000,"Châteauroux","02.54.27.16.94","laboratoires fenioux.châteauroux@laboratoires fenioux.com","36"]
[594,"Chauveau Flexibles","155 bis r Ampère ZA ",36000,"Châteauroux","02.54.22.48.14","chauveau flexibles.châteauroux@chauveau flexibles.com","36"]
[595,"Blanchet","27 r Notz",36007,"Châteauroux","02.54.22.06.76","blanchet.châteauroux@blanchet.com","36"]
[596,"Prodisal  Delices","Le Pez Chauvet",36270,"Eguzon Chantôme","02.54.47.40.78","prodisal  delices.eguzon chantôme@prodisal  delices.com","36"]
[597,"Galva Plus","rte Tours",36500,"Buzançais","02.54.84.14.14","galva plus.buzançais@galva plus.com","36"]
[598,"Lesaffre Entreprise","4 rte Veuil",36600,"Vicq sur Nahon","02.54.22.48.14","lesaffre entreprise.vicq sur nahon@lesaffre entreprise.com","36"]
[599,"Aflex ","67 rte Le Blanc",36700,"Châtillon sur Indre","02.54.38.83.36","aflex .châtillon sur indre@aflex .com","36"]
[600,"Méca Précis","ZI Sables Beauregard",36700,"Châtillon sur Indre","02.54.02.36.36","méca précis.châtillon sur indre@méca précis.com","36"]
[601,"Etablisement Chottin ","59 r Bretonneau ",37150,"Chenonceaux ","03.48.49.44.47","etablisement chottin .chenonceaux @etablisement chottin .com","37"]
[602,"Lescuyer et Villeneuve ","Les Hautes Bruyéres ",37150,"EPEIGNE LES BOIS ","03.32.14.56.86","lescuyer et villeneuve .epeigne les bois @lescuyer et villeneuve .com","37"]
[603,"Serem-Socorem","17 r Augustin Fresnel ",37170,"Chambrey lés Tours ","03.32.14.56.80","serem-socorem.chambrey lés tours @serem-socorem.com","37"]
[604,"Biemon Repoussage ","av léonard de Vinci ZAC Conneuil",37270,"Montlouis sur loire ","03.29.45.33.69","biemon repoussage .montlouis sur loire @biemon repoussage .com","37"]
[605,"Groupe LMJ ","17 r petit Moron ",37300,"Joué lés Tours ","03.32.14.56.82","groupe lmj .joué lés tours @groupe lmj .com","37"]
[606,"aspibois ","2 all panhard Et Levassor",37320,"Esvres ","03.29.50.87.11","aspibois .esvres @aspibois .com","37"]
[607,"Leroux (SA) ","55 rte Nouans ",37460,"Villetoin Coulangé ","03.58.99.78.45","leroux (sa) .villetoin coulangé @leroux (sa) .com","37"]
[608,"Leroux (SA) ","55 rte Nouans ",37460,"Villentoin Coulangé","03.32.14.56.84","leroux (sa) .villentoin coulangé@leroux (sa) .com","37"]
[609,"Métal Color ","97 r Vicairerie ",37700,"Saint Pierre des corps ","03.88.99.44.55","métal color .saint pierre des corps @métal color .com","37"]
[610,"Samferme (SAS)","40 r Grands Mortiers",37700,"Saint Pierre des corps ","03.32.14.56.78","samferme (sas).saint pierre des corps @samferme (sas).com","37"]
[611,"Air Products ","95 av Arrivaux",38070,"Saint Quentin Fallavier"," 0 800 480 030","air products .saint quentin fallavier@air products .com","38"]
[612,"Préfelectrique  ","Zone Artisanale",38112,"Méaudre","04 76 95 22 79","préfelectrique  .méaudre@préfelectrique  .com","38"]
[613,"E2v ","4 r Rochepleine",38120,"Saint Egrève","04 76 58 30 00","e2v .saint egrève@e2v .com","38"]
[614,"Euroventilatori France ","33 za Chaumes",38300,"Nivolas Vermelle","04 74 43 68 38","euroventilatori france .nivolas vermelle@euroventilatori france .com","38"]
[615,"F.I.R.E.M  "," 16 r Edouard Branly",38305,"Bourgoin Jailleu Cedex","04 74 28 08 52","f.i.r.e.m  .bourgoin jailleu cedex@f.i.r.e.m  .com","38"]
[616,"Eaton Industries"," r blaise pascal",38330,"Montbonnot Saint Martin","0 800 33 68 58","eaton industries.montbonnot saint martin@eaton industries.com","38"]
[617,"Plassais Forages ","22 lot Champ Roux",38380,"Saint Laurent du Pont","04 76 55 15 91","plassais forages .saint laurent du pont@plassais forages .com","38"]
[618,"Maatel  (SAS) ","259 r du rocher de Lorzie",38430,"Moirans","04 76 07 39 50","maatel  (sas) .moirans@maatel  (sas) .com","38"]
[619,"Messer France ","35 r de l'Europe",38790,"Saint Georges d'Espéranche"," 04 78 96 27 71","messer france .saint georges d'espéranche@messer france .com","38"]
[620,"O.S.E. ","za Les Chaux",38970,"Corps"," 04 76 30 04 93","o.s.e. .corps@o.s.e. .com","38"]
[621,"Magyar","433 av Mar Juin CS 80129",39101,"Dole Cedex","03 84 70 80 80","magyar.dole cedex@magyar.com","39"]
[622,"R G F Plastique","ZI Curtillet",39170,"Pratz","03 84 42 11 91","r g f plastique.pratz@r g f plastique.com","39"]
[623,"Ferrier  (SAS) ","130 rte Fléria",39190,"Cousance"," 03 84 85 9190","ferrier  (sas) .cousance@ferrier  (sas) .com","39"]
[624,"Guyot Decoup","av Gare",39190,"Beaufort","03 84 25 00 22","guyot decoup.beaufort@guyot decoup.com","39"]
[625,"Guy  (Ets)","10 r Pasteur",39200,"Saint Claude","03 84 45 07 93","guy  (ets).saint claude@guy  (ets).com","39"]
[626,"Bride Electricité ","3 r Etangs",39270,"Chavéria"," 03 84 25 48 21","bride electricité .chavéria@bride electricité .com","39"]
[627,"ACLR ","Chem Combe ZA - r Marais",39320,"Saint Julien"," 03 84 85 46 33","aclr .saint julien@aclr .com","39"]
[628,"JB Tecnics ","za En Grain",39360,"Molinges","03 84 41 42 00","jb tecnics .molinges@jb tecnics .com","39"]
[629,"Macle Michel","ZI Jean Bertin",39800,"Poligny","03 84 37 36 90","macle michel.poligny@macle michel.com","39"]
[630,"Aera Patthey et Fils ","r François Arago",39800,"Poligny","03 84 37 35 41","aera patthey et fils .poligny@aera patthey et fils .com","39"]
[631,"Microbat ","r Le Corbusier BP 50083",39801,"Poligny cedex 1"," 03 84 37 37 37","microbat .poligny cedex 1@microbat .com","39"]
[632,"Diager Industrie","ZI r Claude Nicolas Ledoux  ",39801,"Poligny cedex "," 03 84 73 70 20","diager industrie.poligny cedex @diager industrie.com","39"]
[633,"Ducau Philippe ","1 all Michel Huici",40000,"MONT DE MARSAN","05.58.90.26.65","ducau philippe .mont de marsan@ducau philippe .com","40"]
[634,"YC International","qu Bonamour",40130,"CAPBRETON","09.66.94.87.76","yc international.capbreton@yc international.com","40"]
[635,"Comm'on productions ","36 pl Pasteur",40150,"HOSSEGOR","06.74.10.45.11","comm'on productions .hossegor@comm'on productions .com","40"]
[636,"Atlantic Live","18 av Lac",40160,"PARENTIS EN BORN","04.67.24.84.82","atlantic live.parentis en born@atlantic live.com","40"]
[637,"Air Images","7 all Mariette",40180,"HINX"," 04.67.99.88.20","air images.hinx@air images.com","40"]
[638,"Corade Eddy","3401 rte Lalande",40400,"CARCARES SAINTE CROIX","06.19.13.13.01","corade eddy.carcares sainte croix@corade eddy.com","40"]
[639,"Bati'son","Berdoy",40410,"MOUSTEY","05.58.04.34.60","bati'son.moustey@bati'son.com","40"]
[640,"W SYSTEM","216 all Bergeronnette",40440,"ONDRES","05.59.45.32.60","w system.ondres@w system.com","40"]
[641,"16 Arts Production","qua Platiet",40630,"SABRES","05.58.07.09.96",{"$f":"IF(B642=\"\",\"\",(LOWER(B642&\".\"&E642&\"@\"&B642&\".com\")))","v":"16 arts production.sabres@16 arts production.com"},{"$f":"LEFT(D642, 2)","v":"40"}]
[{"$f":"A642+1","v":642},"AREWEN","4350 rte Azur",40660,"MESSANGES","05.58.48.31.35","arewen.messanges@arewen.com","40"]
[643,"A.B.B.R. Serrurerie","25 r Léon Fournier",41000,"Blois","02,54,78,40,93","a.b.b.r. serrurerie.blois@a.b.b.r. serrurerie.com","41"]
[644,"Sodisac ","5 Rte de Rochambeau",41100,"Thoré la Rochette","02,54,73,66,33","sodisac .thoré la rochette@sodisac .com","41"]
[645,"Bobinages du Loir ","za Sud rte Blois 11 r Albert Einstein",41100,"Vendôme","02,54,77,04,19","bobinages du loir .vendôme@bobinages du loir .com","41"]
[646,"Electric Bobinage","2 bd Industrie",41100,"Vendôme","03.55.52.41.23","electric bobinage.vendôme@electric bobinage.com","41"]
[647,"Electric Bobinage","2 bd Industrie",41100,"Vendôme","03.55.52.41.23","electric bobinage.vendôme@electric bobinage.com","41"]
[648,"Tiam (sarl)","47 r Motte Beaudoin",41140,"Noyers sur cher","02,54,75,02,57","tiam (sarl).noyers sur cher@tiam (sarl).com","41"]
[649,"Mellet  Jean-Claude","Guette Loup",41170,"Temple (Le)","02 54 80 73 75","mellet  jean-claude.temple (le)@mellet  jean-claude.com","41"]
[650,"Badeco ","za La Tremblaie",41190,"Herbault","02,54,46,14,19","badeco .herbault@badeco .com","41"]
[651,"Alliance Healthcare","2 r Louis Pasteur",41260,"Chaussée Saint Victor","02,54,57,51,57","alliance healthcare.chaussée saint victor@alliance healthcare.com","41"]
[652,"MIC  (SAS) ","18 r Industrie",41400,"Montrichard","02 54 32 14 27","mic  (sas) .montrichard@mic  (sas) .com","41"]
[653,"Toy René  (SAS)","5 imp Reclusages",41800,"Montoire sur le Loir","02,54,85,01,10","toy rené  (sas).montoire sur le loir@toy rené  (sas).com","41"]
[654,"Avril Traitement  ","388 r Antoine Primat",42000,"Saint Etienne","04.77.32.83.37","avril traitement  .saint etienne@avril traitement  .com","42"]
[655,"Astic Emballage","zac des Murons",42160,"Andrézieux Bouthéon","04.77.91.25.00","astic emballage.andrézieux bouthéon@astic emballage.com","42"]
[656,"A.F.L","Frères Lumière",42350,"Talaudière","04.77.32.75.25","a.f.l.talaudière@a.f.l.com","42"]
[657,"A.C.M.E.S Mesures","ZA Le Crêt",42360,"Montchal","04.77.28.66.08","a.c.m.e.s mesures.montchal@a.c.m.e.s mesures.com","42"]
[658,"Blaser Swisslube","r Vaillant Couturie",42490,"Fraisses","04.77.10.14.90","blaser swisslube.fraisses@blaser swisslube.com","42"]
[659,"AMV Service","20 R MARCEL DASSAULT",42500,"Chambon Feugerolles","04.77.40.52.29","amv service.chambon feugerolles@amv service.com","42"]
[660,"Aubert","r Marcel Dassaul",42500,"Chambon Feugerolles"," 04.77.10.12.90","aubert.chambon feugerolles@aubert.com","42"]
[661,"Adamax France","24 che Grand Meyrieux",42570,"Saint Héand","04.77.57.17.68","adamax france.saint héand@adamax france.com","42"]
[662,"Airmat ","La Maladière",42580,"Tour en Jarez","04.77.91.42.38","airmat .tour en jarez@airmat .com","42"]
[663,"Berlier","Les Fraries",42740,"Saint Paul en Jarez"," 04.77.73.21.42","berlier.saint paul en jarez@berlier.com","42"]
[664,"Codexpro ","15 fbg St jean ",43000,"Puy en Velay (Le )","03.32.14.56.96","codexpro .puy en velay (le )@codexpro .com","43"]
[665,"M2S","ZA",43140,"Saint Didier en vely ","03.32.14.57.05","m2s.saint didier en vely @m2s.com","43"]
[666,"Renon ","ZA Oudreyches ",43200,"Lapte ","03.32.14.56.90","renon .lapte @renon .com","43"]
[667,"Affûtage 43 (SARL)","zone artisanale Lavée ",43200,"Yssingeaux ","03.32.14.56.92","affûtage 43 (sarl).yssingeaux @affûtage 43 (sarl).com","43"]
[668,"fayolle (SAS) ","La Guide ",43200,"Yssingeaux ","03.32.14.56.98","fayolle (sas) .yssingeaux @fayolle (sas) .com","43"]
[669,"Barbier M.G.O ","2 rte Prè long ",43390,"Auzon ","03.32.14.56.94","barbier m.g.o .auzon @barbier m.g.o .com","43"]
[670,"La Fil Cuivré (Sarl) ","zone artisanale le Betz ",43500,"Saint pal de Chalençon ","03.32.14.57.01","la fil cuivré (sarl) .saint pal de chalençon @la fil cuivré (sarl) .com","43"]
[671,"Barbier Groupe ","La Guide ",43600,"Sainte Sigolène ","03.32.14.56.88","barbier groupe .sainte sigolène @barbier groupe .com","43"]
[672,"Lioger F (SAS)","lieu-dit pevbessous ",43600,"Sainte Sigolène ","03.32.14.57.03","lioger f (sas).sainte sigolène @lioger f (sas).com","43"]
[673,"étal Color Europe MCE ","rte Yssingeaux ",43600,"Sainte Sigolène ","03.32.14.57.06","étal color europe mce .sainte sigolène @étal color europe mce .com","43"]
[674,"Calpeda Pompes  (SA) ","19 r de la Communauté",44140,"Bignon ","02 40 03 13 30","calpeda pompes  (sa) .bignon @calpeda pompes  (sa) .com","44"]
[675,"AMP Interactive ","Le Karting rue ",44200," Nantes","02 85 52 63 03","amp interactive . nantes@amp interactive .com","44"]
[676,"Anaphora Productions ","2 B bd Martyrs Nantais",44200,"Nantes","02 51 84 26 99","anaphora productions .nantes@anaphora productions .com","44"]
[677,"A.D.E.M.E","5 bd Vincent Gâche",44203,"Nantes Cedex 2"," 02 40 35 68 00","a.d.e.m.e.nantes cedex 2@a.d.e.m.e.com","44"]
[678,"La Régionale E.C.I.I ","18 r Grande Bretagne",44300,"Nantes","02 40 05 26 26","la régionale e.c.i.i .nantes@la régionale e.c.i.i .com","44"]
[679,"JB2R ","rue de Londres",44370,"Varades","02 40 09 73 31","jb2r .varades@jb2r .com","44"]
[680,"CTIO","ZA Petites Landes av Europe",44470,"Thouaré sur Loire","02 40 77 30 80","ctio.thouaré sur loire@ctio.com","44"]
[681,"Hitachi ","ZI de l'Erette",44810,"Héric","02 28 02 20 20","hitachi .héric@hitachi .com","44"]
[682,"GEO HYDRO","16 RUE PLANCHONNAIS",44980,"Sainte Luce sur Loire","02 51 79 71 08","geo hydro.sainte luce sur loire@geo hydro.com","44"]
[683,"Affutor  (Sté) ","40 r Grand Villiers",45000,"Orléans","02 38 88 32 82","affutor  (sté) .orléans@affutor  (sté) .com","45"]
[684,"Bobinage ","34 bis av Gén Leclerc",45120,"Châlette sur Loing"," 02 38 85 25 82","bobinage .châlette sur loing@bobinage .com","45"]
[685,"CEW","chem Orange",45130,"Meung sur Loire","02 38 44 32 42","cew.meung sur loire@cew.com","45"]
[686,"Chaudronnerie Bauloise ","r André Raimbault",45130,"Baule","02 38 46 94 20","chaudronnerie bauloise .baule@chaudronnerie bauloise .com","45"]
[687,"Daguy  (SARL) ","110 r Passe Debout",45140,"Ingré"," 02 38 73 18 60","daguy  (sarl) .ingré@daguy  (sarl) .com","45"]
[688,"Yvroud ","8-10 rue jean nicot",45140,"Ingré"," 02 38 72 81 20","yvroud .ingré@yvroud .com","45"]
[689,"C 3 D ","59 av Vendôme",45190,"Beaugency"," 02 38 44 42 21","c 3 d .beaugency@c 3 d .com","45"]
[690,"C.I.M.L","77 av Moulin Plateau",45220,"Saint Germain des Prés","02 38 94 75 75","c.i.m.l.saint germain des prés@c.i.m.l.com","45"]
[691,"Champion  (SAS","Zone Industrielle",45220,"Douchy"," 02 38 89 86 00","champion  (sas.douchy@champion  (sas.com","45"]
[692,"Centre de Décapage  ","77 rte Orléans",45380,"Chaingy"," 02 38 80 68 80","centre de décapage  .chaingy@centre de décapage  .com","45"]
[693,"Brabant Chimie","r Gare",45490,"Mignères","02 38 87 81 75","brabant chimie.mignères@brabant chimie.com","45"]
[694,"Anael ","15 r Pierre Nobel",45700,"Villemandeur","02 38 85 77 12","anael .villemandeur@anael .com","45"]
[695,"Zolpan Clou ","La Beyne ",46000,"CAHORS","03.32.14.57.08","zolpan clou .cahors@zolpan clou .com","46"]
[696,"Accorsi  (EURL) ","Granges",46090,"MONTAT (LE)"," 05 65 53 97 50","accorsi  (eurl) .montat (le)@accorsi  (eurl) .com","46"]
[697,"AD Renov Plus ","ld Brunard",46090,"AUJOLS","05 65 31 19 06","ad renov plus .aujols@ad renov plus .com","46"]
[698,"SDEL Quercy ","48 av Joseph Loubet",46100,"Figeac"," 05 65 34 15 10","sdel quercy .figeac@sdel quercy .com","46"]
[699,"Aguilar Francisco ","ld Niel",46100,"SAINT FELIX","06 48 32 96 88","aguilar francisco .saint felix@aguilar francisco .com","46"]
[700,"Acosta Raoul ","ld Aubiac",46110,"CAVAGNAC","06 21 78 91 19","acosta raoul .cavagnac@acosta raoul .com","46"]
[701,"Aed Electric ","ld Lascamps",46120,"LEYME","06 80 74 87 89","aed electric .leyme@aed electric .com","46"]
[702,"Arkie","ZA","46200","Lachapelle Auzac","05.65.37.06.27","arkie.lachapelle auzac@arkie.com","46"]
[703,"Arlie ","zone de la coix ",46200,"Lachapelle Auzac","03.32.14.57.07","arlie .lachapelle auzac@arlie .com","46"]
[704,"A.T.C ","ld theron bas",46220,"PRAYSSAC"," 05 65 22 46 45","a.t.c .prayssac@a.t.c .com","46"]
[705,"Heco France","Garrigues","46300","Saint Projet","05.65.41.20.36",{"$f":"IF(B706=\"\",\"\",(LOWER(B706&\".\"&E706&\"@\"&B706&\".com\")))","v":"heco france.saint projet@heco france.com"},{"$f":"LEFT(D706, 2)","v":"46"}]
[{"$f":"A706+1","v":706},"A.C.T ARCOL","r Théron ",46500,"ALVIGNAC ","03.32.14.57.09","a.c.t arcol.alvignac @a.c.t arcol.com","46"]
[707,"A.C.T ARCOL ","r Théron",46500,"ALVIGNAC","05 65 10 07 86","a.c.t arcol .alvignac@a.c.t arcol .com","46"]
[708,"ACB Les Arts De Facade ","pl Senhals esc Grand",46500,"ROCAMADOUR","05 65 11 44 45","acb les arts de facade .rocamadour@acb les arts de facade .com","46"]
[709,"Actilog ","za Vieilles Vignes",46500,"RIGNAC","05 65 34 43 52","actilog .rignac@actilog .com","46"]
[710,"Boudon  (SARL) ","za Peyremail",47110,"Sainte Livrade sur Lot","05 53 01 34 84","boudon  (sarl) .sainte livrade sur lot@boudon  (sarl) .com","47"]
[711,"REP Industrie ","Lasmazères",47230,"Bordeaux Cedex","05 57 100 900","rep industrie .bordeaux cedex@rep industrie .com","47"]
[712,"C.M.T.I  (SAS) ","zi rte Nérac",47230,"Lavardac","05 53 65 91 78","c.m.t.i  (sas) .lavardac@c.m.t.i  (sas) .com","47"]
[713,"Saint-Jean (SA) ","zi Jean Malèze",47240,"Bon Encontre","05 53 77 44 60","saint-jean (sa) .bon encontre@saint-jean (sa) .com","47"]
[714,"Métalo Mécanique ","Grange d'Espagnol ZA",47260,"Castelmoron sur Lot","05 53 84 80 14","métalo mécanique .castelmoron sur lot@métalo mécanique .com","47"]
[715,"Berbiguier  (Ets) ","5 r André Berge",47300,"Villeneuve sur Lot","05 53 70 37 04","berbiguier  (ets) .villeneuve sur lot@berbiguier  (ets) .com","47"]
[716,"Hydro Garonne 47 ","Moulin Coiffard",47350,"Puymiclan","05 53 93 83 95","hydro garonne 47 .puymiclan@hydro garonne 47 .com","47"]
[717,"Baland Plastin'Agri ","Lagoutère",47400,"Fauguerolles","05 53 83 31 72","baland plastin'agri .fauguerolles@baland plastin'agri .com","47"]
[718,"Métal Mobil  (SA)","Zone Artisanale",47430,"Le Mas d'Agenais","05 53 89 50 34","métal mobil  (sa).le mas d'agenais@métal mobil  (sa).com","47"]
[719,"Agen Auto  ","ZAC Brimont",47550,"Boé","05 53 98 13 03","agen auto  .boé@agen auto  .com","47"]
[720,"Chimirec Massif Central","ZAE Causse d'Auge",48000,"Mende","05.59.45.32.60","chimirec massif central.mende@chimirec massif central.com","48"]
[721,"Mutuelle VIASANTE ","1A bd Théophile Roussel - BP 69",48000,"Mende","09.66.94.87.76","mutuelle viasante .mende@mutuelle viasante .com","48"]
[722,"Eco Métaux","ZA Gardès",48000,"Mende"," 04.67.99.88.20","eco métaux.mende@eco métaux.com","48"]
[723,"Alter ","Traverse de l'Aouro ZA Entraygues",48100,"Chirac","04.67.82.25.32","alter .chirac@alter .com","48"]
[724,"Richard  Yves","29 bd De Chambrun",48100,"Marvejols","04.67.15.61.77","richard  yves.marvejols@richard  yves.com","48"]
[725,"Tacussel Gregoire","ld Figerolles",48220,"VIALAS"," 04.67.99.88.20","tacussel gregoire.vialas@tacussel gregoire.com","48"]
[726,"Ziggy's Sonorisation","ld Croupillac",48400,"FLORAC","03.45.55.47.42","ziggy's sonorisation.florac@ziggy's sonorisation.com","48"]
[727,"Refuge des Drailles","Refuge des Drailles",48400,"ROUSSES","06.11.20.72.42","refuge des drailles.rousses@refuge des drailles.com","48"]
[728,"Matoses David","Brunen",48400,"Florac","03.25.14.74.55","matoses david.florac@matoses david.com","48"]
[729,"Winter Jürgen ","ld Chazes",48400,"SALLE PRUNET","04.67.70.39.13","winter jürgen .salle prunet@winter jürgen .com","48"]
[730,"C.T.M.S","Persée r Henri Claudel",50000,"Saint Lô","02.33.05.48.21","c.t.m.s.saint lô@c.t.m.s.com","50"]
[731,"Chaudronnerie","av Bénécère",50120,"Equeurdrevill"," 02.33.23.64.70","chaudronnerie.equeurdrevill@chaudronnerie.com","50"]
[732,"Lecoufle","1522 rte Périers",50180,"Agneaux","02.33.77.70.70","lecoufle.agneaux@lecoufle.com","50"]
[733,"CF Europe","19 r Planche",50320,"Lucerne d'Outremer","02.33.61.56.59","cf europe.lucerne d'outremer@cf europe.com","50"]
[734,"Isotech","ZA Maison George",50441,"Beaumon"," 02.33.08.40.00","isotech.beaumon@isotech.com","50"]
[735,"Malplanche","rte Carolles",50530,"Sartilly","02.33.48.80.29","malplanche.sartilly@malplanche.com","50"]
[736,"M.G.P.I","Le Grand Chemin",50540,"signy le Bua","02.33.48.09.28","m.g.p.i.signy le bua@m.g.p.i.com","50"]
[737,"Yannick Gervaise","35 r 30 Juillet 1944",50660,"LINGREVILLE"," 02.33.17.33.52","yannick gervaise.lingreville@yannick gervaise.com","50"]
[738,"AFCO","za Armanville",50700,"Valognes","02.33.40.31.23","afco.valognes@afco.com","50"]
[739,"Prim'co","36 r Grande Vallée",50710,"Créances","  02.33.76.30.50","prim'co.créances@prim'co.com","50"]
[740,"Sodeba SARL","9 rue Garinet","51000","Châlons-en- champagne","03.26.65.12.07","sodeba sarl.châlons-en- champagne@sodeba sarl.com","51"]
[741,"Compas Alain  (SA) ","74 r Vernouille",51100,"Reims","03 26 85 20 84","compas alain  (sa) .reims@compas alain  (sa) .com","51"]
[742,"Electro Diesel Lefevre","r Doct Albert Schweitzer",51100,"Reims"," 03 26 87 73 87","electro diesel lefevre.reims@electro diesel lefevre.com","51"]
[743,"Wagner  (SARL) ","13 r Magdeleine",51100,"REIMS"," 03 26 47 56 52","wagner  (sarl) .reims@wagner  (sarl) .com","51"]
[744,"Wajda Eclairage Led ","2 all Albert Caquot Zac ",51100,"REIMS","03 26 77 03 60","wajda eclairage led .reims@wajda eclairage led .com","51"]
[745,"Zolpan Centre","av Benoît Frachon",51100,"REIMS"," 03 26 87 80 80","zolpan centre.reims@zolpan centre.com","51"]
[746,"Flocarem","45 quai Suippe","51110","Bazancourt","03.26.97.40.52","flocarem.bazancourt@flocarem.com","51"]
[747,"Portafrance","13 rue A MARGOT","51110","Reims","03.26.94.97.97","portafrance.reims@portafrance.com","51"]
[748,"Warm Paint  (SA) ","r Sodep",51110,"WARMERIVILLE","03 26 03 37 37","warm paint  (sa) .warmeriville@warm paint  (sa) .com","51"]
[749,"Profilam","Route de vertus","51130","Villers-aux-bois","03.26.52.27.33","profilam.villers-aux-bois@profilam.com","51"]
[750,"Rem-isol","32 rue du Commerce","51350","Cormontreuil","03.26.82.89.89","rem-isol.cormontreuil@rem-isol.com","51"]
[751,"Nada  (Sté) ","2 av Chenevières",51370,"Saint Brice Courcelles","03 26 87 21 42","nada  (sté) .saint brice courcelles@nada  (sté) .com","51"]
[752,"A.S.A. FRANCE","2 rue Anciens Remparts","51420","Witry les Reims","03.26.88.00.88","a.s.a. france.witry les reims@a.s.a. france.com","51"]
[753,"Witry-elec","16 r Bétheny",51420,"WITRY LES REIMS","03 26 97 21 47","witry-elec.witry les reims@witry-elec.com","51"]
[754,"Silvex SAS","11 rue A Boudricourt","51430","Tinqueux","03.26.08.27.40","silvex sas.tinqueux@silvex sas.com","51"]
[755,"Tôlerie Industrielle Rémoise","zi Moulin Ecaille",51430,"Tinqueux","03 26 08 20 84","tôlerie industrielle rémoise.tinqueux@tôlerie industrielle rémoise.com","51"]
[756,"Xylem France","16 rte Champigny",51430,"TINQUEUX"," 03 26 84 10 48","xylem france.tinqueux@xylem france.com","51"]
[757,"MB Industries","ZA La Pagerie","51470","Moncetz Longevas","03.26.66.46.40","mb industries.moncetz longevas@mb industries.com","51"]
[758,"Moroni SA","1 bis Boulevard Veste","51500","Saint Léonard","03.26.87.02.66","moroni sa.saint léonard@moroni sa.com","51"]
[759,"Germond  (SA) ","zac Entrée des Verriats",51500,"Champfleury","03 26 03 58 30","germond  (sa) .champfleury@germond  (sa) .com","51"]
[760,"Champagne tecnic","85 route d'Epernay","51510","Fagnières","03.26.21.23.79","champagne tecnic.fagnières@champagne tecnic.com","51"]
[761,"C.H.P.T Sarl","31 rue du commerce","51530","Cormontreuil","03.26.86.62.33","c.h.p.t sarl.cormontreuil@c.h.p.t sarl.com","51"]
[762,"Plastichamp ","all Maxenu",51530,"Pierry","03 26 54 59 87","plastichamp .pierry@plastichamp .com","51"]
[763,"C.P.R.S.","24 bis rue H.Bazin","51700","Verneuil","03.26.55.44.22","c.p.r.s..verneuil@c.p.r.s..com","51"]
[764,"Tecni Topo","10 rue de la maladière","52000","Chaumont","03.25.01.36.54","tecni topo.chaumont@tecni topo.com","52"]
[765,"Cavinet Sarl","1 route de Luzy","52000","Verbiesles","03.25.31.16.16","cavinet sarl.verbiesles@cavinet sarl.com","52"]
[766,"SOFIBO Sa","6 chemin du barrage","52100","Valcourt","03.25.05.20.30","sofibo sa.valcourt@sofibo sa.com","52"]
[767,"Castel Plastique","2 rue Moulières","52190","Chatoillenot","03.25.81.84.84","castel plastique.chatoillenot@castel plastique.com","52"]
[768,"Degrave S.A","3 rue du moulin","52200","Noidant le Rocheux","03.25.84.33.21","degrave s.a.noidant le rocheux@degrave s.a.com","52"]
[769,"G.H.M","15 rue A Durenne","52220","Sommevoire","03.25.55.43.21",{"$f":"IF(B770=\"\",\"\",(LOWER(B770&\".\"&E770&\"@\"&B770&\".com\")))","v":"g.h.m.sommevoire@g.h.m.com"},{"$f":"LEFT(D770, 2)","v":"52"}]
[{"$f":"A770+1","v":770},"C Concept","7 rue principale","52220","Planrupt","03.25.25.68.33","c concept.planrupt@c concept.com","52"]
[771,"Ste Caron","11 rue de Verdu","52270","Rochzs Bettaincourt","03.25.01.49.74","ste caron.rochzs bettaincourt@ste caron.com","52"]
[772,"CAMUS BERTAUX","2 route Humbecourt","52290","Eclaron","03.25.66.68.69","camus bertaux.eclaron@camus bertaux.com","52"]
[773,"Carriére Cie","2 rue Petit Lieu","52320","Vignory","03.25.03.04.19","carriére cie.vignory@carriére cie.com","52"]
[774,"Métallic 80","ZI","52340","Biesles","03.25.31.99.75","métallic 80.biesles@métallic 80.com","52"]
[775,"C.E.B","6 rue Capucin","52400","Boubonne-Les-Bains","03.25.72.12.12","c.e.b.boubonne-les-bains@c.e.b.com","52"]
[776,"Cousin S.A","4 rue Bel air",53000,"Laval ","02.43.07.07.10","cousin s.a.laval @cousin s.a.com","53"]
[777,"OGER SAS","73 Bd Bollée",53000,"Laval","02.43.59.07.70","oger sas.laval@oger sas.com","53"]
[778,"SNEC","19 rue Berthelot",53000,"Laval","02.43.49.12.41","snec.laval@snec.com","53"]
[779,"S.M.M","ZI Les Bourgères",53160,"Bais","02.43.37.37.37","s.m.m.bais@s.m.m.com","53"]
[780,"LOKICOUP","ZA",53170,"Bazougers","02.43.02.15.15","lokicoup.bazougers@lokicoup.com","53"]
[781,"Alovelc","4 rue Bellitourne",53200,"Azé","02.43.07.10.72","alovelc.azé@alovelc.com","53"]
[782,"LEFORT","ZI SUD",53200,"Château gontier","02.43.09.20.76","lefort.château gontier@lefort.com","53"]
[783,"SMTO","ZA La Pépinière",53400,"Craon","02.43.06.50.41","smto.craon@smto.com","53"]
[784,"CIMS","ZA La Pépinière",53400,"Craon","02.43.06.59.49","cims.craon@cims.com","53"]
[785,"D.L.M","Parc d'activités ",53500,"Emée","02.4305.52.56","d.l.m.emée@d.l.m.com","53"]
[786,"HUBERT METAL","43 rue des Chênes",53940,"Saint-Berthevin","02.43.69.62.98","hubert metal.saint-berthevin@hubert metal.com","53"]
[787,"GB.OUTILLAGE","118 Bd Lobau",54000,"NANCY","03.83.56.52.24","gb.outillage.nancy@gb.outillage.com","54"]
[{"$f":"IF(B789=\"\",\"\",A788+1)","v":788},"LAMOUREUX","ZAC SUD","54000","NANCY","03.83.66.69.68",{"$f":"IF(A789=\"\",\"\",(LOWER(B789&\".\"&E789&\"@\"&B789&\".com\")))","v":"lamoureux.nancy@lamoureux.com"},"54"]
[{"$f":"A789+1","v":789},"SEMES SA","12 Av Erables",54180,"Heillecourt","03.83.55.02.02",{"$f":"IF(B790=\"\",\"\",(LOWER(B790&\".\"&E790&\"@\"&B790&\".com\")))","v":"semes sa.heillecourt@semes sa.com"},"54"]
[790,"MG Chaudronnerie","PÔLLE INDUSTRIEL",54200,"Toulouse","03.83.27.70.70","mg chaudronnerie.toulouse@mg chaudronnerie.com","54"]
[791,"Eestconnectic","ZAC",54210,"Saint-Nicolas-de-Port","03.83.46.60.02","eestconnectic.saint-nicolas-de-port@eestconnectic.com","54"]
[792,"OLLA MARX","25 rue de la république",54220,"MALZEVILLE","03.83.21.25.26","olla marx.malzeville@olla marx.com","54"]
[793,"LORAPLASTIQUE","41 rue Mailly",54270,"Essey-les-nancy","03.83.33.19.19","loraplastique.essey-les-nancy@loraplastique.com","54"]
[794,"Chiarra","5 ru Pierre Crenet",54410,"Laneuville-devant-nancy","03.83.29.26.25","chiarra.laneuville-devant-nancy@chiarra.com","54"]
[795,"Barroy","10 allée Pré Ory",54425,"Pulnoy","03.83.29.34.34","barroy.pulnoy@barroy.com","54"]
[796,"KAUFFMANN","3 rue du port",54480,"Cirey S/Vezoule","03.83.42.05.02","kauffmann.cirey s/vezoule@kauffmann.com","54"]
[{"$f":"IF(B798=\"\",\"\",A797+1)","v":797},"BERTRAND","51, rue P BERT","54520","LAXOU","03.83.75.75.75",{"$f":"IF(A798=\"\",\"\",(LOWER(B798&\".\"&E798&\"@\"&B798&\".com\")))","v":"bertrand.laxou@bertrand.com"},"54"]
[{"$f":"A798+1","v":798},"SERMETAL SARL","ZA",54560,"AUDUN LE ROMAN","03.83.21.21.94",{"$f":"IF(B799=\"\",\"\",(LOWER(B799&\".\"&E799&\"@\"&B799&\".com\")))","v":"sermetal sarl.audun le roman@sermetal sarl.com"},"54"]
[799,"ALTAS","6 rue du Bois",54670,"Millery","03.83.32.00.12","altas.millery@altas.com","54"]
[800,"JUMELEC","375 rue Moyen",54710,"Fléville-Dvt-Nancy","03.83.37.36.38","jumelec.fléville-dvt-nancy@jumelec.com","54"]
[801,"ANDRIEUX","20 av Monnet",54920,"Villers la montagne","03.82.44.01.01","andrieux.villers la montagne@andrieux.com","54"]
[802,"Biobasic","Biopôle Clermont Nord","63360","Saint Beauzire","09.72.29.08.71","biobasic.saint beauzire@biobasic.com","63"]
[803,"Biobasic Environnement","Biopôle Clermont-Limagne",63360,"Saint Beauzire","05.59.22.77.22","biobasic environnement.saint beauzire@biobasic environnement.com","63"]
[804,"Cazaux  (SARL) ","3 all Pierre Georges Latécoère",64200,"Biarritz","05.59.22.77.22","cazaux  (sarl) .biarritz@cazaux  (sarl) .com","64"]
[805,"AFM","30 avenue Torcatis",66000,"Perpignan","04.68.61.51.14","afm.perpignan@afm.com","66"]
[806,"Spa Sas","2 avenue de Gaulle","66160","Le Boulou","04.68.83.16.12","spa sas.le boulou@spa sas.com","66"]
[807,"Mitjavila","RN 9","66600","Rivesaltes","04.68.38.20.00","mitjavila.rivesaltes@mitjavila.com","66"]
[808,"Travet","20 rue Alfred Sauvy","66600","Rivesaltes","04.68.55.22.30","travet.rivesaltes@travet.com","66"]
[809,"Resurgence. ","17 r Jules Vernes",69630,"Chaponost"," 04 72 31 55 55","resurgence. .chaponost@resurgence. .com","69"]
[810,"Prolutech C,D,E","Zone Espace Leaders 31 all ",74540,"Alby sur Chéran","04.50.46.80.81","prolutech c,d,e.alby sur chéran@prolutech c,d,e.com","74"]
[811,"Ateliers Jean Perzel","3 r Cité Universitaire",75014,"Paris","01.45.88.77,24","ateliers jean perzel.paris@ateliers jean perzel.com","75"]
[812,"Duval Electricité ","Espace Leader r Gustave Eiffel",76235,"Bois Guillaume cédex","02.35.61.44.44","duval electricité .bois guillaume cédex@duval electricité .com","76"]
[813,"Duval Electricité ","Espace Leader r Gustave Eiffel",76235,"Bois Guillaume cédex","02.35.61.44.44","duval electricité .bois guillaume cédex@duval electricité .com","76"]
[814,"Cablintel ","868 r Haline",76320,"Saint Pierre lès Elbeuf","02.32.96.48.98","cablintel .saint pierre lès elbeuf@cablintel .com","76"]
[815,"Cablintel ","868 r Haline",76320,"Saint Pierre lès Elbeuf","02.32.96.48.98","cablintel .saint pierre lès elbeuf@cablintel .com","76"]
[816,"Diesel Energie  2H Energy","Parc d'Activités des Hautes Falaises",76400,"Fécamp","03.54.65.85.45","diesel energie  2h energy.fécamp@diesel energie  2h energy.com","76"]
[817,"Diesel Energie ","Parc d'Activités des Hautes Falaises","76200","Dieppe","03.54.65.85.45","diesel energie .dieppe@diesel energie .com","76"]
[818,"Normanver Glass","zac du pollen",76710,"Eslettes"," 02.32.82.80.40","normanver glass.eslettes@normanver glass.com","76"]
[819,"Normanver Glass","zac du pollen",76710,"Eslettes"," 02.32.82.80.40","normanver glass.eslettes@normanver glass.com","76"]
[820,"A.E.N","rte Bois Ricard",76770,"Malaunay"," 02.35.33.86.11","a.e.n.malaunay@a.e.n.com","76"]
[821,"A.E.N","rte Bois Ricard",76770,"Malaunay"," 02.35.33.86.11","a.e.n.malaunay@a.e.n.com","76"]
[822,"Air Products ","3 et 5 r Marie Curie ",78310,"Maurepas"," 0 800 480 030","air products .maurepas@air products .com","78"]
[823,"Ibis Service ","20 r Beauvais",80000," Amiens"," 03 22 71 76 76","ibis service . amiens@ibis service .com","80"]
[824,"Amalric","9 place Marceau",81000,"Albi","05.63.32.38.59","amalric.albi@amalric.com","81"]
[825,"Mortelette","ZA Vacases","81150","Lagrave","05.63.57.42.19","mortelette.lagrave@mortelette.com","81"]
[826,"Abert et fils","ZI Rourniais","81210","Montfa","05.63.32.38.69","abert et fils.montfa@abert et fils.com","81"]
[827,"Zucco","36 allée de la Dime","81210","Lacrouzette","05.63.63.24.25","zucco.lacrouzette@zucco.com","81"]
[828,"Calas","6 chemin Mansonne","81240 ","St Amans Soult","05.63.66.88.33","calas.st amans soult@calas.com","81"]
[829,"AZEMAR","Chemin Lavaur","81301","Graulhet","05.63.02.03.04","azemar.graulhet@azemar.com","81"]
[{"$f":"A830+1","v":830},"ALFA TECH","15 rue François Arago","81600","Gaillac","05.63.69.98.98",{"$f":"IF(B831=\"\",\"\",(LOWER(B831&\".\"&E831&\"@\"&B831&\".com\")))","v":"alfa tech.gaillac@alfa tech.com"},"81"]
[831,"Publi-sons (sarl)","53 r Bobillot ",87000,"Limoges","05.55.10.21.87","publi-sons (sarl).limoges@publi-sons (sarl).com","87"]
[832,"Unisylva","44 av Libération",87000,"Limoges","05.55.77.00.81","unisylva.limoges@unisylva.com","87"]
[833,"Cicair","22 r De Dion Bouton",87020,"Limoges ","05.55.38.46.30","cicair.limoges @cicair.com",{"$f":"LEFT(D834, 2)","v":"87"}]
[834,"Escure Emballages","9 r Jean Dorat",87100,"Limoges","05.55.77.23.82","escure emballages.limoges@escure emballages.com","87"]
[835,"Valdes Menendez","1 r 8 Mai 1945",87190,"Droux","05.55.66.35.76","valdes menendez.droux@valdes menendez.com","87"]
[836,"NSPD","3 r Marthe Dutheil",87220,"Feytiat","05.55.06.10.60","nspd.feytiat@nspd.com","87"]
[837,"Algade (sté)","1 av Brugeaud BP 46",87250,"Bessines sur Gartempe","05.55.60.50.00","algade (sté).bessines sur gartempe@algade (sté).com","87"]
[838,"Vallade Alain","Pierre Buffiere",87260,"Pierre Buffiere","05.55.00.11.49","vallade alain.pierre buffiere@vallade alain.com","87"]
[839,"ADEA","77 rte Hippodrome",87270,"Couzeix","05.55.35.06.88","adea.couzeix@adea.com","87"]
[840,"Cofely lneo","38 r Auguste Comte",87280,"Limoges  ","05.55.37.63.23","cofely lneo.limoges  @cofely lneo.com","87"]
[841,"Cofémi Emballage","2 all Gustave Eiffel ZA ",87410,"Palais sur Vienne","05.55.33.35.06","cofémi emballage.palais sur vienne@cofémi emballage.com","87"]
[842,"ESKA","56 rue de Metz","88100","Nayemont les fosses","03.29.55.05.51","eska.nayemont les fosses@eska.com","88"]
[843,"Bertaud Cie","2 pont bresson","88151","Thaon les vosges","03.29.54.58.59","bertaud cie.thaon les vosges@bertaud cie.com","88"]
[844,"Griev","Zi Le Neuilley","88170","Chatenois","03.29.94.94.55","griev.chatenois@griev.com","88"]
[845,"Boiron s.a","21 avenue Pompidou","88200","Saint Nabord","03.29.99.98.99","boiron s.a.saint nabord@boiron s.a.com","88"]
[846,"TPF","40 Chemin du pâquis","88220","Uriménil","03.29.30.81.81","tpf.uriménil@tpf.com","88"]
[847,"ASPI54","30 rue Voltaire","88230","Fraize","03.29.50.60.65","aspi54.fraize@aspi54.com","88"]
[848,"MEGHEZ","8 rue du moulin","88260","Hennezel","03.29.07.00.67","meghez.hennezel@meghez.com","88"]
[849,"D.M.I Est","17 route de Morbieux","88290","Saulxures-sur-moselotte","03.29.24.60.60","d.m.i est.saulxures-sur-moselotte@d.m.i est.com","88"]
[850,"NOV ROBOTIQUE","56 rue des ponts","88300","Rebeuville","03.29.94.52.52","nov robotique.rebeuville@nov robotique.com","88"]
[851,"Lalevée SARL","340 Avenue Houvert","88430","La Houssière","03.29.50.61.62","lalevée sarl.la houssière@lalevée sarl.com","88"]
[852,"TP S.A","360 rue Voltaire","88650","Anould","03.29.50.21.30","tp s.a.anould@tp s.a.com","88"]
[853,"D S SMITH","ZI La croisette","88800","Vittel","03.29.05.05.03","d s smith.vittel@d s smith.com","88"]
[854,"CHAROY","42 rue Charonnes",89100,"Malay le Grand","03.86.97.27.22","charoy.malay le grand@charoy.com","89"]
[855,"E.C.F","2 rue du lavoir",89100,"Soucy","03.86.86.61.61","e.c.f.soucy@e.c.f.com","89"]
[856,"Cozzini sa","ZA",89100,"Soucy","03.86.61.61.33","cozzini sa.soucy@cozzini sa.com","89"]
[857,"A.B.C Paysage","10 Bd Castors",89100,"Sens","03.86.95.20.20","a.b.c paysage.sens@a.b.c paysage.com","89"]
[858,"Abies Décor","5 allée Richards",89120,"Prunoy","03.86.73.74.02","abies décor.prunoy@abies décor.com","89"]
[859,"Ac Services","10 rue Rochelle",89230,"Rouvray","03.86.22.12.32","ac services.rouvray@ac services.com","89"]
[860,"EMG PRO","67 grand rue",89260,"Thorigny sur oreuse","03.86.83.73.93","emg pro.thorigny sur oreuse@emg pro.com","89"]
[861,"CAPS","3 allée Passy",89510,"Véron","03.86.95.83.20","caps.véron@caps.com","89"]
[{"$f":"A862+1","v":862},"F.P Paysages","Les pourrains",89520,"Fontenoy","03.86.74.00.12",{"$f":"IF(B863=\"\",\"\",(LOWER(B863&\".\"&E863&\"@\"&B863&\".com\")))","v":"f.p paysages.fontenoy@f.p paysages.com"},"89"]
[863,"Identité Céréales","7 rue Rathier",89800,"Chablis","03.86.18,98,74","identité céréales.chablis@identité céréales.com","89"]
[864,"Vaillant Patrick","12 rue Genillotte",89800,"Villy","03.86.74.14.15","vaillant patrick.villy@vaillant patrick.com","89"]
[865,"U.B.B sarl","Route d'Auxerre",89800,"Chablis","03.86.42.08.34","u.b.b sarl.chablis@u.b.b sarl.com","89"]
[866,"E.R.S","15 r Voltaire",90000,"Voltaire","06 07 73 69 44","e.r.s.voltaire@e.r.s.com","90"]
[867,"Sol Service Distribution ","r Georges Besse",90000,"Belfort","03 84 21 32 57","sol service distribution .belfort@sol service distribution .com","90"]
[868,"Umey","38 av Général Leclerc",90000,"BELFORT","06 43 64 41 03","umey.belfort@umey.com","90"]
[869,"Cesca Construction","28 r Baroche",90160,"Denney","03.84.29 88 66","cesca construction.denney@cesca construction.com","90"]
[870,"Ultralu SAS ","6 r Casernes",90200,"Giromagny","03.84.29. 55 55","ultralu sas .giromagny@ultralu sas .com","90"]
[871,"Curaillat Alexandre ","9 r Phalandriers",90200,"Auxelles Haut","03 84 29 33 62","curaillat alexandre .auxelles haut@curaillat alexandre .com","90"]
[872,"Ultralu ","8 r Casernes",90200,"GIROMAGNY","03 84 29 55 55","ultralu .giromagny@ultralu .com","90"]
[873,"EST RECYCLAGE ","59 r Commandos d'Afrique",90300,"Offemont","03 84 26 82 42","est recyclage .offemont@est recyclage .com","90"]
[874,"Génie Climat Services ","4 r Savoureuse",90300,"Sermamagny","06 23 78 21 83","génie climat services .sermamagny@génie climat services .com","90"]
[875,"Riondet  Pascal","7 r 5eme RTM",90400,"Trévenans","06 25 35 36 29","riondet  pascal.trévenans@riondet  pascal.com","90"]
[876,"V.F Confort ","5 zac La Varonne",90400,"TREVENANS","03 84 27 28 28","v.f confort .trevenans@v.f confort .com","90"]
[877,"Sobagel","Zone Industrielle",90800,"Bavilliers","03 84 29 55 55","sobagel.bavilliers@sobagel.com","90"]
[878,"Big bag","29 r Gutenberg ZI Marinière ",91070,"Bondoufle ","03.17.48.88.89","big bag.bondoufle @big bag.com","91"]
[879,"Visual","22 rue Gutenberg",91070,"Bondoufle ","01.69.91.11.12","visual.bondoufle @visual.com","91"]
[880,"Mécaform","5 rue Palmer",91140,"Villebon sur Yvette","01.60.92.48.00","mécaform.villebon sur yvette@mécaform.com","91"]
[881,"Air Service Soudure ","r Paris ",91160,"Champlan","03.03.48.41.42","air service soudure .champlan@air service soudure .com","91"]
[882,"D.S.P ","2 All François Cevert ",91310,"Linas ","03.01.01.11.12","d.s.p .linas @d.s.p .com","91"]
[883,"C.A.E Groupe "," Air Park Paris-bat cormoran ",91320,"Wissous","03.98.89.79.45","c.a.e groupe .wissous@c.a.e groupe .com","91"]
[884,"Coherent France ","4 r  Renè Razel ",91400,"Saclay ","03.36.35.25.14","coherent france .saclay @coherent france .com","91"]
[885,"B 2 M","Domaine de fromenteau",91470,"Perqueuse ","03.07.01.02.05","b 2 m.perqueuse @b 2 m.com","91"]
[886,"USF ","28 chem tournenfils ",91540,"Mennecy","03.29.23.33.12","usf .mennecy@usf .com","91"]
[887,"AES","15 av Garigliano Zac Gatines ",91600,"Savigny sur Orge ","03.29.68.12.21","aes.savigny sur orge @aes.com","91"]
[888,"Toupret SA","24 rue du 14 Juillet",91810,"Corbeil essonnes","01.60.85.56.24","toupret sa.corbeil essonnes@toupret sa.com","91"]
[889,"Audit Totier","36 pl Jules Ferry",92120,"Montrouge","01.46.56.14.02","audit totier.montrouge@audit totier.com","92"]
[890," Bilans et Budgets","111 r Victor Hugo",92120,"Bois Colombes","06.86.46.53.21"," bilans et budgets.bois colombes@ bilans et budgets.com","92"]
[891,"Arc en Ciel RH ","19 r Diderot",92130,"Issy les Moulineaux","01.55.95.84.84","arc en ciel rh .issy les moulineaux@arc en ciel rh .com","92"]
[892,"Cabinet De Gaudric ","18 av Charles de Gaulle",92200,"Neuilly sur Seine","01.47.77.00.56","cabinet de gaudric .neuilly sur seine@cabinet de gaudric .com","92"]
[893,"Cabinet Le Guen Maillet ","14 rue Lucet",92200,"Neuilly sur Seine"," 01.40.68.76.91","cabinet le guen maillet .neuilly sur seine@cabinet le guen maillet .com","92"]
[{"$f":"A894+1","v":894},"Watieaux-Desjardins ","4r Louis Denaux",92230,"Gennevilliers","01.40.85.14.06",{"$f":"IF(B895=\"\",\"\",(LOWER(B895&\".\"&E895&\"@\"&B895&\".com\")))","v":"watieaux-desjardins .gennevilliers@watieaux-desjardins .com"},"92"]
[895,"vulcanéo","59 av europe",92400,"courbevoie","01.49.04.59.70","vulcanéo.courbevoie@vulcanéo.com","92"]
[896,"AOS Studley ","41 r Louise Michel",92594,"Levallois Perret Cedex","01.73.01.21.00","aos studley .levallois perret cedex@aos studley .com","92"]
[897,"Assurances","24 av Grésillons",92600,"Asnières sur Seine","01.46.88.81.00","assurances.asnières sur seine@assurances.com",{"$f":"LEFT(D898, 2)","v":"92"}]
[898,"Cottrez","10 av Antoine de Saint Exupéry",93120,"Courneuve","01.49.92.87.87","cottrez.courneuve@cottrez.com","93"]
[899,"Baudon AACP","55 r Léo Lagrange",93130,"Noisy le Sec","01.41.83.07.07","baudon aacp.noisy le sec@baudon aacp.com","93"]
[900,"C.C.A.A Assurances ","45 rte Aulnay",93140,"Bondy","01.48.48.92.93","c.c.a.a assurances .bondy@c.c.a.a assurances .com","93"]
[901,"V.A.E.","19 av Albert Einstein",93150,"Blanc Mesnil (Le)","01.48.65.67.39","v.a.e..blanc mesnil (le)@v.a.e..com","93"]
[902,"Derichebourg","140 av Galliéni",93170,"Bagnolet"," 01.43.60.30.46","derichebourg.bagnolet@derichebourg.com","93"]
[903,"4T  (SAS) ","14 r de la Beaune Cap Beaune",93181,"Montreuil Sous Bois","01.41.58.17.80","4t  (sas) .montreuil sous bois@4t  (sas) .com","93"]
[904,"Eau et Vapeur","2 r Charles Christofle",93200,"Saint Denis"," 01.48.22.20.20","eau et vapeur.saint denis@eau et vapeur.com","93"]
[905,"Eurelec Distribution","30 r Gabriel Péri",93200,"Saint Denis","01.48.09.36.84","eurelec distribution.saint denis@eurelec distribution.com","93"]
[906,"Bostik ","1 av François Mitterrand",93210,"Saint Denis","01.55.46.76.94","bostik .saint denis@bostik .com","93"]
[907,"Action Glaçons","101 av Doct Vaillant",93230,"Romainville","01.41.71.03.04","action glaçons.romainville@action glaçons.com","93"]
[908,"Hamon Thermal","84 r Charles Michels",93284,"Saint Denis Cédex","01.55.87.78.78","hamon thermal.saint denis cédex@hamon thermal.com","93"]
[909,"Europ Therm","12 r 14 Juillet",93310,"Pré Saint Gervais","01.48.44.24.72","europ therm.pré saint gervais@europ therm.com","93"]
[910,"Chimirec","3 rur de la Luzernière",93440,"Dugny","01.49.92.97.65","chimirec.dugny@chimirec.com","93"]
[911,"Générale des Métaux","14 Bd Foch",93800,"Epinay sur Seine","06.55.75.48.68","générale des métaux.epinay sur seine@générale des métaux.com","93"]
[912,"Palimex Meyva","40 r Provence",94150,"Rungis Complexe","01.46.86.36.33","palimex meyva.rungis complexe@palimex meyva.com","94"]
[913,"Greendays ","15 r Pierre et Marie Curie",94200,"lvry sur Seine","01.49.59.85.00","greendays .lvry sur seine@greendays .com","94"]
[914,"Derichebourg","16 r Ernest Renan",94200,"lvry sur seine","01.45.21.06.25","derichebourg.lvry sur seine@derichebourg.com","94"]
[915,"Reclas","8 r Elisabeth",94200,"lvry sur seine","01.46.72.22.63","reclas.lvry sur seine@reclas.com","94"]
[916,"Eurelec Distribution ","3 r Georges Van Parys",94350,"Villiers sur Marne","01.82.38.00.30","eurelec distribution .villiers sur marne@eurelec distribution .com","94"]
[917,"Protherm","38 r Jean Jaurés",94350,"Villiers sur Marne","01.49.41.11.09","protherm.villiers sur marne@protherm.com","94"]
[918,"Entreprise Sarret","19 ter r Brévannes",94370,"Sucy en Brie","01.45.90.25.79","entreprise sarret.sucy en brie@entreprise sarret.com","94"]
[919,"Guiseppe Citterio","10 r Séminaire",94550,"chevilly Larue","01.41.80.01.41","guiseppe citterio.chevilly larue@guiseppe citterio.com","94"]
[920,"Vientiane Distribution","19 av Epi d'Or",94800,"villejuif","01.45.21.49.58","vientiane distribution.villejuif@vientiane distribution.com","94"]
[921,"Siremballage ","84 av Mar Leclerc",95000,"Boisemont","01.34.46.98.00","siremballage .boisemont@siremballage .com","95"]
[922,"Marisol","4 place de la Pergola BP 70116",95021,"Cergy Pontoise Cédex","01.84.24.00.50","marisol.cergy pontoise cédex@marisol.com","95"]
[923,"top bis ","12 bd maurice berteux ",95100,"Argenteuil","01.30.76.37.69 ","top bis .argenteuil@top bis .com","95"]
[924,"Derichebourg ","127 av Verdun",95100,"Argenteuil","01.39.82. 91.92","derichebourg .argenteuil@derichebourg .com","95"]
[925,"2ksi","179 rue Henri Barbusse",95100,"Argenteuil","06.10.49.68.71","2ksi.argenteuil@2ksi.com","95"]
[{"$f":"A926+1","v":926},"System Froid ","134 Av de Stalingrad",95100,"Argenteuil","09.65.12.47.31","system froid .argenteuil@system froid .com","95"]
[927,"ELPM","10 rue Touzelin",95110,"Sannois","01.39.47.39.50","elpm.sannois@elpm.com","95"]
[928,"Multistud Chalet ","61 Bd Maurice Berteaux",95110,"Sannois","01.84.53.69.14","multistud chalet .sannois@multistud chalet .com","95"]
[929,"T C J K","36 av Frédéric Joliot Curie",95140,"Garges-les-gonesses","09.65.12.47.31",{"$f":"IF(A930=\"\",\"\",(LOWER(B930&\".\"&E930&\"@\"&B930&\".com\")))","v":"t c j k.garges-les-gonesses@t c j k.com"},"95"]
[930,"senet","1 r Digue",95420,"Magny en Vexin","01.61.02.01.01",{"$f":"IF(B931=\"\",\"\",(LOWER(B931&\".\"&E931&\"@\"&B931&\".com\")))","v":"senet.magny en vexin@senet.com"},"95"]
[931,"S.D.M.E ","13 r Genètes",95550,"Bessancourt","01.34.11.15.33",{"$f":"IF(B932=\"\",\"\",(LOWER(B932&\".\"&E932&\"@\"&B932&\".com\")))","v":"s.d.m.e .bessancourt@s.d.m.e .com"},"95"]
[932,"SED Paris","23 r Libération",95650,"Courcelles sur Viosne","01.34.42.61.20",{"$f":"IF(B933=\"\",\"\",(LOWER(B933&\".\"&E933&\"@\"&B933&\".com\")))","v":"sed paris.courcelles sur viosne@sed paris.com"},"95"]
[{"$f":"IF(B934=\"\",\"\",A933+1)","v":933},"Georges","14, rue P.BERT","54000","Nancy","03.83.25.65.87",{"$f":"IF(B934=\"\",\"\",(LOWER(B934&\".\"&E934&\"@\"&B934&\".com\")))","v":"georges.nancy@georges.com"},"54"]
[934,"Logmat","145, Avenue P.BERT","57000","METZ","03.87.66.32.35","logmat.metz@logmat.com","57"]
[935,"Évolufarque","12 avenue Lavoisier","54520","LAXOU","03.83.55.56.57","évolufarque.laxou@évolufarque.com","54"]
[936,"DIGITS","56, Bld P.BERT","06000","Nice","07.52.35.68.33","digits.nice@digits.com","06"]
[937,"Composit S.A","ZI du Vert prè","37000","Tours","04.22.55.87.32","composit s.a.tours@composit s.a.com","37"]
[938,"Martin's co","17, rue S.Signoret","81000","Albi","09.81.22.54.87","martin's co.albi@martin's co.com","81"]
[939,"TX composant","10, Avenue du Rhin","68000","Colmar","07.32.36.68.47","tx composant.colmar@tx composant.com","68"]
[940,"Hurel Prod","55, impasse Verlaine","55500","Commercy","03.29.32.35.40","hurel prod.commercy@hurel prod.com","55"]
[941,"ALLO Élec","60, rue de Maréville","54540","Laxou","07.11.22.54.33","allo élec.laxou@allo élec.com","54"]
[942,"UTIL S.A","ZI SUD","29000","Brest","07.52.25.68.99","util s.a.brest@util s.a.com","29"]
[943,"Porter S.A.R.L","ZI J.Verne","18000","Bourges","07.88.89.94.96","porter s.a.r.l.bourges@porter s.a.r.l.com","18"]
[944,"Marty S.A","224, rue S.Veil","93200","Pantin","01.42.66.65.33","marty s.a.pantin@marty s.a.com","93"]
[945,"PERNOT","14, Avenue M. Barrès","54520","Laxou","07.63.36.65.32","pernot.laxou@pernot.com","54"]
[946,"Marmelec","8, Avenue Capucine","56850","Caudan","02.97.88.21.23","marmelec.caudan@marmelec.com","56"]
[947,"Générale de manutention","ZI Nord","64000","Pau","05.59.65.65.21","générale de manutention.pau@générale de manutention.com","64"]
["",null,null,null,null,null,"",""]
["",null,null,null,null,null,"",""]
["",null,null,null,null,null,"",""]
["",null,null,null,null,null,"",""]
["",null,null,null,null,null,"",""]
["",null,null,null,null,null,"",""]
["",null,null,null,null,null,"",""]
["",null,null,null,null,null,"",""]
["",null,null,null,null,null,"",""]
["",null,null,null,null,null,"",""]
["",null,null,null,null,null,"",""]
["",null,null,null,null,null,"",""]
["",null,null,null,null,null,"",""]
["",null,null,null,null,null,"",{"$f":"LEFT(D962, 2)","v":""}]
["",null,null,null,null,null,"",""]
["",null,null,null,null,null,"",""]
["",null,null,null,null,null,"",""]
["",null,null,null,null,null,"",""]
["",null,null,null,null,null,"",""]
["",null,null,null,null,null,"",""]
["",null,null,null,null,null,"",""]
["",null,null,null,null,null,"",""]
["",null,null,null,null,null,"",""]
["",null,null,null,null,null,"",""]
["",null,null,null,null,null,"",""]
["",null,null,null,null,null,"",""]
["",null,null,null,null,null,"",""]
["",null,null,null,null,null,"",""]
["",null,null,null,null,null,"",""]
["",null,null,null,null,null,"",""]
["",null,null,null,null,null,"",""]
["",null,null,null,null,null,"",""]
["",null,null,null,null,null,"",""]
["",null,null,null,null,null,"",""]
["",null,null,null,null,null,"",""]
["",null,null,null,null,null,"",""]
["",null,null,null,null,null,"",""]
["",null,null,null,null,null,"",""]
["",null,null,null,null,null,"",""]
["",null,null,null,null,null,"",""]
["",null,null,null,null,null,"",""]
["",null,null,null,null,null,"",""]
["",null,null,null,null,null,"",""]
["",null,null,null,null,null,"",""]
["",null,null,null,null,null,"",""]
["",null,null,null,null,null,"",""]
["",null,null,null,null,null,"",""]
["",null,null,null,null,null,"",""]
["",null,null,null,null,null,"",""]
[{"$f":"IF(B998=\"\",\"\",A997+1)","v":""},null,null,null,null,null,{"$f":"IF(B998=\"\",\"\",(LOWER(B998&\".\"&E998&\"@\"&B998&\".com\")))","v":""},""]
["",null,null,null,null,null,"",""]
["",null,null,null,null,null,"",""]
["",null,null,null,null,null,"",""]
["",null,null,null,null,null,"",""]
["",null,null,null,null,null,"",""]
["",null,null,null,null,null,"",""]
["",null,null,null,null,null,"",""]
["",null,null,null,null,null,"",""]
["",null,null,null,null,null,"",""]
["",null,null,null,null,null,"",""]
["",null,null,null,null,null,"",""]
["",null,null,null,null,null,"",""]
["",null,null,null,null,null,"",""]
["",null,null,null,null,null,"",""]
["",null,null,null,null,null,"",""]
["",null,null,null,null,null,"",""]
["",null,null,null,null,null,"",""]
["",null,null,null,null,null,"",""]
["",null,null,null,null,null,"",""]
["",null,null,null,null,null,"",""]
["",null,null,null,null,null,"",""]
["",null,null,null,null,null,"",""]
["",null,null,null,null,null,"",""]
["",null,null,null,null,null,"",""]
["",null,null,null,null,null,"",""]
["",null,null,null,null,null,"",""]
["",null,null,null,null,null,"",""]
["",null,null,null,null,null,"",{"$f":"LEFT(D1026, 2)","v":""}]
["",null,null,null,null,null,"",""]
["",null,null,null,null,null,"",""]
["",null,null,null,null,null,"",""]
["",null,null,null,null,null,"",""]
["",null,null,null,null,null,"",""]
["",null,null,null,null,null,"",""]
["",null,null,null,null,null,"",""]
["",null,null,null,null,null,"",""]
["",null,null,null,null,null,"",""]
["",null,null,null,null,null,"",""]
["",null,null,null,null,null,"",""]
["",null,null,null,null,null,"",""]
["",null,null,null,null,null,"",""]
["",null,null,null,null,null,"",""]
["",null,null,null,null,null,"",""]
["",null,null,null,null,null,"",""]
["",null,null,null,null,null,"",""]
["",null,null,null,null,null,"",""]
["",null,null,null,null,null,"",""]
["",null,null,null,null,null,"",""]
["",null,null,null,null,null,"",""]
["",null,null,null,null,null,"",""]
["",null,null,null,null,null,"",""]
["",null,null,null,null,null,"",""]
["",null,null,null,null,null,"",""]
["",null,null,null,null,null,"",""]
["",null,null,null,null,null,"",""]
["",null,null,null,null,null,"",""]
["",null,null,null,null,null,"",""]
["",null,null,null,null,null,"",""]
["",null,null,null,null,null,"",""]
["",null,null,null,null,null,"",""]
["",null,null,null,null,null,"",""]
["",null,null,null,null,null,"",""]
["",null,null,null,null,null,"",""]
[{"$f":"IF(B1062=\"\",\"\",A1061+1)","v":""},null,null,null,null,null,{"$f":"IF(B1062=\"\",\"\",(LOWER(B1062&\".\"&E1062&\"@\"&B1062&\".com\")))","v":""},""]
["",null,null,null,null,null,"",""]
["",null,null,null,null,null,"",""]
["",null,null,null,null,null,"",""]
["",null,null,null,null,null,"",""]
["",null,null,null,null,null,"",""]
["",null,null,null,null,null,"",""]
["",null,null,null,null,null,"",""]
["",null,null,null,null,null,"",""]
["",null,null,null,null,null,"",""]
["",null,null,null,null,null,"",""]
["",null,null,null,null,null,"",""]
["",null,null,null,null,null,"",""]
["",null,null,null,null,null,"",""]
["",null,null,null,null,null,"",""]
["",null,null,null,null,null,"",""]
["",null,null,null,null,null,"",""]
["",null,null,null,null,null,"",""]
["",null,null,null,null,null,"",""]
["",null,null,null,null,null,"",""]
["",null,null,null,null,null,"",""]
["",null,null,null,null,null,"",""]
["",null,null,null,null,null,"",""]
["",null,null,null,null,null,"",""]
["",null,null,null,null,null,"",""]
["",null,null,null,null,null,"",""]
["",null,null,null,null,null,"",""]
["",null,null,null,null,null,"",""]
["",null,null,null,null,null,"",{"$f":"LEFT(D1090, 2)","v":""}]
["",null,null,null,null,null,"",""]
["",null,null,null,null,null,"",""]
["",null,null,null,null,null,"",""]
["",null,null,null,null,null,"",""]
["",null,null,null,null,null,"",""]
["",null,null,null,null,null,"",""]
["",null,null,null,null,null,"",""]
["",null,null,null,null,null,"",""]
["",null,null,null,null,null,"",""]
["",null,null,null,null,null,"",""]
["",null,null,null,null,null,"",""]
["",null,null,null,null,null,"",""]
["",null,null,null,null,null,"",""]
["",null,null,null,null,null,"",""]
["",null,null,null,null,null,"",""]
["",null,null,null,null,null,"",""]
["",null,null,null,null,null,"",""]
["",null,null,null,null,null,"",""]
["",null,null,null,null,null,"",""]
["",null,null,null,null,null,"",""]
["",null,null,null,null,null,"",""]
["",null,null,null,null,null,"",""]
["",null,null,null,null,null,"",""]
["",null,null,null,null,null,"",""]
["",null,null,null,null,null,"",""]
["",null,null,null,null,null,"",""]
["",null,null,null,null,null,"",""]
["",null,null,null,null,null,"",""]
["",null,null,null,null,null,"",""]
["",null,null,null,null,null,"",""]
["",null,null,null,null,null,"",""]
["",null,null,null,null,null,"",""]
["",null,null,null,null,null,"",""]
["",null,null,null,null,null,"",""]
["",null,null,null,null,null,"",""]
[{"$f":"IF(B1126=\"\",\"\",A1125+1)","v":""},null,null,null,null,null,{"$f":"IF(B1126=\"\",\"\",(LOWER(B1126&\".\"&E1126&\"@\"&B1126&\".com\")))","v":""},""]
["",null,null,null,null,null,"",""]
["",null,null,null,null,null,"",""]
["",null,null,null,null,null,"",""]
["",null,null,null,null,null,"",""]
["",null,null,null,null,null,"",""]
["",null,null,null,null,null,"",""]
["",null,null,null,null,null,"",""]
["",null,null,null,null,null,"",""]
["",null,null,null,null,null,"",""]
["",null,null,null,null,null,"",""]
["",null,null,null,null,null,"",""]
["",null,null,null,null,null,"",""]
["",null,null,null,null,null,"",""]
["",null,null,null,null,null,"",""]
["",null,null,null,null,null,"",""]
["",null,null,null,null,null,"",""]
["",null,null,null,null,null,"",""]
["",null,null,null,null,null,"",""]
["",null,null,null,null,null,"",""]
["",null,null,null,null,null,"",""]
["",null,null,null,null,null,"",""]
["",null,null,null,null,null,"",""]
["",null,null,null,null,null,"",""]
["",null,null,null,null,null,"",""]
["",null,null,null,null,null,"",""]
["",null,null,null,null,null,"",""]
["",null,null,null,null,null,"",""]
["",null,null,null,null,null,"",{"$f":"LEFT(D1154, 2)","v":""}]
["",null,null,null,null,null,"",""]
["",null,null,null,null,null,"",""]
["",null,null,null,null,null,"",""]
["",null,null,null,null,null,"",""]
["",null,null,null,null,null,"",""]
["",null,null,null,null,null,"",""]
["",null,null,null,null,null,"",""]
["",null,null,null,null,null,"",""]
["",null,null,null,null,null,"",""]
["",null,null,null,null,null,"",""]
["",null,null,null,null,null,"",""]
["",null,null,null,null,null,"",""]
["",null,null,null,null,null,"",""]
["",null,null,null,null,null,"",""]
["",null,null,null,null,null,"",""]
["",null,null,null,null,null,"",""]
["",null,null,null,null,null,"",""]
["",null,null,null,null,null,"",""]
["",null,null,null,null,null,"",""]
["",null,null,null,null,null,"",""]
["",null,null,null,null,null,"",""]
["",null,null,null,null,null,"",""]
["",null,null,null,null,null,"",""]
["",null,null,null,null,null,"",""]
["",null,null,null,null,null,"",""]
["",null,null,null,null,null,"",""]
["",null,null,null,null,null,"",""]
["",null,null,null,null,null,"",""]
["",null,null,null,null,null,"",""]
["",null,null,null,null,null,"",""]
["",null,null,null,null,null,"",""]
["",null,null,null,null,null,"",""]
["",null,null,null,null,null,"",""]
["",null,null,null,null,null,"",""]
["",null,null,null,null,null,"",""]
[{"$f":"IF(B1190=\"\",\"\",A1189+1)","v":""},null,null,null,null,null,{"$f":"IF(B1190=\"\",\"\",(LOWER(B1190&\".\"&E1190&\"@\"&B1190&\".com\")))","v":""},""]
["",null,null,null,null,null,"",""]
["",null,null,null,null,null,"",""]
["",null,null,null,null,null,"",""]
["",null,null,null,null,null,"",""]
["",null,null,null,null,null,"",""]
["",null,null,null,null,null,"",""]
["",null,null,null,null,null,"",""]
["",null,null,null,null,null,"",""]
["",null,null,null,null,null,"",""]
["",null,null,null,null,null,"",""]
["",null,null,null,null,null,"",""]
["",null,null,null,null,null,"",""]
["",null,null,null,null,null,"",""]
["",null,null,null,null,null,"",""]
["",null,null,null,null,null,"",""]
["",null,null,null,null,null,"",""]
["",null,null,null,null,null,"",""]
["",null,null,null,null,null,"",""]
["",null,null,null,null,null,"",""]
["",null,null,null,null,null,"",""]
["",null,null,null,null,null,"",""]
["",null,null,null,null,null,"",""]
["",null,null,null,null,null,"",""]
["",null,null,null,null,null,"",""]
["",null,null,null,null,null,"",""]
["",null,null,null,null,null,"",""]
["",null,null,null,null,null,"",""]
["",null,null,null,null,null,"",{"$f":"LEFT(D1218, 2)","v":""}]
["",null,null,null,null,null,"",""]
["",null,null,null,null,null,"",""]
["",null,null,null,null,null,"",""]
["",null,null,null,null,null,"",""]
["",null,null,null,null,null,"",""]
["",null,null,null,null,null,"",""]
["",null,null,null,null,null,"",""]
["",null,null,null,null,null,"",""]
["",null,null,null,null,null,"",""]
["",null,null,null,null,null,"",""]
["",null,null,null,null,null,"",""]
["",null,null,null,null,null,"",""]
["",null,null,null,null,null,"",""]
["",null,null,null,null,null,"",""]
["",null,null,null,null,null,"",""]
["",null,null,null,null,null,"",""]
["",null,null,null,null,null,"",""]
["",null,null,null,null,null,"",""]
["",null,null,null,null,null,"",""]
["",null,null,null,null,null,"",""]
["",null,null,null,null,null,"",""]
["",null,null,null,null,null,"",""]
["",null,null,null,null,null,"",""]
["",null,null,null,null,null,"",""]
["",null,null,null,null,null,"",""]
["",null,null,null,null,null,"",""]
["",null,null,null,null,null,"",""]
["",null,null,null,null,null,"",""]
["",null,null,null,null,null,"",""]
["",null,null,null,null,null,"",""]
["",null,null,null,null,null,"",""]
["",null,null,null,null,null,"",""]
["",null,null,null,null,null,"",""]
["",null,null,null,null,null,"",""]
["",null,null,null,null,null,"",""]
[{"$f":"IF(B1254=\"\",\"\",A1253+1)","v":""},null,null,null,null,null,{"$f":"IF(B1254=\"\",\"\",(LOWER(B1254&\".\"&E1254&\"@\"&B1254&\".com\")))","v":""},""]
["",null,null,null,null,null,"",""]
["",null,null,null,null,null,"",""]
["",null,null,null,null,null,"",""]
["",null,null,null,null,null,"",""]
["",null,null,null,null,null,"",""]
["",null,null,null,null,null,"",""]
["",null,null,null,null,null,"",""]
["",null,null,null,null,null,"",""]
["",null,null,null,null,null,"",""]
["",null,null,null,null,null,"",""]
["",null,null,null,null,null,"",""]
["",null,null,null,null,null,"",""]
["",null,null,null,null,null,"",""]
["",null,null,null,null,null,"",""]
["",null,null,null,null,null,"",""]
["",null,null,null,null,null,"",""]
["",null,null,null,null,null,"",""]
["",null,null,null,null,null,"",""]
["",null,null,null,null,null,"",""]
["",null,null,null,null,null,"",""]
["",null,null,null,null,null,"",""]
["",null,null,null,null,null,"",""]
["",null,null,null,null,null,"",""]
["",null,null,null,null,null,"",""]
["",null,null,null,null,null,"",""]
["",null,null,null,null,null,"",""]
["",null,null,null,null,null,"",""]
["",null,null,null,null,null,"",{"$f":"LEFT(D1282, 2)","v":""}]
["",null,null,null,null,null,"",""]
["",null,null,null,null,null,"",""]
["",null,null,null,null,null,"",""]
["",null,null,null,null,null,"",""]
["",null,null,null,null,null,"",""]
["",null,null,null,null,null,"",""]
["",null,null,null,null,null,"",""]
["",null,null,null,null,null,"",""]
["",null,null,null,null,null,"",""]
["",null,null,null,null,null,"",""]
["",null,null,null,null,null,"",""]
["",null,null,null,null,null,"",""]
["",null,null,null,null,null,"",""]
["",null,null,null,null,null,"",""]
["",null,null,null,null,null,"",""]
["",null,null,null,null,null,"",""]
["",null,null,null,null,null,"",""]
["",null,null,null,null,null,"",""]
["",null,null,null,null,null,"",""]
["",null,null,null,null,null,"",""]
["",null,null,null,null,null,"",""]
["",null,null,null,null,null,"",""]
["",null,null,null,null,null,"",""]
["",null,null,null,null,null,"",""]
["",null,null,null,null,null,"",""]
["",null,null,null,null,null,"",""]
["",null,null,null,null,null,"",""]
["",null,null,null,null,null,"",""]
["",null,null,null,null,null,"",""]
["",null,null,null,null,null,"",""]
["",null,null,null,null,null,"",""]
["",null,null,null,null,null,"",""]
["",null,null,null,null,null,"",""]
["",null,null,null,null,null,"",""]
["",null,null,null,null,null,"",""]
[{"$f":"IF(B1318=\"\",\"\",A1317+1)","v":""},null,null,null,null,null,{"$f":"IF(B1318=\"\",\"\",(LOWER(B1318&\".\"&E1318&\"@\"&B1318&\".com\")))","v":""},""]
["",null,null,null,null,null,"",""]
["",null,null,null,null,null,"",""]
["",null,null,null,null,null,"",""]
["",null,null,null,null,null,"",""]
["",null,null,null,null,null,"",""]
["",null,null,null,null,null,"",""]
["",null,null,null,null,null,"",""]
["",null,null,null,null,null,"",""]
["",null,null,null,null,null,"",""]
["",null,null,null,null,null,"",""]
["",null,null,null,null,null,"",""]
["",null,null,null,null,null,"",""]
["",null,null,null,null,null,"",""]
["",null,null,null,null,null,"",""]
["",null,null,null,null,null,"",""]
["",null,null,null,null,null,"",""]
["",null,null,null,null,null,"",""]
["",null,null,null,null,null,"",""]
["",null,null,null,null,null,"",""]
["",null,null,null,null,null,"",""]
["",null,null,null,null,null,"",""]
["",null,null,null,null,null,"",""]
["",null,null,null,null,null,"",""]
["",null,null,null,null,null,"",""]
["",null,null,null,null,null,"",""]
["",null,null,null,null,null,"",""]
["",null,null,null,null,null,"",""]
["",null,null,null,null,null,"",{"$f":"LEFT(D1346, 2)","v":""}]
["",null,null,null,null,null,"",""]
["",null,null,null,null,null,"",""]
["",null,null,null,null,null,"",""]
["",null,null,null,null,null,"",""]
["",null,null,null,null,null,"",""]
["",null,null,null,null,null,"",""]
["",null,null,null,null,null,"",""]
["",null,null,null,null,null,"",""]
["",null,null,null,null,null,"",""]
["",null,null,null,null,null,"",""]
["",null,null,null,null,null,"",""]
["",null,null,null,null,null,"",""]
["",null,null,null,null,null,"",""]
["",null,null,null,null,null,"",""]
["",null,null,null,null,null,"",""]
["",null,null,null,null,null,"",""]
["",null,null,null,null,null,"",""]
["",null,null,null,null,null,"",""]
["",null,null,null,null,null,"",""]
["",null,null,null,null,null,"",""]
["",null,null,null,null,null,"",""]
["",null,null,null,null,null,"",""]
["",null,null,null,null,null,"",""]
["",null,null,null,null,null,"",""]
["",null,null,null,null,null,"",""]
["",null,null,null,null,null,"",""]
["",null,null,null,null,null,"",""]
["",null,null,null,null,null,"",""]
["",null,null,null,null,null,"",""]
["",null,null,null,null,null,"",""]
["",null,null,null,null,null,"",""]
["",null,null,null,null,null,"",""]
["",null,null,null,null,null,"",""]
["",null,null,null,null,null,"",""]
["",null,null,null,null,null,"",""]
[{"$f":"IF(B1382=\"\",\"\",A1381+1)","v":""},null,null,null,null,null,{"$f":"IF(A1382=\"\",\"\",(LOWER(B1382&\".\"&E1382&\"@\"&B1382&\".com\")))","v":""},""]
["",null,null,null,null,null,"",""]
["",null,null,null,null,null,"",""]
["",null,null,null,null,null,"",""]
["",null,null,null,null,null,"",""]
["",null,null,null,null,null,"",""]
["",null,null,null,null,null,"",""]
["",null,null,null,null,null,"",""]
["",null,null,null,null,null,"",""]
["",null,null,null,null,null,"",""]
["",null,null,null,null,null,"",""]
["",null,null,null,null,null,"",""]
["",null,null,null,null,null,"",""]
["",null,null,null,null,null,"",""]
["",null,null,null,null,null,"",""]
["",null,null,null,null,null,"",""]
["",null,null,null,null,null,"",""]
["",null,null,null,null,null,"",""]
["",null,null,null,null,null,"",""]
["",null,null,null,null,null,"",""]
["",null,null,null,null,null,"",""]
["",null,null,null,null,null,"",""]
["",null,null,null,null,null,"",""]
["",null,null,null,null,null,"",""]
["",null,null,null,null,null,"",""]
["",null,null,null,null,null,"",""]
["",null,null,null,null,null,"",""]
["",null,null,null,null,null,"",""]
["",null,null,null,null,null,"",{"$f":"LEFT(D1410, 2)","v":""}]
["",null,null,null,null,null,"",""]
["",null,null,null,null,null,"",""]
["",null,null,null,null,null,"",""]
["",null,null,null,null,null,"",""]
["",null,null,null,null,null,"",""]
["",null,null,null,null,null,"",""]
["",null,null,null,null,null,"",""]
["",null,null,null,null,null,"",""]
["",null,null,null,null,null,"",""]
["",null,null,null,null,null,"",""]
["",null,null,null,null,null,"",""]
["",null,null,null,null,null,"",""]
["",null,null,null,null,null,"",""]
["",null,null,null,null,null,"",""]
["",null,null,null,null,null,"",""]
["",null,null,null,null,null,"",""]
["",null,null,null,null,null,"",""]
["",null,null,null,null,null,"",""]
["",null,null,null,null,null,"",""]
["",null,null,null,null,null,"",""]
["",null,null,null,null,null,"",""]
["",null,null,null,null,null,"",""]
["",null,null,null,null,null,"",""]
["",null,null,null,null,null,"",""]
["",null,null,null,null,null,"",""]
["",null,null,null,null,null,"",""]
["",null,null,null,null,null,"",""]
["",null,null,null,null,null,"",""]
["",null,null,null,null,null,"",""]
["",null,null,null,null,null,"",""]
["",null,null,null,null,null,"",""]
["",null,null,null,null,null,"",""]
["",null,null,null,null,null,"",""]
["",null,null,null,null,null,"",""]
["",null,null,null,null,null,"",""]
[{"$f":"IF(B1446=\"\",\"\",A1445+1)","v":""},null,null,null,null,null,{"$f":"IF(A1446=\"\",\"\",(LOWER(B1446&\".\"&E1446&\"@\"&B1446&\".com\")))","v":""},""]
["",null,null,null,null,null,"",""]
["",null,null,null,null,null,"",""]
["",null,null,null,null,null,"",""]
["",null,null,null,null,null,"",""]
["",null,null,null,null,null,"",""]
["",null,null,null,null,null,"",""]
["",null,null,null,null,null,"",""]
["",null,null,null,null,null,"",""]
["",null,null,null,null,null,"",""]
["",null,null,null,null,null,"",""]
["",null,null,null,null,null,"",""]
["",null,null,null,null,null,"",""]
["",null,null,null,null,null,"",""]
["",null,null,null,null,null,"",""]
["",null,null,null,null,null,"",""]
["",null,null,null,null,null,"",""]
["",null,null,null,null,null,"",""]
["",null,null,null,null,null,"",""]
["",null,null,null,null,null,"",""]
["",null,null,null,null,null,"",""]
["",null,null,null,null,null,"",""]
["",null,null,null,null,null,"",""]
["",null,null,null,null,null,"",""]
["",null,null,null,null,null,"",""]
["",null,null,null,null,null,"",""]
["",null,null,null,null,null,"",""]
["",null,null,null,null,null,"",""]
["",null,null,null,null,null,"",{"$f":"LEFT(D1474, 2)","v":""}]
["",null,null,null,null,null,"",""]
["",null,null,null,null,null,"",""]
["",null,null,null,null,null,"",""]
["",null,null,null,null,null,"",""]
["",null,null,null,null,null,"",""]
["",null,null,null,null,null,"",""]
["",null,null,null,null,null,"",""]
["",null,null,null,null,null,"",""]
["",null,null,null,null,null,"",""]
["",null,null,null,null,null,"",""]
["",null,null,null,null,null,"",""]
["",null,null,null,null,null,"",""]
["",null,null,null,null,null,"",""]
["",null,null,null,null,null,"",""]
["",null,null,null,null,null,"",""]
["",null,null,null,null,null,"",""]
["",null,null,null,null,null,"",""]
["",null,null,null,null,null,"",""]
["",null,null,null,null,null,"",""]
["",null,null,null,null,null,"",""]
["",null,null,null,null,null,"",""]
["",null,null,null,null,null,"",""]
["",null,null,null,null,null,"",""]
["",null,null,null,null,null,"",""]
["",null,null,null,null,null,"",""]
["",null,null,null,null,null,"",""]
["",null,null,null,null,null,"",""]
["",null,null,null,null,null,"",""]
["",null,null,null,null,null,"",""]
["",null,null,null,null,null,"",""]
["",null,null,null,null,null,"",""]
["",null,null,null,null,null,"",""]
["",null,null,null,null,null,"",""]
["",null,null,null,null,null,"",""]
["",null,null,null,null,null,"",""]
[{"$f":"IF(B1510=\"\",\"\",A1509+1)","v":""},null,null,null,null,null,{"$f":"IF(A1510=\"\",\"\",(LOWER(B1510&\".\"&E1510&\"@\"&B1510&\".com\")))","v":""},""]
["",null,null,null,null,null,"",""]
["",null,null,null,null,null,"",""]
["",null,null,null,null,null,"",""]
["",null,null,null,null,null,"",""]
["",null,null,null,null,null,"",""]
["",null,null,null,null,null,"",""]
["",null,null,null,null,null,"",""]
["",null,null,null,null,null,"",""]
["",null,null,null,null,null,"",""]
["",null,null,null,null,null,"",""]
["",null,null,null,null,null,"",""]
["",null,null,null,null,null,"",""]
["",null,null,null,null,null,"",""]
["",null,null,null,null,null,"",""]
["",null,null,null,null,null,"",""]
["",null,null,null,null,null,"",""]
["",null,null,null,null,null,"",""]
["",null,null,null,null,null,"",""]
["",null,null,null,null,null,"",""]
["",null,null,null,null,null,"",""]
["",null,null,null,null,null,"",""]
["",null,null,null,null,null,"",""]
["",null,null,null,null,null,"",""]
["",null,null,null,null,null,"",""]
["",null,null,null,null,null,"",""]
["",null,null,null,null,null,"",""]
["",null,null,null,null,null,"",""]
["",null,null,null,null,null,"",{"$f":"LEFT(D1538, 2)","v":""}]
["",null,null,null,null,null,"",""]
["",null,null,null,null,null,"",""]
["",null,null,null,null,null,"",""]
["",null,null,null,null,null,"",""]
["",null,null,null,null,null,"",""]
["",null,null,null,null,null,"",""]
["",null,null,null,null,null,"",""]
["",null,null,null,null,null,"",""]
["",null,null,null,null,null,"",""]
["",null,null,null,null,null,"",""]
["",null,null,null,null,null,"",""]
["",null,null,null,null,null,"",""]
["",null,null,null,null,null,"",""]
["",null,null,null,null,null,"",""]
["",null,null,null,null,null,"",""]
["",null,null,null,null,null,"",""]
["",null,null,null,null,null,"",""]
["",null,null,null,null,null,"",""]
["",null,null,null,null,null,"",""]
["",null,null,null,null,null,"",""]
["",null,null,null,null,null,"",""]
["",null,null,null,null,null,"",""]
["",null,null,null,null,null,"",""]
["",null,null,null,null,null,"",""]
["",null,null,null,null,null,"",""]
["",null,null,null,null,null,"",""]
["",null,null,null,null,null,"",""]
["",null,null,null,null,null,"",""]
["",null,null,null,null,null,"",""]
["",null,null,null,null,null,"",""]
["",null,null,null,null,null,"",""]
["",null,null,null,null,null,"",""]
["",null,null,null,null,null,"",""]
["",null,null,null,null,null,"",""]
["",null,null,null,null,null,"",""]
[{"$f":"IF(B1574=\"\",\"\",A1573+1)","v":""},null,null,null,null,null,{"$f":"IF(A1574=\"\",\"\",(LOWER(B1574&\".\"&E1574&\"@\"&B1574&\".com\")))","v":""},""]
["",null,null,null,null,null,"",""]
["",null,null,null,null,null,"",""]
["",null,null,null,null,null,"",""]
["",null,null,null,null,null,"",""]
["",null,null,null,null,null,"",""]
["",null,null,null,null,null,"",""]
["",null,null,null,null,null,"",""]
["",null,null,null,null,null,"",""]
["",null,null,null,null,null,"",""]
["",null,null,null,null,null,"",""]
["",null,null,null,null,null,"",""]
["",null,null,null,null,null,"",""]
["",null,null,null,null,null,"",""]
["",null,null,null,null,null,"",""]
["",null,null,null,null,null,"",""]
["",null,null,null,null,null,"",""]
["",null,null,null,null,null,"",""]
["",null,null,null,null,null,"",""]
["",null,null,null,null,null,"",""]
["",null,null,null,null,null,"",""]
["",null,null,null,null,null,"",""]
["",null,null,null,null,null,"",""]
["",null,null,null,null,null,"",""]
["",null,null,null,null,null,"",""]
["",null,null,null,null,null,"",""]
["",null,null,null,null,null,"",""]
["",null,null,null,null,null,"",""]
["",null,null,null,null,null,"",{"$f":"LEFT(D1602, 2)","v":""}]
["",null,null,null,null,null,"",""]
["",null,null,null,null,null,"",""]
["",null,null,null,null,null,"",""]
["",null,null,null,null,null,"",""]
["",null,null,null,null,null,"",""]
["",null,null,null,null,null,"",""]
["",null,null,null,null,null,"",""]
["",null,null,null,null,null,"",""]
["",null,null,null,null,null,"",""]
["",null,null,null,null,null,"",""]
["",null,null,null,null,null,"",""]
["",null,null,null,null,null,"",""]
["",null,null,null,null,null,"",""]
["",null,null,null,null,null,"",""]
["",null,null,null,null,null,"",""]
["",null,null,null,null,null,"",""]
["",null,null,null,null,null,"",""]
["",null,null,null,null,null,"",""]
["",null,null,null,null,null,"",""]
["",null,null,null,null,null,"",""]
["",null,null,null,null,null,"",""]
["",null,null,null,null,null,"",""]
["",null,null,null,null,null,"",""]
["",null,null,null,null,null,"",""]
["",null,null,null,null,null,"",""]
["",null,null,null,null,null,"",""]
["",null,null,null,null,null,"",""]
["",null,null,null,null,null,"",""]
["",null,null,null,null,null,"",""]
["",null,null,null,null,null,"",""]
["",null,null,null,null,null,"",""]
["",null,null,null,null,null,"",""]
["",null,null,null,null,null,"",""]
["",null,null,null,null,null,"",""]
["",null,null,null,null,null,"",""]
[{"$f":"IF(B1638=\"\",\"\",A1637+1)","v":""},null,null,null,null,null,{"$f":"IF(A1638=\"\",\"\",(LOWER(B1638&\".\"&E1638&\"@\"&B1638&\".com\")))","v":""},""]
["",null,null,null,null,null,"",""]
["",null,null,null,null,null,"",""]
["",null,null,null,null,null,"",""]
["",null,null,null,null,null,"",""]
["",null,null,null,null,null,"",""]
["",null,null,null,null,null,"",""]
["",null,null,null,null,null,"",""]
["",null,null,null,null,null,"",""]
["",null,null,null,null,null,"",""]
["",null,null,null,null,null,"",""]
["",null,null,null,null,null,"",""]
["",null,null,null,null,null,"",""]
["",null,null,null,null,null,"",""]
["",null,null,null,null,null,"",""]
["",null,null,null,null,null,"",""]
["",null,null,null,null,null,"",""]
["",null,null,null,null,null,"",""]
["",null,null,null,null,null,"",""]
["",null,null,null,null,null,"",""]
["",null,null,null,null,null,"",""]
["",null,null,null,null,null,"",""]
["",null,null,null,null,null,"",""]
["",null,null,null,null,null,"",""]
["",null,null,null,null,null,"",""]
["",null,null,null,null,null,"",""]
["",null,null,null,null,null,"",""]
["",null,null,null,null,null,"",""]
["",null,null,null,null,null,"",{"$f":"LEFT(D1666, 2)","v":""}]
["",null,null,null,null,null,"",""]
["",null,null,null,null,null,"",""]
["",null,null,null,null,null,"",""]
["",null,null,null,null,null,"",""]
["",null,null,null,null,null,"",""]
["",null,null,null,null,null,"",""]
["",null,null,null,null,null,"",""]
["",null,null,null,null,null,"",""]
["",null,null,null,null,null,"",""]
["",null,null,null,null,null,"",""]
["",null,null,null,null,null,"",""]
["",null,null,null,null,null,"",""]
["",null,null,null,null,null,"",""]
["",null,null,null,null,null,"",""]
["",null,null,null,null,null,"",""]
["",null,null,null,null,null,"",""]
["",null,null,null,null,null,"",""]
["",null,null,null,null,null,"",""]
["",null,null,null,null,null,"",""]
["",null,null,null,null,null,"",""]
["",null,null,null,null,null,"",""]
["",null,null,null,null,null,"",""]
["",null,null,null,null,null,"",""]
["",null,null,null,null,null,"",""]
["",null,null,null,null,null,"",""]
["",null,null,null,null,null,"",""]
["",null,null,null,null,null,"",""]
["",null,null,null,null,null,"",""]
["",null,null,null,null,null,"",""]
["",null,null,null,null,null,"",""]
["",null,null,null,null,null,"",""]
["",null,null,null,null,null,"",""]
["",null,null,null,null,null,"",""]
["",null,null,null,null,null,"",""]
["",null,null,null,null,null,"",""]
[{"$f":"IF(B1702=\"\",\"\",A1701+1)","v":""},null,null,null,null,null,{"$f":"IF(A1702=\"\",\"\",(LOWER(B1702&\".\"&E1702&\"@\"&B1702&\".com\")))","v":""},""]
["",null,null,null,null,null,"",""]
["",null,null,null,null,null,"",""]
["",null,null,null,null,null,"",""]
["",null,null,null,null,null,"",""]
["",null,null,null,null,null,"",""]
["",null,null,null,null,null,"",""]
["",null,null,null,null,null,"",""]
["",null,null,null,null,null,"",""]
["",null,null,null,null,null,"",""]
["",null,null,null,null,null,"",""]
["",null,null,null,null,null,"",""]
["",null,null,null,null,null,"",""]
["",null,null,null,null,null,"",""]
["",null,null,null,null,null,"",""]
["",null,null,null,null,null,"",""]
["",null,null,null,null,null,"",""]
["",null,null,null,null,null,"",""]
["",null,null,null,null,null,"",""]
["",null,null,null,null,null,"",""]
["",null,null,null,null,null,"",""]
["",null,null,null,null,null,"",""]
["",null,null,null,null,null,"",""]
["",null,null,null,null,null,"",""]
["",null,null,null,null,null,"",""]
["",null,null,null,null,null,"",""]
["",null,null,null,null,null,"",""]
["",null,null,null,null,null,"",""]

{"sheet":"Stock","index":17,"n_rows":568,"n_cols":13,"rows_kept":568,"cut":false,"hidden":false,"merged":[]}
["Référence","DÉSIGNATION","COMPLÉMENT","ADRESSE","U.V","Stock","Prix de Vente","Valeur","Stock Mini","Stock Maxi","Alerte"]
[10001,"Projecteur EPSON EB-675 wi",null,"A-1-1",1,3,1350,{"$f":"IF(G2=\"\",\"\",G2*F2)","v":4050},1,3,{"$f":"IF(F2<=I2,J2-F2,IF(F2>I2,J2-F2))","v":0}]
[10002,"Projecteur EPSON EB-675 wi",null,"A-1-2",1,2,1350,2700,1,2,0]
[10003,"Plaque GAZ",null,"A-1-3",1,9,455,4095,2,9,0]
[10004,"Ordinateur AM09",null,"A-1-4",1,4,645,2580,2,4,0]
[10005,"Projecteur EPSON EB-675 wi",null,"A-2-1",1,3,1350,4050,1,3,0]
[10006,"Écran Philips B Line 22\"",null,"A-2-2",1,3,320,960,1,3,0]
[10007,"Projecteur EPSON EB-685 wi",null,"A-2-3",1,1,1450,1450,1,1,0]
[10008,"Poteau socle",null,"A-2-3",1,1,185,185,1,1,0]
[10009,"Poteau socle",null,"A-2-4",1,2,185,370,1,2,0]
[10010,"Ordinateur DELL ",null,"A-2-4",1,1,489,489,1,1,0]
[10011,"Projecteur EPSON EB-675 wi",null,"B-1-1",1,3,1350,4050,1,3,0]
[10012,"Projecteur EPSON EB-675 wi",null,"B-1-3",1,1,1350,1350,1,1,0]
[10013,"Poteau socle",null,"B-1-3",1,1,185,185,1,1,0]
[10014,"Projecteur EPSON EB-675 wi",null,"B-2-1",1,3,1350,4050,1,3,0]
[10015,"Projecteur EPSON EB-675 wi",null,"B-2-2",1,2,1350,2700,1,2,0]
[10016,"Filtre écran CRT&LCD",null,"B-1-4",1,10,37,370,2,10,0]
[10017,"Clavier fujistu siemens F4482",null,"B-2-3",1,3,45,135,1,3,0]
[10018,"Clavier Nec",null,"B-2-3",1,1,37,37,1,1,0]
[10019,"Standard Centralp ",null,"B-2-3",1,6,268,1608,1,6,0]
[10020,"Ordinateur THINKCENTRE",null,"B-1-4",1,5,550,2750,1,5,0]
[10021,"Eau Déméniraliée",null,"C-1-1",1,9,12.25,110.25,2,9,0]
[10022,"Lave Glace Holtz",null,"C-1-2",1,9,14.65,131.85,2,9,0]
[10023,"Polycontrôle Chauvin Arnoux",null,"C-1-3",1,2,25,50,1,2,0]
[10024,"Dijoncteur télémécanique GV1-M07",null,"C-1-3",1,3,245,735,1,3,0]
[10025,"Dijoncteur Télémécanique LC1 D40",null,"C-1-3",1,1,175,175,1,1,0]
[10026,"Dijoncteur Merli Guerin Déclic C16",null,"C-1-3",1,1,145,145,1,1,0]
[10027,"Kit Réducteur mamelon",null,"C-2-1",1,6,12.5,75,1,6,0]
[10028,"Clavier fujistu siemens",null,"C-2-2",1,8,38.200000000000003,305.60000000000002,1,8,0]
[10029,"Clavier Enith ",null,"C-2-2",1,3,37,111,1,3,0]
[10030,"Clavier Logitec",null,"C-2-2",1,1,38.5,38.5,1,1,0]
[10031,"Manchon à emboiture",null,"D-1-1",1,9,36.44,327.96,1,9,0]
[10032,"Prise de branchement",null,"D-1-1",1,3,22.35,67.050000000000011,1,3,0]
[10033,"Simulateur",null,"D-1-1",1,2,145,290,1,2,0]
[10034,"thermostat",null,"D-1-1",1,1,15,15,1,1,0]
[10035,"Automete TSX 17",null,"D-1-2",1,1,5.23,5.23,1,1,0]
[10036,"Processeur TSX47",null,"D-1-2",1,3,102,306,1,3,0]
[10037,"Pïed mexal",null,"D-1-2",1,8,12.6,100.8,2,8,0]
[10038,"Fixation écrou",null,"D-1-2",1,4,8.5,34,1,4,0]
[10039,"Boitier interrupteur AV/AR",null,"D-1-3",1,1,23,23,1,1,0]
[10040,"Régulateur",null,"D-1-3",1,1,37.65,37.65,1,1,0]
[10041,"Embout Pompe",null,"D-1-3",1,2,2.35,4.7,1,2,0]
[10042,"Interrupteur Legran 100A",null,"D-1-3",1,2,102,204,1,2,0]
[10043,"Module de comutationPTX1",null,"D-2-1",1,2,89.36,178.72,1,2,0]
[10044,"Raccord réducteur",null,"D-2-1",1,1,45,45,1,1,0]
[10045,"Manchon Muffe",null,"D-2-1",1,2,2.74,5.48,1,2,0]
[10046,"Dijoncteur différentiel Merlin Guerin",null,"D-2-1",1,2,126.25,252.5,1,2,0]
[10047,"Dijoncteur Télémécanique GV1-M08",null,"D-2-1",1,9,235.75,2121.75,2,9,0]
[10048,"Veilleuse",null,"D-2-2",1,3,168.95,506.84999999999997,1,3,0]
[10049,"Bande anticorrosion",null,"D-2-2",1,10,47.53,475.3,2,10,0]
[10050,"Commutateur 3com",null,"D-2-2",1,3,12.25,36.75,1,3,0]
[10051,"Relais Finder Robine",null,"D-2-3",1,3,35.6,106.80000000000001,1,3,0]
[10052,"Galet de roulement",null,"D-2-3",1,17,47.25,803.25,3,17,0]
[10053,"Led de contrôle",null,"D-2-3",1,8,126,1008,2,8,0]
[10054,"Adaptateur Coaxial",null,"D-2-3",1,34,21,714,10,34,0]
[10055,"Broche",null,"E-1-1",1,1,5,5,1,1,0]
[10056,"Contacteur Télémécanique",null,"E-1-1",1,3,26.85,80.550000000000011,1,3,0]
[10057,"Centrale de connection Legrand",null,"E-1-1",1,1,24.5,24.5,1,1,0]
[10058,"Dijoncteur Hager 40A",null,"E-1-1",1,1,127,127,1,1,0]
[10059,"Tuyaux de reccordement ",null,"E-1-2",1,6,36.85,221.10000000000002,1,6,0]
[10061,"Kit Réducteur ",null,"E-1-3","Sachet de 3",1,25.84,25.84,1,1,0]
[10062,"Poignet de liaison",null,"E-1-3","Sachet de 4",8,35.24,281.92,1,8,0]
[10063,"Contrôleur de reseau Satschwell",null,"E-1-3",1,2,644,1288,1,2,0]
[10064,"Kit réducteur mamelon",null,"E-2-1",1,6,2.5499999999999998,15.299999999999999,2,6,0]
[10065,"Support Relais Finfer",null,"E-2-2",1,10,14,{"$f":"IF(G65=\"\",\"\",G65*F65)","v":140},2,10,{"$f":"IF(F65<=I65,J65-F65,IF(F65>I65,J65-F65))","v":0}]
[10066,"Module d'entrée Siemens",null,"E-2-2",1,21,541,11361,4,21,0]
[10067,"Connecteur basse T ligne Souterraine",null,"E-2-2",1,20,127.5,2550,5,20,0]
[10068,"Connecteur basse T ligne Souterraine",null,"E-2-2",1,60,27.5,1650,10,60,0]
[10069,"Dijoncteur diférentiel Legrand 30mA",null,"E-2-3",1,5,102.36,511.8,1,5,0]
[10070,"Relais Télémécanique CA2KN22B7",null,"E-2-3",1,9,55.1,495.90000000000003,2,9,0]
[10071,"Barrette de jonction beige",null,"E-2-3",1,5,5.65,28.25,1,5,0]
[10072,"Borne de raccordement Nexams",null,"E-2-3",1,5,85.22,426.1,1,5,0]
[10073,"Relais Télémécanique CA2-EN-122",null,"F-1-1",1,10,52.36,523.6,1,10,0]
[10074,"Dijoncteur Merlin Guerin multi9 sti",null,"F-1-1",1,3,126.98,380.94,1,3,0]
[10075,"Contact auxiliaire LA1-D22 ",null,"F-1-1",1,70,6.75,472.5,10,70,0]
[10076,"Dijoncteur Merlin G multi9 sti 10,3x38",null,"F-1-1",1,3,135.65,406.95000000000005,1,3,0]
[10077,"Dijoncteur Télémécanique GV1-M10",null,"F-1-3",1,14,102.54,1435.5600000000002,3,14,0]
[10078,"Dijoncteur télémécanique GV2ME08",null,"F-1-2",1,2,87.22,174.44,2,2,0]
[10079,"Contact auxiliaire LC1-EC-03",null,"F-1-2",1,4,21.15,84.6,2,4,0]
[10080,"Support d'aile simple",null,"F-1-2",1,12,4.5,54,2,12,0]
[10081,"Bloc broche télémécanique LC1K",null,"F-1-2",1,5,15.65,78.25,2,5,0]
[10082,"Contacteur Moeller DIL R22D",null,"F-1-3",1,2,225.54,451.08,1,2,0]
[10083,"Relais électromécanique 48V50/60Hz",null,"F-1-3",1,3,175.2,525.59999999999991,1,3,0]
[10084,"Contact auxiliaire LA1-D22",null,"F-1-3",1,16,78.2,1251.2,5,16,0]
[10085,"Interrupteur général",null,"F-2-1",1,2,19.95,39.9,1,2,0]
[10086,"Serveur UNITEK",null,"F-2-1",1,1,450,450,1,1,0]
[10087,"Contacteur de fin de course PSM-A10",null,"F-2-1",1,8,65.2,521.6,2,8,0]
[10088,"Dijoncteur Merli Guerin C60N C10",null,"F-2-1",1,3,45.2,135.60000000000002,1,3,0]
[10089,"Kit poignet",null,"F-2-2",1,2,15.65,31.3,1,2,0]
[10090,"Relais miniature FENDER 35.34",null,"F-2-2",1,5,115,575,1,5,0]
[10091,"Fusible 50 A sachet de 10",null,"F-2-2",1,17,25.75,437.75,2,17,0]
[10092,"Barrette de jonction Grise grane",null,"F-2-2",1,50,5.25,262.5,10,50,0]
[10093,"Console de programation",null,"F-2-2",1,1,469,469,1,1,0]
[10094,"Bouton marche arrêt",null,"F-2-3",1,4,35,140,1,4,0]
[10095,"Embout Pompe relais",null,"F-2-3",1,18,2.65,47.699999999999996,5,18,0]
[10096,"Support tour",null,"F-2-3",1,4,25.65,102.6,1,4,0]
[10097,"Contact auxiliaire LA1-D13",null,"G-1-1",1,7,65,455,1,7,0]
[10098,"Porte fusible LS1-D2531",null,"G-1-1",1,8,29.95,239.6,2,8,0]
[10099,"Contact auxiliaire LA1-D40",null,"G-1-1",1,3,35,105,1,3,0]
[10100,"Relais de temporisation RHR 41",null,"G-1-1",1,2,145,290,1,2,0]
[10101,"Bloc de jonction DB6 CD 110",null,"G-1-2",1,9,26.95,242.54999999999998,2,9,0]
[10102,"Manchon métal",null,"G-1-2",1,10,35.65,356.5,2,10,0]
[10103,"Barrette de jonction fine lot de 10",null,"G-1-2",1,8,125,1000,2,8,0]
[10104,"Relais récepteur 4 groupes",null,"G-1-2",1,1,225.6,225.6,1,1,0]
[10105,"Relais Télémécanique CA2-DN-131",null,"G-1-3",1,27,39.950000000000003,1078.6500000000001,5,27,0]
[10106,"Dijoncteur Merlin Guerin multi9 ID",null,"G-1-3",1,1,136.25,136.25,1,1,0]
[10107,"Contacteur Télémécanique optimal 25",null,"G-1-3",1,3,234.25,702.75,1,3,0]
[10108,"Emboiteur lot de 5",null,"G-1-3",1,4,12.45,49.8,1,4,0]
[10109,"Interrupteur selectionneur 100A",null,"G-2-1",1,1,15,15,1,1,0]
[10110,"Interrupteur selectionneur 63A",null,"G-2-1",1,1,25,25,1,1,0]
[10111,"Dijoncteur Hager NGN 463",null,"G-2-1",1,1,136.65,136.65,1,1,0]
[10112,"Relais de contrôle LR41400",null,"G-2-1",1,1,125.6,125.6,1,1,0]
[10113,"Temporisateur Noir",null,"G-2-2",1,3,65.25,195.75,1,3,0]
[10114,"Connecteur prise terre",null,"G-2-2",1,2,45.2,90.4,1,2,0]
[10115,"Relais de temporisation RHN 41 C300",null,"G-2-2",1,2,26.65,53.3,1,2,0]
[10116,"Contact auxiliaire LA1-D11",null,"G-2-3",1,7,38.450000000000003,269.15000000000003,1,7,0]
[10117,"Dijoncteur Merli Guerin C60N vigi C60",null,"G-2-3",1,1,136.9,136.9,1,1,0]
[10118,"Temporisateur bleu",null,"G-2-3",1,3,27.65,82.949999999999989,1,3,0]
[10119,"Colier de jonction Bardin",null,"G-2-3",1,3,12.65,37.950000000000003,1,3,0]
[10120,"Interruteur selectionneur 63A Vistop ",null,"H-2-1",1,2,75.849999999999994,151.69999999999999,1,2,0]
[10121,"Emboiteur petite taille beige",null,"H-2-1",1,21,12,252,5,21,0]
[10122,"Relais Télémécanique CA2-DN-1319",null,"H-2-1",1,5,25.85,129.25,1,5,0]
[10123,"Moniteur de vitesse",null,"H-2-1",1,2,302.5,605,1,2,0]
[10124,"Bloc diférentiel Vigi C80",null,"I-2-1",1,1,175.2,175.2,1,1,0]
[10125,"Dijoncteur Merli guerin 40A EN60947",null,"H-2-2",1,1,35.65,35.65,1,1,0]
[10126,"Relais Télémécanique CA2-DN-140",null,"H-2-2",1,32,26.6,851.2,10,32,0]
[10127,"Bloc de jonction DB6 CD 105",null,"H-2-2",1,7,35.549999999999997,248.84999999999997,2,7,0]
[10128,"Relais R 100K 76D",null,"H-2-3",1,2,25.65,51.3,1,2,0]
[10129,"Coupe circuit Merlin Guerin 10 x 38",null,"H-2-3",1,5,45.65,{"$f":"IF(G129=\"\",\"\",G129*F129)","v":228.25},1,5,{"$f":"IF(F129<=I129,J129-F129,IF(F129>I129,J129-F129))","v":0}]
[10130,"Détecteur interrupteur XUB-F4452",null,"H-2-3",1,2,124,248,1,2,0]
[10131,"Relais Rebox 762",null,"H-2-3",1,1,135.65,135.65,1,1,0]
[10132,"Relais thermique LR1-D09308",null,"H-1-1",1,18,25.65,461.7,5,18,0]
[10133,"Triple barrette grise",null,"H-1-1",1,2,35.450000000000003,70.900000000000006,1,2,0]
[10134,"Barrette de jonction Brune",null,"H-1-1",1,12,15.32,183.84,2,12,0]
[10135,"Connecteur de ventilation",null,"H-1-1",1,5,148.94999999999999,744.75,1,5,0]
[10136,"Porte fusible LS1-D253",null,"H-1-2",1,9,35.21,316.89,1,9,0]
[10137,"Module de commande Satchwell",null,"H-1-2",1,16,140.25,2244,2,16,0,null,"  "]
[10138,"Manchon en emboiture",null,"H-1-2",1,4,35.6,142.4,1,4,0]
[10139,"Dijoncteur divisionnaire 16A M.Guerin",null,"H-1-2",1,1,145.65,145.65,1,1,0]
[10140,"Dijoncteur Multi9 C60N B10",null,"H-1-3",1,2,122.25,244.5,1,2,0]
[10141,"Contacteur Schneider 25A",null,"H-1-3",1,5,45.65,228.25,1,5,0]
[10142,"Démarreur moteur Legrand 40A",null,"H-1-3",1,2,212.85,425.7,1,2,0]
[10143,"Kit de raccordement Legrand",null,"H-1-3",1,6,125.2,751.2,1,6,0]
[10144,"Relais thermique LR1-D09310",null,"I-1-1",1,22,23.25,511.5,2,22,0]
[10145,"Protection moteur Moeller",null,"I-1-1",1,2,122.5,245,1,2,0]
[10146,"Relais thermique ABB T25 DJ",null,"I-1-1",1,5,24.65,123.25,1,5,0]
[10147,"ConnectionMoeller DIL EM-01",null,"I-1-1",1,2,35.65,71.3,1,2,0]
[10148,"Prise courant murale US 100",null,"I-1-2",1,3,17.5,52.5,1,3,0]
[10149,"Interrupteur mural ",null,"I-1-2",1,33,12.65,417.45,5,33,0]
[10150,"Dijoncteur Télémécanique GV2-M04",null,"I-1-2",1,15,122.36,1835.4,1,15,0]
[10151,"Prise encastrable Legrand Neptune",null,"I-1-2",1,4,26.5,106,1,4,0]
[10152,"Relais télémécanique RHN 41",null,"I-2-3",1,8,23.65,189.2,1,8,0]
[10153,"Dijoncteur Télémécanique CA2",null,"I-1-3",1,17,35.6,605.20000000000005,5,17,0]
[10154,"Bloc de liaison DB6ED01",null,"I-1-3",1,6,12.6,75.599999999999994,1,6,0]
[10155,"Prise encastrable Legrand courbe",null,"I-1-3",1,2,12.65,25.3,1,2,0]
[10156,"Porte fusible BBC A25.30",null,"J-1-1",1,2,23.5,47,1,2,0]
[10157,"Dijoncteur 25A Merli Guerin ",null,"J-1-3",1,7,45.87,321.08999999999997,1,7,0]
[10158,"Thermostat Modulaire T3Sm",null,"J-1-1",1,2,55.65,111.3,1,2,0]
[10159,"Relais thermique LR1D09",null,"J-1-1",1,42,23.45,984.9,5,42,0]
[10160,"Dijoncteur LC1-D093 A65",null,"J-1-2",1,15,55.65,834.75,5,15,0]
[10161,"Dijoncteur LC1-D123",null,"J-1-2",1,6,44.25,265.5,1,6,0]
[10162,"Relais télémécanique RHN 411B",null,"J-1-2",1,13,23.65,307.45,2,13,0]
[10163,"Bloc de liaison LR1D9307",null,"J-1-2",1,7,16.850000000000001,117.95000000000002,1,7,0]
[10164,"Dijoncteur Multi9 C60N C25",null,"J-1-1",1,6,56.2,337.20000000000005,1,6,0]
[10165,"Bloc de liaison DB6CD102",null,"I-2-1",1,22,17,374,2,22,0]
[10166,"Ventillateur ordi Morex ",null,"J-1-3",1,1,125,125,1,1,0]
[10167,"Relais Télémécanique LC2-EC09",null,"J-1-3",1,4,23.5,94,1,4,0]
[10168,"Toner Canon CE285A Noir",null,"K-1-1",1,1,59,59,1,1,0]
[10169,"Toner HP CC532AC Jaune",null,"K-1-1",1,1,62,62,1,1,0]
[10170,"Toner Canon Cartridge 718 Bleu",null,"K-1-4",1,6,62,372,1,6,0]
[10172,"Toner Canon Cartridge 718 Jaune ",null,"K-1-4",1,6,62,372,1,6,0]
[10173,"Toner Office Dépôt 5411421 Noir",null,"K-2-4",1,6,54,324,1,6,0]
[10176,"Toner Remanufactured  Yellow",null,"K-1-3",1,1,57,57,1,1,0]
[10178,"Toner HP Laserjet 124A Bleu",null,"K-2-3",1,1,55,55,1,1,0]
[10179,"Module de contrôle","","I-2-2",1,40,6.75,{"$f":"IF(G175=\"\",\"\",G175*F175)","v":270},10,40,0]
[10180,"Dijoncteur Télémécanique CA2-DN12","","I-2-2",1,36,8.74,{"$f":"IF(G176=\"\",\"\",G176*F176)","v":314.64},10,36,0]
[10181,"Temporisateur YRELEC","","I-2-2",1,7,37.65,{"$f":"IF(G177=\"\",\"\",G177*F177)","v":263.55},1,7,0]
[10182,"transformateur de sécurité","","I-2-2",1,11,56.65,{"$f":"IF(G178=\"\",\"\",G178*F178)","v":623.15},2,11,0]
[10183,"Dijoncteur Télémécanique CA2-DN1229 A65",null,"I-2-2",1,33,123.54,{"$f":"IF(G179=\"\",\"\",G179*F179)","v":4076.82},10,33,0]
[10184,"Prise bloc mural Legrand",null,"I-2-3",1,4,12.5,50,1,4,0]
[10185,"Connecteur TSX 16 04",null,"I-2-3",1,4,3554,14216,1,4,0]
[10186,"Routeur NETOPIA",null,"I-2-3",1,1,158.85,158.85,1,1,0]
[10187,"Interphone",null,"I-2-3",1,8,37.549999999999997,300.39999999999998,1,8,0]
[10188,"Résistance ZIEHL MSF 220",null,"J-2-1",1,1,24.5,24.5,1,1,0]
[10189,"Dijoncteur Multi 9 C32H",null,"J-2-1",1,1,120.5,120.5,1,1,0]
[10190,"Compteur à bobines",null,"J-2-1",1,2,24.5,49,1,2,0]
[10191,"Dijoncteur Merlin Guérin C32H-DC",null,"J-2-1",1,1,57.85,57.85,1,1,0]
[10192,"Porte fusible double 129005 A",null,"J-2-3",1,3,45,135,1,3,0]
[10193,"Bouchon d'embout mamelon",null,"J-2-1",1,250,2.5,625,20,250,0]
[10194,"Dijoncteur simple SD",null,"J-2-2",1,1,45,45,1,1,0]
[10195,"Dijoncteur RHN 411E",null,"J-2-3",1,3,136.25,408.75,1,3,0]
[10196,"Embout R-I-A",null,"J-2-2",1,24,18.95,454.79999999999995,5,24,0]
[10197,"Dijoncteur Legrand D1",null,"J-2-2",1,1,55,55,1,1,{"$f":"IF(F193<=I193,J193-F193,IF(F193>I193,J193-F193))","v":0}]
[10198,"Contrôleur Télémécanique CA2-DN-1229",null,"J-2-2",1,12,54.4,652.79999999999995,3,12,0]
[10199,"Détecteur KDE 206 FBOAZ",null,"J-2-3",1,1,58.9,58.9,1,1,0]
[10200,"Dijoncteur Merlin Guérin C60A C20",null,"J-2-3",1,3,50.05,150.14999999999998,1,3,0]
[10201,"Dijoncteur Télémécanique GV1-M07",null,"J-2-3",1,1,150.25,150.25,1,1,0]
[10202,"Répartiteur Merlin Guérin Virirex Rh113X","","I-2-1",1,2,44.24,{"$f":"IF(G198=\"\",\"\",G198*F198)","v":88.48},1,2,{"$f":"IF(F198<=I198,J198-F198,IF(F198>I198,J198-F198))","v":0}]
[10203,"Fréquence-mètre Révalco","","F-1-3",1,3,44.45,133.35000000000002,1,3,0]
[10204,"Centrale de connexion 348000 Patent","","J-2-3",1,1,102,102,1,1,0]
[10205,"Toner Laserjet HP216 A H Noir","","K-1-1",1,1,55,55,1,1,0]
[10206,"Toner Canon 718 Magenta","","K-1-3",1,6,62,372,1,6,0]
[10207,"Toner Manufactured Yellow","","K-1-3",1,1,55,55,1,1,0]
[10208,"Toner Canon 718 Black","","K-1-4",1,1,55,55,1,1,0]
[10209,"Toner HP 216A Black","","K-2-4",1,1,62,62,1,1,0]
[10210,"Toner Printerre CP2025 Magenta","","K-2-4",1,1,57,57,1,1,0]
[10211,"Toner HP 124A Yellow","","K-2-3",1,3,55,165,1,3,0]
[10212,"Toner Printerre CP 2025 Black","","K-2-3",1,3,52,156,1,3,0]
[10213,"Toner Canon 718 Yellow","","K-2-2",1,1,55,55,1,1,0]
[10214,"Toner HP CC30AC Black","","K-2-2",1,1,52,52,1,1,0]
[10215,"Toner Canon 178 Bleu","","K-2-2",1,1,55,55,1,1,0]
[10216,"Toner Laserjey HP 216A Magenta","","K-2-1",1,1,55,55,1,1,0]
[10217,"Toner NEU0637 Cyan","","K-2-1",1,1,45,45,1,1,0]
[10218,"Toner Laserjet HP 216A Yellow","","K-2-1",1,1,52,52,1,1,0]
[10219,"Toner Neu0638 Black","","K-3-4",1,1,42,42,1,1,0]
[10220,"Toner NEU0638 Magenta","","K-3-4",1,1,45,45,1,1,0]
[10221,"toner HP Laserjet 96A","","K-3-4",1,1,55,55,1,1,0]
[null,null,null,null,null,null,null,"",null,null,{"$f":"IF(F218<=I218,J218-F218,IF(F218>I218,J218-F218))","v":0}]
[null,null,null,null,null,null,null,"",null,null,0]
[null,null,null,null,null,null,null,"",null,null,0]
[null,null,null,null,null,null,null,"",null,null,0]
[null,null,null,null,null,null,null,"",null,null,0]
[null,null,null,null,null,null,null,"",null,null,0]
[null,null,null,null,null,null,null,"",null,null,0]
[null,null,null,null,null,null,null,"",null,null,0]
[null,null,null,null,null,null,null,"",null,null,0]
[null,null,null,null,null,null,null,"",null,null,0]
[null,null,null,null,null,null,null,"",null,null,0]
[null,null,null,null,null,null,null,"",null,null,0]
[null,null,null,null,null,null,null,"",null,null,0]
[null,null,null,null,null,null,null,"",null,null,0]
[null,null,null,null,null,null,null,"",null,null,0]
[null,null,null,null,null,null,null,"",null,null,0]
[null,null,null,null,null,null,null,"",null,null,0]
[null,null,null,null,null,null,null,"",null,null,0]
[null,null,null,null,null,null,null,"",null,null,0]
[null,null,null,null,null,null,null,"",null,null,0]
[null,null,null,null,null,null,null,"",null,null,0]
[null,null,null,null,null,null,null,"",null,null,0]
[null,null,null,null,null,null,null,"",null,null,0]
[null,null,null,null,null,null,null,"",null,null,0]
[null,null,null,null,null,null,null,"",null,null,0]
[null,null,null,null,null,null,null,"",null,null,0]
[null,null,null,null,null,null,null,"",null,null,0]
[null,null,null,null,null,null,null,"",null,null,0]
[null,null,null,null,null,null,null,"",null,null,0]
[null,null,null,null,null,null,null,{"$f":"IF(G247=\"\",\"\",G247*F247)","v":""},null,null,{"$f":"IF(F247<=I247,J247-F247,IF(F247>I247,J247-F247))","v":0}]
[null,null,null,null,null,null,null,"",null,null,0]
[null,null,null,null,null,null,null,"",null,null,0]
[null,null,null,null,null,null,null,"",null,null,0]
[null,null,null,null,null,null,null,"",null,null,0]
[null,null,null,null,null,null,null,"",null,null,0]
[null,null,null,null,null,null,null,"",null,null,0]
[null,null,null,null,null,null,null,"",null,null,0]
[null,null,null,null,null,null,null,"",null,null,0]
[null,null,null,null,null,null,null,"",null,null,0]
[null,null,null,null,null,null,null,"",null,null,0]
[null,null,null,null,null,null,null,"",null,null,0]
[null,null,null,null,null,null,null,"",null,null,0]
[null,null,null,null,null,null,null,"",null,null,0]
[null,null,null,null,null,null,null,"",null,null,0]
[null,null,null,null,null,null,null,"",null,null,0]
[null,null,null,null,null,null,null,"",null,null,0]
[null,null,null,null,null,null,null,"",null,null,0]
[null,null,null,null,null,null,null,"",null,null,0]
[null,null,null,null,null,null,null,"",null,null,0]
[null,null,null,null,null,null,null,"",null,null,0]
[null,null,null,null,null,null,null,"",null,null,0]
[null,null,null,null,null,null,null,"",null,null,0]
[null,null,null,null,null,null,null,"",null,null,0]
[null,null,null,null,null,null,null,"",null,null,0]
[null,null,null,null,null,null,null,"",null,null,0]
[null,null,null,null,null,null,null,"",null,null,0]
[null,null,null,null,null,null,null,"",null,null,0]
[null,null,null,null,null,null,null,"",null,null,0]
[null,null,null,null,null,null,null,"",null,null,0]
[null,null,null,null,null,null,null,"",null,null,0]
[null,null,null,null,null,null,null,"",null,null,0]
[null,null,null,null,null,null,null,"",null,null,0]
[null,null,null,null,null,null,null,"",null,null,0]
[null,null,null,null,null,null,null,"",null,null,0]
[null,null,null,null,null,null,null,"",null,null,0]
[null,null,null,null,null,null,null,"",null,null,0]
[null,null,null,null,null,null,null,"",null,null,0]
[null,null,null,null,null,null,null,"",null,null,0]
[null,null,null,null,null,null,null,"",null,null,0]
[null,null,null,null,null,null,null,"",null,null,0]
[null,null,null,null,null,null,null,"",null,null,0]
[null,null,null,null,null,null,null,"",null,null,0]
[null,null,null,null,null,null,null,"",null,null,0]
[null,null,null,null,null,null,null,"",null,null,0]
[null,null,null,null,null,null,null,"",null,null,0]
[null,null,null,null,null,null,null,"",null,null,0]
[null,null,null,null,null,null,null,"",null,null,0]
[null,null,null,null,null,null,null,"",null,null,0]
[null,null,null,null,null,null,null,"",null,null,0]
[null,null,null,null,null,null,null,"",null,null,0]
[null,null,null,null,null,null,null,"",null,null,0]
[null,null,null,null,null,null,null,"",null,null,0]
[null,null,null,null,null,null,null,"",null,null,0]
[null,null,null,null,null,null,null,"",null,null,0]
[null,null,null,null,null,null,null,"",null,null,0]
[null,null,null,null,null,null,null,"",null,null,0]
[null,null,null,null,null,null,null,"",null,null,0]
[null,null,null,null,null,null,null,"",null,null,0]
[null,null,null,null,null,null,null,"",null,null,0]
[null,null,null,null,null,null,null,"",null,null,0]
[null,null,null,null,null,null,null,"",null,null,0]
[null,null,null,null,null,null,null,"",null,null,0]
[null,null,null,null,null,null,null,"",null,null,0]
[null,null,null,null,null,null,null,{"$f":"IF(G311=\"\",\"\",G311*F311)","v":""},null,null,{"$f":"IF(F311<=I311,J311-F311,IF(F311>I311,J311-F311))","v":0}]
[null,null,null,null,null,null,null,"",null,null,0]
[null,null,null,null,null,null,null,"",null,null,0]
[null,null,null,null,null,null,null,"",null,null,0]
[null,null,null,null,null,null,null,"",null,null,0]
[null,null,null,null,null,null,null,"",null,null,0]
[null,null,null,null,null,null,null,"",null,null,0]
[null,null,null,null,null,null,null,"",null,null,0]
[null,null,null,null,null,null,null,"",null,null,0]
[null,null,null,null,null,null,null,"",null,null,0]
[null,null,null,null,null,null,null,"",null,null,0]
[null,null,null,null,null,null,null,"",null,null,0]
[null,null,null,null,null,null,null,"",null,null,0]
[null,null,null,null,null,null,null,"",null,null,0]
[null,null,null,null,null,null,null,"",null,null,0]
[null,null,null,null,null,null,null,"",null,null,0]
[null,null,null,null,null,null,null,"",null,null,0]
[null,null,null,null,null,null,null,"",null,null,0]
[null,null,null,null,null,null,null,"",null,null,0]
[null,null,null,null,null,null,null,"",null,null,0]
[null,null,null,null,null,null,null,"",null,null,0]
[null,null,null,null,null,null,null,"",null,null,0]
[null,null,null,null,null,null,null,"",null,null,0]
[null,null,null,null,null,null,null,"",null,null,0]
[null,null,null,null,null,null,null,"",null,null,0]
[null,null,null,null,null,null,null,"",null,null,0]
[null,null,null,null,null,null,null,"",null,null,0]
[null,null,null,null,null,null,null,"",null,null,0]
[null,null,null,null,null,null,null,"",null,null,0]
[null,null,null,null,null,null,null,"",null,null,0]
[null,null,null,null,null,null,null,"",null,null,0]
[null,null,null,null,null,null,null,"",null,null,0]
[null,null,null,null,null,null,null,"",null,null,0]
[null,null,null,null,null,null,null,"",null,null,0]
[null,null,null,null,null,null,null,"",null,null,0]
[null,null,null,null,null,null,null,"",null,null,0]
[null,null,null,null,null,null,null,"",null,null,0]
[null,null,null,null,null,null,null,"",null,null,0]
[null,null,null,null,null,null,null,"",null,null,0]
[null,null,null,null,null,null,null,"",null,null,0]
[null,null,null,null,null,null,null,"",null,null,0]
[null,null,null,null,null,null,null,"",null,null,0]
[null,null,null,null,null,null,null,"",null,null,0]
[null,null,null,null,null,null,null,"",null,null,0]
[null,null,null,null,null,null,null,"",null,null,0]
[null,null,null,null,null,null,null,"",null,null,0]
[null,null,null,null,null,null,null,"",null,null,0]
[null,null,null,null,null,null,null,"",null,null,0]
[null,null,null,null,null,null,null,"",null,null,0]
[null,null,null,null,null,null,null,"",null,null,0]
[null,null,null,null,null,null,null,"",null,null,0]
[null,null,null,null,null,null,null,"",null,null,0]
[null,null,null,null,null,null,null,"",null,null,0]
[null,null,null,null,null,null,null,"",null,null,0]
[null,null,null,null,null,null,null,"",null,null,0]
[null,null,null,null,null,null,null,"",null,null,0]
[null,null,null,null,null,null,null,"",null,null,0]
[null,null,null,null,null,null,null,"",null,null,0]
[null,null,null,null,null,null,null,"",null,null,0]
[null,null,null,null,null,null,null,"",null,null,0]
[null,null,null,null,null,null,null,"",null,null,0]
[null,null,null,null,null,null,null,"",null,null,0]
[null,null,null,null,null,null,null,"",null,null,0]
[null,null,null,null,null,null,null,"",null,null,0]
[null,null,null,null,null,null,null,{"$f":"IF(G375=\"\",\"\",G375*F375)","v":""},null,null,{"$f":"IF(F375<=I375,J375-F375,IF(F375>I375,J375-F375))","v":0}]
[null,null,null,null,null,null,null,"",null,null,0]
[null,null,null,null,null,null,null,"",null,null,0]
[null,null,null,null,null,null,null,"",null,null,0]
[null,null,null,null,null,null,null,"",null,null,0]
[null,null,null,null,null,null,null,"",null,null,0]
[null,null,null,null,null,null,null,"",null,null,0]
[null,null,null,null,null,null,null,"",null,null,0]
[null,null,null,null,null,null,null,"",null,null,0]
[null,null,null,null,null,null,null,"",null,null,0]
[null,null,null,null,null,null,null,"",null,null,0]
[null,null,null,null,null,null,null,"",null,null,0]
[null,null,null,null,null,null,null,"",null,null,0]
[null,null,null,null,null,null,null,"",null,null,0]
[null,null,null,null,null,null,null,"",null,null,0]
[null,null,null,null,null,null,null,"",null,null,0]
[null,null,null,null,null,null,null,"",null,null,0]
[null,null,null,null,null,null,null,"",null,null,0]
[null,null,null,null,null,null,null,"",null,null,0]
[null,null,null,null,null,null,null,"",null,null,0]
[null,null,null,null,null,null,null,"",null,null,0]
[null,null,null,null,null,null,null,"",null,null,0]
[null,null,null,null,null,null,null,"",null,null,0]
[null,null,null,null,null,null,null,"",null,null,0]
[null,null,null,null,null,null,null,"",null,null,0]
[null,null,null,null,null,null,null,"",null,null,0]
[null,null,null,null,null,null,null,"",null,null,0]
[null,null,null,null,null,null,null,"",null,null,0]
[null,null,null,null,null,null,null,"",null,null,0]
[null,null,null,null,null,null,null,"",null,null,0]
[null,null,null,null,null,null,null,"",null,null,0]
[null,null,null,null,null,null,null,"",null,null,0]
[null,null,null,null,null,null,null,"",null,null,0]
[null,null,null,null,null,null,null,"",null,null,0]
[null,null,null,null,null,null,null,"",null,null,0]
[null,null,null,null,null,null,null,"",null,null,0]
[null,null,null,null,null,null,null,"",null,null,0]
[null,null,null,null,null,null,null,"",null,null,0]
[null,null,null,null,null,null,null,"",null,null,0]
[null,null,null,null,null,null,null,"",null,null,0]
[null,null,null,null,null,null,null,"",null,null,0]
[null,null,null,null,null,null,null,"",null,null,0]
[null,null,null,null,null,null,null,"",null,null,0]
[null,null,null,null,null,null,null,"",null,null,0]
[null,null,null,null,null,null,null,"",null,null,0]
[null,null,null,null,null,null,null,"",null,null,0]
[null,null,null,null,null,null,null,"",null,null,0]
[null,null,null,null,null,null,null,"",null,null,0]
[null,null,null,null,null,null,null,"",null,null,0]
[null,null,null,null,null,null,null,"",null,null,0]
[null,null,null,null,null,null,null,"",null,null,0]
[null,null,null,null,null,null,null,"",null,null,0]
[null,null,null,null,null,null,null,"",null,null,0]
[null,null,null,null,null,null,null,"",null,null,0]
[null,null,null,null,null,null,null,"",null,null,0]
[null,null,null,null,null,null,null,"",null,null,0]
[null,null,null,null,null,null,null,"",null,null,0]
[null,null,null,null,null,null,null,"",null,null,0]
[null,null,null,null,null,null,null,"",null,null,0]
[null,null,null,null,null,null,null,"",null,null,0]
[null,null,null,null,null,null,null,"",null,null,0]
[null,null,null,null,null,null,null,"",null,null,0]
[null,null,null,null,null,null,null,"",null,null,0]
[null,null,null,null,null,null,null,"",null,null,0]
[null,null,null,null,null,null,null,{"$f":"IF(G439=\"\",\"\",G439*F439)","v":""},null,null,{"$f":"IF(F439<=I439,J439-F439,IF(F439>I439,J439-F439))","v":0}]
[null,null,null,null,null,null,null,"",null,null,0]
[null,null,null,null,null,null,null,"",null,null,0]
[null,null,null,null,null,null,null,"",null,null,0]
[null,null,null,null,null,null,null,"",null,null,0]
[null,null,null,null,null,null,null,"",null,null,0]
[null,null,null,null,null,null,null,"",null,null,0]
[null,null,null,null,null,null,null,"",null,null,0]
[null,null,null,null,null,null,null,"",null,null,0]
[null,null,null,null,null,null,null,"",null,null,0]
[null,null,null,null,null,null,null,"",null,null,0]
[null,null,null,null,null,null,null,"",null,null,0]
[null,null,null,null,null,null,null,"",null,null,0]
[null,null,null,null,null,null,null,"",null,null,0]
[null,null,null,null,null,null,null,"",null,null,0]
[null,null,null,null,null,null,null,"",null,null,0]
[null,null,null,null,null,null,null,"",null,null,0]
[null,null,null,null,null,null,null,"",null,null,0]
[null,null,null,null,null,null,null,"",null,null,0]
[null,null,null,null,null,null,null,"",null,null,0]
[null,null,null,null,null,null,null,"",null,null,0]
[null,null,null,null,null,null,null,"",null,null,0]
[null,null,null,null,null,null,null,"",null,null,0]
[null,null,null,null,null,null,null,"",null,null,0]
[null,null,null,null,null,null,null,"",null,null,0]
[null,null,null,null,null,null,null,"",null,null,0]
[null,null,null,null,null,null,null,"",null,null,0]
[null,null,null,null,null,null,null,"",null,null,0]
[null,null,null,null,null,null,null,"",null,null,0]
[null,null,null,null,null,null,null,"",null,null,0]
[null,null,null,null,null,null,null,"",null,null,0]
[null,null,null,null,null,null,null,"",null,null,0]
[null,null,null,null,null,null,null,"",null,null,0]
[null,null,null,null,null,null,null,"",null,null,0]
[null,null,null,null,null,null,null,"",null,null,0]
[null,null,null,null,null,null,null,"",null,null,0]
[null,null,null,null,null,null,null,"",null,null,0]
[null,null,null,null,null,null,null,"",null,null,0]
[null,null,null,null,null,null,null,"",null,null,0]
[null,null,null,null,null,null,null,"",null,null,0]
[null,null,null,null,null,null,null,"",null,null,0]
[null,null,null,null,null,null,null,"",null,null,0]
[null,null,null,null,null,null,null,"",null,null,0]
[null,null,null,null,null,null,null,"",null,null,0]
[null,null,null,null,null,null,null,"",null,null,0]
[null,null,null,null,null,null,null,"",null,null,0]
[null,null,null,null,null,null,null,"",null,null,0]
[null,null,null,null,null,null,null,"",null,null,0]
[null,null,null,null,null,null,null,"",null,null,0]
[null,null,null,null,null,null,null,"",null,null,0]
[null,null,null,null,null,null,null,"",null,null,0]
[null,null,null,null,null,null,null,"",null,null,0]
[null,null,null,null,null,null,null,"",null,null,0]
[null,null,null,null,null,null,null,"",null,null,0]
[null,null,null,null,null,null,null,"",null,null,0]
[null,null,null,null,null,null,null,"",null,null,0]
[null,null,null,null,null,null,null,"",null,null,0]
[null,null,null,null,null,null,null,"",null,null,0]
[null,null,null,null,null,null,null,"",null,null,0]
[null,null,null,null,null,null,null,{"$f":"IF(G498=\"\",\"\",G498*F498)","v":""},null,null,0]
[null,null,null,null,null,null,null,"",null,null,0]
[null,null,null,null,null,null,null,"",null,null,0]
[null,null,null,null,null,null,null,"",null,null,0]
[null,null,null,null,null,null,null,"",null,null,0]
[null,null,null,null,null,null,null,{"$f":"IF(G503=\"\",\"\",G503*F503)","v":""},null,null,{"$f":"IF(F503<=I503,J503-F503,IF(F503>I503,J503-F503))","v":0}]
[null,null,null,null,null,null,null,"",null,null,0]
[null,null,null,null,null,null,null,"",null,null,0]
[null,null,null,null,null,null,null,"",null,null,0]
[null,null,null,null,null,null,null,"",null,null,0]
[null,null,null,null,null,null,null,"",null,null,0]
[null,null,null,null,null,null,null,"",null,null,0]
[null,null,null,null,null,null,null,"",null,null,0]
[null,null,null,null,null,null,null,"",null,null,0]
[null,null,null,null,null,null,null,"",null,null,0]
[null,null,null,null,null,null,null,"",null,null,0]
[null,null,null,null,null,null,null,"",null,null,0]
[null,null,null,null,null,null,null,"",null,null,0]
[null,null,null,null,null,null,null,"",null,null,0]
[null,null,null,null,null,null,null,"",null,null,0]
[null,null,null,null,null,null,null,"",null,null,0]
[null,null,null,null,null,null,null,"",null,null,0]
[null,null,null,null,null,null,null,"",null,null,0]
[null,null,null,null,null,null,null,"",null,null,0]
[null,null,null,null,null,null,null,"",null,null,0]
[null,null,null,null,null,null,null,"",null,null,0]
[null,null,null,null,null,null,null,""]
[null,null,null,null,null,null,null,""]
[null,null,null,null,null,null,null,""]
[null,null,null,null,null,null,null,""]
[null,null,null,null,null,null,null,""]
[null,null,null,null,null,null,null,""]
[null,null,null,null,null,null,null,""]
[null,null,null,null,null,null,null,""]
[null,null,null,null,null,null,null,""]
[null,null,null,null,null,null,null,""]
[null,null,null,null,null,null,null,""]
[null,null,null,null,null,null,null,""]
[null,null,null,null,null,null,null,""]
[null,null,null,null,null,null,null,""]
[null,null,null,null,null,null,null,""]
[null,null,null,null,null,null,null,""]
[null,null,null,null,null,null,null,""]
[null,null,null,null,null,null,null,""]
[null,null,null,null,null,null,null,""]
[null,null,null,null,null,null,null,""]
[null,null,null,null,null,null,null,""]
[null,null,null,null,null,null,null,""]
[null,null,null,null,null,null,null,""]
[null,null,null,null,null,null,null,""]
[null,null,null,null,null,null,null,""]
[null,null,null,null,null,null,null,""]
[null,null,null,null,null,null,null,""]
[null,null,null,null,null,null,null,""]
[null,null,null,null,null,null,null,""]
[null,null,null,null,null,null,null,""]
[null,null,null,null,null,null,null,""]
[null,null,null,null,null,null,null,""]
[null,null,null,null,null,null,null,""]
[null,null,null,null,null,null,null,""]
[null,null,null,null,null,null,null,""]
[null,null,null,null,null,null,null,""]
[null,null,null,null,null,null,null,""]
[null,null,null,null,null,null,null,""]
[null,null,null,null,null,null,null,""]
[{"$f":"IF(B563=\"\",\"\",A562+1)","v":""},null,null,null,null,null,null,""]
["",null,null,null,null,null,null,""]
["",null,null,null,null,null,null,""]
["",null,null,null,null,null,null,""]
[{"$f":"IF(B567=\"\",\"\",A566+1)","v":""},null,null,null,null,null,null,{"$f":"IF(G567=\"\",\"\",G567*F567)","v":""}]
["",null,null,null,null,null,null,""]

{"sheet":"Étiquettes","index":18,"n_rows":64,"n_cols":4,"rows_kept":64,"cut":false,"hidden":false,"merged":[[56,0,56,1],[56,2,56,3],[59,0,59,1],[59,2,59,3],[62,0,62,1],[62,2,62,3],[53,0,53,1],[53,2,53,3],[50,2,50,3],[35,0,35,1],[35,2,35,3],[38,0,38,1],[38,2,38,3],[41,0,41,1],[41,2,41,3],[44,0,44,1],[44,2,44,3],[47,0,47,1],[47,2,47,3],[50,0,50,1],[22,0,22,1],[22,2,22,3],[25,0,25,1],[25,2,25,3],[28,0,28,1],[28,2,28,3],[19,0,19,1],[19,2,19,3],[16,2,16,3],[1,0,1,1],[1,2,1,3],[4,0,4,1],[4,2,4,3],[7,0,7,1],[7,2,7,3],[10,2,10,3],[10,0,10,1],[13,0,13,1],[13,2,13,3],[16,0,16,1]]}
["Référence",null,"Référence"]
[{"$f":"IF(B1=\"\",\"\",VLOOKUP(B1,stock,2))","v":""},null,{"$f":"IF(D1=\"\",\"\",VLOOKUP(D1,stock,2))","v":""}]
["Adresse",{"$f":"IF(B1=\"\",\"\",VLOOKUP(B1,stock,4))","v":""},"Adresse",{"$f":"IF(D1=\"\",\"\",VLOOKUP(D1,stock,4))","v":""}]
["Référence",null,"Référence"]
[{"$f":"IF(B4=\"\",\"\",VLOOKUP(B4,stock,2))","v":""},null,{"$f":"IF(D4=\"\",\"\",VLOOKUP(D4,stock,2))","v":""}]
["Adresse",{"$f":"IF(B4=\"\",\"\",VLOOKUP(B4,stock,4))","v":""},"Adresse",{"$f":"IF(D4=\"\",\"\",VLOOKUP(D4,stock,4))","v":""}]
["Référence",null,"Référence"]
[{"$f":"IF(B7=\"\",\"\",VLOOKUP(B7,stock,2))","v":""},null,{"$f":"IF(D7=\"\",\"\",VLOOKUP(D7,stock,2))","v":""}]
["Adresse",{"$f":"IF(B7=\"\",\"\",VLOOKUP(B7,stock,4))","v":""},"Adresse",{"$f":"IF(D7=\"\",\"\",VLOOKUP(D7,stock,4))","v":""}]
["Référence",null,"Référence"]
[{"$f":"IF(B10=\"\",\"\",VLOOKUP(B10,stock,2))","v":""},null,{"$f":"IF(D10=\"\",\"\",VLOOKUP(D10,stock,2))","v":""}]
["Adresse",{"$f":"IF(B10=\"\",\"\",VLOOKUP(B10,stock,4))","v":""},"Adresse",{"$f":"IF(D10=\"\",\"\",VLOOKUP(D10,stock,4))","v":""}]
["Référence",null,"Référence"]
[{"$f":"IF(B13=\"\",\"\",VLOOKUP(B13,stock,2))","v":""},null,{"$f":"IF(D13=\"\",\"\",VLOOKUP(D13,stock,2))","v":""}]
["Adresse",{"$f":"IF(B13=\"\",\"\",VLOOKUP(B13,stock,4))","v":""},"Adresse",{"$f":"IF(D13=\"\",\"\",VLOOKUP(D13,stock,4))","v":""}]
["Référence",null,"Référence"]
[{"$f":"IF(B16=\"\",\"\",VLOOKUP(B16,stock,2))","v":""},null,{"$f":"IF(D16=\"\",\"\",VLOOKUP(D16,stock,2))","v":""}]
["Adresse",{"$f":"IF(B16=\"\",\"\",VLOOKUP(B16,stock,4))","v":""},"Adresse",{"$f":"IF(D16=\"\",\"\",VLOOKUP(D16,stock,4))","v":""}]
["Référence",null,"Référence"]
[{"$f":"IF(B19=\"\",\"\",VLOOKUP(B19,stock,2))","v":""},null,{"$f":"IF(D19=\"\",\"\",VLOOKUP(D19,stock,2))","v":""}]
["Adresse",{"$f":"IF(B19=\"\",\"\",VLOOKUP(B19,stock,4))","v":""},"Adresse",{"$f":"IF(D19=\"\",\"\",VLOOKUP(D19,stock,4))","v":""}]
["Référence",null,"Référence"]
[{"$f":"IF(B22=\"\",\"\",VLOOKUP(B22,stock,2))","v":""},null,{"$f":"IF(D22=\"\",\"\",VLOOKUP(D22,stock,2))","v":""}]
["Adresse",{"$f":"IF(B22=\"\",\"\",VLOOKUP(B22,stock,4))","v":""},"Adresse",{"$f":"IF(D22=\"\",\"\",VLOOKUP(D22,stock,4))","v":""}]
["Référence",null,"Référence"]
[{"$f":"IF(B25=\"\",\"\",VLOOKUP(B25,stock,2))","v":""},null,{"$f":"IF(D25=\"\",\"\",VLOOKUP(D25,stock,2))","v":""}]
["Adresse",{"$f":"IF(B25=\"\",\"\",VLOOKUP(B25,stock,4))","v":""},"Adresse",{"$f":"IF(D25=\"\",\"\",VLOOKUP(D25,stock,4))","v":""}]
["Référence",null,"Référence"]
[{"$f":"IF(B28=\"\",\"\",VLOOKUP(B28,stock,2))","v":""},null,{"$f":"IF(D28=\"\",\"\",VLOOKUP(D28,stock,2))","v":""}]
["Adresse",{"$f":"IF(B28=\"\",\"\",VLOOKUP(B28,stock,4))","v":""},"Adresse",{"$f":"IF(D28=\"\",\"\",VLOOKUP(D28,stock,4))","v":""}]
[]
[]
[]
[]
["Référence",null,"Référence"]
[{"$f":"IF(B35=\"\",\"\",VLOOKUP(B35,stock,2))","v":""},null,{"$f":"IF(D35=\"\",\"\",VLOOKUP(D35,stock,2))","v":""}]
["Adresse",{"$f":"IF(B35=\"\",\"\",VLOOKUP(B35,stock,4))","v":""},"Adresse",{"$f":"IF(D35=\"\",\"\",VLOOKUP(D35,stock,4))","v":""}]
["Référence",null,"Référence"]
[{"$f":"IF(B38=\"\",\"\",VLOOKUP(B38,stock,2))","v":""},null,{"$f":"IF(D38=\"\",\"\",VLOOKUP(D38,stock,2))","v":""}]
["Adresse",{"$f":"IF(B38=\"\",\"\",VLOOKUP(B38,stock,4))","v":""},"Adresse",{"$f":"IF(D38=\"\",\"\",VLOOKUP(D38,stock,4))","v":""}]
["Référence",null,10204]
[{"$f":"IF(B41=\"\",\"\",VLOOKUP(B41,stock,2))","v":""},null,{"$f":"IF(D41=\"\",\"\",VLOOKUP(D41,stock,2))","v":""}]
["Adresse",{"$f":"IF(B41=\"\",\"\",VLOOKUP(B41,stock,4))","v":""},"Adresse",{"$f":"IF(D41=\"\",\"\",VLOOKUP(D41,stock,4))","v":""}]
["Référence",null,"Référence"]
[{"$f":"IF(B44=\"\",\"\",VLOOKUP(B44,stock,2))","v":""},null,{"$f":"IF(D44=\"\",\"\",VLOOKUP(D44,stock,2))","v":""}]
["Adresse",{"$f":"IF(B44=\"\",\"\",VLOOKUP(B44,stock,4))","v":""},"Adresse",{"$f":"IF(D44=\"\",\"\",VLOOKUP(D44,stock,4))","v":""}]
["Référence",null,"Référence"]
[{"$f":"IF(B47=\"\",\"\",VLOOKUP(B47,stock,2))","v":""},null,{"$f":"IF(D47=\"\",\"\",VLOOKUP(D47,stock,2))","v":""}]
["Adresse",{"$f":"IF(B47=\"\",\"\",VLOOKUP(B47,stock,4))","v":""},"Adresse",{"$f":"IF(D47=\"\",\"\",VLOOKUP(D47,stock,4))","v":""}]
["Référence",null,"Référence"]
[{"$f":"IF(B50=\"\",\"\",VLOOKUP(B50,stock,2))","v":""},null,{"$f":"IF(D50=\"\",\"\",VLOOKUP(D50,stock,2))","v":""}]
["Adresse",{"$f":"IF(B50=\"\",\"\",VLOOKUP(B50,stock,4))","v":""},"Adresse",{"$f":"IF(D50=\"\",\"\",VLOOKUP(D50,stock,4))","v":""}]
["Référence",null,"Référence"]
[{"$f":"IF(B53=\"\",\"\",VLOOKUP(B53,stock,2))","v":""},null,{"$f":"IF(D53=\"\",\"\",VLOOKUP(D53,stock,2))","v":""}]
["Adresse",{"$f":"IF(B53=\"\",\"\",VLOOKUP(B53,stock,4))","v":""},"Adresse",{"$f":"IF(D53=\"\",\"\",VLOOKUP(D53,stock,4))","v":""}]
["Référence",null,"Référence"]
[{"$f":"IF(B56=\"\",\"\",VLOOKUP(B56,stock,2))","v":""},null,{"$f":"IF(D56=\"\",\"\",VLOOKUP(D56,stock,2))","v":""}]
["Adresse",{"$f":"IF(B56=\"\",\"\",VLOOKUP(B56,stock,4))","v":""},"Adresse",{"$f":"IF(D56=\"\",\"\",VLOOKUP(D56,stock,4))","v":""}]
["Référence",null,"Référence"]
[{"$f":"IF(B59=\"\",\"\",VLOOKUP(B59,stock,2))","v":""},null,{"$f":"IF(D59=\"\",\"\",VLOOKUP(D59,stock,2))","v":""}]
["Adresse",{"$f":"IF(B59=\"\",\"\",VLOOKUP(B59,stock,4))","v":""},"Adresse",{"$f":"IF(D59=\"\",\"\",VLOOKUP(D59,stock,4))","v":""}]
["Référence",null,"Référence"]
[{"$f":"IF(B62=\"\",\"\",VLOOKUP(B62,stock,2))","v":""},null,{"$f":"IF(D62=\"\",\"\",VLOOKUP(D62,stock,2))","v":""}]
["Adresse",{"$f":"IF(B62=\"\",\"\",VLOOKUP(B62,stock,4))","v":""},"Adresse",{"$f":"IF(D62=\"\",\"\",VLOOKUP(D62,stock,4))","v":""}]

{"sheet":"Cde client","index":19,"n_rows":42,"n_cols":8,"rows_kept":42,"cut":false,"hidden":false,"merged":[[41,3,43,7]]}
[]
[]
[]
[]
[]
[null,null,{"$f":"IF($D$13=\"\",\"\",VLOOKUP($D$13,carnetadresse,2,FALSE))","v":""},null,null,"BON DE COMMANDE"]
[null,null,{"$f":"IF($D$13=\"\",\"\",VLOOKUP($D$13,carnetadresse,3,FALSE))","v":""}]
[null,null,{"$f":"IF($D$13=\"\",\"\",VLOOKUP($D$13,carnetadresse,4,FALSE))","v":""},{"$f":"IF($D$13=\"\",\"\",VLOOKUP($D$13,carnetadresse,5,FALSE))","v":""},null,"N° :"]
[]
[null,null,"Tél : ",{"$f":"IF($D$13=\"\",\"\",VLOOKUP($D$13,carnetadresse,6,FALSE))","v":""},null,"Date :"]
[null,null,"Email :",{"$f":"IF($D$13=\"\",\"\",VLOOKUP($D$13,carnetadresse,7,FALSE))","v":""}]
[null,null,null,null,null,{"$f":"'Gestion identité'!C5","v":"B.S.L ÉLEC"}]
[null,null,"N° Client :",null,null,{"$f":"'Gestion identité'!C6","v":"5, rue Ste Anne"}]
[]
[null,null,"Date de livraison :",null,null,{"$f":"'Gestion identité'!C7","v":"54340 Pompey"}]
[]
[]
[null,null,"Réf","Désignation ",null,"Qté","Prix unitaire H.T.","Prix total H.T."]
[null,null,null,{"$f":"IF(C19=\"\",\"\",VLOOKUP(C19,stock,2,FALSE))","v":""},{"$f":"IF(C19=0,\"\",VLOOKUP(C19,stock,3,FALSE))","v":""},null,{"$f":"IF(F19=0,\"\",VLOOKUP(C19,stock,7,FALSE))","v":""},{"$f":"IF(F19=\"\",\"\",F19*G19)","v":""}]
[null,null,null,"","",null,"",{"$f":"IF(F20=\"\",\"\",F20*G20)","v":""}]
[null,null,null,"","",null,"",""]
[null,null,null,"","",null,"",""]
[null,null,null,"","",null,"",""]
[null,null,null,"","",null,"",""]
[null,null,null,"","",null,"",""]
[null,null,null,"","",null,"",""]
[null,null,null,"","",null,"",""]
[null,null,null,"","",null,"",""]
[null,null,null,"","",null,"",""]
[null,null,null,"","",null,"",""]
[null,null,null,"","",null,"",""]
[null,null,null,"","",null,"",""]
[null,null,null,"","",null,"",""]
[null,null,null,"","",null,"",""]
[null,null,null,null,"Total :",{"$f":"IF(F19=\"\",\"\",SUM(F19:F28))","v":""}]
[]
[null,null,null,null,null,"Total H.T.",null,{"$f":"SUM(H19:H35)","v":0}]
[null,null,null,null,null,"TVA 20 %",null,{"$f":"H37*0.2","v":0}]
[null,null,null,null,null,"Total T.T.C",null,{"$f":"H37+H38","v":0}]
[]
[]
[null,null,"Observations :"]

{"sheet":"Traitement Cde","index":20,"n_rows":39,"n_cols":7,"rows_kept":39,"cut":false,"hidden":false,"merged":[[38,4,40,6]]}
[]
[]
[]
[]
[null,null,null,"TRAITEMENT DE LA COMMANDE CLIENT"]
[]
[null,null,null,{"$f":"IF($E$13=\"\",\"\",VLOOKUP($E$13,carnetadresse,2,FALSE))","v":""},null,"N° Cde :"]
[null,null,null,{"$f":"IF($E$13=\"\",\"\",VLOOKUP($E$13,carnetadresse,3,FALSE))","v":""}]
[null,null,null,{"$f":"IF($E$13=\"\",\"\",VLOOKUP($E$13,carnetadresse,4,FALSE))","v":""},{"$f":"IF($E$13=\"\",\"\",VLOOKUP($E$13,carnetadresse,5,FALSE))","v":""},"Du :"]
[null,null,"Tél : ",{"$f":"IF($E$13=\"\",\"\",VLOOKUP($E$13,carnetadresse,6,FALSE))","v":""}]
[null,null,"Email :",{"$f":"IF($E$13=\"\",\"\",VLOOKUP($E$13,carnetadresse,7,FALSE))","v":""}]
[]
[null,null,null,"N° Client :"]
[]
[null,null,null,"Date de livraison :"]
[]
[]
[null,null,"Adresse","Réf","Désignation ",null,"Quantité"]
[null,null,{"$f":"IF(D19=\"\",\"\",VLOOKUP(D19,stock,4,FALSE))","v":""},null,{"$f":"IF(D19=\"\",\"\",VLOOKUP(D19,stock,2,FALSE))","v":""}]
[null,null,{"$f":"IF(D20=\"\",\"\",VLOOKUP(D20,stock,4,FALSE))","v":""},null,{"$f":"IF(D20=\"\",\"\",VLOOKUP(D20,stock,2,FALSE))","v":""}]
[null,null,{"$f":"IF(D21=\"\",\"\",VLOOKUP(D21,stock,4,FALSE))","v":""},null,{"$f":"IF(D21=\"\",\"\",VLOOKUP(D21,stock,2,FALSE))","v":""}]
[null,null,{"$f":"IF(D22=\"\",\"\",VLOOKUP(D22,stock,4,FALSE))","v":""},null,{"$f":"IF(D22=\"\",\"\",VLOOKUP(D22,stock,2,FALSE))","v":""}]
[null,null,{"$f":"IF(D23=\"\",\"\",VLOOKUP(D23,stock,4,FALSE))","v":""},null,{"$f":"IF(D23=\"\",\"\",VLOOKUP(D23,stock,2,FALSE))","v":""}]
[null,null,{"$f":"IF(D24=\"\",\"\",VLOOKUP(D24,stock,4,FALSE))","v":""},null,{"$f":"IF(D24=\"\",\"\",VLOOKUP(D24,stock,2,FALSE))","v":""}]
[null,null,"",null,""]
[null,null,"",null,""]
[null,null,"",null,""]
[null,null,"",null,""]
[null,null,"",null,""]
[null,null,"",null,""]
[null,null,"",null,""]
[null,null,"",null,""]
[null,null,"",null,""]
[null,null,"",null,""]
[null,null,null,null,null,"Total :",{"$f":"IF(G19=\"\",\"\",SUM(G19:G34))","v":""}]
[]
[]
[]
[null,null,null,"Observations :"]

{"sheet":"bon de préparation","index":21,"n_rows":29,"n_cols":10,"rows_kept":29,"cut":false,"hidden":false,"merged":[[11,8,11,9],[4,8,4,9],[7,5,7,6],[4,1,4,3]]}
[]
[]
[null,{"$f":"'Gestion identité'!C5","v":"B.S.L ÉLEC"}]
[null,{"$f":"'Gestion identité'!C6","v":"5, rue Ste Anne"},null,null,"BON DE PRÉPARATION N°",null,null,null,"CLIENT :"]
[null,{"$f":"'Gestion identité'!C7","v":"54340 Pompey"}]
[null,null,null,"N° Client :",null,null,null,null,{"$f":"IF($E$6=\"\",\"\",VLOOKUP($E$6,carnetadresse,2,FALSE))","v":""}]
[null,null,null,"Concerne la commande du :",null,"N° :",null,null,{"$f":"IF($E$6=\"\",\"\",VLOOKUP($E$6,carnetadresse,3,FALSE))","v":""}]
[null,"Date d'expédition :",null,null,"Date de livraison : ",null,null,null,{"$f":"IF($E$6=\"\",\"\",VLOOKUP($E$6,carnetadresse,4,FALSE))","v":""},{"$f":"IF($E$6=\"\",\"\",VLOOKUP($E$6,carnetadresse,5,FALSE))","v":""}]
[]
[null,null,null,"Transporteur : ",{"$f":"IF($E$9=\"\",\"\",VLOOKUP($E$9,listetransporteur,2,FALSE))","v":""},{"$f":"IF($E$9=\"\",\"\",VLOOKUP($E$9,listetransporteur,4,FALSE))","v":""},{"$f":"IF($E$9=\"\",\"\",VLOOKUP($E$9,listetransporteur,5,FALSE))","v":""}]
[]
[null,"Référence","Adresse","Désignation",null,"Qté Cdée","Qté prélvée","Ecart","Observations"]
[null,null,{"$f":"IF(B13=\"\",\"\",VLOOKUP(B13,stock,4,FALSE))","v":""},{"$f":"IF(B13=\"\",\"\",VLOOKUP(B13,stock,2,FALSE))","v":""},null,null,null,{"$f":"IF(F13=G13,\"\",G13-F13)","v":""}]
[null,null,"","",null,null,null,""]
[null,null,"","",null,null,null,""]
[null,null,"","",null,null,null,""]
[null,null,"","",null,null,null,""]
[null,null,"","",null,null,null,""]
[null,null,"","",null,null,null,""]
[null,null,"","",null,null,null,""]
[null,null,"","",null,null,null,""]
[null,null,"","",null,null,null,""]
[null,null,"","",null,null,null,""]
[null,null,"","",null,null,null,""]
[null,null,"","",null,null,null,""]
[null,null,"","",null,null,null,""]
[]
[null,null,null,null,null,null,null,null,"Nom du préparateur :"]
[null,"Nombre de colis :",null,null,"Poids de l'envoi :",null,"Kg"]

{"sheet":"Bon de livraison","index":22,"n_rows":35,"n_cols":6,"rows_kept":35,"cut":false,"hidden":false,"merged":[[33,2,34,3]]}
[]
[]
[]
[]
[null,null,{"$f":"'Gestion identité'!C5","v":"B.S.L ÉLEC"},null,"BON DE LIVRAISON"]
[null,null,{"$f":"'Gestion identité'!C6","v":"5, rue Ste Anne"},null,"N°",{"$f":"IF('bon de préparation'!G4=\"\",\"\",48+'bon de préparation'!G4)","v":""}]
[null,null,{"$f":"'Gestion identité'!C7","v":"54340 Pompey"}]
[null,null,null,null,"CLIENT :"]
[null,null,"Tél :","03.83.49.11.94"]
[null,null,null,null,{"$f":"IF('bon de préparation'!I6=\"\",\"\",'bon de préparation'!I6)","v":""}]
[null,null,"Commande N° :",{"$f":"IF('bon de préparation'!G7=\"\",\"\",'bon de préparation'!G7)","v":""},{"$f":"IF('bon de préparation'!I7=\"\",\"\",'bon de préparation'!I7)","v":""}]
[null,null,"du :",{"$f":"IF('bon de préparation'!E7=\"\",\"\",'bon de préparation'!E7)","v":""},{"$f":"IF('bon de préparation'!I8=\"\",\"\",'bon de préparation'!I8)","v":""}]
[null,null,"Transporteur : ",{"$f":"IF('bon de préparation'!E9=\"\",\"\",'bon de préparation'!E10)","v":""},{"$f":"IF('bon de préparation'!J8=\"\",\"\",'bon de préparation'!J8)","v":""}]
[null,null,"Date de livraison :",{"$f":"IF('bon de préparation'!F8=\"\",\"\",'bon de préparation'!F8)","v":""}]
[null,null,"Date d'expédition le :",{"$f":"IF('bon de préparation'!D8=\"\",\"\",'bon de préparation'!D8)","v":""}]
[]
[null,null,"Référence","Désignation ","Qté Commandée","Qté Livrée"]
[null,null,{"$f":"IF('bon de préparation'!B13= \"\",\"\",'bon de préparation'!B13)","v":""},{"$f":"IF('bon de préparation'!D13=\"\",\"\",'bon de préparation'!D13)","v":""},{"$f":"IF('bon de préparation'!F13=\"\",\"\",'bon de préparation'!F13)","v":""},{"$f":"IF('bon de préparation'!G13=\"\",\"\",'bon de préparation'!G13)","v":""}]
[null,null,{"$f":"IF('bon de préparation'!B14= \"\",\"\",'bon de préparation'!B14)","v":""},{"$f":"IF('bon de préparation'!D14=\"\",\"\",'bon de préparation'!D14)","v":""},{"$f":"IF('bon de préparation'!F14=\"\",\"\",'bon de préparation'!F14)","v":""},{"$f":"IF('bon de préparation'!G14=\"\",\"\",'bon de préparation'!G14)","v":""}]
[null,null,{"$f":"IF('bon de préparation'!B15= \"\",\"\",'bon de préparation'!B15)","v":""},{"$f":"IF('bon de préparation'!D15=\"\",\"\",'bon de préparation'!D15)","v":""},{"$f":"IF('bon de préparation'!F15=\"\",\"\",'bon de préparation'!F15)","v":""},{"$f":"IF('bon de préparation'!G15=\"\",\"\",'bon de préparation'!G15)","v":""}]
[null,null,{"$f":"IF('bon de préparation'!B16= \"\",\"\",'bon de préparation'!B16)","v":""},{"$f":"IF('bon de préparation'!D16=\"\",\"\",'bon de préparation'!D16)","v":""},{"$f":"IF('bon de préparation'!F16=\"\",\"\",'bon de préparation'!F16)","v":""},{"$f":"IF('bon de préparation'!G16=\"\",\"\",'bon de préparation'!G16)","v":""}]
[null,null,{"$f":"IF('bon de préparation'!B17= \"\",\"\",'bon de préparation'!B17)","v":""},{"$f":"IF('bon de préparation'!D17=\"\",\"\",'bon de préparation'!D17)","v":""},{"$f":"IF('bon de préparation'!F17=\"\",\"\",'bon de préparation'!F17)","v":""},{"$f":"IF('bon de préparation'!G17=\"\",\"\",'bon de préparation'!G17)","v":""}]
[null,null,{"$f":"IF('bon de préparation'!B18= \"\",\"\",'bon de préparation'!B18)","v":""},{"$f":"IF('bon de préparation'!D18=\"\",\"\",'bon de préparation'!D18)","v":""},{"$f":"IF('bon de préparation'!F18=\"\",\"\",'bon de préparation'!F18)","v":""},{"$f":"IF('bon de préparation'!G18=\"\",\"\",'bon de préparation'!G18)","v":""}]
[null,null,{"$f":"IF('bon de préparation'!B19= \"\",\"\",'bon de préparation'!B19)","v":""},{"$f":"IF('bon de préparation'!D19=\"\",\"\",'bon de préparation'!D19)","v":""},{"$f":"IF('bon de préparation'!F19=\"\",\"\",'bon de préparation'!F19)","v":""},{"$f":"IF('bon de préparation'!G19=\"\",\"\",'bon de préparation'!G19)","v":""}]
[null,null,{"$f":"IF('bon de préparation'!B20= \"\",\"\",'bon de préparation'!B20)","v":""},{"$f":"IF('bon de préparation'!D20=\"\",\"\",'bon de préparation'!D20)","v":""},{"$f":"IF('bon de préparation'!F20=\"\",\"\",'bon de préparation'!F20)","v":""},{"$f":"IF('bon de préparation'!G20=\"\",\"\",'bon de préparation'!G20)","v":""}]
[null,null,{"$f":"IF('bon de préparation'!B21= \"\",\"\",'bon de préparation'!B21)","v":""},{"$f":"IF('bon de préparation'!D21=\"\",\"\",'bon de préparation'!D21)","v":""},{"$f":"IF('bon de préparation'!F21=\"\",\"\",'bon de préparation'!F21)","v":""},{"$f":"IF('bon de préparation'!G21=\"\",\"\",'bon de préparation'!G21)","v":""}]
[null,null,{"$f":"IF('bon de préparation'!B22= \"\",\"\",'bon de préparation'!B22)","v":""},{"$f":"IF('bon de préparation'!D22=\"\",\"\",'bon de préparation'!D22)","v":""},{"$f":"IF('bon de préparation'!F22=\"\",\"\",'bon de préparation'!F22)","v":""},{"$f":"IF('bon de préparation'!G22=\"\",\"\",'bon de préparation'!G22)","v":""}]
[null,null,{"$f":"IF('bon de préparation'!B23= \"\",\"\",'bon de préparation'!B23)","v":""},{"$f":"IF('bon de préparation'!D23=\"\",\"\",'bon de préparation'!D23)","v":""},{"$f":"IF('bon de préparation'!F23=\"\",\"\",'bon de préparation'!F23)","v":""},{"$f":"IF('bon de préparation'!G23=\"\",\"\",'bon de préparation'!G23)","v":""}]
[null,null,{"$f":"IF('bon de préparation'!B24= \"\",\"\",'bon de préparation'!B24)","v":""},{"$f":"IF('bon de préparation'!D24=\"\",\"\",'bon de préparation'!D24)","v":""},{"$f":"IF('bon de préparation'!F24=\"\",\"\",'bon de préparation'!F24)","v":""},{"$f":"IF('bon de préparation'!G24=\"\",\"\",'bon de préparation'!G24)","v":""}]
[null,null,{"$f":"IF('bon de préparation'!B25= \"\",\"\",'bon de préparation'!B25)","v":""},{"$f":"IF('bon de préparation'!D25=\"\",\"\",'bon de préparation'!D25)","v":""},{"$f":"IF('bon de préparation'!F25=\"\",\"\",'bon de préparation'!F25)","v":""},{"$f":"IF('bon de préparation'!G25=\"\",\"\",'bon de préparation'!G25)","v":""}]
[null,null,null,"Total",{"$f":"IF(E18=\"\",\"\",SUM(E18:E30))","v":""},{"$f":"IF(F18=\"\",\"\",SUM(F18:F30))","v":""}]
[]
[null,null,"Observations :"]
[null,null,null,null,"Nombre de colis :",{"$f":"IF('bon de préparation'!D29=\"\",\"\",'bon de préparation'!D29)","v":""}]
[null,null,null,null,"Poids en kg : ",{"$f":"IF('bon de préparation'!F29=\"\",\"\",'bon de préparation'!F29)","v":""}]

{"sheet":"Étiquette colis EXPÉ","index":23,"n_rows":46,"n_cols":8,"rows_kept":46,"cut":false,"hidden":false,"merged":[[23,2,26,2],[23,3,23,5],[24,6,26,7],[28,5,30,6],[28,7,30,7],[18,2,22,2],[18,5,19,5],[18,6,19,7],[20,5,22,5],[20,6,22,7],[13,5,15,6],[13,7,15,7],[8,2,11,2],[8,3,8,5],[9,6,11,7],[3,2,7,2],[3,5,4,5],[3,6,4,7],[5,5,7,5],[5,6,7,7],[33,2,37,2],[33,5,34,5],[33,6,34,7],[35,5,37,5],[35,6,37,7],[38,2,41,2],[38,3,38,5],[39,6,41,7],[43,5,45,6],[43,7,45,7]]}
[]
[null,null,"ÉTIQUETTE D'EXPÉDITION"]
[]
[null,null,"Expéditeur",null,null,"Date d’expédition :",{"$f":"IF('bon de préparation'!D8=\"\",\"\",'bon de préparation'!D8)","v":""}]
[null,null,null,{"$f":"'Gestion identité'!C5","v":"B.S.L ÉLEC"}]
[null,null,null,{"$f":"'Gestion identité'!C6","v":"5, rue Ste Anne"},null,"N° de B.L:",{"$f":"IF('Bon de livraison'!F6=\"\",\"\",'Bon de livraison'!F6)","v":""}]
[null,null,null,{"$f":"'Gestion identité'!C7","v":"54340 Pompey"}]
[]
[null,null,"Destinataire",null,null,null,"Département"]
[null,null,null,{"$f":"IF('bon de préparation'!E6=\"\",\"\",'bon de préparation'!I6)","v":""},null,null,{"$f":"LEFT(D12,2)","v":""}]
[null,null,null,{"$f":"IF('bon de préparation'!E6=\"\",\"\",'bon de préparation'!I7)","v":""}]
[null,null,null,{"$f":"IF('bon de préparation'!I8=\"\",\"\",'bon de préparation'!I8)","v":""},{"$f":"IF('bon de préparation'!J8=\"\",\"\",'bon de préparation'!J8)","v":""}]
[null,null,"Transporteur :",null,null,"Date de livraison :",null,"Colis N° :"]
[null,null,{"$f":"IF('bon de préparation'!$E$10=\"\",\"\",'bon de préparation'!$E$10)","v":""},null,null,{"$f":"IF('Bon de livraison'!D14=\"\",\"\",'Bon de livraison'!D14)","v":""},null,1]
[null,null,{"$f":"IF('bon de préparation'!$F$10=\"\",\"\",'bon de préparation'!$F$10)","v":""}]
[null,null,{"$f":"IF('bon de préparation'!$G$10=\"\",\"\",'bon de préparation'!$G$10)","v":""}]
[]
[]
[null,null,{"$f":"IF('bon de préparation'!$D$29>1,$C$4,\"\")","v":""},null,null,{"$f":"IF('bon de préparation'!$D$29>1,$F$4,\"\")","v":""},{"$f":"IF('bon de préparation'!$D$29>1,$G$4,\"\")","v":""}]
[null,null,null,{"$f":"IF('bon de préparation'!$D$29>1,$D$5,\"\")","v":""}]
[null,null,null,{"$f":"IF('bon de préparation'!$D$29>1,$D$6,\"\")","v":""},null,{"$f":"IF('bon de préparation'!$D$29>1,$F$6,\"\")","v":""},{"$f":"IF('bon de préparation'!$D$29>1,$G$6,\"\")","v":""}]
[null,null,null,{"$f":"IF('bon de préparation'!$D$29>1,$D$7,\"\")","v":""}]
[]
[null,null,{"$f":"IF('bon de préparation'!D29>1,$C$9,\"\")","v":""},null,null,null,{"$f":"IF('bon de préparation'!$D$29>1,$G$9,\"\")","v":""}]
[null,null,null,{"$f":"IF('bon de préparation'!$D$29>1,$D$10,\"\")","v":""},null,null,{"$f":"LEFT(D27,2)","v":""}]
[null,null,null,{"$f":"IF('bon de préparation'!$D$29>1,$D$11,\"\")","v":""}]
[null,null,null,{"$f":"IF('bon de préparation'!$D$29>1,$D$12,\"\")","v":""},{"$f":"IF('bon de préparation'!$D$29>1,$E$12,\"\")","v":""}]
[null,null,{"$f":"IF('bon de préparation'!$D$29>1,$C$13,\"\")","v":""},null,null,{"$f":"IF('bon de préparation'!$D$29>1,$F$13,\"\")","v":""},null,{"$f":"IF('bon de préparation'!$D$29>1,$H$13,\"\")","v":""}]
[null,null,{"$f":"IF('bon de préparation'!$D$29>1,$C$14,\"\")","v":""},null,null,{"$f":"IF('bon de préparation'!$D$29>1,$F$14,\"\")","v":""},null,{"$f":"IF('bon de préparation'!$D$29>1,2,\"\")","v":""}]
[null,null,{"$f":"IF('bon de préparation'!$D$29>1,$C$15,\"\")","v":""}]
[null,null,{"$f":"IF('bon de préparation'!$D$29>1,$C$16,\"\")","v":""}]
[]
[]
[null,null,{"$f":"IF('bon de préparation'!$D$29>2,$C$4,\"\")","v":""},null,null,{"$f":"IF('bon de préparation'!$D$29>2,$F$4,\"\")","v":""},{"$f":"IF('bon de préparation'!$D$29>2,$G$4,\"\")","v":""}]
[null,null,null,{"$f":"IF('bon de préparation'!$D$29>2,$D$5,\"\")","v":""}]
[null,null,null,{"$f":"IF('bon de préparation'!$D$29>2,$D$6,\"\")","v":""},null,{"$f":"IF('bon de préparation'!$D$29>2,$F$6,\"\")","v":""},{"$f":"IF('bon de préparation'!$D$29>2,$G$6,\"\")","v":""}]
[null,null,null,{"$f":"IF('bon de préparation'!$D$29>2,$D$7,\"\")","v":""}]
[]
[null,null,{"$f":"IF('bon de préparation'!$D$29>2,$C$9,\"\")","v":""},null,null,null,{"$f":"IF('bon de préparation'!$D$29>2,$G$9,\"\")","v":""}]
[null,null,null,{"$f":"IF('bon de préparation'!$D$29>2,$D$10,\"\")","v":""},null,null,{"$f":"LEFT(D42,2)","v":""}]
[null,null,null,{"$f":"IF('bon de préparation'!$D$29>2,$D$11,\"\")","v":""}]
[null,null,null,{"$f":"IF('bon de préparation'!$D$29>2,$D$12,\"\")","v":""},{"$f":"IF('bon de préparation'!$D$29>2,$E$12,\"\")","v":""}]
[null,null,{"$f":"IF('bon de préparation'!$D$29>2,$C$13,\"\")","v":""},null,null,{"$f":"IF('bon de préparation'!$D$29>2,$F$13,\"\")","v":""},null,{"$f":"IF('bon de préparation'!$D$29>2,$H$13,\"\")","v":""}]
[null,null,{"$f":"IF('bon de préparation'!$D$29>2,$C$14,\"\")","v":""},null,null,{"$f":"IF('bon de préparation'!$D$29>2,$F$14,\"\")","v":""},null,{"$f":"IF('bon de préparation'!$D$29>2,3,\"\")","v":""}]
[null,null,{"$f":"IF('bon de préparation'!$D$29>2,$C$15,\"\")","v":""}]
[null,null,{"$f":"IF('bon de préparation'!$D$29>2,$C$16,\"\")","v":""}]

{"sheet":"Lettre de voiture expé","index":24,"n_rows":18,"n_cols":13,"rows_kept":18,"cut":false,"hidden":false,"merged":[[17,1,17,4],[13,1,14,4],[13,9,13,12],[13,5,13,8],[14,10,14,12],[14,6,14,8],[15,1,16,4],[6,1,8,1],[6,2,8,2],[9,1,10,2],[9,3,10,3],[9,4,11,5],[2,7,2,8],[2,10,2,12],[3,11,3,12],[9,9,11,12],[5,3,7,6],[5,7,7,10],[5,11,6,12],[4,4,4,5],[4,7,4,8],[4,9,4,10],[4,11,4,12],[9,6,11,6],[9,7,11,8]]}
[]
[null,"EXPEDITEUR",null,"DESTINATAIRE",null,null,"Nbre colis","Port Payé H.T",null,"T.V.A 20 %","Contre Remoursement"]
[null,{"$f":"'Gestion identité'!C5","v":"B.S.L ÉLEC"},null,{"$f":"IF('bon de préparation'!E6=\"\",\"\",'bon de préparation'!I6)","v":""},null,null,{"$f":"IF('bon de préparation'!E6=\"\",\"\",'bon de préparation'!D29)","v":""}]
[null,{"$f":"'Gestion identité'!C6","v":"5, rue Ste Anne"},null,{"$f":"IF('bon de préparation'!E6=\"\",\"\",'bon de préparation'!I7)","v":""},null,null,"Poids en Kg","Port dû \nH.T",null,"Débours Assignés"]
[null,{"$f":"'Gestion identité'!C7","v":"54340 Pompey"},null,{"$f":"IF('bon de préparation'!E6=\"\",\"\",'bon de préparation'!I8)","v":""},{"$f":"IF('bon de préparation'!E6=\"\",\"\",'bon de préparation'!J8)","v":""},null,{"$f":"IF('bon de préparation'!E6=\"\",\"\",'bon de préparation'!F29)","v":""}]
[null,"Date d'exp",{"$f":"IF('bon de préparation'!D8=\"\",\"\",'bon de préparation'!D8)","v":""},"Matériel électronique",null,null,null,null,null,null,null,"L'expédition contient des matières\ndangereuses selon\nRTMD/RD/ADR DECLARATION OBLIGATOIRE"]
[null,"Lettre de voiture N°","W25127"]
[null,null,null,null,null,null,null,null,null,null,null,"oui","non"]
[null,null,null,"DESIGNATION - NATURE - MARQUES ET NUMEROS",null,null,null,"OBSERVATIONS DE LIVRAISON",null,null,null,"MATIERES DANGEREUSES"]
[null,"Rayer la mention\ninutile",null,"Valeur à \nassurée","Nos opérations sont soumises aux Conditions générales de transport de détail approuvées par décisions Ministérielles \n(J.O du 21.01.1971 et du 27.07.1985).",null,"VOIR AU VERSO EXTRAIT DE\nCES CONDITIONS GENERALES","Les réserves pour être valables doivent. Etre indiquées de façon précise ci-contre Et confirmées dans les trois jours, par Lettre recommandée au livreur (article L 133-3 du code de commerce)."]
[]
[null,"Port\nPayé","Port dû"]
[null,"TRANSPORTEUR",null,null,null,"Conditions générales de vente",null,null,null,"Gencod"]
[null,{"$f":"IF('bon de préparation'!$E$9=\"\",\"\",'bon de préparation'!E10)","v":""},null,null,null,"Marchandise expédié le :",null,null,null,"Marchandise reçue le :"]
[null,null,null,null,null,"RESERVES :",null,null,null,"RESERVES :"]
[null,{"$f":"IF('bon de préparation'!$E$9=\"\",\"\",'bon de préparation'!F10)","v":""},null,null,null,"(Cachet ou Nom et signature de l'expéditeur)",null,null,null,"(Cachet ou Nom et signature de l'expéditeur)"]
[]
[null,{"$f":"IF('bon de préparation'!E9=\"\",\"\",'bon de préparation'!G10)","v":""},null,null,null,"Expéditeur",null,null,null,"Destinataire"]

{"sheet":"Facture client","index":25,"n_rows":37,"n_cols":7,"rows_kept":37,"cut":false,"hidden":false,"merged":[[33,4,33,5],[35,4,35,5],[36,4,36,5]]}
[]
[null,{"$f":"'Gestion identité'!C5","v":"B.S.L ÉLEC"},null,null,null,"Facture"]
[]
[null,{"$f":"'Gestion identité'!C6","v":"5, rue Ste Anne"},null,null,null,"N° de client :",{"$f":"IF('bon de préparation'!E6=\"\",\"\",('bon de préparation'!E6))","v":""}]
[null,{"$f":"'Gestion identité'!C7","v":"54340 Pompey"}]
[null,"Email",{"$f":"'Gestion identité'!C9","v":"B.S.L Élec@orange.fr"},null,null,"N° de facture :",{"$f":"IF('bon de préparation'!D8=\"\",\"\",'bon de préparation'!D8)","v":""}]
[null,"Téléphone",{"$f":"'Gestion identité'!C8","v":"03.83.49.11.94"}]
[null,null,null,null,null,"Date de facture :",{"$f":"IF(G10=\"\",\"\",G10)","v":""}]
[]
[null,"Facturer à : ",{"$f":"IF('bon de préparation'!I6=\"\",\"\",'bon de préparation'!I6)","v":""},null,null,"Date de livraison :",{"$f":"IF('bon de préparation'!F8=\"\",\"\",'bon de préparation'!F8)","v":""}]
[]
[null,"Adresse",{"$f":"IF('bon de préparation'!I7=\"\",\"\",'bon de préparation'!I7)","v":""}]
[null,{"$f":"IF('bon de préparation'!I8=\"\",\"\",'bon de préparation'!I8)","v":""},{"$f":"IF('bon de préparation'!J8=\"\",\"\",'bon de préparation'!J8)","v":""}]
[null,"Téléphone",{"$f":"IF($C$10=\"\",\"\",VLOOKUP('bon de préparation'!$E$6,Client,6,FALSE))","v":""}]
[null,"Email",{"$f":"IF($C$10=\"\",\"\",VLOOKUP('bon de préparation'!$E$6,Client,7,FALSE))","v":""}]
[]
[null,"Référence","Description",null,"Quantité","Prix unitaire HT","Prix total HT"]
[]
[null,{"$f":"IF('bon de préparation'!B13=\"\",\"\",'bon de préparation'!B13)","v":""},{"$f":"IF('bon de préparation'!D13=\"\",\"\",'bon de préparation'!D13)","v":""},null,{"$f":"IF('bon de préparation'!G13=\"\",\"\",'bon de préparation'!G13)","v":""},{"$f":"IF(B19=\"\",\"\",VLOOKUP(B19,stock,7,FALSE))","v":""},{"$f":"IF(B19=\"\",\"\",E19*F19)","v":""}]
[null,{"$f":"IF('bon de préparation'!B14=\"\",\"\",'bon de préparation'!B14)","v":""},{"$f":"IF('bon de préparation'!D14=\"\",\"\",'bon de préparation'!D14)","v":""},null,{"$f":"IF('bon de préparation'!G14=\"\",\"\",'bon de préparation'!G14)","v":""},"",{"$f":"IF(B20=\"\",\"\",E20*F20)","v":""}]
[null,{"$f":"IF('bon de préparation'!B15=\"\",\"\",'bon de préparation'!B15)","v":""},{"$f":"IF('bon de préparation'!D15=\"\",\"\",'bon de préparation'!D15)","v":""},null,{"$f":"IF('bon de préparation'!G15=\"\",\"\",'bon de préparation'!G15)","v":""},"",""]
[null,{"$f":"IF('bon de préparation'!B16=\"\",\"\",'bon de préparation'!B16)","v":""},{"$f":"IF('bon de préparation'!D16=\"\",\"\",'bon de préparation'!D16)","v":""},null,{"$f":"IF('bon de préparation'!G16=\"\",\"\",'bon de préparation'!G16)","v":""},"",""]
[null,{"$f":"IF('bon de préparation'!B17=\"\",\"\",'bon de préparation'!B17)","v":""},{"$f":"IF('bon de préparation'!D17=\"\",\"\",'bon de préparation'!D17)","v":""},null,{"$f":"IF('bon de préparation'!G17=\"\",\"\",'bon de préparation'!G17)","v":""},"",""]
[null,{"$f":"IF('bon de préparation'!B18=\"\",\"\",'bon de préparation'!B18)","v":""},{"$f":"IF('bon de préparation'!D18=\"\",\"\",'bon de préparation'!D18)","v":""},null,{"$f":"IF('bon de préparation'!G18=\"\",\"\",'bon de préparation'!G18)","v":""},"",""]
[null,{"$f":"IF('bon de préparation'!B19=\"\",\"\",'bon de préparation'!B19)","v":""},{"$f":"IF('bon de préparation'!D19=\"\",\"\",'bon de préparation'!D19)","v":""},null,{"$f":"IF('bon de préparation'!G19=\"\",\"\",'bon de préparation'!G19)","v":""},"",""]
[null,{"$f":"IF('bon de préparation'!B20=\"\",\"\",'bon de préparation'!B20)","v":""},{"$f":"IF('bon de préparation'!D20=\"\",\"\",'bon de préparation'!D20)","v":""},null,{"$f":"IF('bon de préparation'!G20=\"\",\"\",'bon de préparation'!G20)","v":""},"",""]
[null,{"$f":"IF('bon de préparation'!B21=\"\",\"\",'bon de préparation'!B21)","v":""},{"$f":"IF('bon de préparation'!D21=\"\",\"\",'bon de préparation'!D21)","v":""},null,{"$f":"IF('bon de préparation'!G21=\"\",\"\",'bon de préparation'!G21)","v":""},"",""]
[null,{"$f":"IF('bon de préparation'!B22=\"\",\"\",'bon de préparation'!B22)","v":""},{"$f":"IF('bon de préparation'!D22=\"\",\"\",'bon de préparation'!D22)","v":""},null,{"$f":"IF('bon de préparation'!G22=\"\",\"\",'bon de préparation'!G22)","v":""},"",""]
[null,{"$f":"IF('bon de préparation'!B23=\"\",\"\",'bon de préparation'!B23)","v":""},{"$f":"IF('bon de préparation'!D23=\"\",\"\",'bon de préparation'!D23)","v":""},null,{"$f":"IF('bon de préparation'!G23=\"\",\"\",'bon de préparation'!G23)","v":""},"",""]
[null,{"$f":"IF('bon de préparation'!B24=\"\",\"\",'bon de préparation'!B24)","v":""},{"$f":"IF('bon de préparation'!D24=\"\",\"\",'bon de préparation'!D24)","v":""},null,{"$f":"IF('bon de préparation'!G24=\"\",\"\",'bon de préparation'!G24)","v":""},"",""]
[null,{"$f":"IF('bon de préparation'!B25=\"\",\"\",'bon de préparation'!B25)","v":""},{"$f":"IF('bon de préparation'!D25=\"\",\"\",'bon de préparation'!D25)","v":""},null,{"$f":"IF('bon de préparation'!G25=\"\",\"\",'bon de préparation'!G25)","v":""},"",""]
[null,{"$f":"IF('bon de préparation'!B26=\"\",\"\",'bon de préparation'!B26)","v":""},{"$f":"IF('bon de préparation'!D26=\"\",\"\",'bon de préparation'!D26)","v":""},null,{"$f":"IF('bon de préparation'!G26=\"\",\"\",'bon de préparation'!G26)","v":""},"",""]
[]
[null,"Remarques et instructions de paiement :",null,null,"SOUS-TOTAL H.T :",null,{"$f":"IF(G19=\"\",\"\",SUM(G19:G32))","v":""}]
[null,null,null,null,null,"TVA 20% :",{"$f":"IF(G19=\"\",\"\",G34*0.2)","v":""}]
[]
[null,null,null,null,"À PAYER :",null,{"$f":"IF(G34=\"\",\"\",G34+G35)","v":""}]

{"sheet":"fiche d'inventaire","index":26,"n_rows":27,"n_cols":12,"rows_kept":27,"cut":false,"hidden":false,"merged":[[8,11,9,11],[8,3,9,3],[8,4,9,4],[8,5,9,6],[8,7,9,7],[8,8,9,8],[8,9,8,10]]}
[]
[]
[]
[null,null,null,null,null,null,null,"Fiche d'inventaire"]
[]
[null,null,null,null,null,null,null,"Date:"]
[]
[]
[null,null,null,"Adresse","Référence","Désignation ",null,"Quantité Thèorique","Quantité physique","Ecart",null,"Observations"]
[null,null,null,null,null,null,null,null,null,"+","-"]
[null,null,null,{"$f":"IF(E11=\"\",\"\",VLOOKUP(E11,stock,4))","v":""},null,{"$f":"IF(E11=\"\",\"\",VLOOKUP(E11,stock,2))","v":""},null,{"$f":"IF(E11=\"\",\"\",VLOOKUP(E11,stock,6))","v":""},null,{"$f":"IF(I11=\"\",\"\",IF(I11>H11,I11-H11,\"\"))","v":""},{"$f":"IF(I11=\"\",\"\",IF(H11>I11,I11-H11,\"\"))","v":""}]
[null,null,null,"",null,"",null,"",null,{"$f":"IF(I12=\"\",\"\",IF(I12>H12,I12-H12,\"\"))","v":""},{"$f":"IF(I12=\"\",\"\",IF(H12>I12,I12-H12,\"\"))","v":""}]
[null,null,null,"",null,"",null,"",null,"",""]
[null,null,null,"",null,"",null,"",null,"",""]
[null,null,null,"",null,"",null,"",null,"",""]
[null,null,null,"",null,"",null,"",null,"",""]
[null,null,null,"",null,"",null,"",null,"",""]
[null,null,null,"",null,"",null,"",null,"",""]
[null,null,null,"",null,"",null,"",null,"",""]
[null,null,null,"",null,"",null,"",null,"",""]
[null,null,null,"",null,"",null,"",null,"",""]
[null,null,null,"",null,"",null,"",null,"",""]
[null,null,null,"",null,"",null,"",null,"",""]
[null,null,null,"",null,"",null,"",null,"",""]
[null,null,null,"",null,"",null,"",null,"",""]
[null,null,null,"",null,"",null,"",null,"",""]
[null,null,null,null,null,null,null,null,null,null,null,"Nom et visa de l'opérateur:"]

{"sheet":"Gestion identité","index":27,"n_rows":11,"n_cols":6,"rows_kept":11,"cut":false,"hidden":false,"merged":[]}
[]
[]
[null,null,null,null,null,"Oui"]
[null,null,"Identité de l'entreprise",null,null,"Non"]
[null,"Identité","B.S.L ÉLEC"]
[null,"Adresse","5, rue Ste Anne"]
[null,"code et ville","54340 Pompey"]
[null,"Tél","03.83.49.11.94"]
[null,"Mail","B.S.L Élec@orange.fr"]
[null,"Ville","Pompey"]
[null,"Code postale","54340"]

{"sheet":"Rapport sur la compatibilité","index":28,"n_rows":15,"n_cols":6,"rows_kept":15,"cut":false,"hidden":false,"merged":[]}
[null,"Rapport sur la compatibilité concernant MAGASIN LOG.xls"]
[null,"Exécuté le 24/08/2015 08:00"]
[]
[null,"Les fonctionnalités suivantes de ce classeur ne sont pas prises en charge dans les versions antérieures d’Excel. Ces fonctionnalités seront peut-être perdues ou dégradées si vous ouvrez le classeur dans une version antérieure du programme ou si vous l’enregistrez dans un format de fichier antérieur."]
[]
[null,"Perte significative de fonctionnalité",null,null,"Nb d'occurrences","Version"]
[]
[null,"Tout effet appliqué à ce graphique va être supprimé. Tout texte en dehors des limites du graphique va être tronqué.",null,null,2]
[null,null,null,null,"dupli bon de commande '!A1:H66","Excel 97-2003"]
[null,null,null,null,"Bon de livraison GEISLER'!A1:I48","Excel 97-2003"]
[]
[]
[null,"Perte mineure de fidélité"]
[]
[null,"Certaines cellules ou certains styles de ce classeur contiennent une mise en forme qui n'est pas prise en charge par le format de fichier sélectionné. Ces formats seront convertis au format le plus proche disponible.",null,null,41,"Excel 97-2003"]